Workbook

Sheet Title Page
A15: Solar Time, Angles, and Irradiance Calculator
B16: Authors: Prof. Thomas Jenkins, Gabriel Bolivar
B17: Copyright © NMSU 2013
G18: =TODAY() -> 2014-09-25
C19: Acknowledgments:
C20: The authors wish to express extreme gratitude for the assistance of the following:
C21: College of Engineering (COE) and Engineering NM: http://engr.nmsu.edu/index.shtml
C22: Cooperative Extension Service: http://extension.nmsu.edu/
C23: New Mexico Space Grant Consortium (NMSGC): http://www.nmspacegrant.com/
C24: Department of Engineering Technology and Surveying Engineering (ETSE): http://et.nmsu.edu/
C26: Disclaimer: This document is only intended to provide an education tool and should not be used beyond
C27: this purpose. The authors tried to use good engineering analysis but all situations are different and the user
C28: should consult a professional in all cases.
C30: See related energy videos at: | F30: http://www.youtube.com/playlist?list=PL89870B418A514D27
A54: http://www.youtube.com/playlist?list=PL89870B418A514D27

Sheet Time
A1: Determining Solar Versus Local Time | Z1: January | AA1: 1 | AB1: =IF(L9="January",1,IF(L9="February",1,IF(L9="March",1,IF(L9="April",1,IF(L9="May",1,IF(L9="June",1,IF(L9="July",1,IF(L9="August",1,IF(L9="September",1,IF(L9="October",1,IF(L9="November",1,IF(L9="December",1,0)))))))))))) -> 1 | AC1: N
Z2: February | AA2: 2 | AB2: =IF(L9="January",1,IF(L9="February",1,IF(L9="March",1,IF(L9="April",1,IF(L9="May",1,IF(L9="June",1,IF(L9="July",1,IF(L9="August",1,IF(L9="September",1,IF(L9="October",1,IF(L9="November",1,IF(L9="December",1,0)))))))))))) -> 1 | AC2: Y
A3: Step 1: In the table to the right, enter the local latitude and longitude angles of the location in degrees. For example, Las Cruces, NM, is at latitude 32.32 degrees north from the Equator and at longitude 106.75 degrees west from the Prime Meridian. | Z3: March | AA3: 3 | AB3: =IF(L9="January",1,IF(L9="February",1,IF(L9="March",1,IF(L9="April",1,IF(L9="May",1,IF(L9="June",1,IF(L9="July",1,IF(L9="August",1,IF(L9="September",1,IF(L9="October",1,IF(L9="November",1,IF(L9="December",1,0)))))))))))) -> 1
L4: Location's Latitude Angle in degrees | P4: 32.28 | Q4: degrees | Z4: April | AA4: 4 | AB4: =IF(L9="January",1,IF(L9="February",1,IF(L9="March",1,IF(L9="April",1,IF(L9="May",1,IF(L9="June",1,IF(L9="July",1,IF(L9="August",1,IF(L9="September",1,IF(L9="October",1,IF(L9="November",1,IF(L9="December",1,0)))))))))))) -> 1
L5: Location's Longitude Angle in degrees | P5: 106.75 | Q5: degrees | Z5: May | AA5: 5 | AB5: =IF(L9="January",1,IF(L9="February",1,IF(L9="March",1,IF(L9="April",1,IF(L9="May",1,IF(L9="June",1,IF(L9="July",1,IF(L9="August",1,IF(L9="September",1,IF(L9="October",1,IF(L9="November",1,IF(L9="December",1,0)))))))))))) -> 1
A6: Step 2: In the same table to the right, enter the month and day for which you want to calculate the corresponding Julian Day (1–365) of the year, with 1 being Jan 1st and 365 being Dec 31st. | Z6: June | AA6: 6 | AB6: =IF(L9="January",1,IF(L9="February",1,IF(L9="March",1,IF(L9="April",1,IF(L9="May",1,IF(L9="June",1,IF(L9="July",1,IF(L9="August",1,IF(L9="September",1,IF(L9="October",1,IF(L9="November",1,IF(L9="December",1,0)))))))))))) -> 1
L7: Enter the month and day to calculate the Julian day number: | Z7: July | AA7: 7 | AB7: =IF(L9="January",1,IF(L9="February",1,IF(L9="March",1,IF(L9="April",1,IF(L9="May",1,IF(L9="June",1,IF(L9="July",1,IF(L9="August",1,IF(L9="September",1,IF(L9="October",1,IF(L9="November",1,IF(L9="December",1,0)))))))))))) -> 1
A8: Step 3: In the green cells below, enter the local time in the green "Enter the local time" cell. Enter the value for the hour using 24-hour time—for example, 2:30 pm would be 14 hours (Hr) and 30 minutes (Min). Finally, enter whether or not Daylight Saving Time is active, along with the corresponding Time Zone of the location. | L8: Month | N8: Day | P8: Julian Day | Z8: August | AA8: 8 | AB8: =IF(L9="January",1,IF(L9="February",1,IF(L9="March",1,IF(L9="April",1,IF(L9="May",1,IF(L9="June",1,IF(L9="July",1,IF(L9="August",1,IF(L9="September",1,IF(L9="October",1,IF(L9="November",1,IF(L9="December",1,0)))))))))))) -> 1
L9: November | N9: 14 | P9: =IF(L9="January",N9,IF(L9="February",N9+31,IF(L9="March",N9+59,IF(L9="April",N9+90,IF(L9="May",N9+120,IF(L9="June",N9+151,IF(L9="July",N9+181,IF(L9="August",N9+212,IF(L9="September",N9+243,IF(L9="October",N9+273,IF(L9="November",N9+304,IF(L9="December",N9+334,0)))))))))))) -> 318 | Z9: September | AA9: 9 | AB9: =IF(L9="January",1,IF(L9="February",1,IF(L9="March",1,IF(L9="April",1,IF(L9="May",1,IF(L9="June",1,IF(L9="July",1,IF(L9="August",1,IF(L9="September",1,IF(L9="October",1,IF(L9="November",1,IF(L9="December",1,0)))))))))))) -> 1
L10: =IFERROR(IF(INDEX(AB1:AB31,MATCH(N9,AA1:AA31,0))=0,"The date value entered is INCORRECT",""),"The date value entered is INCORRECT") ->  | Z10: October | AA10: 10 | AB10: =IF(L9="January",1,IF(L9="February",1,IF(L9="March",1,IF(L9="April",1,IF(L9="May",1,IF(L9="June",1,IF(L9="July",1,IF(L9="August",1,IF(L9="September",1,IF(L9="October",1,IF(L9="November",1,IF(L9="December",1,0)))))))))))) -> 1
Z11: November | AA11: 11 | AB11: =IF(L9="January",1,IF(L9="February",1,IF(L9="March",1,IF(L9="April",1,IF(L9="May",1,IF(L9="June",1,IF(L9="July",1,IF(L9="August",1,IF(L9="September",1,IF(L9="October",1,IF(L9="November",1,IF(L9="December",1,0)))))))))))) -> 1
E12: Hr | F12: Min | H12: Time in decimal | L12: Julian Day Number for the 1st Day of Each Month | Z12: December | AA12: 12 | AB12: =IF(L9="January",1,IF(L9="February",1,IF(L9="March",1,IF(L9="April",1,IF(L9="May",1,IF(L9="June",1,IF(L9="July",1,IF(L9="August",1,IF(L9="September",1,IF(L9="October",1,IF(L9="November",1,IF(L9="December",1,0)))))))))))) -> 1
A13: Enter the local time: (hours and min) | E13: 14 | F13: 34 | H13: =E13+(F13/60) -> 14.56666667 | L13: Month | M13: n = | N13: Month | O13: n = | P13: Month | Q13: n = | AA13: 13 | AB13: =IF(L9="January",1,IF(L9="February",1,IF(L9="March",1,IF(L9="April",1,IF(L9="May",1,IF(L9="June",1,IF(L9="July",1,IF(L9="August",1,IF(L9="September",1,IF(L9="October",1,IF(L9="November",1,IF(L9="December",1,0)))))))))))) -> 1
A14: Are you in Daylight Saving Time (Y/N)? | E14: N | F14: =IF(AND(E14="Y",(OR(L9="April",L9="May",L9="June",L9="July",L9="August",L9="September",L9="October",AND(L9="November",N9<=7),AND(L9="March",N9>=8)))),"",IF(AND(E14="N",(OR(L9="December",L9="January",L9="February",AND(L9="November",N9>=1),AND(L9="March",N9<=14)))),"","Warning: Check the Daylight Savings Time")) ->  | L14: January | M14: 1 | N14: May | O14: 121 | P14: September | Q14: 244 | AA14: 14 | AB14: =IF(L9="January",1,IF(L9="February",1,IF(L9="March",1,IF(L9="April",1,IF(L9="May",1,IF(L9="June",1,IF(L9="July",1,IF(L9="August",1,IF(L9="September",1,IF(L9="October",1,IF(L9="November",1,IF(L9="December",1,0)))))))))))) -> 1
A15: Time Zone (use drop-down menu) | E15: Mountain | F15: =IF(AND(E15="Eastern",AND(P5>=70,P5<=85)),"",IF(AND(E15="Central",AND(P5>=85,P5<=100)),"",IF(AND(E15="Mountain",AND(P5>=100,P5<=115)),"",IF(AND(E15="Pacific",AND(P5>=115,P5<=125)),"","Warning: Check the Time Zone")))) ->  | L15: February | M15: 32 | N15: June | O15: 152 | P15: October | Q15: 274 | AA15: 15 | AB15: =IF(L9="January",1,IF(L9="February",1,IF(L9="March",1,IF(L9="April",1,IF(L9="May",1,IF(L9="June",1,IF(L9="July",1,IF(L9="August",1,IF(L9="September",1,IF(L9="October",1,IF(L9="November",1,IF(L9="December",1,0)))))))))))) -> 1
L16: March | M16: 60 | N16: July | O16: 182 | P16: November | Q16: 305 | AA16: 16 | AB16: =IF(L9="January",1,IF(L9="February",1,IF(L9="March",1,IF(L9="April",1,IF(L9="May",1,IF(L9="June",1,IF(L9="July",1,IF(L9="August",1,IF(L9="September",1,IF(L9="October",1,IF(L9="November",1,IF(L9="December",1,0)))))))))))) -> 1
D17: Calculations: | L17: April | M17: 91 | N17: August | O17: 213 | P17: December | Q17: 335 | AA17: 17 | AB17: =IF(L9="January",1,IF(L9="February",1,IF(L9="March",1,IF(L9="April",1,IF(L9="May",1,IF(L9="June",1,IF(L9="July",1,IF(L9="August",1,IF(L9="September",1,IF(L9="October",1,IF(L9="November",1,IF(L9="December",1,0)))))))))))) -> 1
A18: Longitude Correction (B) | E18: =(360/364*(P9-81)) -> 234.3956044 | F18: degrees | AA18: 18 | AB18: =IF(L9="January",1,IF(L9="February",1,IF(L9="March",1,IF(L9="April",1,IF(L9="May",1,IF(L9="June",1,IF(L9="July",1,IF(L9="August",1,IF(L9="September",1,IF(L9="October",1,IF(L9="November",1,IF(L9="December",1,0)))))))))))) -> 1
A19: Equation of Time (E) | E19: =(9.87*SIN(RADIANS(2*E18)))-(7.53*COS(RADIANS(E18)))-(1.5*SIN(RADIANS(E18))) -> 14.94735595 | F19: minutes | N19: Local Time Zones | AA19: 19 | AB19: =IF(L9="January",1,IF(L9="February",1,IF(L9="March",1,IF(L9="April",1,IF(L9="May",1,IF(L9="June",1,IF(L9="July",1,IF(L9="August",1,IF(L9="September",1,IF(L9="October",1,IF(L9="November",1,IF(L9="December",1,0)))))))))))) -> 1
A20: Local Meridian (degrees West of Greenwich) | E20: =IF(E15="Eastern",75,IF(E15="Central",90,IF(E15="Mountain",105,IF(E15="Pacific",120,"error")))) -> 105 | F20: degrees | N20: Eastern | O20: 75 | P20: degrees West | AA20: 20 | AB20: =IF(L9="January",1,IF(L9="February",1,IF(L9="March",1,IF(L9="April",1,IF(L9="May",1,IF(L9="June",1,IF(L9="July",1,IF(L9="August",1,IF(L9="September",1,IF(L9="October",1,IF(L9="November",1,IF(L9="December",1,0)))))))))))) -> 1
A21: Hours before (+) or after (-) solar noon | E21: =C27-H13 -> -2.699122599 | F21: hours | G21: or | H21: =ABS(E21)/24 -> 02:41:56.841 | I21: =IF(E21<0,"AFTER solar noon","BEFORE solar noon") -> AFTER solar noon | N21: Central | O21: 90 | P21: degrees West | AA21: 21 | AB21: =IF(L9="January",1,IF(L9="February",1,IF(L9="March",1,IF(L9="April",1,IF(L9="May",1,IF(L9="June",1,IF(L9="July",1,IF(L9="August",1,IF(L9="September",1,IF(L9="October",1,IF(L9="November",1,IF(L9="December",1,0)))))))))))) -> 1
N22: Mountain | O22: 105 | P22: degrees West | AA22: 22 | AB22: =IF(L9="January",1,IF(L9="February",1,IF(L9="March",1,IF(L9="April",1,IF(L9="May",1,IF(L9="June",1,IF(L9="July",1,IF(L9="August",1,IF(L9="September",1,IF(L9="October",1,IF(L9="November",1,IF(L9="December",1,0)))))))))))) -> 1
D23: Time Conversion | N23: Pacific | O23: 120 | P23: degrees West | AA23: 23 | AB23: =IF(L9="January",1,IF(L9="February",1,IF(L9="March",1,IF(L9="April",1,IF(L9="May",1,IF(L9="June",1,IF(L9="July",1,IF(L9="August",1,IF(L9="September",1,IF(L9="October",1,IF(L9="November",1,IF(L9="December",1,0)))))))))))) -> 1
C24: Decimal | E24: 24-hour Format | H24: 12-hour Format | AA24: 24 | AB24: =IF(L9="January",1,IF(L9="February",1,IF(L9="March",1,IF(L9="April",1,IF(L9="May",1,IF(L9="June",1,IF(L9="July",1,IF(L9="August",1,IF(L9="September",1,IF(L9="October",1,IF(L9="November",1,IF(L9="December",1,0)))))))))))) -> 1
A25: Solar Time is: | C25: =((H13*60+4*(E20-P5)+E19)/60)+IF(E14="Y",-1,0) -> 14.6991226 | E25: =TEXT(C25/24, "h:mm") -> 14:41 | H25: =C25/24 -> 14:41:56.841 | AA25: 25 | AB25: =IF(L9="January",1,IF(L9="February",1,IF(L9="March",1,IF(L9="April",1,IF(L9="May",1,IF(L9="June",1,IF(L9="July",1,IF(L9="August",1,IF(L9="September",1,IF(L9="October",1,IF(L9="November",1,IF(L9="December",1,0)))))))))))) -> 1
A26: On this day, solar noon is at this local time: | AA26: 26 | AB26: =IF(L9="January",1,IF(L9="February",1,IF(L9="March",1,IF(L9="April",1,IF(L9="May",1,IF(L9="June",1,IF(L9="July",1,IF(L9="August",1,IF(L9="September",1,IF(L9="October",1,IF(L9="November",1,IF(L9="December",1,0)))))))))))) -> 1
C27: =((12*60)-4*(E20-P5)-(E19))/60+IF(E14="Y",1,0) -> 11.86754407 | E27: =TEXT(C27/24, "h:mm") -> 11:52 | H27: =C27/24 -> 11:52:03.159 | AA27: 27 | AB27: =IF(L9="January",1,IF(L9="February",1,IF(L9="March",1,IF(L9="April",1,IF(L9="May",1,IF(L9="June",1,IF(L9="July",1,IF(L9="August",1,IF(L9="September",1,IF(L9="October",1,IF(L9="November",1,IF(L9="December",1,0)))))))))))) -> 1
AA28: 28 | AB28: =IF(L9="January",1,IF(L9="February",1,IF(L9="March",1,IF(L9="April",1,IF(L9="May",1,IF(L9="June",1,IF(L9="July",1,IF(L9="August",1,IF(L9="September",1,IF(L9="October",1,IF(L9="November",1,IF(L9="December",1,0)))))))))))) -> 1
AA29: 29 | AB29: =IF(L9="January",1,IF(L9="March",1,IF(L9="April",1,IF(L9="May",1,IF(L9="June",1,IF(L9="July",1,IF(L9="August",1,IF(L9="September",1,IF(L9="October",1,IF(L9="November",1,IF(L9="December",1,0))))))))))) -> 1
A30: Step 4: To convert from solar time to local time, use the input cells below. Enter the solar time in the green cells (hours in 24-hour time format). A decimal hour value and the corresponding local time for the location previously entered will be displayed. | AA30: 30 | AB30: =IF(L9="January",1,IF(L9="March",1,IF(L9="April",1,IF(L9="May",1,IF(L9="June",1,IF(L9="July",1,IF(L9="August",1,IF(L9="September",1,IF(L9="October",1,IF(L9="November",1,IF(L9="December",1,0))))))))))) -> 1
AA31: 31 | AB31: =IF(L9="January",1,IF(L9="March",1,IF(L9="May",1,IF(L9="July",1,IF(L9="August",1,IF(L9="October",1,IF(L9="December",1,0))))))) -> 0
AA32: Useful | AB32: =COUNTIF(AB1:AB31,"=1") -> 30
C34: Hr | D34: Min | F34: Time in decimal | H34: 12-hour Format
A35: Solar Time (ST) | C35: 15 | D35: 19 | F35: =C35+D35/60 -> 15.31666667 | H35: =F35/24 -> 15:19:00
A36: Local Time (CT) | C36: =INT(F36) -> 15 | D36: =ROUNDDOWN((F36-C36)*60,0) -> 11 | F36: =((F35*60)-4*(E20-P5)-(E19))/60+IF(E14="Y",1,0) -> 15.18421073 | H36: =F36/24 -> 15:11:03.159

Sheet Angles
A1: Determining Sun Angles for any Day/Time | R1: Azimuth | S1: =DEGREES(ASIN(COS(RADIANS(F10))*SIN(RADIANS(F17))/COS(RADIANS(F18)))) -> -43.01731438 | T1: From book: east or west from north
R2: Before | S2: =180-S1 -> 223.0173144 | T2: East from north
A3: Step 5: The table to the right shows the values previously entered: latitude and longitude angles, Julian day, local time, and solar time. These values are taken from the previous Time sheet entries. In the cells below, the solar angles are calculated for both the Solar Noon and the time specified. You do not have to enter any values within this sheet. | I3: Latitude | L3: =Time!P4 -> 32.28 | R3: After | S3: =180-S1-360 -> -136.9826856 | T3: West from south
I4: Longitude | L4: =Time!P5 -> 106.75 | S4: =IF(COS(RADIANS(F17))>=((TAN(RADIANS(F10)))/(TAN(RADIANS(Time!P4)))),(DEGREES(ASIN(COS(RADIANS(F10))*SIN(RADIANS(F17))/COS(RADIANS(F18))))),IF(Time!H13<12,(180-DEGREES(ASIN(COS(RADIANS(F10))*SIN(RADIANS(F17))/COS(RADIANS(F18))))),(180-DEGREES(ASIN(COS(RADIANS(F10))*SIN(RADIANS(F17))/COS(RADIANS(F18))))-360))) -> -43.01731438
I5: Julian Day | L5: =Time!P9 -> 318
I6: Local Time in Decimal | L6: =Time!H13 -> 14.56666667
I7: Solar Time in Decimal | L7: =Time!C25 -> 14.6991226
A9: Solar Calculations at Solar Noon
A10: Solar Declination (δ) | F10: =23.45*SIN(RADIANS(360/365*(L5-81))) -> -18.91195474 | G10: degrees
A11: Solar Altitude (βn) sun angle from horizon at noon | F11: =(90-Time!P4+F10) -> 38.80804526 | G11: degrees
A12: Collector Tilt Angle (Σ) | F12: =90-F11 -> 51.19195474 | G12: degrees
A13: Air Mass Ratio (m) | F13: =ABS(1/SIN(RADIANS(F11))) -> 1.595626103
A15: Solar Calculations with Time Component
A16: Hours before/after solar noon (+/-) | F16: =Time!E21 -> -2.699122599 | G16: =IF(F16<0,"Hours After","Hours Before") -> Hours After
A17: Solar Hour Angle (H) | F17: =15*F16 -> -40.48683899 | G17: degrees
A18: Solar Altitude (βs) | F18: =DEGREES(ASIN(COS(RADIANS(Time!P4))*COS(RADIANS(F10))*COS(RADIANS(F17))+SIN(RADIANS(Time!P4))*SIN(RADIANS(F10)))) -> 25.79821471 | G18: degrees
A19: Solar Azimuth Angle (Φs) | F19: =IF(COS(RADIANS(F17))>=((TAN(RADIANS(F10)))/(TAN(RADIANS(Time!P4)))),S1,IF(Time!H13<12,Angles!S2,Angles!S3)) -> -43.01731438 | G19: =IF(F19<0,"degrees West","degrees East") -> degrees West
A20: Collector Tilt Angle (Σ) (optimal) | F20: =90-F18 -> 64.20178529 | G20: degrees
A21: Air Mass Ratio (m) | F21: =ABS(1/SIN(RADIANS(F18))) -> 2.297778036

Sheet Insolation
A1: Solar Insolation
A3: Step 6: This sheet calculates the three diferent components of the solar insolation (direct, diffuse, and reflected) and values related to these calculations. It will also display the insolation for different types of collector angles (flat, optimal tilted, and 1- and 2-axis trackers). In the green cells to the right, enter the azimuth angle and the tilt angle of the collector. Azimuth angles are positive (+) in the southeast and negative (-) in the southwest. Finally, enter the coefficient for the reflectance of the surface. Use the table to the right as a guide. | I3: Local Time | K3: =Time!H13/24 -> 14:34:00 | O3: Ground Reflectance (ρ)
I4: Solar Time | K4: =Time!H25 -> 14:41:56.841 | O4: Fresh snow | Q4: 0.8
I5: Date | K5: =Time!L9 -> November | L5: =Time!N9 -> 14 | O5: Ocean ice | Q5: 0.6
I6: Collector azimuth angle (Φc) | L6: 0 | M6: degrees | O6: Desert sand | Q6: 0.4
I7: Collector tilt angle (∑) | L7: 32.28 | M7: degrees | O7: Ordinary ground/grass | Q7: 0.2
I8: Reflectance of surface (ρ) | L8: 0.2 | O8: Gravel roof | Q8: 0.1
A10: Extraterrestrial Solar Insolation (Io) | E10: =1370*(1+0.034*COS(RADIANS(360*Angles!L5)/365)) -> 1402.148276 | F10: W/m2
A11: Apparent Extraterrestrial Solar Insolation (A) | E11: =1160+75*SIN(RADIANS((360/365)*(Angles!L5-275))) -> 1210.583271 | F11: W/m2
A12: Optical Depth - how hard is it for light to pass (k) | E12: =0.174+0.035*SIN(RADIANS(360/365*(Angles!L5-100))) -> 0.1539179706
A13: Sky diffuse factor (C) | E13: =0.095+0.04*SIN(RADIANS(360/365*(Angles!L5-100))) -> 0.07204910928
A15: AT SOLAR NOON: | J15: =Time!H27 -> 11:52:03.159 | O15: Total Daily Insolation
A16: Clear Sky Beam Radiation at the Earth (IB) | E16: =E11*EXP(-E12*Angles!F13) -> 946.9649049 | F16: W/m2 | O16: Flat Panel | Q16: =PSH!T37 -> 4.114101974 | R16: kWh/day
O17: Tilted Panel | Q17: =PSH!W37 -> 6.263054843 | R17: kWh/day
E18: FLAT | G18: TILTED | I18: 1-AXIS TRACKER | K18: 2-AXIS TRACKER | O18: 1-Axis Tracker | Q18: =PSH!Z37 -> 7.572910472 | R18: kWh/day
A19: Angle of Incidence (cosθ) | E19: =COS(RADIANS(Angles!F11))*COS(RADIANS(0-Insolation!L6))*SIN(RADIANS(0))+SIN(RADIANS(Angles!F11))*COS(RADIANS(0)) -> 0.6267132369 | F19: =DEGREES(ACOS(E19)) -> 51.19195474 | G19: =COS(RADIANS(Angles!F11))*COS(RADIANS(0-Insolation!L6))*SIN(RADIANS(Insolation!L7))+SIN(RADIANS(Angles!F11))*COS(RADIANS(Insolation!L7)) -> 0.946017753 | H19: =DEGREES(ACOS(G19)) -> 18.91195474 | I19: =COS(RADIANS(Angles!F11))*COS(RADIANS(0-0))*SIN(RADIANS(Insolation!L7))+SIN(RADIANS(Angles!F11))*COS(RADIANS(Insolation!L7)) -> 0.946017753 | J19: =DEGREES(ACOS(I19)) -> 18.91195474 | K19: =COS(RADIANS(Angles!F11))*COS(RADIANS(0-0))*SIN(RADIANS(90-Angles!F11))+SIN(RADIANS(Angles!F11))*COS(RADIANS(90-Angles!F11)) -> 1 | L19: =DEGREES(ACOS(K19)) -> 0 | O19: 2-Axis Tracker | Q19: =PSH!AC37 -> 7.909353634 | R19: kWh/day
A20: Beam Insolation on a Collector Face (IBC) | E20: =Insolation!E16*E19 -> 593.4754408 | F20: W/m2 | G20: =Insolation!E16*G19 -> 895.8456115 | H20: W/m2 | I20: =Insolation!E16*COS(RADIANS(Angles!F10)) -> 895.8456115 | J20: W/m2 | K20: =Insolation!E16 -> 946.9649049 | L20: W/m2
A21: Diffuse Radiation (IDC) | E21: =E13*Insolation!E16 -> 68.22797792 | F21: W/m2 | G21: =E13*Insolation!E16*((1+COS(RADIANS(Insolation!L7)))/2) -> 62.95560313 | H21: W/m2 | I21: =E13*Insolation!E16*((1+COS(RADIANS(90-Angles!F11+Angles!F10)))/2) -> 62.95560313 | J21: W/m2 | K21: =E13*Insolation!E16*((1+COS(RADIANS(90-Angles!F11)))/2) -> 55.49367741 | L21: W/m2
A22: Reflected Radiation (IRC) | E22: =L8*Insolation!E16*(SIN(RADIANS(Angles!F11))+E13)*((1-COS(RADIANS(0)))/2) -> 0 | F22: W/m2 | G22: =L8*Insolation!E16*((SIN(RADIANS(Angles!F11)))+E13)*((1-COS(RADIANS(Insolation!L7)))/2) -> 10.22673844 | H22: W/m2 | I22: =L8*((E16*SIN(RADIANS(Angles!F11)))+(E13*E16))*((1-COS(RADIANS(90-Angles!F11+Angles!F10)))/2) -> 10.22673844 | J22: W/m2 | K22: =L8*((E16*SIN(RADIANS(Angles!F11)))+(E13*E16))*((1-COS(RADIANS(90-Angles!F11)))/2) -> 24.70051273 | L22: W/m2 | O22: Total Yearly Insolation
A23: Total Insolation on a Collector (IC) | E23: =E20+E21+E22 -> 661.7034187 | F23: W/m2 | G23: =SUM(G20,G21,G22) -> 969.0279531 | H23: W/m2 | I23: =SUM(I20:I22) -> 969.0279531 | J23: W/m2 | K23: =SUM(K20,K21,K22) -> 1027.159095 | L23: W/m2 | O23: Flat Panel | Q23: =PSH!B125 -> 2251.662475 | R23: kWh/m2-yr
A24: Power generated compared to the TILTED option | E24: =E23/G23 -> 0.6828527666 | G24: =G23/G23 -> 1 | I24: =I23/G23 -> 1 | K24: =K23/G23 -> 1.059989128 | O24: Tilted Panel | Q24: =PSH!C125 -> 2528.484664 | R24: kWh/m2-yr
O25: 1-Axis Tracker | Q25: =PSH!D125 -> 3313.408943 | R25: kWh/m2-yr
A26: AT GIVEN TIME: | J26: =Time!H13/24 -> 14:34:00 | O26: 2-Axis Tracker | Q26: =PSH!E125 -> 3455.275166 | R26: kWh/m2-yr
A27: Clear Sky Beam Radiation at the Earth (IB) | E27: =IF(Angles!F18>0,E11*EXP(-E12*Angles!F21),0) -> 849.9591017 | F27: W/m2
E29: FLAT | G29: TILTED | I29: 1-AXIS TRACKER | K29: 2-AXIS TRACKER
A30: Angle of Incidence (cosθ) | E30: =COS(RADIANS(Angles!F18))*COS(RADIANS(Angles!F19-Insolation!L6))*SIN(RADIANS(0))+(SIN(RADIANS(Angles!F18))*COS(RADIANS(0))) -> 0.4352030459 | F30: =DEGREES(ACOS(E30)) -> 64.20178529 | G30: =COS(RADIANS(Angles!F18))*COS(RADIANS(Angles!F19-Insolation!L6))*SIN(RADIANS(Insolation!L7))+SIN(RADIANS(Angles!F18))*COS(RADIANS(Insolation!L7)) -> 0.7194986511 | H30: =DEGREES(ACOS(G30)) -> 43.98689636 | I30: =COS(RADIANS(Angles!F18))*COS(RADIANS(Angles!F19-Angles!F19))*SIN(RADIANS(Insolation!L7))+SIN(RADIANS(Angles!F18))*COS(RADIANS(Insolation!L7)) -> 0.8487707008 | J30: =DEGREES(ACOS(I30)) -> 31.92178529 | K30: =COS(RADIANS(Angles!F18))*COS(RADIANS(Angles!F19-Angles!F19))*SIN(RADIANS(90-Angles!F18))+SIN(RADIANS(Angles!F18))*COS(RADIANS(90-Angles!F18)) -> 1 | L30: =DEGREES(ACOS(K30)) -> 0
A31: Beam Insolation on a Collector Face (IBC) | E31: =Insolation!E27*E30 -> 369.90479 | F31: W/m2 | G31: =IF(G30<0,0,Insolation!E27*G30) -> 611.5444272 | H31: W/m2 | I31: =Insolation!E27*COS(RADIANS(Angles!F10)) -> 804.0763996 | J31: W/m2 | K31: =Insolation!E27 -> 849.9591017 | L31: W/m2
A32: Diffuse Radiation (IDC) | E32: =E13*Insolation!E27 -> 61.23879621 | F32: W/m2 | G32: =E13*Insolation!E27*((1+COS(RADIANS(L7)))/2) -> 56.50651636 | H32: W/m2 | I32: =E13*Insolation!E27*((1+COS(RADIANS(90-Angles!F18+Angles!F10)))/2) -> 52.16078314 | J32: W/m2 | K32: =E13*Insolation!E27*((1+COS(RADIANS(90-Angles!F18)))/2) -> 43.94505342 | L32: W/m2
A33: Reflected Radiation (IRC) | E33: =L8*Insolation!E27*(SIN(RADIANS(Angles!F18))+E13)*((1-COS(RADIANS(0)))/2) -> 0 | F33: W/m2 | G33: =L8*Insolation!E27*((SIN(RADIANS(Angles!F18)))+E13)*((1-COS(RADIANS(Insolation!L7)))/2) -> 6.663397166 | H33: W/m2 | I33: =L8*((E27*SIN(RADIANS(Angles!F18)))+(E13*E27))*((1-COS(RADIANS(90-Angles!F18+Angles!F10)))/2) -> 12.78250832 | J33: W/m2 | K33: =L8*((E27*SIN(RADIANS(Angles!F18)))+(E13*E27))*((1-COS(RADIANS(90-Angles!F18)))/2) -> 24.35085843 | L33: W/m2
A34: Total Insolation on a Collector (IC) | E34: =SUM(E31:E33) -> 431.1435862 | F34: W/m2 | G34: =SUM(G31,G32,G33) -> 674.7143407 | H34: W/m2 | I34: =SUM(I31:I33) -> 869.019691 | J34: W/m2 | K34: =SUM(K31,K32,K33) -> 918.2550136 | L34: W/m2
A35: Power generated compared to the TILTED option | E35: =IFERROR(E34/G34,0) -> 0.6390016637 | G35: =IFERROR(G34/G34,0) -> 1 | I35: =IFERROR(I34/G34,0) -> 1.287981652 | K35: =IFERROR(K34/G34,0) -> 1.360953752
A37: Step 7. The next table calculates the actual amount of power generated by a solar panel. Enter the physical size of the solar panel you plan to use as well as its rated voltage, current, and power values at Standard Test Conditions (1000 W/m2 irradiance, 25°C cell temperature, and 1.5 Air Mass Ratio). The width and length values are in inches.
J40: These values assume given time
L41: Area | M41: =(C43/39.37)*(C44/39.37) -> 1.485266712
J42: Insolation with AM = 1.5 | M42: =IF(Angles!F18>0,E11*EXP(-E12*1.5),0) -> 961.0059582
A43: Length | C43: 59.06 | D43: in | E43: ACTUAL POWER GENERATED | J43: power generated for panel in 1m2 | M43: =1*C47/M41 -> 144.7551461
A44: Width | C44: 38.98 | D44: in | F44: =IFERROR(F46/F45,0) -> 7.767529362 | G44: Amps | J44: Real power generated in 1m2 | M44: =M43*M42/1000 -> 139.1105579
A45: Current (Imp) | C45: 8.09 | D45: Amps | F45: =IF(Angles!F18>0,C46,0) -> 26.6 | G45: V | J45: Panel power (real size) | M45: =M41*M44 -> 206.616281
A46: Voltage (Vmp) | C46: 26.6 | D46: V | F46: =M45 -> 206.616281 | G46: W
A47: Power (Pmax) | C47: 215 | D47: W | F47: =M44/E16 -> 0.1469014925 | G47: Efficiency
C48: =IF(OR(C45*C46>C47+10,C45*C46<C47-10),"Check your values","") -> 

Sheet Sunrise-Sunset
A1: Sunrise and Sunset
A3: Step 8: This sheet calculates the approximate hour for the sunrise and sunset at the date and location previously specified. It also shows the duration of visible sunlight during that day. You do not have to enter any values within this sheet.
A7: Sunrise
A8: Hour angle | C8: =DEGREES(ACOS((-TAN(RADIANS(Time!P4))*TAN(RADIANS(Angles!F10))))) -> 77.50106429 | D8: degrees
A9: Hours Before Solar Noon | C9: =C8/15 -> 5.166737619 | D9: hours
A10: Geometric Sunrise
B11: Solar Time | C11: =12-(C8/15) -> 6.833262381 | D11: or | E11: =C11/24 -> 06:49:59.745
B12: Local Time | C12: =C11-(12-Time!C27) -> 6.700806448 | D12: or | E12: =C12/24 -> 06:42:02.903
A13: Adjustment Factor (Q) | C13: =3.467/(COS(RADIANS(Time!P4))*COS(RADIANS(Angles!F10))*SIN(RADIANS('Sunrise-Sunset'!C8))) -> 4.440012527 | D13: min
A14: Conventional Sunrise
B15: Solar Time | C15: =C11-(C13/60) -> 6.759262172 | D15: or | E15: =C15/24 -> 06:45:33.344
B16: Local Time | C16: =C15-(12-Time!C27) -> 6.62680624 | D16: or | E16: =C16/24 -> 06:37:36.502
A19: Sunset
A20: Hour angle | C20: =DEGREES(ACOS((-TAN(RADIANS(Time!P4))*TAN(RADIANS(Angles!F10))))) -> 77.50106429 | D20: degrees
A21: Hours After Solar Noon | C21: =C20/15 -> 5.166737619 | D21: hours
A22: Geometric Sunset
B23: Solar Time | C23: =12+(C20/15) -> 17.16673762 | D23: or | E23: =C23/24 -> 17:10:00.255
B24: Local Time | C24: =C23-(12-Time!C27) -> 17.03428169 | D24: or | E24: =C24/24 -> 17:02:03.414
A25: Adjustment Factor (Q) | C25: =3.467/(COS(RADIANS(Time!P4))*COS(RADIANS(Angles!F10))*SIN(RADIANS('Sunrise-Sunset'!C20))) -> 4.440012527 | D25: min
A26: Conventional Sunrise
B27: Solar Time | C27: =C23+(C25/60) -> 17.24073783 | D27: or | E27: =C27/24 -> 17:14:26.656
B28: Local Time | C28: =C27-(12-Time!C27) -> 17.1082819 | D28: or | E28: =C28/24 -> 17:06:29.815
B31: Day duration | C31: =C28-C16 -> 10.48147566 | D31: Hours

Sheet Position

Sheet Graph (hidden)
A1: Time | B1: Solar Altitude | C1: Azimuth | D1: Insolation | G1: Hours +/- | H1: Hour Angle | I1: Air Mass | K1: Latitude | L1: =Time!P4 -> 32.28
A2: 4.5 | B2: =DEGREES(ASIN(COS(RADIANS($L$1))*COS(RADIANS($L$3))*COS(RADIANS(H2))+SIN(RADIANS($L$1))*SIN(RADIANS($L$3)))) -> -28.63117896 | C2: =IF(COS(RADIANS(H2))>=((TAN(RADIANS($L$3)))/(TAN(RADIANS($L$1)))),(DEGREES(ASIN(COS(RADIANS($L$3))*SIN(RADIANS(H2))/COS(RADIANS(B2))))),IF(A2<12,(180-DEGREES(ASIN(COS(RADIANS($L$3))*SIN(RADIANS(H2))/COS(RADIANS(B2))))),(180-DEGREES(ASIN(COS(RADIANS($L$3))*SIN(RADIANS(H2))/COS(RADIANS(B2))))-360))) -> 84.72593841 | D2: =IF(B2>0,Insolation!$E$11*EXP(-Insolation!$E$12*I2),0) -> 0 | G2: =12-A2 -> 7.5 | H2: =15*G2 -> 112.5 | I2: =ABS(1/SIN(RADIANS(B2))) -> 2.086943903 | K2: Julian Day | L2: =Time!P9 -> 318
A3: 5 | B3: -22.33998226 | C3: 81.08989089 | D3: =IF(B3>0,Insolation!$E$11*EXP(-Insolation!$E$12*I3),0) -> 0 | G3: =12-A3 -> 7 | H3: 105 | I3: =ABS(1/SIN(RADIANS(B3))) -> 2.63087485 | K3: Solar Declination | L3: =Angles!F10 -> -18.91195474
A4: 5.5 | B4: -16.11057075 | C4: 77.49161372 | D4: =IF(B4>0,Insolation!$E$11*EXP(-Insolation!$E$12*I4),0) -> 0 | G4: 6.5 | H4: =15*G4 -> 97.5 | I4: 3.603708704
A5: 6 | B5: -9.967868497 | C5: 73.84587812 | D5: =IF(B5>0,Insolation!$E$11*EXP(-Insolation!$E$12*I5),0) -> 0 | G5: 6 | H5: 90 | I5: 5.777145357
A6: 6.5 | B6: -3.939313318 | C6: 70.07603101 | D6: =IF(B6>0,Insolation!$E$11*EXP(-Insolation!$E$12*I6),0) -> 0 | G6: 5.5 | H6: 82.5 | I6: 14.55607624
A7: 7 | B7: 1.943270109 | C7: 66.10775828 | D7: =IF(B7>0,Insolation!$E$11*EXP(-Insolation!$E$12*I7),0) -> 12.93372156 | G7: 5 | H7: 75 | I7: 29.4898612
A8: 7.5 | B8: 7.641703488 | C8: 61.86488514 | D8: =IF(B8>0,Insolation!$E$11*EXP(-Insolation!$E$12*I8),0) -> 380.4621132 | G8: 4.5 | H8: 67.5 | I8: 7.520050836
A9: 8 | B9: 13.10925809 | C9: 57.26679779 | D9: =IF(B9>0,Insolation!$E$11*EXP(-Insolation!$E$12*I9),0) -> 614.1461221 | G9: 4 | H9: 60 | I9: 4.409002266
A10: 8.5 | B10: 18.28820898 | C10: 52.22777323 | D10: =IF(B10>0,Insolation!$E$11*EXP(-Insolation!$E$12*I10),0) -> 741.2633341 | G10: 3.5 | H10: 52.5 | I10: 3.186772955
A11: 9 | B11: 23.10731659 | C11: 46.65923305 | D11: =IF(B11>0,Insolation!$E$11*EXP(-Insolation!$E$12*I11),0) -> 817.8381675 | G11: 3 | H11: 45 | I11: 2.548065606
A12: 9.5 | B12: 27.47976729 | C12: 40.4767162 | D12: =IF(B12>0,Insolation!$E$11*EXP(-Insolation!$E$12*I12),0) -> 867.2212309 | G12: 2.5 | H12: 37.5 | I12: 2.167150795
A13: 10 | B13: 31.30268378 | C13: 33.61385237 | D13: =IF(B13>0,Insolation!$E$11*EXP(-Insolation!$E$12*I13),0) -> 900.1940074 | G13: 2 | H13: 30 | I13: 1.924708725 | O13: Azimuth
A14: 10.5 | B14: 34.46004472 | C14: 26.04478263 | D14: =IF(B14>0,Insolation!$E$11*EXP(-Insolation!$E$12*I14),0) -> 922.2687389 | G14: 1.5 | H14: 22.5 | I14: 1.767310918 | N14: Altitude | P14: Insolation
A15: 11 | B15: 36.83126159 | C15: 17.81259654 | D15: =IF(B15>0,Insolation!$E$11*EXP(-Insolation!$E$12*I15),0) -> 936.4505349 | G15: 1 | H15: 15 | I15: 1.668166898 | O15: Time
A16: 11.5 | B16: 38.30669723 | C16: 9.053626694 | D16: =IF(B16>0,Insolation!$E$11*EXP(-Insolation!$E$12*I16),0) -> 944.401141 | G16: 0.5 | H16: 7.5 | I16: 1.61323951
A17: 12 | B17: 38.80804526 | C17: 0 | D17: =IF(B17>0,Insolation!$E$11*EXP(-Insolation!$E$12*I17),0) -> 946.9649049 | G17: 0 | H17: 0 | I17: 1.595626103
A18: 12.5 | B18: 38.30669723 | C18: -9.053626694 | D18: =IF(B18>0,Insolation!$E$11*EXP(-Insolation!$E$12*I18),0) -> 944.401141 | G18: -0.5 | H18: -7.5 | I18: 1.61323951
A19: 13 | B19: 36.83126159 | C19: -17.81259654 | D19: =IF(B19>0,Insolation!$E$11*EXP(-Insolation!$E$12*I19),0) -> 936.4505349 | G19: -1 | H19: -15 | I19: 1.668166898
A20: 13.5 | B20: 34.46004472 | C20: -26.04478263 | D20: =IF(B20>0,Insolation!$E$11*EXP(-Insolation!$E$12*I20),0) -> 922.2687389 | G20: -1.5 | H20: -22.5 | I20: 1.767310918
A21: 14 | B21: 31.30268378 | C21: -33.61385237 | D21: =IF(B21>0,Insolation!$E$11*EXP(-Insolation!$E$12*I21),0) -> 900.1940074 | G21: -2 | H21: -30 | I21: 1.924708725
A22: 14.5 | B22: 27.47976729 | C22: -40.4767162 | D22: =IF(B22>0,Insolation!$E$11*EXP(-Insolation!$E$12*I22),0) -> 867.2212309 | G22: -2.5 | H22: -37.5 | I22: 2.167150795
A23: 15 | B23: 23.10731659 | C23: -46.65923305 | D23: =IF(B23>0,Insolation!$E$11*EXP(-Insolation!$E$12*I23),0) -> 817.8381675 | G23: -3 | H23: -45 | I23: 2.548065606
A24: 15.5 | B24: 18.28820898 | C24: -52.22777323 | D24: =IF(B24>0,Insolation!$E$11*EXP(-Insolation!$E$12*I24),0) -> 741.2633341 | G24: -3.5 | H24: -52.5 | I24: 3.186772955
A25: 16 | B25: 13.10925809 | C25: -57.26679779 | D25: =IF(B25>0,Insolation!$E$11*EXP(-Insolation!$E$12*I25),0) -> 614.1461221 | G25: -4 | H25: -60 | I25: 4.409002266
A26: 16.5 | B26: 7.641703488 | C26: -61.86488514 | D26: =IF(B26>0,Insolation!$E$11*EXP(-Insolation!$E$12*I26),0) -> 380.4621132 | G26: -4.5 | H26: -67.5 | I26: 7.520050836
A27: 17 | B27: 1.943270109 | C27: -66.10775828 | D27: =IF(B27>0,Insolation!$E$11*EXP(-Insolation!$E$12*I27),0) -> 12.93372156 | G27: -5 | H27: -75 | I27: 29.4898612
A28: 17.5 | B28: -3.939313318 | C28: -70.07603101 | D28: =IF(B28>0,Insolation!$E$11*EXP(-Insolation!$E$12*I28),0) -> 0 | G28: -5.5 | H28: -82.5 | I28: 14.55607624
A29: 18 | B29: -9.967868497 | C29: -73.84587812 | D29: =IF(B29>0,Insolation!$E$11*EXP(-Insolation!$E$12*I29),0) -> 0 | G29: -6 | H29: -90 | I29: 5.777145357
A30: 18.5 | B30: -16.11057075 | C30: -77.49161372 | D30: =IF(B30>0,Insolation!$E$11*EXP(-Insolation!$E$12*I30),0) -> 0 | G30: -6.5 | H30: -97.5 | I30: 3.603708704
A31: 19 | B31: -22.33998226 | C31: -81.08989089 | D31: =IF(B31>0,Insolation!$E$11*EXP(-Insolation!$E$12*I31),0) -> 0 | G31: -7 | H31: -105 | I31: 2.63087485
A32: 19.5 | B32: -28.63117896 | C32: -84.72593841 | D32: =IF(B32>0,Insolation!$E$11*EXP(-Insolation!$E$12*I32),0) -> 0 | G32: -7.5 | H32: -112.5 | I32: 2.086943903
A34: =Time!H13 -> 14.56666667 | B34: =Angles!F18 -> 25.79821471 | C34: =Angles!F19 -> -43.01731438 | D34: =Insolation!E27 -> 849.9591017

Sheet PSH (hidden)
A1: =Graph!A1 -> Time | B1: =Graph!D1 -> Insolation | E1: trapezoidal | F1: simpson's | G1: Integral | O1: Incidence Angles | S1: Flat | V1: Tilted | Y1: 1-Axis | AB1: 2-Axis
A2: =Graph!A2 -> 4.5 | B2: =Graph!D2 -> 0 | C2: =(B3+B2)/2*(A3-A2) -> 0 | E2: =((B3+B2)/2)*(A3-A2) -> 0 | G2: =IF(B2>0,((-5.63*(A3)^3)+(222.165*(A3)^2)-(1989.2*(A3)))-((-5.63*(A2)^3)+(222.165*(A2)^2)-(1989.2*(A2))),0) -> 0 | I2: Time | J2: S. Altitude | K2: S. Azimuth | L2: 1st | M2: 2nd | N2: 3rd | O2: Flat | P2: Tilted | Q2: 1-Axis | R2: 2-Axis | S2: Direct | T2: Diffuse | U2: Reflected | V2: Direct | W2: Diffuse | X2: Reflected | Y2: Direct | Z2: Diffuse | AA2: Reflected | AB2: Direct | AC2: Diffuse | AD2: Reflected
A3: =Graph!A3 -> 5 | B3: =Graph!D3 -> 0 | C3: 0 | E3: 0 | F3: =B3+4*B4+B5 -> 0 | G3: =IF(B3>0,((-5.63*(A4)^3)+(222.165*(A4)^2)-(1989.2*(A4)))-((-5.63*(A3)^3)+(222.165*(A3)^2)-(1989.2*(A3))),0) -> 0 | I3: 5.5 | J3: =Graph!B2 -> -28.63117896 | K3: =IF(COS(RADIANS(Graph!H2))>=((TAN(RADIANS(Angles!$F$10)))/(TAN(RADIANS(Time!$P$4)))),L3,IF(A2<12,M3,N3)) -> 84.72593841 | L3: =DEGREES(ASIN(COS(RADIANS(Angles!$F$10))*SIN(RADIANS(Graph!H2))/COS(RADIANS(J3)))) -> 84.72593841 | M3: =180-L3 -> 95.27406159 | N3: =180-L3-360 -> -264.7259384 | O3: =COS(RADIANS(J3))*COS(RADIANS(K3-Insolation!$L$6))*SIN(RADIANS(0))+(SIN(RADIANS(J3))*COS(RADIANS(0))) -> -0.4791695638 | P3: =COS(RADIANS(J3))*COS(RADIANS(K3-Insolation!$L$6))*SIN(RADIANS(Insolation!$L$7))+SIN(RADIANS(J3))*COS(RADIANS(Insolation!$L$7)) -> -0.3620253208 | Q3: =COS(RADIANS(J3))*COS(RADIANS(K3-K3))*SIN(RADIANS(Insolation!$L$7))+SIN(RADIANS(J3))*COS(RADIANS(Insolation!$L$7)) -> 0.06364090315 | R3: =COS(RADIANS(J3))*COS(RADIANS(K3-K3))*SIN(RADIANS(90-J3))+SIN(RADIANS(J3))*COS(RADIANS(90-J3)) -> 1 | S3: =B2*O3 -> 0 | T3: =B2*Insolation!$E$13 -> 0 | U3: =Insolation!$L$8*B2*(SIN(RADIANS(J3))+Insolation!$E$13)*((1-COS(RADIANS(0)))/2) -> 0 | V3: =B2*P3 -> 0 | W3: =Insolation!$E$13*PSH!B2*((1+COS(RADIANS(Insolation!$L$7)))/2) -> 0 | X3: =Insolation!$L$8*B2*((SIN(RADIANS(J3)))+Insolation!$E$13)*((1-COS(RADIANS(Insolation!$L$7)))/2) -> 0 | Y3: =B2*(COS(RADIANS(Angles!$F$10))) -> 0 | Z3: =Insolation!$E$13*PSH!B2*((1+COS(RADIANS(90-J3+Angles!$F$10)))/2) -> 0 | AA3: =Insolation!$L$8*((B2*SIN(RADIANS(J3)))+(Insolation!$E$13*B2))*((1-COS(RADIANS(Insolation!$L$7)))/2) -> 0 | AB3: =B2 -> 0 | AC3: =Insolation!$E$13*B2*((1+COS(RADIANS(90-J3)))/2) -> 0 | AD3: =Insolation!$L$8*((PSH!B2*SIN(RADIANS(PSH!J3)))+(Insolation!$E$13*PSH!B2))*((1-COS(RADIANS(90-PSH!J3)))/2) -> 0
A4: =Graph!A4 -> 5.5 | B4: =Graph!D4 -> 0 | C4: =(B5+B4)/2*(A5-A4) -> 0 | E4: 0 | G4: 0 | I4: 6 | J4: =Graph!B3 -> -22.33998226 | K4: =IF(COS(RADIANS(Graph!H3))>=((TAN(RADIANS(Angles!$F$10)))/(TAN(RADIANS(Time!$P$4)))),L4,IF(A3<12,M4,N4)) -> 81.08989089 | L4: =DEGREES(ASIN(COS(RADIANS(Angles!$F$10))*SIN(RADIANS(Graph!H3))/COS(RADIANS(J4)))) -> 81.08989089 | M4: =180-L4 -> 98.91010911 | N4: =180-L4-360 -> -261.0898909 | O4: =COS(RADIANS(J4))*COS(RADIANS(K4-Insolation!$L$6))*SIN(RADIANS(0))+(SIN(RADIANS(J4))*COS(RADIANS(0))) -> -0.3801016989 | P4: =COS(RADIANS(J4))*COS(RADIANS(K4-Insolation!$L$6))*SIN(RADIANS(Insolation!$L$7))+SIN(RADIANS(J4))*COS(RADIANS(Insolation!$L$7)) -> -0.2448474115 | Q4: =COS(RADIANS(J4))*COS(RADIANS(K4-K4))*SIN(RADIANS(Insolation!$L$7))+SIN(RADIANS(J4))*COS(RADIANS(Insolation!$L$7)) -> 0.1726170993 | R4: =COS(RADIANS(J4))*COS(RADIANS(K4-K4))*SIN(RADIANS(90-J4))+SIN(RADIANS(J4))*COS(RADIANS(90-J4)) -> 1 | S4: =B3*O4 -> 0 | T4: =B3*Insolation!$E$13 -> 0 | U4: =Insolation!$L$8*B3*(SIN(RADIANS(J4))+Insolation!$E$13)*((1-COS(RADIANS(0)))/2) -> 0 | V4: =B3*P4 -> 0 | W4: =Insolation!$E$13*PSH!B3*((1+COS(RADIANS(Insolation!$L$7)))/2) -> 0 | X4: =Insolation!$L$8*B3*((SIN(RADIANS(J4)))+Insolation!$E$13)*((1-COS(RADIANS(Insolation!$L$7)))/2) -> 0 | Y4: =B3*(COS(RADIANS(Angles!$F$10))) -> 0 | Z4: =Insolation!$E$13*PSH!B3*((1+COS(RADIANS(90-J4+Angles!$F$10)))/2) -> 0 | AA4: =Insolation!$L$8*((B3*SIN(RADIANS(J4)))+(Insolation!$E$13*B3))*((1-COS(RADIANS(Insolation!$L$7)))/2) -> 0 | AB4: 0 | AC4: =Insolation!$E$13*B3*((1+COS(RADIANS(90-J4)))/2) -> 0 | AD4: =Insolation!$L$8*((PSH!B3*SIN(RADIANS(PSH!J4)))+(Insolation!$E$13*PSH!B3))*((1-COS(RADIANS(90-PSH!J4)))/2) -> 0
A5: =Graph!A5 -> 6 | B5: =Graph!D5 -> 0 | C5: 0 | E5: 0 | F5: 12.93372156 | G5: 0 | I5: 6.5 | J5: =Graph!B4 -> -16.11057075 | K5: =IF(COS(RADIANS(Graph!H4))>=((TAN(RADIANS(Angles!$F$10)))/(TAN(RADIANS(Time!$P$4)))),L5,IF(A4<12,M5,N5)) -> 77.49161372 | L5: =DEGREES(ASIN(COS(RADIANS(Angles!$F$10))*SIN(RADIANS(Graph!H4))/COS(RADIANS(J5)))) -> 77.49161372 | M5: 102.5083863 | N5: -257.4916137 | O5: =COS(RADIANS(J5))*COS(RADIANS(K5-Insolation!$L$6))*SIN(RADIANS(0))+(SIN(RADIANS(J5))*COS(RADIANS(0))) -> -0.2774919069 | P5: =COS(RADIANS(J5))*COS(RADIANS(K5-Insolation!$L$6))*SIN(RADIANS(Insolation!$L$7))+SIN(RADIANS(J5))*COS(RADIANS(Insolation!$L$7)) -> -0.1234800951 | Q5: =COS(RADIANS(J5))*COS(RADIANS(K5-K5))*SIN(RADIANS(Insolation!$L$7))+SIN(RADIANS(J5))*COS(RADIANS(Insolation!$L$7)) -> 0.2784786919 | R5: 1 | S5: 0 | T5: =B4*Insolation!$E$13 -> 0 | U5: =Insolation!$L$8*B4*(SIN(RADIANS(J5))+Insolation!$E$13)*((1-COS(RADIANS(0)))/2) -> 0 | V5: 0 | W5: =Insolation!$E$13*PSH!B4*((1+COS(RADIANS(Insolation!$L$7)))/2) -> 0 | X5: =Insolation!$L$8*B4*((SIN(RADIANS(J5)))+Insolation!$E$13)*((1-COS(RADIANS(Insolation!$L$7)))/2) -> 0 | Y5: =B4*(COS(RADIANS(Angles!$F$10))) -> 0 | Z5: =Insolation!$E$13*PSH!B4*((1+COS(RADIANS(90-J5+Angles!$F$10)))/2) -> 0 | AA5: =Insolation!$L$8*((B4*SIN(RADIANS(J5)))+(Insolation!$E$13*B4))*((1-COS(RADIANS(Insolation!$L$7)))/2) -> 0 | AB5: 0 | AC5: =Insolation!$E$13*B4*((1+COS(RADIANS(90-J5)))/2) -> 0 | AD5: =Insolation!$L$8*((PSH!B4*SIN(RADIANS(PSH!J5)))+(Insolation!$E$13*PSH!B4))*((1-COS(RADIANS(90-PSH!J5)))/2) -> 0
A6: =Graph!A6 -> 6.5 | B6: =Graph!D6 -> 0 | C6: 3.233430391 | E6: 3.233430391 | G6: 0 | I6: 7 | J6: =Graph!B5 -> -9.967868497 | K6: =IF(COS(RADIANS(Graph!H5))>=((TAN(RADIANS(Angles!$F$10)))/(TAN(RADIANS(Time!$P$4)))),L6,IF(A5<12,M6,N6)) -> 73.84587812 | L6: =DEGREES(ASIN(COS(RADIANS(Angles!$F$10))*SIN(RADIANS(Graph!H5))/COS(RADIANS(J6)))) -> 73.84587812 | M6: 106.1541219 | N6: -253.8458781 | O6: =COS(RADIANS(J6))*COS(RADIANS(K6-Insolation!$L$6))*SIN(RADIANS(0))+(SIN(RADIANS(J6))*COS(RADIANS(0))) -> -0.1730958697 | P6: =COS(RADIANS(J6))*COS(RADIANS(K6-Insolation!$L$6))*SIN(RADIANS(Insolation!$L$7))+SIN(RADIANS(J6))*COS(RADIANS(Insolation!$L$7)) -> 0 | Q6: =COS(RADIANS(J6))*COS(RADIANS(K6-K6))*SIN(RADIANS(Insolation!$L$7))+SIN(RADIANS(J6))*COS(RADIANS(Insolation!$L$7)) -> 0.37965205 | R6: 1 | S6: 0 | T6: =B5*Insolation!$E$13 -> 0 | U6: =Insolation!$L$8*B5*(SIN(RADIANS(J6))+Insolation!$E$13)*((1-COS(RADIANS(0)))/2) -> 0 | V6: 0 | W6: =Insolation!$E$13*PSH!B5*((1+COS(RADIANS(Insolation!$L$7)))/2) -> 0 | X6: =Insolation!$L$8*B5*((SIN(RADIANS(J6)))+Insolation!$E$13)*((1-COS(RADIANS(Insolation!$L$7)))/2) -> 0 | Y6: =B5*(COS(RADIANS(Angles!$F$10))) -> 0 | Z6: =Insolation!$E$13*PSH!B5*((1+COS(RADIANS(90-J6+Angles!$F$10)))/2) -> 0 | AA6: =Insolation!$L$8*((B5*SIN(RADIANS(J6)))+(Insolation!$E$13*B5))*((1-COS(RADIANS(Insolation!$L$7)))/2) -> 0 | AB6: 0 | AC6: =Insolation!$E$13*B5*((1+COS(RADIANS(90-J6)))/2) -> 0 | AD6: =Insolation!$L$8*((PSH!B5*SIN(RADIANS(PSH!J6)))+(Insolation!$E$13*PSH!B5))*((1-COS(RADIANS(90-PSH!J6)))/2) -> 0
A7: =Graph!A7 -> 7 | B7: =Graph!D7 -> 12.93372156 | C7: 98.34895869 | E7: 98.34895869 | F7: 2148.928296 | G7: 172.03 | I7: 7.5 | J7: =Graph!B6 -> -3.939313318 | K7: =IF(COS(RADIANS(Graph!H6))>=((TAN(RADIANS(Angles!$F$10)))/(TAN(RADIANS(Time!$P$4)))),L7,IF(A6<12,M7,N7)) -> 70.07603101 | L7: =DEGREES(ASIN(COS(RADIANS(Angles!$F$10))*SIN(RADIANS(Graph!H6))/COS(RADIANS(J7)))) -> 70.07603101 | M7: 109.923969 | N7: -250.076031 | O7: =COS(RADIANS(J7))*COS(RADIANS(K7-Insolation!$L$6))*SIN(RADIANS(0))+(SIN(RADIANS(J7))*COS(RADIANS(0))) -> -0.06869983251 | P7: =COS(RADIANS(J7))*COS(RADIANS(K7-Insolation!$L$6))*SIN(RADIANS(Insolation!$L$7))+SIN(RADIANS(J7))*COS(RADIANS(Insolation!$L$7)) -> 0.1234800951 | Q7: =COS(RADIANS(J7))*COS(RADIANS(K7-K7))*SIN(RADIANS(Insolation!$L$7))+SIN(RADIANS(J7))*COS(RADIANS(Insolation!$L$7)) -> 0.474713331 | R7: 1 | S7: 0 | T7: =B6*Insolation!$E$13 -> 0 | U7: =Insolation!$L$8*B6*(SIN(RADIANS(J7))+Insolation!$E$13)*((1-COS(RADIANS(0)))/2) -> 0 | V7: 0 | W7: =Insolation!$E$13*PSH!B6*((1+COS(RADIANS(Insolation!$L$7)))/2) -> 0 | X7: =Insolation!$L$8*B6*((SIN(RADIANS(J7)))+Insolation!$E$13)*((1-COS(RADIANS(Insolation!$L$7)))/2) -> 0 | Y7: =B6*(COS(RADIANS(Angles!$F$10))) -> 0 | Z7: =Insolation!$E$13*PSH!B6*((1+COS(RADIANS(90-J7+Angles!$F$10)))/2) -> 0 | AA7: =Insolation!$L$8*((B6*SIN(RADIANS(J7)))+(Insolation!$E$13*B6))*((1-COS(RADIANS(Insolation!$L$7)))/2) -> 0 | AB7: 0 | AC7: =Insolation!$E$13*B6*((1+COS(RADIANS(90-J7)))/2) -> 0 | AD7: =Insolation!$L$8*((PSH!B6*SIN(RADIANS(PSH!J7)))+(Insolation!$E$13*PSH!B6))*((1-COS(RADIANS(90-PSH!J7)))/2) -> 0
A8: =Graph!A8 -> 7.5 | B8: =Graph!D8 -> 380.4621132 | C8: 248.6520588 | E8: 248.6520588 | G8: 219.775 | I8: 8 | J8: =Graph!B7 -> 1.943270109 | K8: =IF(COS(RADIANS(Graph!H7))>=((TAN(RADIANS(Angles!$F$10)))/(TAN(RADIANS(Time!$P$4)))),L8,IF(A7<12,M8,N8)) -> 66.10775828 | L8: =DEGREES(ASIN(COS(RADIANS(Angles!$F$10))*SIN(RADIANS(Graph!H7))/COS(RADIANS(J8)))) -> 66.10775828 | M8: 113.8922417 | N8: -246.1077583 | O8: =COS(RADIANS(J8))*COS(RADIANS(K8-Insolation!$L$6))*SIN(RADIANS(0))+(SIN(RADIANS(J8))*COS(RADIANS(0))) -> 0.03390995954 | P8: =COS(RADIANS(J8))*COS(RADIANS(K8-Insolation!$L$6))*SIN(RADIANS(Insolation!$L$7))+SIN(RADIANS(J8))*COS(RADIANS(Insolation!$L$7)) -> 0.2448474115 | Q8: =COS(RADIANS(J8))*COS(RADIANS(K8-K8))*SIN(RADIANS(Insolation!$L$7))+SIN(RADIANS(J8))*COS(RADIANS(Insolation!$L$7)) -> 0.562419242 | R8: 1 | S8: 0.4385819749 | T8: =B7*Insolation!$E$13 -> 0.9318631185 | U8: =Insolation!$L$8*B7*(SIN(RADIANS(J8))+Insolation!$E$13)*((1-COS(RADIANS(0)))/2) -> 0 | V8: 3.166788246 | W8: =Insolation!$E$13*PSH!B7*((1+COS(RADIANS(Insolation!$L$7)))/2) -> 0.8598526067 | X8: =Insolation!$L$8*B7*((SIN(RADIANS(J8)))+Insolation!$E$13)*((1-COS(RADIANS(Insolation!$L$7)))/2) -> 0.02118046109 | Y8: =B7*(COS(RADIANS(Angles!$F$10))) -> 12.23553021 | Z8: =Insolation!$E$13*PSH!B7*((1+COS(RADIANS(90-J8+Angles!$F$10)))/2) -> 0.6318068445 | AA8: =Insolation!$L$8*((B7*SIN(RADIANS(J8)))+(Insolation!$E$13*B7))*((1-COS(RADIANS(Insolation!$L$7)))/2) -> 0.02118046109 | AB8: 12.93372156 | AC8: =Insolation!$E$13*B7*((1+COS(RADIANS(90-J8)))/2) -> 0.4817312796 | AD8: =Insolation!$L$8*((PSH!B7*SIN(RADIANS(PSH!J8)))+(Insolation!$E$13*PSH!B7))*((1-COS(RADIANS(90-PSH!J8)))/2) -> 0.1323973356
A9: =Graph!A9 -> 8 | B9: =Graph!D9 -> 614.1461221 | C9: 338.8523641 | E9: 338.8523641 | F9: 4397.037626 | G9: 263.2975 | I9: 8.5 | J9: =Graph!B8 -> 7.641703488 | K9: =IF(COS(RADIANS(Graph!H8))>=((TAN(RADIANS(Angles!$F$10)))/(TAN(RADIANS(Time!$P$4)))),L9,IF(A8<12,M9,N9)) -> 61.86488514 | L9: =DEGREES(ASIN(COS(RADIANS(Angles!$F$10))*SIN(RADIANS(Graph!H8))/COS(RADIANS(J9)))) -> 61.86488514 | M9: 118.1351149 | N9: -241.8648851 | O9: =COS(RADIANS(J9))*COS(RADIANS(K9-Insolation!$L$6))*SIN(RADIANS(0))+(SIN(RADIANS(J9))*COS(RADIANS(0))) -> 0.1329778245 | P9: =COS(RADIANS(J9))*COS(RADIANS(K9-Insolation!$L$6))*SIN(RADIANS(Insolation!$L$7))+SIN(RADIANS(J9))*COS(RADIANS(Insolation!$L$7)) -> 0.3620253208 | Q9: =COS(RADIANS(J9))*COS(RADIANS(K9-K9))*SIN(RADIANS(Insolation!$L$7))+SIN(RADIANS(J9))*COS(RADIANS(Insolation!$L$7)) -> 0.6417401857 | R9: 1 | S9: 50.5930241 | T9: =B8*Insolation!$E$13 -> 27.41195637 | U9: =Insolation!$L$8*B8*(SIN(RADIANS(J9))+Insolation!$E$13)*((1-COS(RADIANS(0)))/2) -> 0 | V9: 137.7369186 | W9: =Insolation!$E$13*PSH!B8*((1+COS(RADIANS(Insolation!$L$7)))/2) -> 25.29367422 | X9: =Insolation!$L$8*B8*((SIN(RADIANS(J9)))+Insolation!$E$13)*((1-COS(RADIANS(Insolation!$L$7)))/2) -> 1.205580188 | Y9: =B8*(COS(RADIANS(Angles!$F$10))) -> 359.9239134 | Z9: =Insolation!$E$13*PSH!B8*((1+COS(RADIANS(90-J9+Angles!$F$10)))/2) -> 19.83304021 | AA9: =Insolation!$L$8*((B8*SIN(RADIANS(J9)))+(Insolation!$E$13*B8))*((1-COS(RADIANS(Insolation!$L$7)))/2) -> 1.205580188 | AB9: 380.4621132 | AC9: =Insolation!$E$13*B8*((1+COS(RADIANS(90-J9)))/2) -> 15.52856935 | AD9: =Insolation!$L$8*((PSH!B8*SIN(RADIANS(PSH!J9)))+(Insolation!$E$13*PSH!B8))*((1-COS(RADIANS(90-PSH!J9)))/2) -> 6.763204787
A10: =Graph!A10 -> 8.5 | B10: =Graph!D10 -> 741.2633341 | C10: 389.7753754 | E10: 389.7753754 | G10: 302.5975 | I10: 9 | J10: =Graph!B9 -> 13.10925809 | K10: =IF(COS(RADIANS(Graph!H9))>=((TAN(RADIANS(Angles!$F$10)))/(TAN(RADIANS(Time!$P$4)))),L10,IF(A9<12,M10,N10)) -> 57.26679779 | L10: =DEGREES(ASIN(COS(RADIANS(Angles!$F$10))*SIN(RADIANS(Graph!H9))/COS(RADIANS(J10)))) -> 57.26679779 | M10: 122.7332022 | N10: -237.2667978 | O10: =COS(RADIANS(J10))*COS(RADIANS(K10-Insolation!$L$6))*SIN(RADIANS(0))+(SIN(RADIANS(J10))*COS(RADIANS(0))) -> 0.2268086836 | P10: =COS(RADIANS(J10))*COS(RADIANS(K10-Insolation!$L$6))*SIN(RADIANS(Insolation!$L$7))+SIN(RADIANS(J10))*COS(RADIANS(Insolation!$L$7)) -> 0.4730088765 | Q10: =COS(RADIANS(J10))*COS(RADIANS(K10-K10))*SIN(RADIANS(Insolation!$L$7))+SIN(RADIANS(J10))*COS(RADIANS(Insolation!$L$7)) -> 0.7118943927 | R10: 1 | S10: 139.2936735 | T10: =B9*Insolation!$E$13 -> 44.24868106 | U10: =Insolation!$L$8*B9*(SIN(RADIANS(J10))+Insolation!$E$13)*((1-COS(RADIANS(0)))/2) -> 0 | V10: 290.4965672 | W10: =Insolation!$E$13*PSH!B9*((1+COS(RADIANS(Insolation!$L$7)))/2) -> 40.82932675 | X10: =Insolation!$L$8*B9*((SIN(RADIANS(J10)))+Insolation!$E$13)*((1-COS(RADIANS(Insolation!$L$7)))/2) -> 2.836678184 | Y10: =B9*(COS(RADIANS(Angles!$F$10))) -> 580.9931344 | Z10: =Insolation!$E$13*PSH!B9*((1+COS(RADIANS(90-J10+Angles!$F$10)))/2) -> 33.8554005 | AA10: =Insolation!$L$8*((B9*SIN(RADIANS(J10)))+(Insolation!$E$13*B9))*((1-COS(RADIANS(Insolation!$L$7)))/2) -> 2.836678184 | AB10: 614.1461221 | AC10: =Insolation!$E$13*B9*((1+COS(RADIANS(90-J10)))/2) -> 27.14233308 | AD10: =Insolation!$L$8*((PSH!B9*SIN(RADIANS(PSH!J10)))+(Insolation!$E$13*PSH!B9))*((1-COS(RADIANS(90-PSH!J10)))/2) -> 14.19133547
A11: =Graph!A11 -> 9 | B11: =Graph!D11 -> 817.8381675 | C11: 421.2648496 | E11: 421.2648496 | F11: 5186.917099 | G11: 337.675 | I11: 9.5 | J11: =Graph!B10 -> 18.28820898 | K11: =IF(COS(RADIANS(Graph!H10))>=((TAN(RADIANS(Angles!$F$10)))/(TAN(RADIANS(Time!$P$4)))),L11,IF(A10<12,M11,N11)) -> 52.22777323 | L11: =DEGREES(ASIN(COS(RADIANS(Angles!$F$10))*SIN(RADIANS(Graph!H10))/COS(RADIANS(J11)))) -> 52.22777323 | M11: 127.7722268 | N11: -232.2277732 | O11: =COS(RADIANS(J11))*COS(RADIANS(K11-Insolation!$L$6))*SIN(RADIANS(0))+(SIN(RADIANS(J11))*COS(RADIANS(0))) -> 0.313797065 | P11: =COS(RADIANS(J11))*COS(RADIANS(K11-Insolation!$L$6))*SIN(RADIANS(Insolation!$L$7))+SIN(RADIANS(J11))*COS(RADIANS(Insolation!$L$7)) -> 0.5758991192 | Q11: =COS(RADIANS(J11))*COS(RADIANS(K11-K11))*SIN(RADIANS(Insolation!$L$7))+SIN(RADIANS(J11))*COS(RADIANS(Insolation!$L$7)) -> 0.7723812692 | R11: 1 | S11: 232.6062586 | T11: =B10*Insolation!$E$13 -> 53.40736297 | U11: =Insolation!$L$8*B10*(SIN(RADIANS(J11))+Insolation!$E$13)*((1-COS(RADIANS(0)))/2) -> 0 | V11: 426.8929012 | W11: =Insolation!$E$13*PSH!B10*((1+COS(RADIANS(Insolation!$L$7)))/2) -> 49.28026376 | X11: =Insolation!$L$8*B10*((SIN(RADIANS(J11)))+Insolation!$E$13)*((1-COS(RADIANS(Insolation!$L$7)))/2) -> 4.420388976 | Y11: =B10*(COS(RADIANS(Angles!$F$10))) -> 701.2482737 | Z11: =Insolation!$E$13*PSH!B10*((1+COS(RADIANS(90-J11+Angles!$F$10)))/2) -> 42.84876445 | AA11: =Insolation!$L$8*((B10*SIN(RADIANS(J11)))+(Insolation!$E$13*B10))*((1-COS(RADIANS(Insolation!$L$7)))/2) -> 4.420388976 | AB11: 741.2633341 | AC11: =Insolation!$E$13*B10*((1+COS(RADIANS(90-J11)))/2) -> 35.08321836 | AD11: =Insolation!$L$8*((PSH!B10*SIN(RADIANS(PSH!J11)))+(Insolation!$E$13*PSH!B10))*((1-COS(RADIANS(90-PSH!J11)))/2) -> 19.62633866
A12: =Graph!A12 -> 9.5 | B12: =Graph!D12 -> 867.2212309 | C12: 441.8538096 | E12: 441.8538096 | G12: 368.53 | I12: 10 | J12: =Graph!B11 -> 23.10731659 | K12: =IF(COS(RADIANS(Graph!H11))>=((TAN(RADIANS(Angles!$F$10)))/(TAN(RADIANS(Time!$P$4)))),L12,IF(A11<12,M12,N12)) -> 46.65923305 | L12: =DEGREES(ASIN(COS(RADIANS(Angles!$F$10))*SIN(RADIANS(Graph!H11))/COS(RADIANS(J12)))) -> 46.65923305 | M12: 133.340767 | N12: -226.659233 | O12: =COS(RADIANS(J12))*COS(RADIANS(K12-Insolation!$L$6))*SIN(RADIANS(0))+(SIN(RADIANS(J12))*COS(RADIANS(0))) -> 0.3924545732 | P12: =COS(RADIANS(J12))*COS(RADIANS(K12-Insolation!$L$6))*SIN(RADIANS(Insolation!$L$7))+SIN(RADIANS(J12))*COS(RADIANS(Insolation!$L$7)) -> 0.6689355683 | Q12: =COS(RADIANS(J12))*COS(RADIANS(K12-K12))*SIN(RADIANS(Insolation!$L$7))+SIN(RADIANS(J12))*COS(RADIANS(Insolation!$L$7)) -> 0.8230106463 | R12: 1 | S12: 320.964329 | T12: =B11*Insolation!$E$13 -> 58.92451151 | U12: =Insolation!$L$8*B11*(SIN(RADIANS(J12))+Insolation!$E$13)*((1-COS(RADIANS(0)))/2) -> 0 | V12: 547.0810394 | W12: =Insolation!$E$13*PSH!B11*((1+COS(RADIANS(Insolation!$L$7)))/2) -> 54.37106997 | X12: =Insolation!$L$8*B11*((SIN(RADIANS(J12)))+Insolation!$E$13)*((1-COS(RADIANS(Insolation!$L$7)))/2) -> 5.871246388 | Y12: =B11*(COS(RADIANS(Angles!$F$10))) -> 773.6894256 | Z12: =Insolation!$E$13*PSH!B11*((1+COS(RADIANS(90-J12+Angles!$F$10)))/2) -> 49.18371595 | AA12: =Insolation!$L$8*((B11*SIN(RADIANS(J12)))+(Insolation!$E$13*B11))*((1-COS(RADIANS(Insolation!$L$7)))/2) -> 5.871246388 | AB12: 817.8381675 | AC12: =Insolation!$E$13*B11*((1+COS(RADIANS(90-J12)))/2) -> 41.02485276 | AD12: =Insolation!$L$8*((PSH!B11*SIN(RADIANS(PSH!J12)))+(Insolation!$E$13*PSH!B11))*((1-COS(RADIANS(90-PSH!J12)))/2) -> 23.07997277
A13: =Graph!A13 -> 10 | B13: =Graph!D13 -> 900.1940074 | C13: 455.6156866 | E13: 455.6156866 | F13: 5525.719498 | G13: 395.1625 | I13: 10.5 | J13: =Graph!B12 -> 27.47976729 | K13: =IF(COS(RADIANS(Graph!H12))>=((TAN(RADIANS(Angles!$F$10)))/(TAN(RADIANS(Time!$P$4)))),L13,IF(A12<12,M13,N13)) -> 40.4767162 | L13: =DEGREES(ASIN(COS(RADIANS(Angles!$F$10))*SIN(RADIANS(Graph!H12))/COS(RADIANS(J13)))) -> 40.4767162 | M13: 139.5232838 | N13: -220.4767162 | O13: =COS(RADIANS(J13))*COS(RADIANS(K13-Insolation!$L$6))*SIN(RADIANS(0))+(SIN(RADIANS(J13))*COS(RADIANS(0))) -> 0.4614353566 | P13: =COS(RADIANS(J13))*COS(RADIANS(K13-Insolation!$L$6))*SIN(RADIANS(Insolation!$L$7))+SIN(RADIANS(J13))*COS(RADIANS(Insolation!$L$7)) -> 0.7505263443 | Q13: =COS(RADIANS(J13))*COS(RADIANS(K13-K13))*SIN(RADIANS(Insolation!$L$7))+SIN(RADIANS(J13))*COS(RADIANS(Insolation!$L$7)) -> 0.8639213717 | R13: 1 | S13: 400.166538 | T13: =B12*Insolation!$E$13 -> 62.48251724 | U13: =Insolation!$L$8*B12*(SIN(RADIANS(J13))+Insolation!$E$13)*((1-COS(RADIANS(0)))/2) -> 0 | V13: 650.8723801 | W13: =Insolation!$E$13*PSH!B12*((1+COS(RADIANS(Insolation!$L$7)))/2) -> 57.65412779 | X13: =Insolation!$L$8*B12*((SIN(RADIANS(J13)))+Insolation!$E$13)*((1-COS(RADIANS(Insolation!$L$7)))/2) -> 7.150319526 | Y13: =B12*(COS(RADIANS(Angles!$F$10))) -> 820.4066802 | Z13: =Insolation!$E$13*PSH!B12*((1+COS(RADIANS(90-J13+Angles!$F$10)))/2) -> 53.86218608 | AA13: =Insolation!$L$8*((B12*SIN(RADIANS(J13)))+(Insolation!$E$13*B12))*((1-COS(RADIANS(Insolation!$L$7)))/2) -> 7.150319526 | AB13: 867.2212309 | AC13: =Insolation!$E$13*B12*((1+COS(RADIANS(90-J13)))/2) -> 45.65707993 | AD13: =Insolation!$L$8*((PSH!B12*SIN(RADIANS(PSH!J13)))+(Insolation!$E$13*PSH!B12))*((1-COS(RADIANS(90-PSH!J13)))/2) -> 24.91664234
A14: =Graph!A14 -> 10.5 | B14: =Graph!D14 -> 922.2687389 | C14: 464.6798185 | E14: 464.6798185 | G14: 417.5725 | I14: 11 | J14: =Graph!B13 -> 31.30268378 | K14: =IF(COS(RADIANS(Graph!H13))>=((TAN(RADIANS(Angles!$F$10)))/(TAN(RADIANS(Time!$P$4)))),L14,IF(A13<12,M14,N14)) -> 33.61385237 | L14: =DEGREES(ASIN(COS(RADIANS(Angles!$F$10))*SIN(RADIANS(Graph!H13))/COS(RADIANS(J14)))) -> 33.61385237 | M14: 146.3861476 | N14: -213.6138524 | O14: =COS(RADIANS(J14))*COS(RADIANS(K14-Insolation!$L$6))*SIN(RADIANS(0))+(SIN(RADIANS(J14))*COS(RADIANS(0))) -> 0.5195591348 | P14: =COS(RADIANS(J14))*COS(RADIANS(K14-Insolation!$L$6))*SIN(RADIANS(Insolation!$L$7))+SIN(RADIANS(J14))*COS(RADIANS(Insolation!$L$7)) -> 0.8192754065 | Q14: =COS(RADIANS(J14))*COS(RADIANS(K14-K14))*SIN(RADIANS(Insolation!$L$7))+SIN(RADIANS(J14))*COS(RADIANS(Insolation!$L$7)) -> 0.8955773394 | R14: 1 | S14: 467.7040197 | T14: =B13*Insolation!$E$13 -> 64.85817642 | U14: =Insolation!$L$8*B13*(SIN(RADIANS(J14))+Insolation!$E$13)*((1-COS(RADIANS(0)))/2) -> 0 | V14: 737.5068114 | W14: =Insolation!$E$13*PSH!B13*((1+COS(RADIANS(Insolation!$L$7)))/2) -> 59.8462059 | X14: =Insolation!$L$8*B13*((SIN(RADIANS(J14)))+Insolation!$E$13)*((1-COS(RADIANS(Insolation!$L$7)))/2) -> 8.230838963 | Y14: =B13*(COS(RADIANS(Angles!$F$10))) -> 851.5995122 | Z14: =Insolation!$E$13*PSH!B13*((1+COS(RADIANS(90-J14+Angles!$F$10)))/2) -> 57.34912507 | AA14: =Insolation!$L$8*((B13*SIN(RADIANS(J14)))+(Insolation!$E$13*B13))*((1-COS(RADIANS(Insolation!$L$7)))/2) -> 8.230838963 | AB14: 900.1940074 | AC14: =Insolation!$E$13*B13*((1+COS(RADIANS(90-J14)))/2) -> 49.27791722 | AD14: =Insolation!$L$8*((PSH!B13*SIN(RADIANS(PSH!J14)))+(Insolation!$E$13*PSH!B13))*((1-COS(RADIANS(90-PSH!J14)))/2) -> 25.58646423
A15: =Graph!A15 -> 11 | B15: =Graph!D15 -> 936.4505349 | C15: 470.212919 | E15: 470.212919 | F15: 5661.020004 | G15: 435.76 | I15: 11.5 | J15: =Graph!B14 -> 34.46004472 | K15: =IF(COS(RADIANS(Graph!H14))>=((TAN(RADIANS(Angles!$F$10)))/(TAN(RADIANS(Time!$P$4)))),L15,IF(A14<12,M15,N15)) -> 26.04478263 | L15: =DEGREES(ASIN(COS(RADIANS(Angles!$F$10))*SIN(RADIANS(Graph!H14))/COS(RADIANS(J15)))) -> 26.04478263 | M15: 153.9552174 | N15: -206.0447826 | O15: =COS(RADIANS(J15))*COS(RADIANS(K15-Insolation!$L$6))*SIN(RADIANS(0))+(SIN(RADIANS(J15))*COS(RADIANS(0))) -> 0.5658313938 | P15: =COS(RADIANS(J15))*COS(RADIANS(K15-Insolation!$L$6))*SIN(RADIANS(Insolation!$L$7))+SIN(RADIANS(J15))*COS(RADIANS(Insolation!$L$7)) -> 0.8740064394 | Q15: =COS(RADIANS(J15))*COS(RADIANS(K15-K15))*SIN(RADIANS(Insolation!$L$7))+SIN(RADIANS(J15))*COS(RADIANS(Insolation!$L$7)) -> 0.9187226086 | R15: 1 | S15: 521.848606 | T15: =B14*Insolation!$E$13 -> 66.44864116 | U15: =Insolation!$L$8*B14*(SIN(RADIANS(J15))+Insolation!$E$13)*((1-COS(RADIANS(0)))/2) -> 0 | V15: 806.0688167 | W15: =Insolation!$E$13*PSH!B14*((1+COS(RADIANS(Insolation!$L$7)))/2) -> 61.31376613 | X15: =Insolation!$L$8*B14*((SIN(RADIANS(J15)))+Insolation!$E$13)*((1-COS(RADIANS(Insolation!$L$7)))/2) -> 9.09223362 | Y15: =B14*(COS(RADIANS(Angles!$F$10))) -> 872.4826001 | Z15: =Insolation!$E$13*PSH!B14*((1+COS(RADIANS(90-J15+Angles!$F$10)))/2) -> 59.88770179 | AA15: =Insolation!$L$8*((B14*SIN(RADIANS(J15)))+(Insolation!$E$13*B14))*((1-COS(RADIANS(Insolation!$L$7)))/2) -> 9.09223362 | AB15: 922.2687389 | AC15: =Insolation!$E$13*B14*((1+COS(RADIANS(90-J15)))/2) -> 52.0236842 | AD15: =Insolation!$L$8*((PSH!B14*SIN(RADIANS(PSH!J15)))+(Insolation!$E$13*PSH!B14))*((1-COS(RADIANS(90-PSH!J15)))/2) -> 25.54201958
A16: =Graph!A16 -> 11.5 | B16: =Graph!D16 -> 944.401141 | C16: 472.8415115 | E16: 472.8415115 | G16: 449.725 | I16: 12 | J16: =Graph!B15 -> 36.83126159 | K16: =IF(COS(RADIANS(Graph!H15))>=((TAN(RADIANS(Angles!$F$10)))/(TAN(RADIANS(Time!$P$4)))),L16,IF(A15<12,M16,N16)) -> 17.81259654 | L16: =DEGREES(ASIN(COS(RADIANS(Angles!$F$10))*SIN(RADIANS(Graph!H15))/COS(RADIANS(J16)))) -> 17.81259654 | M16: 162.1874035 | N16: -197.8125965 | O16: =COS(RADIANS(J16))*COS(RADIANS(K16-Insolation!$L$6))*SIN(RADIANS(0))+(SIN(RADIANS(J16))*COS(RADIANS(0))) -> 0.5994604025 | P16: =COS(RADIANS(J16))*COS(RADIANS(K16-Insolation!$L$6))*SIN(RADIANS(Insolation!$L$7))+SIN(RADIANS(J16))*COS(RADIANS(Insolation!$L$7)) -> 0.9137829797 | Q16: =COS(RADIANS(J16))*COS(RADIANS(K16-K16))*SIN(RADIANS(Insolation!$L$7))+SIN(RADIANS(J16))*COS(RADIANS(Insolation!$L$7)) -> 0.9342745738 | R16: 1 | S16: 561.3650145 | T16: =B15*Insolation!$E$13 -> 67.47042693 | U16: =Insolation!$L$8*B15*(SIN(RADIANS(J16))+Insolation!$E$13)*((1-COS(RADIANS(0)))/2) -> 0 | V16: 855.7125601 | W16: =Insolation!$E$13*PSH!B15*((1+COS(RADIANS(Insolation!$L$7)))/2) -> 62.25659253 | X16: =Insolation!$L$8*B15*((SIN(RADIANS(J16)))+Insolation!$E$13)*((1-COS(RADIANS(Insolation!$L$7)))/2) -> 9.71875828 | Y16: =B15*(COS(RADIANS(Angles!$F$10))) -> 885.8988308 | Z16: =Insolation!$E$13*PSH!B15*((1+COS(RADIANS(90-J16+Angles!$F$10)))/2) -> 61.61814697 | AA16: =Insolation!$L$8*((B15*SIN(RADIANS(J16)))+(Insolation!$E$13*B15))*((1-COS(RADIANS(Insolation!$L$7)))/2) -> 9.71875828 | AB16: 936.4505349 | AC16: =Insolation!$E$13*B15*((1+COS(RADIANS(90-J16)))/2) -> 53.9581381 | AD16: =Insolation!$L$8*((PSH!B15*SIN(RADIANS(PSH!J16)))+(Insolation!$E$13*PSH!B15))*((1-COS(RADIANS(90-PSH!J16)))/2) -> 25.18734946
A17: =Graph!A17 -> 12 | B17: =Graph!D17 -> 946.9649049 | C17: 472.8415115 | E17: 472.8415115 | F17: 5661.020004 | G17: 459.4675 | I17: 12.5 | J17: =Graph!B16 -> 38.30669723 | K17: =IF(COS(RADIANS(Graph!H16))>=((TAN(RADIANS(Angles!$F$10)))/(TAN(RADIANS(Time!$P$4)))),L17,IF(A16<12,M17,N17)) -> 9.053626694 | L17: =DEGREES(ASIN(COS(RADIANS(Angles!$F$10))*SIN(RADIANS(Graph!H16))/COS(RADIANS(J17)))) -> 9.053626694 | M17: 170.9463733 | N17: -189.0536267 | O17: =COS(RADIANS(J17))*COS(RADIANS(K17-Insolation!$L$6))*SIN(RADIANS(0))+(SIN(RADIANS(J17))*COS(RADIANS(0))) -> 0.6198707591 | P17: =COS(RADIANS(J17))*COS(RADIANS(K17-Insolation!$L$6))*SIN(RADIANS(Insolation!$L$7))+SIN(RADIANS(J17))*COS(RADIANS(Insolation!$L$7)) -> 0.93792444 | Q17: =COS(RADIANS(J17))*COS(RADIANS(K17-K17))*SIN(RADIANS(Insolation!$L$7))+SIN(RADIANS(J17))*COS(RADIANS(Insolation!$L$7)) -> 0.9431455123 | R17: 1 | S17: 585.4066522 | T17: =B16*Insolation!$E$13 -> 68.04326101 | U17: =Insolation!$L$8*B16*(SIN(RADIANS(J17))+Insolation!$E$13)*((1-COS(RADIANS(0)))/2) -> 0 | V17: 885.7769113 | W17: =Insolation!$E$13*PSH!B16*((1+COS(RADIANS(Insolation!$L$7)))/2) -> 62.78516038 | X17: =Insolation!$L$8*B16*((SIN(RADIANS(J17)))+Insolation!$E$13)*((1-COS(RADIANS(Insolation!$L$7)))/2) -> 10.09917911 | Y17: =B16*(COS(RADIANS(Angles!$F$10))) -> 893.4202453 | Z17: =Insolation!$E$13*PSH!B16*((1+COS(RADIANS(90-J17+Angles!$F$10)))/2) -> 62.625075 | AA17: =Insolation!$L$8*((B16*SIN(RADIANS(J17)))+(Insolation!$E$13*B16))*((1-COS(RADIANS(Insolation!$L$7)))/2) -> 10.09917911 | AB17: 944.401141 | AC17: =Insolation!$E$13*B16*((1+COS(RADIANS(90-J17)))/2) -> 55.11064444 | AD17: =Insolation!$L$8*((PSH!B16*SIN(RADIANS(PSH!J17)))+(Insolation!$E$13*PSH!B16))*((1-COS(RADIANS(90-PSH!J17)))/2) -> 24.83954194
A18: =Graph!A18 -> 12.5 | B18: =Graph!D18 -> 944.401141 | C18: 470.212919 | E18: 470.212919 | G18: 464.9875 | I18: 13 | J18: =Graph!B17 -> 38.80804526 | K18: =IF(COS(RADIANS(Graph!H17))>=((TAN(RADIANS(Angles!$F$10)))/(TAN(RADIANS(Time!$P$4)))),L18,IF(A17<12,M18,N18)) -> 0 | L18: =DEGREES(ASIN(COS(RADIANS(Angles!$F$10))*SIN(RADIANS(Graph!H17))/COS(RADIANS(J18)))) -> 0 | M18: 180 | N18: -180 | O18: =COS(RADIANS(J18))*COS(RADIANS(K18-Insolation!$L$6))*SIN(RADIANS(0))+(SIN(RADIANS(J18))*COS(RADIANS(0))) -> 0.6267132369 | P18: =COS(RADIANS(J18))*COS(RADIANS(K18-Insolation!$L$6))*SIN(RADIANS(Insolation!$L$7))+SIN(RADIANS(J18))*COS(RADIANS(Insolation!$L$7)) -> 0.946017753 | Q18: =COS(RADIANS(J18))*COS(RADIANS(K18-K18))*SIN(RADIANS(Insolation!$L$7))+SIN(RADIANS(J18))*COS(RADIANS(Insolation!$L$7)) -> 0.946017753 | R18: 1 | S18: 593.4754408 | T18: =B17*Insolation!$E$13 -> 68.22797792 | U18: =Insolation!$L$8*B17*(SIN(RADIANS(J18))+Insolation!$E$13)*((1-COS(RADIANS(0)))/2) -> 0 | V18: 895.8456115 | W18: =Insolation!$E$13*PSH!B17*((1+COS(RADIANS(Insolation!$L$7)))/2) -> 62.95560313 | X18: =Insolation!$L$8*B17*((SIN(RADIANS(J18)))+Insolation!$E$13)*((1-COS(RADIANS(Insolation!$L$7)))/2) -> 10.22673844 | Y18: =B17*(COS(RADIANS(Angles!$F$10))) -> 895.8456115 | Z18: =Insolation!$E$13*PSH!B17*((1+COS(RADIANS(90-J18+Angles!$F$10)))/2) -> 62.95560313 | AA18: =Insolation!$L$8*((B17*SIN(RADIANS(J18)))+(Insolation!$E$13*B17))*((1-COS(RADIANS(Insolation!$L$7)))/2) -> 10.22673844 | AB18: 946.9649049 | AC18: =Insolation!$E$13*B17*((1+COS(RADIANS(90-J18)))/2) -> 55.49367741 | AD18: =Insolation!$L$8*((PSH!B17*SIN(RADIANS(PSH!J18)))+(Insolation!$E$13*PSH!B17))*((1-COS(RADIANS(90-PSH!J18)))/2) -> 24.70051273
A19: =Graph!A19 -> 13 | B19: =Graph!D19 -> 936.4505349 | C19: 464.6798185 | E19: 464.6798185 | F19: 5525.719498 | G19: 466.285 | I19: 13.5 | J19: =Graph!B18 -> 38.30669723 | K19: =IF(COS(RADIANS(Graph!H18))>=((TAN(RADIANS(Angles!$F$10)))/(TAN(RADIANS(Time!$P$4)))),L19,IF(A18<12,M19,N19)) -> -9.053626694 | L19: =DEGREES(ASIN(COS(RADIANS(Angles!$F$10))*SIN(RADIANS(Graph!H18))/COS(RADIANS(J19)))) -> -9.053626694 | M19: 189.0536267 | N19: -170.9463733 | O19: =COS(RADIANS(J19))*COS(RADIANS(K19-Insolation!$L$6))*SIN(RADIANS(0))+(SIN(RADIANS(J19))*COS(RADIANS(0))) -> 0.6198707591 | P19: =COS(RADIANS(J19))*COS(RADIANS(K19-Insolation!$L$6))*SIN(RADIANS(Insolation!$L$7))+SIN(RADIANS(J19))*COS(RADIANS(Insolation!$L$7)) -> 0.93792444 | Q19: =COS(RADIANS(J19))*COS(RADIANS(K19-K19))*SIN(RADIANS(Insolation!$L$7))+SIN(RADIANS(J19))*COS(RADIANS(Insolation!$L$7)) -> 0.9431455123 | R19: 1 | S19: 585.4066522 | T19: =B18*Insolation!$E$13 -> 68.04326101 | U19: =Insolation!$L$8*B18*(SIN(RADIANS(J19))+Insolation!$E$13)*((1-COS(RADIANS(0)))/2) -> 0 | V19: 885.7769113 | W19: =Insolation!$E$13*PSH!B18*((1+COS(RADIANS(Insolation!$L$7)))/2) -> 62.78516038 | X19: =Insolation!$L$8*B18*((SIN(RADIANS(J19)))+Insolation!$E$13)*((1-COS(RADIANS(Insolation!$L$7)))/2) -> 10.09917911 | Y19: =B18*(COS(RADIANS(Angles!$F$10))) -> 893.4202453 | Z19: =Insolation!$E$13*PSH!B18*((1+COS(RADIANS(90-J19+Angles!$F$10)))/2) -> 62.625075 | AA19: =Insolation!$L$8*((B18*SIN(RADIANS(J19)))+(Insolation!$E$13*B18))*((1-COS(RADIANS(Insolation!$L$7)))/2) -> 10.09917911 | AB19: 944.401141 | AC19: =Insolation!$E$13*B18*((1+COS(RADIANS(90-J19)))/2) -> 55.11064444 | AD19: =Insolation!$L$8*((PSH!B18*SIN(RADIANS(PSH!J19)))+(Insolation!$E$13*PSH!B18))*((1-COS(RADIANS(90-PSH!J19)))/2) -> 24.83954194
A20: =Graph!A20 -> 13.5 | B20: =Graph!D20 -> 922.2687389 | C20: 455.6156866 | E20: 455.6156866 | G20: 463.36 | I20: 14 | J20: =Graph!B19 -> 36.83126159 | K20: =IF(COS(RADIANS(Graph!H19))>=((TAN(RADIANS(Angles!$F$10)))/(TAN(RADIANS(Time!$P$4)))),L20,IF(A19<12,M20,N20)) -> -17.81259654 | L20: =DEGREES(ASIN(COS(RADIANS(Angles!$F$10))*SIN(RADIANS(Graph!H19))/COS(RADIANS(J20)))) -> -17.81259654 | M20: 197.8125965 | N20: -162.1874035 | O20: =COS(RADIANS(J20))*COS(RADIANS(K20-Insolation!$L$6))*SIN(RADIANS(0))+(SIN(RADIANS(J20))*COS(RADIANS(0))) -> 0.5994604025 | P20: =COS(RADIANS(J20))*COS(RADIANS(K20-Insolation!$L$6))*SIN(RADIANS(Insolation!$L$7))+SIN(RADIANS(J20))*COS(RADIANS(Insolation!$L$7)) -> 0.9137829797 | Q20: =COS(RADIANS(J20))*COS(RADIANS(K20-K20))*SIN(RADIANS(Insolation!$L$7))+SIN(RADIANS(J20))*COS(RADIANS(Insolation!$L$7)) -> 0.9342745738 | R20: 1 | S20: 561.3650145 | T20: =B19*Insolation!$E$13 -> 67.47042693 | U20: =Insolation!$L$8*B19*(SIN(RADIANS(J20))+Insolation!$E$13)*((1-COS(RADIANS(0)))/2) -> 0 | V20: 855.7125601 | W20: =Insolation!$E$13*PSH!B19*((1+COS(RADIANS(Insolation!$L$7)))/2) -> 62.25659253 | X20: =Insolation!$L$8*B19*((SIN(RADIANS(J20)))+Insolation!$E$13)*((1-COS(RADIANS(Insolation!$L$7)))/2) -> 9.71875828 | Y20: =B19*(COS(RADIANS(Angles!$F$10))) -> 885.8988308 | Z20: =Insolation!$E$13*PSH!B19*((1+COS(RADIANS(90-J20+Angles!$F$10)))/2) -> 61.61814697 | AA20: =Insolation!$L$8*((B19*SIN(RADIANS(J20)))+(Insolation!$E$13*B19))*((1-COS(RADIANS(Insolation!$L$7)))/2) -> 9.71875828 | AB20: 936.4505349 | AC20: =Insolation!$E$13*B19*((1+COS(RADIANS(90-J20)))/2) -> 53.9581381 | AD20: =Insolation!$L$8*((PSH!B19*SIN(RADIANS(PSH!J20)))+(Insolation!$E$13*PSH!B19))*((1-COS(RADIANS(90-PSH!J20)))/2) -> 25.18734946
A21: =Graph!A21 -> 14 | B21: =Graph!D21 -> 900.1940074 | C21: 441.8538096 | E21: 441.8538096 | F21: 5186.917099 | G21: 456.2125 | I21: 14.5 | J21: =Graph!B20 -> 34.46004472 | K21: =IF(COS(RADIANS(Graph!H20))>=((TAN(RADIANS(Angles!$F$10)))/(TAN(RADIANS(Time!$P$4)))),L21,IF(A20<12,M21,N21)) -> -26.04478263 | L21: =DEGREES(ASIN(COS(RADIANS(Angles!$F$10))*SIN(RADIANS(Graph!H20))/COS(RADIANS(J21)))) -> -26.04478263 | M21: 206.0447826 | N21: -153.9552174 | O21: =COS(RADIANS(J21))*COS(RADIANS(K21-Insolation!$L$6))*SIN(RADIANS(0))+(SIN(RADIANS(J21))*COS(RADIANS(0))) -> 0.5658313938 | P21: =COS(RADIANS(J21))*COS(RADIANS(K21-Insolation!$L$6))*SIN(RADIANS(Insolation!$L$7))+SIN(RADIANS(J21))*COS(RADIANS(Insolation!$L$7)) -> 0.8740064394 | Q21: =COS(RADIANS(J21))*COS(RADIANS(K21-K21))*SIN(RADIANS(Insolation!$L$7))+SIN(RADIANS(J21))*COS(RADIANS(Insolation!$L$7)) -> 0.9187226086 | R21: 1 | S21: 521.848606 | T21: =B20*Insolation!$E$13 -> 66.44864116 | U21: =Insolation!$L$8*B20*(SIN(RADIANS(J21))+Insolation!$E$13)*((1-COS(RADIANS(0)))/2) -> 0 | V21: 806.0688167 | W21: =Insolation!$E$13*PSH!B20*((1+COS(RADIANS(Insolation!$L$7)))/2) -> 61.31376613 | X21: =Insolation!$L$8*B20*((SIN(RADIANS(J21)))+Insolation!$E$13)*((1-COS(RADIANS(Insolation!$L$7)))/2) -> 9.09223362 | Y21: =B20*(COS(RADIANS(Angles!$F$10))) -> 872.4826001 | Z21: =Insolation!$E$13*PSH!B20*((1+COS(RADIANS(90-J21+Angles!$F$10)))/2) -> 59.88770179 | AA21: =Insolation!$L$8*((B20*SIN(RADIANS(J21)))+(Insolation!$E$13*B20))*((1-COS(RADIANS(Insolation!$L$7)))/2) -> 9.09223362 | AB21: 922.2687389 | AC21: =Insolation!$E$13*B20*((1+COS(RADIANS(90-J21)))/2) -> 52.0236842 | AD21: =Insolation!$L$8*((PSH!B20*SIN(RADIANS(PSH!J21)))+(Insolation!$E$13*PSH!B20))*((1-COS(RADIANS(90-PSH!J21)))/2) -> 25.54201958
A22: =Graph!A22 -> 14.5 | B22: =Graph!D22 -> 867.2212309 | C22: 421.2648496 | E22: 421.2648496 | G22: 444.8425 | I22: 15 | J22: =Graph!B21 -> 31.30268378 | K22: =IF(COS(RADIANS(Graph!H21))>=((TAN(RADIANS(Angles!$F$10)))/(TAN(RADIANS(Time!$P$4)))),L22,IF(A21<12,M22,N22)) -> -33.61385237 | L22: =DEGREES(ASIN(COS(RADIANS(Angles!$F$10))*SIN(RADIANS(Graph!H21))/COS(RADIANS(J22)))) -> -33.61385237 | M22: 213.6138524 | N22: -146.3861476 | O22: =COS(RADIANS(J22))*COS(RADIANS(K22-Insolation!$L$6))*SIN(RADIANS(0))+(SIN(RADIANS(J22))*COS(RADIANS(0))) -> 0.5195591348 | P22: =COS(RADIANS(J22))*COS(RADIANS(K22-Insolation!$L$6))*SIN(RADIANS(Insolation!$L$7))+SIN(RADIANS(J22))*COS(RADIANS(Insolation!$L$7)) -> 0.8192754065 | Q22: =COS(RADIANS(J22))*COS(RADIANS(K22-K22))*SIN(RADIANS(Insolation!$L$7))+SIN(RADIANS(J22))*COS(RADIANS(Insolation!$L$7)) -> 0.8955773394 | R22: 1 | S22: 467.7040197 | T22: =B21*Insolation!$E$13 -> 64.85817642 | U22: =Insolation!$L$8*B21*(SIN(RADIANS(J22))+Insolation!$E$13)*((1-COS(RADIANS(0)))/2) -> 0 | V22: 737.5068114 | W22: =Insolation!$E$13*PSH!B21*((1+COS(RADIANS(Insolation!$L$7)))/2) -> 59.8462059 | X22: =Insolation!$L$8*B21*((SIN(RADIANS(J22)))+Insolation!$E$13)*((1-COS(RADIANS(Insolation!$L$7)))/2) -> 8.230838963 | Y22: =B21*(COS(RADIANS(Angles!$F$10))) -> 851.5995122 | Z22: =Insolation!$E$13*PSH!B21*((1+COS(RADIANS(90-J22+Angles!$F$10)))/2) -> 57.34912507 | AA22: =Insolation!$L$8*((B21*SIN(RADIANS(J22)))+(Insolation!$E$13*B21))*((1-COS(RADIANS(Insolation!$L$7)))/2) -> 8.230838963 | AB22: 900.1940074 | AC22: =Insolation!$E$13*B21*((1+COS(RADIANS(90-J22)))/2) -> 49.27791722 | AD22: =Insolation!$L$8*((PSH!B21*SIN(RADIANS(PSH!J22)))+(Insolation!$E$13*PSH!B21))*((1-COS(RADIANS(90-PSH!J22)))/2) -> 25.58646423
A23: =Graph!A23 -> 15 | B23: =Graph!D23 -> 817.8381675 | C23: 389.7753754 | E23: 389.7753754 | F23: 4397.037626 | G23: 429.25 | I23: 15.5 | J23: =Graph!B22 -> 27.47976729 | K23: =IF(COS(RADIANS(Graph!H22))>=((TAN(RADIANS(Angles!$F$10)))/(TAN(RADIANS(Time!$P$4)))),L23,IF(A22<12,M23,N23)) -> -40.4767162 | L23: =DEGREES(ASIN(COS(RADIANS(Angles!$F$10))*SIN(RADIANS(Graph!H22))/COS(RADIANS(J23)))) -> -40.4767162 | M23: 220.4767162 | N23: -139.5232838 | O23: =COS(RADIANS(J23))*COS(RADIANS(K23-Insolation!$L$6))*SIN(RADIANS(0))+(SIN(RADIANS(J23))*COS(RADIANS(0))) -> 0.4614353566 | P23: =COS(RADIANS(J23))*COS(RADIANS(K23-Insolation!$L$6))*SIN(RADIANS(Insolation!$L$7))+SIN(RADIANS(J23))*COS(RADIANS(Insolation!$L$7)) -> 0.7505263443 | Q23: =COS(RADIANS(J23))*COS(RADIANS(K23-K23))*SIN(RADIANS(Insolation!$L$7))+SIN(RADIANS(J23))*COS(RADIANS(Insolation!$L$7)) -> 0.8639213717 | R23: 1 | S23: 400.166538 | T23: =B22*Insolation!$E$13 -> 62.48251724 | U23: =Insolation!$L$8*B22*(SIN(RADIANS(J23))+Insolation!$E$13)*((1-COS(RADIANS(0)))/2) -> 0 | V23: 650.8723801 | W23: =Insolation!$E$13*PSH!B22*((1+COS(RADIANS(Insolation!$L$7)))/2) -> 57.65412779 | X23: =Insolation!$L$8*B22*((SIN(RADIANS(J23)))+Insolation!$E$13)*((1-COS(RADIANS(Insolation!$L$7)))/2) -> 7.150319526 | Y23: =B22*(COS(RADIANS(Angles!$F$10))) -> 820.4066802 | Z23: =Insolation!$E$13*PSH!B22*((1+COS(RADIANS(90-J23+Angles!$F$10)))/2) -> 53.86218608 | AA23: =Insolation!$L$8*((B22*SIN(RADIANS(J23)))+(Insolation!$E$13*B22))*((1-COS(RADIANS(Insolation!$L$7)))/2) -> 7.150319526 | AB23: 867.2212309 | AC23: =Insolation!$E$13*B22*((1+COS(RADIANS(90-J23)))/2) -> 45.65707993 | AD23: =Insolation!$L$8*((PSH!B22*SIN(RADIANS(PSH!J23)))+(Insolation!$E$13*PSH!B22))*((1-COS(RADIANS(90-PSH!J23)))/2) -> 24.91664234
A24: =Graph!A24 -> 15.5 | B24: =Graph!D24 -> 741.2633341 | C24: 338.8523641 | E24: 338.8523641 | G24: 409.435 | I24: 16 | J24: =Graph!B23 -> 23.10731659 | K24: =IF(COS(RADIANS(Graph!H23))>=((TAN(RADIANS(Angles!$F$10)))/(TAN(RADIANS(Time!$P$4)))),L24,IF(A23<12,M24,N24)) -> -46.65923305 | L24: =DEGREES(ASIN(COS(RADIANS(Angles!$F$10))*SIN(RADIANS(Graph!H23))/COS(RADIANS(J24)))) -> -46.65923305 | M24: 226.659233 | N24: -133.340767 | O24: =COS(RADIANS(J24))*COS(RADIANS(K24-Insolation!$L$6))*SIN(RADIANS(0))+(SIN(RADIANS(J24))*COS(RADIANS(0))) -> 0.3924545732 | P24: =COS(RADIANS(J24))*COS(RADIANS(K24-Insolation!$L$6))*SIN(RADIANS(Insolation!$L$7))+SIN(RADIANS(J24))*COS(RADIANS(Insolation!$L$7)) -> 0.6689355683 | Q24: =COS(RADIANS(J24))*COS(RADIANS(K24-K24))*SIN(RADIANS(Insolation!$L$7))+SIN(RADIANS(J24))*COS(RADIANS(Insolation!$L$7)) -> 0.8230106463 | R24: 1 | S24: 320.964329 | T24: =B23*Insolation!$E$13 -> 58.92451151 | U24: =Insolation!$L$8*B23*(SIN(RADIANS(J24))+Insolation!$E$13)*((1-COS(RADIANS(0)))/2) -> 0 | V24: 547.0810394 | W24: =Insolation!$E$13*PSH!B23*((1+COS(RADIANS(Insolation!$L$7)))/2) -> 54.37106997 | X24: =Insolation!$L$8*B23*((SIN(RADIANS(J24)))+Insolation!$E$13)*((1-COS(RADIANS(Insolation!$L$7)))/2) -> 5.871246388 | Y24: =B23*(COS(RADIANS(Angles!$F$10))) -> 773.6894256 | Z24: =Insolation!$E$13*PSH!B23*((1+COS(RADIANS(90-J24+Angles!$F$10)))/2) -> 49.18371595 | AA24: =Insolation!$L$8*((B23*SIN(RADIANS(J24)))+(Insolation!$E$13*B23))*((1-COS(RADIANS(Insolation!$L$7)))/2) -> 5.871246388 | AB24: 817.8381675 | AC24: =Insolation!$E$13*B23*((1+COS(RADIANS(90-J24)))/2) -> 41.02485276 | AD24: =Insolation!$L$8*((PSH!B23*SIN(RADIANS(PSH!J24)))+(Insolation!$E$13*PSH!B23))*((1-COS(RADIANS(90-PSH!J24)))/2) -> 23.07997277
A25: =Graph!A25 -> 16 | B25: =Graph!D25 -> 614.1461221 | C25: 248.6520588 | E25: 248.6520588 | F25: =B25+4*B26+B27 -> 2148.928296 | G25: 385.3975 | I25: 16.5 | J25: =Graph!B24 -> 18.28820898 | K25: =IF(COS(RADIANS(Graph!H24))>=((TAN(RADIANS(Angles!$F$10)))/(TAN(RADIANS(Time!$P$4)))),L25,IF(A24<12,M25,N25)) -> -52.22777323 | L25: =DEGREES(ASIN(COS(RADIANS(Angles!$F$10))*SIN(RADIANS(Graph!H24))/COS(RADIANS(J25)))) -> -52.22777323 | M25: 232.2277732 | N25: -127.7722268 | O25: =COS(RADIANS(J25))*COS(RADIANS(K25-Insolation!$L$6))*SIN(RADIANS(0))+(SIN(RADIANS(J25))*COS(RADIANS(0))) -> 0.313797065 | P25: =COS(RADIANS(J25))*COS(RADIANS(K25-Insolation!$L$6))*SIN(RADIANS(Insolation!$L$7))+SIN(RADIANS(J25))*COS(RADIANS(Insolation!$L$7)) -> 0.5758991192 | Q25: =COS(RADIANS(J25))*COS(RADIANS(K25-K25))*SIN(RADIANS(Insolation!$L$7))+SIN(RADIANS(J25))*COS(RADIANS(Insolation!$L$7)) -> 0.7723812692 | R25: 1 | S25: 232.6062586 | T25: =B24*Insolation!$E$13 -> 53.40736297 | U25: =Insolation!$L$8*B24*(SIN(RADIANS(J25))+Insolation!$E$13)*((1-COS(RADIANS(0)))/2) -> 0 | V25: 426.8929012 | W25: =Insolation!$E$13*PSH!B24*((1+COS(RADIANS(Insolation!$L$7)))/2) -> 49.28026376 | X25: =Insolation!$L$8*B24*((SIN(RADIANS(J25)))+Insolation!$E$13)*((1-COS(RADIANS(Insolation!$L$7)))/2) -> 4.420388976 | Y25: =B24*(COS(RADIANS(Angles!$F$10))) -> 701.2482737 | Z25: =Insolation!$E$13*PSH!B24*((1+COS(RADIANS(90-J25+Angles!$F$10)))/2) -> 42.84876445 | AA25: =Insolation!$L$8*((B24*SIN(RADIANS(J25)))+(Insolation!$E$13*B24))*((1-COS(RADIANS(Insolation!$L$7)))/2) -> 4.420388976 | AB25: 741.2633341 | AC25: =Insolation!$E$13*B24*((1+COS(RADIANS(90-J25)))/2) -> 35.08321836 | AD25: =Insolation!$L$8*((PSH!B24*SIN(RADIANS(PSH!J25)))+(Insolation!$E$13*PSH!B24))*((1-COS(RADIANS(90-PSH!J25)))/2) -> 19.62633866
A26: =Graph!A26 -> 16.5 | B26: =Graph!D26 -> 380.4621132 | C26: 98.34895869 | E26: 98.34895869 | G26: 357.1375 | I26: 17 | J26: =Graph!B25 -> 13.10925809 | K26: =IF(COS(RADIANS(Graph!H25))>=((TAN(RADIANS(Angles!$F$10)))/(TAN(RADIANS(Time!$P$4)))),L26,IF(A25<12,M26,N26)) -> -57.26679779 | L26: =DEGREES(ASIN(COS(RADIANS(Angles!$F$10))*SIN(RADIANS(Graph!H25))/COS(RADIANS(J26)))) -> -57.26679779 | M26: 237.2667978 | N26: -122.7332022 | O26: =COS(RADIANS(J26))*COS(RADIANS(K26-Insolation!$L$6))*SIN(RADIANS(0))+(SIN(RADIANS(J26))*COS(RADIANS(0))) -> 0.2268086836 | P26: =COS(RADIANS(J26))*COS(RADIANS(K26-Insolation!$L$6))*SIN(RADIANS(Insolation!$L$7))+SIN(RADIANS(J26))*COS(RADIANS(Insolation!$L$7)) -> 0.4730088765 | Q26: =COS(RADIANS(J26))*COS(RADIANS(K26-K26))*SIN(RADIANS(Insolation!$L$7))+SIN(RADIANS(J26))*COS(RADIANS(Insolation!$L$7)) -> 0.7118943927 | R26: 1 | S26: 139.2936735 | T26: =B25*Insolation!$E$13 -> 44.24868106 | U26: =Insolation!$L$8*B25*(SIN(RADIANS(J26))+Insolation!$E$13)*((1-COS(RADIANS(0)))/2) -> 0 | V26: =IF(P26<0,0,B25*P26) -> 290.4965672 | W26: =Insolation!$E$13*PSH!B25*((1+COS(RADIANS(Insolation!$L$7)))/2) -> 40.82932675 | X26: =Insolation!$L$8*B25*((SIN(RADIANS(J26)))+Insolation!$E$13)*((1-COS(RADIANS(Insolation!$L$7)))/2) -> 2.836678184 | Y26: =B25*(COS(RADIANS(Angles!$F$10))) -> 580.9931344 | Z26: =Insolation!$E$13*PSH!B25*((1+COS(RADIANS(90-J26+Angles!$F$10)))/2) -> 33.8554005 | AA26: =Insolation!$L$8*((B25*SIN(RADIANS(J26)))+(Insolation!$E$13*B25))*((1-COS(RADIANS(Insolation!$L$7)))/2) -> 2.836678184 | AB26: 614.1461221 | AC26: =Insolation!$E$13*B25*((1+COS(RADIANS(90-J26)))/2) -> 27.14233308 | AD26: =Insolation!$L$8*((PSH!B25*SIN(RADIANS(PSH!J26)))+(Insolation!$E$13*PSH!B25))*((1-COS(RADIANS(90-PSH!J26)))/2) -> 14.19133547
A27: =Graph!A27 -> 17 | B27: =Graph!D27 -> 12.93372156 | C27: 3.233430391 | E27: 3.233430391 | F27: 12.93372156 | G27: 324.655 | I27: 17.5 | J27: =Graph!B26 -> 7.641703488 | K27: =IF(COS(RADIANS(Graph!H26))>=((TAN(RADIANS(Angles!$F$10)))/(TAN(RADIANS(Time!$P$4)))),L27,IF(A26<12,M27,N27)) -> -61.86488514 | L27: =DEGREES(ASIN(COS(RADIANS(Angles!$F$10))*SIN(RADIANS(Graph!H26))/COS(RADIANS(J27)))) -> -61.86488514 | M27: 241.8648851 | N27: -118.1351149 | O27: =COS(RADIANS(J27))*COS(RADIANS(K27-Insolation!$L$6))*SIN(RADIANS(0))+(SIN(RADIANS(J27))*COS(RADIANS(0))) -> 0.1329778245 | P27: =COS(RADIANS(J27))*COS(RADIANS(K27-Insolation!$L$6))*SIN(RADIANS(Insolation!$L$7))+SIN(RADIANS(J27))*COS(RADIANS(Insolation!$L$7)) -> 0.3620253208 | Q27: =COS(RADIANS(J27))*COS(RADIANS(K27-K27))*SIN(RADIANS(Insolation!$L$7))+SIN(RADIANS(J27))*COS(RADIANS(Insolation!$L$7)) -> 0.6417401857 | R27: 1 | S27: 50.5930241 | T27: =B26*Insolation!$E$13 -> 27.41195637 | U27: =Insolation!$L$8*B26*(SIN(RADIANS(J27))+Insolation!$E$13)*((1-COS(RADIANS(0)))/2) -> 0 | V27: =IF(P27<0,0,B26*P27) -> 137.7369186 | W27: =Insolation!$E$13*PSH!B26*((1+COS(RADIANS(Insolation!$L$7)))/2) -> 25.29367422 | X27: =Insolation!$L$8*B26*((SIN(RADIANS(J27)))+Insolation!$E$13)*((1-COS(RADIANS(Insolation!$L$7)))/2) -> 1.205580188 | Y27: =B26*(COS(RADIANS(Angles!$F$10))) -> 359.9239134 | Z27: =Insolation!$E$13*PSH!B26*((1+COS(RADIANS(90-J27+Angles!$F$10)))/2) -> 19.83304021 | AA27: =Insolation!$L$8*((B26*SIN(RADIANS(J27)))+(Insolation!$E$13*B26))*((1-COS(RADIANS(Insolation!$L$7)))/2) -> 1.205580188 | AB27: 380.4621132 | AC27: =Insolation!$E$13*B26*((1+COS(RADIANS(90-J27)))/2) -> 15.52856935 | AD27: =Insolation!$L$8*((PSH!B26*SIN(RADIANS(PSH!J27)))+(Insolation!$E$13*PSH!B26))*((1-COS(RADIANS(90-PSH!J27)))/2) -> 6.763204787
A28: =Graph!A28 -> 17.5 | B28: =Graph!D28 -> 0 | C28: 0 | E28: 0 | G28: 0 | I28: 18 | J28: =Graph!B27 -> 1.943270109 | K28: =IF(COS(RADIANS(Graph!H27))>=((TAN(RADIANS(Angles!$F$10)))/(TAN(RADIANS(Time!$P$4)))),L28,IF(A27<12,M28,N28)) -> -66.10775828 | L28: =DEGREES(ASIN(COS(RADIANS(Angles!$F$10))*SIN(RADIANS(Graph!H27))/COS(RADIANS(J28)))) -> -66.10775828 | M28: 246.1077583 | N28: -113.8922417 | O28: =COS(RADIANS(J28))*COS(RADIANS(K28-Insolation!$L$6))*SIN(RADIANS(0))+(SIN(RADIANS(J28))*COS(RADIANS(0))) -> 0.03390995954 | P28: =COS(RADIANS(J28))*COS(RADIANS(K28-Insolation!$L$6))*SIN(RADIANS(Insolation!$L$7))+SIN(RADIANS(J28))*COS(RADIANS(Insolation!$L$7)) -> 0.2448474115 | Q28: =COS(RADIANS(J28))*COS(RADIANS(K28-K28))*SIN(RADIANS(Insolation!$L$7))+SIN(RADIANS(J28))*COS(RADIANS(Insolation!$L$7)) -> 0.562419242 | R28: 1 | S28: 0.4385819749 | T28: =B27*Insolation!$E$13 -> 0.9318631185 | U28: =Insolation!$L$8*B27*(SIN(RADIANS(J28))+Insolation!$E$13)*((1-COS(RADIANS(0)))/2) -> 0 | V28: =IF(P28<0,0,B27*P28) -> 3.166788246 | W28: =Insolation!$E$13*PSH!B27*((1+COS(RADIANS(Insolation!$L$7)))/2) -> 0.8598526067 | X28: =Insolation!$L$8*B27*((SIN(RADIANS(J28)))+Insolation!$E$13)*((1-COS(RADIANS(Insolation!$L$7)))/2) -> 0.02118046109 | Y28: =B27*(COS(RADIANS(Angles!$F$10))) -> 12.23553021 | Z28: =Insolation!$E$13*PSH!B27*((1+COS(RADIANS(90-J28+Angles!$F$10)))/2) -> 0.6318068445 | AA28: =Insolation!$L$8*((B27*SIN(RADIANS(J28)))+(Insolation!$E$13*B27))*((1-COS(RADIANS(Insolation!$L$7)))/2) -> 0.02118046109 | AB28: 12.93372156 | AC28: =Insolation!$E$13*B27*((1+COS(RADIANS(90-J28)))/2) -> 0.4817312796 | AD28: =Insolation!$L$8*((PSH!B27*SIN(RADIANS(PSH!J28)))+(Insolation!$E$13*PSH!B27))*((1-COS(RADIANS(90-PSH!J28)))/2) -> 0.1323973356
A29: =Graph!A29 -> 18 | B29: =Graph!D29 -> 0 | C29: 0 | E29: 0 | F29: 0 | G29: 0 | I29: 18.5 | J29: =Graph!B28 -> -3.939313318 | K29: =IF(COS(RADIANS(Graph!H28))>=((TAN(RADIANS(Angles!$F$10)))/(TAN(RADIANS(Time!$P$4)))),L29,IF(A28<12,M29,N29)) -> -70.07603101 | L29: =DEGREES(ASIN(COS(RADIANS(Angles!$F$10))*SIN(RADIANS(Graph!H28))/COS(RADIANS(J29)))) -> -70.07603101 | M29: 250.076031 | N29: -109.923969 | O29: =COS(RADIANS(J29))*COS(RADIANS(K29-Insolation!$L$6))*SIN(RADIANS(0))+(SIN(RADIANS(J29))*COS(RADIANS(0))) -> -0.06869983251 | P29: =COS(RADIANS(J29))*COS(RADIANS(K29-Insolation!$L$6))*SIN(RADIANS(Insolation!$L$7))+SIN(RADIANS(J29))*COS(RADIANS(Insolation!$L$7)) -> 0.1234800951 | Q29: =COS(RADIANS(J29))*COS(RADIANS(K29-K29))*SIN(RADIANS(Insolation!$L$7))+SIN(RADIANS(J29))*COS(RADIANS(Insolation!$L$7)) -> 0.474713331 | R29: 1 | S29: 0 | T29: =B28*Insolation!$E$13 -> 0 | U29: =Insolation!$L$8*B28*(SIN(RADIANS(J29))+Insolation!$E$13)*((1-COS(RADIANS(0)))/2) -> 0 | V29: 0 | W29: =Insolation!$E$13*PSH!B28*((1+COS(RADIANS(Insolation!$L$7)))/2) -> 0 | X29: =Insolation!$L$8*B28*((SIN(RADIANS(J29)))+Insolation!$E$13)*((1-COS(RADIANS(Insolation!$L$7)))/2) -> 0 | Y29: =B28*(COS(RADIANS(Angles!$F$10))) -> 0 | Z29: =Insolation!$E$13*PSH!B28*((1+COS(RADIANS(90-J29+Angles!$F$10)))/2) -> 0 | AA29: =Insolation!$L$8*((B28*SIN(RADIANS(J29)))+(Insolation!$E$13*B28))*((1-COS(RADIANS(Insolation!$L$7)))/2) -> 0 | AB29: 0 | AC29: =Insolation!$E$13*B28*((1+COS(RADIANS(90-J29)))/2) -> 0 | AD29: =Insolation!$L$8*((PSH!B28*SIN(RADIANS(PSH!J29)))+(Insolation!$E$13*PSH!B28))*((1-COS(RADIANS(90-PSH!J29)))/2) -> 0
A30: =Graph!A30 -> 18.5 | B30: =Graph!D30 -> 0 | C30: 0 | E30: 0 | F30: 0 | G30: 0 | I30: 19 | J30: =Graph!B29 -> -9.967868497 | K30: =IF(COS(RADIANS(Graph!H29))>=((TAN(RADIANS(Angles!$F$10)))/(TAN(RADIANS(Time!$P$4)))),L30,IF(A29<12,M30,N30)) -> -73.84587812 | L30: =DEGREES(ASIN(COS(RADIANS(Angles!$F$10))*SIN(RADIANS(Graph!H29))/COS(RADIANS(J30)))) -> -73.84587812 | M30: 253.8458781 | N30: -106.1541219 | O30: =COS(RADIANS(J30))*COS(RADIANS(K30-Insolation!$L$6))*SIN(RADIANS(0))+(SIN(RADIANS(J30))*COS(RADIANS(0))) -> -0.1730958697 | P30: =COS(RADIANS(J30))*COS(RADIANS(K30-Insolation!$L$6))*SIN(RADIANS(Insolation!$L$7))+SIN(RADIANS(J30))*COS(RADIANS(Insolation!$L$7)) -> 0 | Q30: =COS(RADIANS(J30))*COS(RADIANS(K30-K30))*SIN(RADIANS(Insolation!$L$7))+SIN(RADIANS(J30))*COS(RADIANS(Insolation!$L$7)) -> 0.37965205 | R30: 1 | S30: 0 | T30: =B29*Insolation!$E$13 -> 0 | U30: =Insolation!$L$8*B29*(SIN(RADIANS(J30))+Insolation!$E$13)*((1-COS(RADIANS(0)))/2) -> 0 | V30: 0 | W30: =Insolation!$E$13*PSH!B29*((1+COS(RADIANS(Insolation!$L$7)))/2) -> 0 | X30: =Insolation!$L$8*B29*((SIN(RADIANS(J30)))+Insolation!$E$13)*((1-COS(RADIANS(Insolation!$L$7)))/2) -> 0 | Y30: =B29*(COS(RADIANS(Angles!$F$10))) -> 0 | Z30: =Insolation!$E$13*PSH!B29*((1+COS(RADIANS(90-J30+Angles!$F$10)))/2) -> 0 | AA30: =Insolation!$L$8*((B29*SIN(RADIANS(J30)))+(Insolation!$E$13*B29))*((1-COS(RADIANS(Insolation!$L$7)))/2) -> 0 | AB30: 0 | AC30: =Insolation!$E$13*B29*((1+COS(RADIANS(90-J30)))/2) -> 0 | AD30: =Insolation!$L$8*((PSH!B29*SIN(RADIANS(PSH!J30)))+(Insolation!$E$13*PSH!B29))*((1-COS(RADIANS(90-PSH!J30)))/2) -> 0
A31: =Graph!A31 -> 19 | B31: =Graph!D31 -> 0 | C31: 0 | E31: 0 | F31: 0 | G31: 0 | I31: 19.5 | J31: =Graph!B30 -> -16.11057075 | K31: =IF(COS(RADIANS(Graph!H30))>=((TAN(RADIANS(Angles!$F$10)))/(TAN(RADIANS(Time!$P$4)))),L31,IF(A30<12,M31,N31)) -> -77.49161372 | L31: =DEGREES(ASIN(COS(RADIANS(Angles!$F$10))*SIN(RADIANS(Graph!H30))/COS(RADIANS(J31)))) -> -77.49161372 | M31: 257.4916137 | N31: -102.5083863 | O31: =COS(RADIANS(J31))*COS(RADIANS(K31-Insolation!$L$6))*SIN(RADIANS(0))+(SIN(RADIANS(J31))*COS(RADIANS(0))) -> -0.2774919069 | P31: =COS(RADIANS(J31))*COS(RADIANS(K31-Insolation!$L$6))*SIN(RADIANS(Insolation!$L$7))+SIN(RADIANS(J31))*COS(RADIANS(Insolation!$L$7)) -> -0.1234800951 | Q31: =COS(RADIANS(J31))*COS(RADIANS(K31-K31))*SIN(RADIANS(Insolation!$L$7))+SIN(RADIANS(J31))*COS(RADIANS(Insolation!$L$7)) -> 0.2784786919 | R31: 1 | S31: 0 | T31: =B30*Insolation!$E$13 -> 0 | U31: =Insolation!$L$8*B30*(SIN(RADIANS(J31))+Insolation!$E$13)*((1-COS(RADIANS(0)))/2) -> 0 | V31: 0 | W31: =Insolation!$E$13*PSH!B30*((1+COS(RADIANS(Insolation!$L$7)))/2) -> 0 | X31: =Insolation!$L$8*B30*((SIN(RADIANS(J31)))+Insolation!$E$13)*((1-COS(RADIANS(Insolation!$L$7)))/2) -> 0 | Y31: =B30*(COS(RADIANS(Angles!$F$10))) -> 0 | Z31: =Insolation!$E$13*PSH!B30*((1+COS(RADIANS(90-J31+Angles!$F$10)))/2) -> 0 | AA31: =Insolation!$L$8*((B30*SIN(RADIANS(J31)))+(Insolation!$E$13*B30))*((1-COS(RADIANS(Insolation!$L$7)))/2) -> 0 | AB31: 0 | AC31: =Insolation!$E$13*B30*((1+COS(RADIANS(90-J31)))/2) -> 0 | AD31: =Insolation!$L$8*((PSH!B30*SIN(RADIANS(PSH!J31)))+(Insolation!$E$13*PSH!B30))*((1-COS(RADIANS(90-PSH!J31)))/2) -> 0
A32: =Graph!A32 -> 19.5 | B32: =Graph!D32 -> 0 | C32: 0 | E32: 0 | F32: 0 | G32: 0 | I32: 20 | J32: =Graph!B31 -> -22.33998226 | K32: =IF(COS(RADIANS(Graph!H31))>=((TAN(RADIANS(Angles!$F$10)))/(TAN(RADIANS(Time!$P$4)))),L32,IF(A31<12,M32,N32)) -> -81.08989089 | L32: =DEGREES(ASIN(COS(RADIANS(Angles!$F$10))*SIN(RADIANS(Graph!H31))/COS(RADIANS(J32)))) -> -81.08989089 | M32: 261.0898909 | N32: -98.91010911 | O32: =COS(RADIANS(J32))*COS(RADIANS(K32-Insolation!$L$6))*SIN(RADIANS(0))+(SIN(RADIANS(J32))*COS(RADIANS(0))) -> -0.3801016989 | P32: =COS(RADIANS(J32))*COS(RADIANS(K32-Insolation!$L$6))*SIN(RADIANS(Insolation!$L$7))+SIN(RADIANS(J32))*COS(RADIANS(Insolation!$L$7)) -> -0.2448474115 | Q32: =COS(RADIANS(J32))*COS(RADIANS(K32-K32))*SIN(RADIANS(Insolation!$L$7))+SIN(RADIANS(J32))*COS(RADIANS(Insolation!$L$7)) -> 0.1726170993 | R32: 1 | S32: 0 | T32: =B31*Insolation!$E$13 -> 0 | U32: =Insolation!$L$8*B31*(SIN(RADIANS(J32))+Insolation!$E$13)*((1-COS(RADIANS(0)))/2) -> 0 | V32: 0 | W32: =Insolation!$E$13*PSH!B31*((1+COS(RADIANS(Insolation!$L$7)))/2) -> 0 | X32: =Insolation!$L$8*B31*((SIN(RADIANS(J32)))+Insolation!$E$13)*((1-COS(RADIANS(Insolation!$L$7)))/2) -> 0 | Y32: =B31*(COS(RADIANS(Angles!$F$10))) -> 0 | Z32: =Insolation!$E$13*PSH!B31*((1+COS(RADIANS(90-J32+Angles!$F$10)))/2) -> 0 | AA32: =Insolation!$L$8*((B31*SIN(RADIANS(J32)))+(Insolation!$E$13*B31))*((1-COS(RADIANS(Insolation!$L$7)))/2) -> 0 | AB32: 0 | AC32: =Insolation!$E$13*B31*((1+COS(RADIANS(90-J32)))/2) -> 0 | AD32: =Insolation!$L$8*((PSH!B31*SIN(RADIANS(PSH!J32)))+(Insolation!$E$13*PSH!B31))*((1-COS(RADIANS(90-PSH!J32)))/2) -> 0
C33: =SUM(C2:C32)/1000 -> 7.610661564 | D33: kW/h-day | E33: =SUM(E2:E32)/1000 -> 7.610661564 | F33: =((1/3)*SUM(F2:F32)*(A3-A2))/1000 -> 7.644185415 | G33: =SUM(G2:G32)/1000 -> 8.023155 | I33: 20.5 | J33: =Graph!B32 -> -28.63117896 | K33: =IF(COS(RADIANS(Graph!H32))>=((TAN(RADIANS(Angles!$F$10)))/(TAN(RADIANS(Time!$P$4)))),L33,IF(A32<12,M33,N33)) -> -84.72593841 | L33: =DEGREES(ASIN(COS(RADIANS(Angles!$F$10))*SIN(RADIANS(Graph!H32))/COS(RADIANS(J33)))) -> -84.72593841 | M33: 264.7259384 | N33: -95.27406159 | O33: =COS(RADIANS(J33))*COS(RADIANS(K33-Insolation!$L$6))*SIN(RADIANS(0))+(SIN(RADIANS(J33))*COS(RADIANS(0))) -> -0.4791695638 | P33: =COS(RADIANS(J33))*COS(RADIANS(K33-Insolation!$L$6))*SIN(RADIANS(Insolation!$L$7))+SIN(RADIANS(J33))*COS(RADIANS(Insolation!$L$7)) -> -0.3620253208 | Q33: =COS(RADIANS(J33))*COS(RADIANS(K33-K33))*SIN(RADIANS(Insolation!$L$7))+SIN(RADIANS(J33))*COS(RADIANS(Insolation!$L$7)) -> 0.06364090315 | R33: 1 | S33: 0 | T33: =B32*Insolation!$E$13 -> 0 | U33: =Insolation!$L$8*B32*(SIN(RADIANS(J33))+Insolation!$E$13)*((1-COS(RADIANS(0)))/2) -> 0 | V33: 0 | W33: =Insolation!$E$13*PSH!B32*((1+COS(RADIANS(Insolation!$L$7)))/2) -> 0 | X33: =Insolation!$L$8*B32*((SIN(RADIANS(J33)))+Insolation!$E$13)*((1-COS(RADIANS(Insolation!$L$7)))/2) -> 0 | Y33: =B32*(COS(RADIANS(Angles!$F$10))) -> 0 | Z33: =Insolation!$E$13*PSH!B32*((1+COS(RADIANS(90-J33+Angles!$F$10)))/2) -> 0 | AA33: =Insolation!$L$8*((B32*SIN(RADIANS(J33)))+(Insolation!$E$13*B32))*((1-COS(RADIANS(Insolation!$L$7)))/2) -> 0 | AB33: 0 | AC33: =Insolation!$E$13*B32*((1+COS(RADIANS(90-J33)))/2) -> 0 | AD33: =Insolation!$L$8*((PSH!B32*SIN(RADIANS(PSH!J33)))+(Insolation!$E$13*PSH!B32))*((1-COS(RADIANS(90-PSH!J33)))/2) -> 0
A35: Max at Noon | C35: Daylight Hrs | E35: from cell | F35: to cell | S35: Total1 | T35: Total2 | U35: Total3 | V35: Total1 | W35: Total2 | X35: Total3 | Y35: Total1 | Z35: Total2 | AA35: Total3 | AB35: Total1 | AC35: Total2 | AD35: Total3
A36: =MAX(B2:B32) -> 946.9649049 | C36: =INDEX(A2:A32,F36)-INDEX(A2:A32,E36) -> 10.5 | E36: =MATCH(TRUE,INDEX(B2:B32>0,0),0) -> 6 | F36: =MATCH(TRUE,INDEX(B15:B32=0,0),0)+13 -> 27 | K36: Total Daily Insolation at the given day | S36: =SUM(S4,S6,S8,S10,S12,S14,S16,S18,S20,S22,S24,S26,S28,S30,S32)/1000 -> 3.573006678 | T36: =SUM(T4,T6,T8,T10,T12,T14,T16,T18,T20,T22,T24,T26,T28,T30,T32)/1000 -> 0.541095296 | U36: =SUM(U4,U6,U8,U10,U12,U14,U16,U18,U20,U22,U24,U26,U28,U30,U32)/1000 -> 0 | V36: 5.763773144 | W36: 0.4992816987 | X36: 0.06358414299 | Y36: =SUM(Y4,Y6,Y8,Y10,Y12,Y14,Y16,Y18,Y20,Y22,Y24,Y26,Y28,Y30,Y32)/1000 -> 7.104678478 | Z36: =SUM(Z4,Z6,Z8,Z10,Z12,Z14,Z16,Z18,Z20,Z22,Z24,Z26,Z28,Z30,Z32)/1000 -> 0.4682319938 | AA36: 0.06358414299 | AB36: 7.510090012 | AC36: 0.3992636223 | AD36: 0.2010555513
T37: =S36+T36 -> 4.114101974 | W37: =V36+W36 -> 6.263054843 | Z37: =Y36+Z36 -> 7.572910472 | AC37: =AB36+AC36 -> 7.909353634
D38: =0.637*A36*C36/1000 -> 6.333774766 | R38: Eq | S38: =MAX(S3:S33)+MAX(T3:T33) -> 661.7034187 | T38: =0.637*S38*C36/1000 -> 4.425803316 | V38: =MAX(V3:V33)+MAX(W3:W33) -> 958.8012146 | W38: =0.637*V38*C36/1000 -> 6.412941924 | Y38: =MAX(Y3:Y33)+MAX(Z3:Z33) -> 958.8012146 | Z38: =0.637*Y38*C36/1000 -> 6.412941924 | AB38: =MAX(AB3:AB33)+MAX(AC3:AC33) -> 1002.458582 | AC38: =0.637*AB38*C36/1000 -> 6.704944228
A40: Day | B40: January | C40: February | D40: March | E40: April | F40: May | G40: June | H40: July | I40: August | J40: September | K40: October | L40: November | M40: December | R40: yearly insolation
A41: 15 | B41: =A41+0 -> 15 | C41: =B41+31 -> 46 | D41: =C41+28 -> 74 | E41: =D41+31 -> 105 | F41: =E41+30 -> 135 | G41: =F41+31 -> 166 | H41: =G41+30 -> 196 | I41: =H41+31 -> 227 | J41: =I41+31 -> 258 | K41: =J41+30 -> 288 | L41: =K41+31 -> 319 | M41: =L41+30 -> 349
A42: Latitude | O42: Flat | Q42: Tilted | S42: 1-Axis Tracker | U42: 2-Axis Tracker | AJ42: Flat | AL42: Tilted | AN42: 1-Axis Tracker | AP42: 2-Axis Tracker | BE42: Flat | BG42: Tilted | BI42: 1-Axis Tracker | BK42: 2-Axis Tracker | BZ42: Flat | CB42: Tilted | CD42: 1-Axis Tracker | CF42: 2-Axis Tracker | CU42: Flat | CW42: Tilted | CY42: 1-Axis Tracker | DA42: 2-Axis Tracker | DP42: Flat | DR42: Tilted | DT42: 1-Axis Tracker | DV42: 2-Axis Tracker
A43: =Time!P4 -> 32.28 | C43: JANUARY | D43: Time | E43: Altitude | F43: H angle | G43: Azimuth | H43: 1 | I43: 2 | J43: 3 | K43: m | L43: IB | M43: cosθ flat | N43: cosθ tilt | O43: Direct | P43: Diffuse | Q43: Direct | R43: Diffuse | S43: Direct | T43: Diffuse | U43: Direct | V43: Diffuse | X43: FEBRUARY | Y43: Time | Z43: Altitude | AA43: H angle | AB43: Azimuth | AC43: 1 | AD43: 2 | AE43: 3 | AF43: m | AG43: IB | AH43: cosθ flat | AI43: cosθ tilt | AJ43: Direct | AK43: Diffuse | AL43: Direct | AM43: Diffuse | AN43: Direct | AO43: Diffuse | AP43: Direct | AQ43: Diffuse | AS43: MARCH | AT43: Time | AU43: Altitude | AV43: H angle | AW43: Azimuth | AX43: 1 | AY43: 2 | AZ43: 3 | BA43: m | BB43: IB | BC43: cosθ flat | BD43: cosθ tilt | BE43: Direct | BF43: Diffuse | BG43: Direct | BH43: Diffuse | BI43: Direct | BJ43: Diffuse | BK43: Direct | BL43: Diffuse | BN43: APRIL | BO43: Time | BP43: Altitude | BQ43: H angle | BR43: Azimuth | BS43: 1 | BT43: 2 | BU43: 3 | BV43: m | BW43: IB | BX43: cosθ flat | BY43: cosθ tilt | BZ43: Direct | CA43: Diffuse | CB43: Direct | CC43: Diffuse | CD43: Direct | CE43: Diffuse | CF43: Direct | CG43: Diffuse | CI43: MAY | CJ43: Time | CK43: Altitude | CL43: H angle | CM43: Azimuth | CN43: 1 | CO43: 2 | CP43: 3 | CQ43: m | CR43: IB | CS43: cosθ flat | CT43: cosθ tilt | CU43: Direct | CV43: Diffuse | CW43: Direct | CX43: Diffuse | CY43: Direct | CZ43: Diffuse | DA43: Direct | DB43: Diffuse | DD43: JUNE | DE43: Time | DF43: Altitude | DG43: H angle | DH43: Azimuth | DI43: 1 | DJ43: 2 | DK43: 3 | DL43: m | DM43: IB | DN43: cosθ flat | DO43: cosθ tilt | DP43: Direct | DQ43: Diffuse | DR43: Direct | DS43: Diffuse | DT43: Direct | DU43: Diffuse | DV43: Direct | DW43: Diffuse
A44: Longitude | C44: Day | D44: 5.5 | E44: =DEGREES(ASIN(COS(RADIANS($A$43))*COS(RADIANS($C$47))*COS(RADIANS(F44))+SIN(RADIANS($A$43))*SIN(RADIANS($C$47)))) -> -17.25159942 | F44: =15*(12-D44) -> 97.5 | G44: =IF(COS(RADIANS(F44))>=((TAN(RADIANS($C$47)))/(TAN(RADIANS($A$43)))),H44,IF(D44<12,I44,J44)) -> 75.33793228 | H44: =DEGREES(ASIN(COS(RADIANS($C$47))*SIN(RADIANS(F44))/COS(RADIANS(E44)))) -> 75.33793228 | I44: =180-H44 -> 104.6620677 | J44: =180-H44-360 -> -255.3379323 | K44: =ABS(1/SIN(RADIANS(E44))) -> 3.371905296 | L44: =IF(E44>0,$C$51*EXP(-$C$53*K44),0) -> 0 | M44: =COS(RADIANS(E44))*COS(RADIANS(G44-Insolation!$L$6))*SIN(RADIANS(0))+(SIN(RADIANS(E44))*COS(RADIANS(0))) -> -0.2965682343 | N44: =COS(RADIANS(E44))*COS(RADIANS(G44-Insolation!$L$6))*SIN(RADIANS(Insolation!$L$7))+SIN(RADIANS(E44))*COS(RADIANS(Insolation!$L$7)) -> -0.1216353522 | O44: =L44*M44 -> 0 | P44: =$C$55*L44 -> 0 | Q44: =IF(N44<0,0,L44*N44) -> 0 | R44: =$C$55*L44*((1+COS(RADIANS(Insolation!$L$7)))/2) -> 0 | S44: =L44*COS(RADIANS($C$47)) -> 0 | T44: =$C$55*L44*((1+COS(RADIANS(90-E44+$C$47)))/2) -> 0 | U44: =L44 -> 0 | V44: =$C$55*L44*((1+COS(RADIANS(90-E44)))/2) -> 0 | X44: Day | Y44: 5.5 | Z44: =DEGREES(ASIN(COS(RADIANS($A$43))*COS(RADIANS($X$47))*COS(RADIANS(AA44))+SIN(RADIANS($A$43))*SIN(RADIANS($X$47)))) -> -13.30646362 | AA44: =15*(12-Y44) -> 97.5 | AB44: =IF(COS(RADIANS(AA44))>=((TAN(RADIANS($X$47)))/(TAN(RADIANS($A$43)))),AC44,IF(Y44<12,AD44,AE44)) -> 82.5311366 | AC44: =DEGREES(ASIN(COS(RADIANS($X$47))*SIN(RADIANS(AA44))/COS(RADIANS(Z44)))) -> 82.5311366 | AD44: =180-AC44 -> 97.4688634 | AE44: =180-AC44-360 -> -262.5311366 | AF44: =ABS(1/SIN(RADIANS(Z44))) -> 4.34481265 | AG44: =IF(Z44>0,$X$51*EXP(-$X$53*AF44),0) -> 0 | AH44: =COS(RADIANS(Z44))*COS(RADIANS(AB44-Insolation!$L$6))*SIN(RADIANS(0))+(SIN(RADIANS(Z44))*COS(RADIANS(0))) -> -0.2301595214 | AI44: =COS(RADIANS(Z44))*COS(RADIANS(AB44-Insolation!$L$6))*SIN(RADIANS(Insolation!$L$7))+SIN(RADIANS(Z44))*COS(RADIANS(Insolation!$L$7)) -> -0.1270310134 | AJ44: =AG44*AH44 -> 0 | AK44: =$X$55*AG44 -> 0 | AL44: =IF(AI44<0,0,AG44*AI44) -> 0 | AM44: =$X$55*AG44*((1+COS(RADIANS(Insolation!$L$7)))/2) -> 0 | AN44: =AG44*COS(RADIANS($X$47)) -> 0 | AO44: =$X$55*AG44*((1+COS(RADIANS(90-Z44+$X$47)))/2) -> 0 | AP44: =AG44 -> 0 | AQ44: =$X$55*AG44*((1+COS(RADIANS(90-Z44)))/2) -> 0 | AS44: Day | AT44: 5.5 | AU44: =DEGREES(ASIN(COS(RADIANS($A$43))*COS(RADIANS($AS$47))*COS(RADIANS(AV44))+SIN(RADIANS($A$43))*SIN(RADIANS($AS$47)))) -> -7.844438362 | AV44: =15*(12-AT44) -> 97.5 | AW44: =IF(COS(RADIANS(AV44))>=((TAN(RADIANS($AS$47)))/(TAN(RADIANS($A$43)))),AX44,IF(AT44<12,AY44,AZ44)) -> 91.62230881 | AX44: =DEGREES(ASIN(COS(RADIANS($AS$47))*SIN(RADIANS(AV44))/COS(RADIANS(AU44)))) -> 88.37769119 | AY44: =180-AX44 -> 91.62230881 | AZ44: =180-AX44-360 -> -268.3776912 | BA44: =ABS(1/SIN(RADIANS(AU44))) -> 7.326868765 | BB44: =IF(AU44>0,$AS$51*EXP(-$AS$53*BA44),0) -> 0 | BC44: =COS(RADIANS(AU44))*COS(RADIANS(AW44-Insolation!$L$6))*SIN(RADIANS(0))+(SIN(RADIANS(AU44))*COS(RADIANS(0))) -> -0.1364839513 | BD44: =COS(RADIANS(AU44))*COS(RADIANS(AW44-Insolation!$L$6))*SIN(RADIANS(Insolation!$L$7))+SIN(RADIANS(AU44))*COS(RADIANS(Insolation!$L$7)) -> -0.1303682539 | BE44: =BB44*BC44 -> 0 | BF44: =$AS$55*BB44 -> 0 | BG44: =IF(BD44<0,0,BB44*BD44) -> 0 | BH44: =$AS$55*BB44*((1+COS(RADIANS(Insolation!$L$7)))/2) -> 0 | BI44: =BB44*COS(RADIANS($AS$47)) -> 0 | BJ44: =$AS$55*BB44*((1+COS(RADIANS(90-AU44+$AS$47)))/2) -> 0 | BK44: =BB44 -> 0 | BL44: =$AS$55*BB44*((1+COS(RADIANS(90-AU44)))/2) -> 0 | BN44: Day | BO44: 5.5 | BP44: =DEGREES(ASIN(COS(RADIANS($A$43))*COS(RADIANS($BN$47))*COS(RADIANS(BQ44))+SIN(RADIANS($A$43))*SIN(RADIANS($BN$47)))) -> -1.232199683 | BQ44: =15*(12-BO44) -> 97.5 | BR44: =IF(COS(RADIANS(BQ44))>=((TAN(RADIANS($BN$47)))/(TAN(RADIANS($A$43)))),BS44,IF(BO44<12,BT44,BU44)) -> 101.9535028 | BS44: =DEGREES(ASIN(COS(RADIANS($BN$47))*SIN(RADIANS(BQ44))/COS(RADIANS(BP44)))) -> 78.04649722 | BT44: =180-BS44 -> 101.9535028 | BU44: =180-BS44-360 -> -258.0464972 | BV44: =ABS(1/SIN(RADIANS(BP44))) -> 46.50236251 | BW44: =IF(BP44>0,$BN$51*EXP(-$BN$53*BV44),0) -> 0 | BX44: =COS(RADIANS(BP44))*COS(RADIANS(BR44-Insolation!$L$6))*SIN(RADIANS(0))+(SIN(RADIANS(BP44))*COS(RADIANS(0))) -> -0.02150428378 | BY44: =COS(RADIANS(BP44))*COS(RADIANS(BR44-Insolation!$L$6))*SIN(RADIANS(Insolation!$L$7))+SIN(RADIANS(BP44))*COS(RADIANS(Insolation!$L$7)) -> -0.1287679618 | BZ44: =BW44*BX44 -> 0 | CA44: =$BN$55*BW44 -> 0 | CB44: =IF(BY44<0,0,BW44*BY44) -> 0 | CC44: =$BN$55*BW44*((1+COS(RADIANS(Insolation!$L$7)))/2) -> 0 | CD44: =BW44*COS(RADIANS($BN$47)) -> 0 | CE44: =$BN$55*BW44*((1+COS(RADIANS(90-BP44+$BN$47)))/2) -> 0 | CF44: =BW44 -> 0 | CG44: =$BN$55*BW44*((1+COS(RADIANS(90-BP44)))/2) -> 0 | CI44: Day | CJ44: 5.5 | CK44: =DEGREES(ASIN(COS(RADIANS($A$43))*COS(RADIANS($CI$47))*COS(RADIANS(CL44))+SIN(RADIANS($A$43))*SIN(RADIANS($CI$47)))) -> 3.874213941 | CL44: =15*(12-CJ44) -> 97.5 | CM44: =IF(COS(RADIANS(CL44))>=((TAN(RADIANS($CI$47)))/(TAN(RADIANS($A$43)))),CN44,IF(CJ44<12,CO44,CP44)) -> 109.8228827 | CN44: =DEGREES(ASIN(COS(RADIANS($CI$47))*SIN(RADIANS(CL44))/COS(RADIANS(CK44)))) -> 70.17711732 | CO44: =180-CN44 -> 109.8228827 | CP44: =180-CN44-360 -> -250.1771173 | CQ44: =ABS(1/SIN(RADIANS(CK44))) -> 14.80028327 | CR44: =IF(CK44>0,$CI$51*EXP(-$CI$53*CQ44),0) -> 63.00502388 | CS44: =COS(RADIANS(CK44))*COS(RADIANS(CM44-Insolation!$L$6))*SIN(RADIANS(0))+(SIN(RADIANS(CK44))*COS(RADIANS(0))) -> 0.06756627436 | CT44: =COS(RADIANS(CK44))*COS(RADIANS(CM44-Insolation!$L$6))*SIN(RADIANS(Insolation!$L$7))+SIN(RADIANS(CK44))*COS(RADIANS(Insolation!$L$7)) -> -0.1235684559 | CU44: =CR44*CS44 -> 4.257014729 | CV44: =$CI$55*CR44 -> 7.413679576 | CW44: =IF(CT44<0,0,CR44*CT44) -> 0 | CX44: =$CI$55*CR44*((1+COS(RADIANS(Insolation!$L$7)))/2) -> 6.840781207 | CY44: =CR44*COS(RADIANS($CI$47)) -> 59.6465229 | CZ44: =$CI$55*CR44*((1+COS(RADIANS(90-CK44+$CI$47)))/2) -> 2.752582916 | DA44: =CR44 -> 63.00502388 | DB44: =$CI$55*CR44*((1+COS(RADIANS(90-CK44)))/2) -> 3.957297142 | DD44: Day | DE44: 5.5 | DF44: =DEGREES(ASIN(COS(RADIANS($A$43))*COS(RADIANS($DD$47))*COS(RADIANS(DG44))+SIN(RADIANS($A$43))*SIN(RADIANS($DD$47)))) -> 6.316747249 | DG44: =15*(12-DE44) -> 97.5 | DH44: =IF(COS(RADIANS(DG44))>=((TAN(RADIANS($DD$47)))/(TAN(RADIANS($A$43)))),DI44,IF(DE44<12,DJ44,DK44)) -> 113.644461 | DI44: =DEGREES(ASIN(COS(RADIANS($DD$47))*SIN(RADIANS(DG44))/COS(RADIANS(DF44)))) -> 66.35553895 | DJ44: =180-DI44 -> 113.644461 | DK44: =180-DI44-360 -> -246.355539 | DL44: =ABS(1/SIN(RADIANS(DF44))) -> 9.088857004 | DM44: =IF(DF44>0,$DD$51*EXP(-$DD$53*DL44),0) -> 167.7610503 | DN44: =COS(RADIANS(DF44))*COS(RADIANS(DH44-Insolation!$L$6))*SIN(RADIANS(0))+(SIN(RADIANS(DF44))*COS(RADIANS(0))) -> 0.1100248359 | DO44: =COS(RADIANS(DF44))*COS(RADIANS(DH44-Insolation!$L$6))*SIN(RADIANS(Insolation!$L$7))+SIN(RADIANS(DF44))*COS(RADIANS(Insolation!$L$7)) -> -0.1198683204 | DP44: =DM44*DN44 -> 18.45788202 | DQ44: =$DD$55*DM44 -> 22.02376337 | DR44: =IF(DO44<0,0,DM44*DO44) -> 0 | DS44: =$DD$55*DM44*((1+COS(RADIANS(Insolation!$L$7)))/2) -> 20.3218584 | DT44: =DM44*COS(RADIANS($DD$47)) -> 154.0628358 | DU44: =$DD$55*DM44*((1+COS(RADIANS(90-DF44+$DD$47)))/2) -> 7.79274866 | DV44: =DM44 -> 167.7610503 | DW44: =$DD$55*DM44*((1+COS(RADIANS(90-DF44)))/2) -> 12.22346216
A45: =Time!P5 -> 106.75 | C45: =B41 -> 15 | D45: 6 | E45: -11.17065026 | F45: 90 | G45: =IF(COS(RADIANS(F45))>=((TAN(RADIANS($C$47)))/(TAN(RADIANS($A$43)))),H45,IF(D45<12,I45,J45)) -> 71.7832256 | H45: =DEGREES(ASIN(COS(RADIANS($C$47))*SIN(RADIANS(F45))/COS(RADIANS(E45)))) -> 71.7832256 | I45: =180-H45 -> 108.2167744 | J45: =180-H45-360 -> -251.7832256 | K45: =ABS(1/SIN(RADIANS(E45))) -> 5.161774347 | L45: =IF(E45>0,$C$51*EXP(-$C$53*K45),0) -> 0 | M45: =COS(RADIANS(E45))*COS(RADIANS(G45-Insolation!$L$6))*SIN(RADIANS(0))+(SIN(RADIANS(E45))*COS(RADIANS(0))) -> -0.1937318319 | N45: =COS(RADIANS(E45))*COS(RADIANS(G45-Insolation!$L$6))*SIN(RADIANS(Insolation!$L$7))+SIN(RADIANS(E45))*COS(RADIANS(Insolation!$L$7)) -> 0 | O45: =L45*M45 -> 0 | P45: =$C$55*L45 -> 0 | Q45: =IF(N45<0,0,L45*N45) -> 0 | R45: =$C$55*L45*((1+COS(RADIANS(Insolation!$L$7)))/2) -> 0 | S45: =L45*COS(RADIANS($C$47)) -> 0 | T45: =$C$55*L45*((1+COS(RADIANS(90-E45+$C$47)))/2) -> 0 | U45: =L45 -> 0 | V45: =$C$55*L45*((1+COS(RADIANS(90-E45)))/2) -> 0 | X45: =C41 -> 46 | Y45: 6 | Z45: =DEGREES(ASIN(COS(RADIANS($A$43))*COS(RADIANS($X$47))*COS(RADIANS(AA45))+SIN(RADIANS($A$43))*SIN(RADIANS($X$47)))) -> -7.051495819 | AA45: 90 | AB45: =IF(COS(RADIANS(AA45))>=((TAN(RADIANS($X$47)))/(TAN(RADIANS($A$43)))),AC45,IF(Y45<12,AD45,AE45)) -> 78.70733624 | AC45: =DEGREES(ASIN(COS(RADIANS($X$47))*SIN(RADIANS(AA45))/COS(RADIANS(Z45)))) -> 78.70733624 | AD45: =180-AC45 -> 101.2926638 | AE45: =180-AC45-360 -> -258.7073362 | AF45: =ABS(1/SIN(RADIANS(Z45))) -> 8.145885222 | AG45: =IF(Z45>0,$X$51*EXP(-$X$53*AF45),0) -> 0 | AH45: =COS(RADIANS(Z45))*COS(RADIANS(AB45-Insolation!$L$6))*SIN(RADIANS(0))+(SIN(RADIANS(Z45))*COS(RADIANS(0))) -> -0.1227613664 | AI45: =COS(RADIANS(Z45))*COS(RADIANS(AB45-Insolation!$L$6))*SIN(RADIANS(Insolation!$L$7))+SIN(RADIANS(Z45))*COS(RADIANS(Insolation!$L$7)) -> 1.942890293e-16 | AJ45: =AG45*AH45 -> 0 | AK45: =$X$55*AG45 -> 0 | AL45: =IF(AI45<0,0,AG45*AI45) -> 0 | AM45: =$X$55*AG45*((1+COS(RADIANS(Insolation!$L$7)))/2) -> 0 | AN45: =AG45*COS(RADIANS($X$47)) -> 0 | AO45: =$X$55*AG45*((1+COS(RADIANS(90-Z45+$X$47)))/2) -> 0 | AP45: =AG45 -> 0 | AQ45: =$X$55*AG45*((1+COS(RADIANS(90-Z45)))/2) -> 0 | AS45: =D41 -> 74 | AT45: 6 | AU45: =DEGREES(ASIN(COS(RADIANS($A$43))*COS(RADIANS($AS$47))*COS(RADIANS(AV45))+SIN(RADIANS($A$43))*SIN(RADIANS($AS$47)))) -> -1.505008436 | AV45: 90 | AW45: =IF(COS(RADIANS(AV45))>=((TAN(RADIANS($AS$47)))/(TAN(RADIANS($A$43)))),AX45,IF(AT45<12,AY45,AZ45)) -> 87.61623542 | AX45: =DEGREES(ASIN(COS(RADIANS($AS$47))*SIN(RADIANS(AV45))/COS(RADIANS(AU45)))) -> 87.61623542 | AY45: =180-AX45 -> 92.38376458 | AZ45: =180-AX45-360 -> -267.6162354 | BA45: =ABS(1/SIN(RADIANS(AU45))) -> 38.07445024 | BB45: =IF(AU45>0,$AS$51*EXP(-$AS$53*BA45),0) -> 0 | BC45: =COS(RADIANS(AU45))*COS(RADIANS(AW45-Insolation!$L$6))*SIN(RADIANS(0))+(SIN(RADIANS(AU45))*COS(RADIANS(0))) -> -0.02626433195 | BD45: =COS(RADIANS(AU45))*COS(RADIANS(AW45-Insolation!$L$6))*SIN(RADIANS(Insolation!$L$7))+SIN(RADIANS(AU45))*COS(RADIANS(Insolation!$L$7)) -> -1.595945598e-16 | BE45: =BB45*BC45 -> 0 | BF45: =$AS$55*BB45 -> 0 | BG45: =IF(BD45<0,0,BB45*BD45) -> 0 | BH45: =$AS$55*BB45*((1+COS(RADIANS(Insolation!$L$7)))/2) -> 0 | BI45: =BB45*COS(RADIANS($AS$47)) -> 0 | BJ45: =$AS$55*BB45*((1+COS(RADIANS(90-AU45+$AS$47)))/2) -> 0 | BK45: =BB45 -> 0 | BL45: =$AS$55*BB45*((1+COS(RADIANS(90-AU45)))/2) -> 0 | BN45: =E41 -> 105 | BO45: 6 | BP45: =DEGREES(ASIN(COS(RADIANS($A$43))*COS(RADIANS($BN$47))*COS(RADIANS(BQ45))+SIN(RADIANS($A$43))*SIN(RADIANS($BN$47)))) -> 5.01188428 | BQ45: 90 | BR45: =IF(COS(RADIANS(BQ45))>=((TAN(RADIANS($BN$47)))/(TAN(RADIANS($A$43)))),BS45,IF(BO45<12,BT45,BU45)) -> 97.98022277 | BS45: =DEGREES(ASIN(COS(RADIANS($BN$47))*SIN(RADIANS(BQ45))/COS(RADIANS(BP45)))) -> 82.01977723 | BT45: =180-BS45 -> 97.98022277 | BU45: =180-BS45-360 -> -262.0197772 | BV45: =ABS(1/SIN(RADIANS(BP45))) -> 11.44657573 | BW45: =IF(BP45>0,$BN$51*EXP(-$BN$53*BV45),0) -> 150.8264151 | BX45: =COS(RADIANS(BP45))*COS(RADIANS(BR45-Insolation!$L$6))*SIN(RADIANS(0))+(SIN(RADIANS(BP45))*COS(RADIANS(0))) -> 0.08736237139 | BY45: =COS(RADIANS(BP45))*COS(RADIANS(BR45-Insolation!$L$6))*SIN(RADIANS(Insolation!$L$7))+SIN(RADIANS(BP45))*COS(RADIANS(Insolation!$L$7)) -> -1.804112415e-16 | BZ45: =BW45*BX45 -> 13.17655329 | CA45: =$BN$55*BW45 -> 14.84713993 | CB45: =IF(BY45<0,0,BW45*BY45) -> 0 | CC45: =$BN$55*BW45*((1+COS(RADIANS(Insolation!$L$7)))/2) -> 13.69981462 | CD45: =BW45*COS(RADIANS($BN$47)) -> 148.7947341 | CE45: =$BN$55*BW45*((1+COS(RADIANS(90-BP45+$BN$47)))/2) -> 6.853652172 | CF45: =BW45 -> 150.8264151 | CG45: =$BN$55*BW45*((1+COS(RADIANS(90-BP45)))/2) -> 8.072110643 | CI45: =F41 -> 135 | CJ45: 6 | CK45: =DEGREES(ASIN(COS(RADIANS($A$43))*COS(RADIANS($CI$47))*COS(RADIANS(CL45))+SIN(RADIANS($A$43))*SIN(RADIANS($CI$47)))) -> 9.90627664 | CL45: 90 | CM45: =IF(COS(RADIANS(CL45))>=((TAN(RADIANS($CI$47)))/(TAN(RADIANS($A$43)))),CN45,IF(CJ45<12,CO45,CP45)) -> 106.0495217 | CN45: =DEGREES(ASIN(COS(RADIANS($CI$47))*SIN(RADIANS(CL45))/COS(RADIANS(CK45)))) -> 73.95047831 | CO45: =180-CN45 -> 106.0495217 | CP45: =180-CN45-360 -> -253.9504783 | CQ45: =ABS(1/SIN(RADIANS(CK45))) -> 5.812702539 | CR45: =IF(CK45>0,$CI$51*EXP(-$CI$53*CQ45),0) -> 359.7172251 | CS45: =COS(RADIANS(CK45))*COS(RADIANS(CM45-Insolation!$L$6))*SIN(RADIANS(0))+(SIN(RADIANS(CK45))*COS(RADIANS(0))) -> 0.172037016 | CT45: =COS(RADIANS(CK45))*COS(RADIANS(CM45-Insolation!$L$6))*SIN(RADIANS(Insolation!$L$7))+SIN(RADIANS(CK45))*COS(RADIANS(Insolation!$L$7)) -> 0 | CU45: =CR45*CS45 -> 61.88467802 | CV45: =$CI$55*CR45 -> 42.32723171 | CW45: =IF(CT45<0,0,CR45*CT45) -> 0 | CX45: =$CI$55*CR45*((1+COS(RADIANS(Insolation!$L$7)))/2) -> 39.05635903 | CY45: =CR45*COS(RADIANS($CI$47)) -> 340.5423946 | CZ45: =$CI$55*CR45*((1+COS(RADIANS(90-CK45+$CI$47)))/2) -> 17.89462481 | DA45: =CR45 -> 359.7172251 | DB45: =$CI$55*CR45*((1+COS(RADIANS(90-CK45)))/2) -> 24.80454118 | DD45: =G41 -> 166 | DE45: 6 | DF45: =DEGREES(ASIN(COS(RADIANS($A$43))*COS(RADIANS($DD$47))*COS(RADIANS(DG45))+SIN(RADIANS($A$43))*SIN(RADIANS($DD$47)))) -> 12.2024918 | DG45: 90 | DH45: =IF(COS(RADIANS(DG45))>=((TAN(RADIANS($DD$47)))/(TAN(RADIANS($A$43)))),DI45,IF(DE45<12,DJ45,DK45)) -> 110.0196999 | DI45: =DEGREES(ASIN(COS(RADIANS($DD$47))*SIN(RADIANS(DG45))/COS(RADIANS(DF45)))) -> 69.98030007 | DJ45: =180-DI45 -> 110.0196999 | DK45: =180-DI45-360 -> -249.9803001 | DL45: =ABS(1/SIN(RADIANS(DF45))) -> 4.731100695 | DM45: =IF(DF45>0,$DD$51*EXP(-$DD$53*DL45),0) -> 411.2204009 | DN45: =COS(RADIANS(DF45))*COS(RADIANS(DH45-Insolation!$L$6))*SIN(RADIANS(0))+(SIN(RADIANS(DF45))*COS(RADIANS(0))) -> 0.2113673043 | DO45: =COS(RADIANS(DF45))*COS(RADIANS(DH45-Insolation!$L$6))*SIN(RADIANS(Insolation!$L$7))+SIN(RADIANS(DF45))*COS(RADIANS(Insolation!$L$7)) -> 0 | DP45: =DM45*DN45 -> 86.91854759 | DQ45: =$DD$55*DM45 -> 53.98524143 | DR45: =IF(DO45<0,0,DM45*DO45) -> 0 | DS45: =$DD$55*DM45*((1+COS(RADIANS(Insolation!$L$7)))/2) -> 49.81348617 | DT45: =DM45*COS(RADIANS($DD$47)) -> 377.642969 | DU45: =$DD$55*DM45*((1+COS(RADIANS(90-DF45+$DD$47)))/2) -> 21.7904387 | DV45: =DM45 -> 411.2204009 | DW45: =$DD$55*DM45*((1+COS(RADIANS(90-DF45)))/2) -> 32.69797819
C46: Declination | D46: 6.5 | E46: -5.215122573 | F46: 82.5 | G46: 68.08717047 | H46: 68.08717047 | I46: 111.9128295 | J46: -248.0871705 | K46: 11.00165328 | L46: 0 | M46: =COS(RADIANS(E46))*COS(RADIANS(G46-Insolation!$L$6))*SIN(RADIANS(0))+(SIN(RADIANS(E46))*COS(RADIANS(0))) -> -0.09089542946 | N46: =COS(RADIANS(E46))*COS(RADIANS(G46-Insolation!$L$6))*SIN(RADIANS(Insolation!$L$7))+SIN(RADIANS(E46))*COS(RADIANS(Insolation!$L$7)) -> 0.1216353522 | O46: 0 | P46: 0 | Q46: 0 | R46: =$C$55*L46*((1+COS(RADIANS(Insolation!$L$7)))/2) -> 0 | S46: 0 | T46: 0 | U46: 0 | V46: 0 | X46: Declination | Y46: 6.5 | Z46: -0.8802817993 | AA46: 82.5 | AB46: 74.7986319 | AC46: 74.7986319 | AD46: 105.2013681 | AE46: -254.7986319 | AF46: 65.09055816 | AG46: 0 | AH46: =COS(RADIANS(Z46))*COS(RADIANS(AB46-Insolation!$L$6))*SIN(RADIANS(0))+(SIN(RADIANS(Z46))*COS(RADIANS(0))) -> -0.01536321132 | AI46: =COS(RADIANS(Z46))*COS(RADIANS(AB46-Insolation!$L$6))*SIN(RADIANS(Insolation!$L$7))+SIN(RADIANS(Z46))*COS(RADIANS(Insolation!$L$7)) -> 0.1270310134 | AJ46: 0 | AK46: 0 | AL46: 0 | AM46: =$X$55*AG46*((1+COS(RADIANS(Insolation!$L$7)))/2) -> 0 | AN46: 0 | AO46: 0 | AP46: 0 | AQ46: 0 | AS46: Declination | AT46: 6.5 | AU46: 4.81595251 | AV46: 82.5 | AW46: 83.59265699 | AX46: 83.59265699 | AY46: 96.40734301 | AZ46: -263.592657 | BA46: 11.91110209 | BB46: 178.413613 | BC46: =COS(RADIANS(AU46))*COS(RADIANS(AW46-Insolation!$L$6))*SIN(RADIANS(0))+(SIN(RADIANS(AU46))*COS(RADIANS(0))) -> 0.08395528743 | BD46: =COS(RADIANS(AU46))*COS(RADIANS(AW46-Insolation!$L$6))*SIN(RADIANS(Insolation!$L$7))+SIN(RADIANS(AU46))*COS(RADIANS(Insolation!$L$7)) -> 0.1303682539 | BE46: 14.97876616 | BF46: 13.86077095 | BG46: 23.25947119 | BH46: =$AS$55*BB46*((1+COS(RADIANS(Insolation!$L$7)))/2) -> 12.78966813 | BI46: 178.1977303 | BJ46: 7.851149171 | BK46: 178.413613 | BL46: 7.51222798 | BN46: Declination | BO46: 6.5 | BP46: 11.31652885 | BQ46: 82.5 | BR46: 94.06623441 | BS46: 85.93376559 | BT46: 94.06623441 | BU46: -265.9337656 | BV46: 5.096086025 | BW46: 464.1565861 | BX46: =COS(RADIANS(BP46))*COS(RADIANS(BR46-Insolation!$L$6))*SIN(RADIANS(0))+(SIN(RADIANS(BP46))*COS(RADIANS(0))) -> 0.1962290266 | BY46: =COS(RADIANS(BP46))*COS(RADIANS(BR46-Insolation!$L$6))*SIN(RADIANS(Insolation!$L$7))+SIN(RADIANS(BP46))*COS(RADIANS(Insolation!$L$7)) -> 0.1287679618 | BZ46: 91.08099506 | CA46: 45.69092078 | CB46: 59.76849756 | CC46: =$BN$55*BW46*((1+COS(RADIANS(Insolation!$L$7)))/2) -> 42.16011617 | CD46: 457.9042454 | CE46: 23.60355747 | CF46: 464.1565861 | CG46: 27.32840284 | CI46: Declination | CJ46: 6.5 | CK46: 16.05188685 | CL46: 82.5 | CM46: 102.3994074 | CN46: 77.60059262 | CO46: 102.3994074 | CP46: -257.6005926 | CQ46: 3.616535059 | CR46: 550.6015442 | CS46: =COS(RADIANS(CK46))*COS(RADIANS(CM46-Insolation!$L$6))*SIN(RADIANS(0))+(SIN(RADIANS(CK46))*COS(RADIANS(0))) -> 0.2765077577 | CT46: =COS(RADIANS(CK46))*COS(RADIANS(CM46-Insolation!$L$6))*SIN(RADIANS(Insolation!$L$7))+SIN(RADIANS(CK46))*COS(RADIANS(Insolation!$L$7)) -> 0.1235684559 | CU46: 152.2455984 | CV46: 64.78822119 | CW46: 68.03698262 | CX46: =$CI$55*CR46*((1+COS(RADIANS(Insolation!$L$7)))/2) -> 59.78165651 | CY46: 521.25157 | CZ46: =$CI$55*CR46*((1+COS(RADIANS(90-CK46+$CI$47)))/2) -> 30.84553182 | DA46: 550.6015442 | DB46: 41.35133348 | DD46: Declination | DE46: 6.5 | DF46: 18.22261009 | DG46: 82.5 | DH46: 106.5516193 | DI46: 73.44838073 | DJ46: 106.5516193 | DK46: -253.4483807 | DL46: 3.197853369 | DM46: 563.737117 | DN46: =COS(RADIANS(DF46))*COS(RADIANS(DH46-Insolation!$L$6))*SIN(RADIANS(0))+(SIN(RADIANS(DF46))*COS(RADIANS(0))) -> 0.3127097727 | DO46: =COS(RADIANS(DF46))*COS(RADIANS(DH46-Insolation!$L$6))*SIN(RADIANS(Insolation!$L$7))+SIN(RADIANS(DF46))*COS(RADIANS(Insolation!$L$7)) -> 0.1198683204 | DP46: 176.2861057 | DQ46: 74.00772019 | DR46: 67.57422136 | DS46: =$DD$55*DM46*((1+COS(RADIANS(Insolation!$L$7)))/2) -> 68.28871093 | DT46: 517.7062183 | DU46: 33.71970303 | DV46: 563.737117 | DW46: 48.57532877
C47: =23.45*SIN(RADIANS(360/365*(C45-81))) -> -21.26947391 | D47: 7 | E47: 0.5833621076 | F47: 75 | G47: 64.18148597 | H47: 64.18148597 | I47: 115.818514 | J47: -244.181486 | K47: 98.2181885 | L47: 0.001422878496 | M47: =COS(RADIANS(E47))*COS(RADIANS(G47-Insolation!$L$6))*SIN(RADIANS(0))+(SIN(RADIANS(E47))*COS(RADIANS(0))) -> 0.0101814136 | N47: =COS(RADIANS(E47))*COS(RADIANS(G47-Insolation!$L$6))*SIN(RADIANS(Insolation!$L$7))+SIN(RADIANS(E47))*COS(RADIANS(Insolation!$L$7)) -> 0.2411894897 | O47: 1.448691447e-05 | P47: 7.858740592e-05 | Q47: 0.0003431833384 | R47: =$C$55*L47*((1+COS(RADIANS(Insolation!$L$7)))/2) -> 7.251449756e-05 | S47: 0.001325958599 | T47: 5.391975802e-05 | U47: 0.001422878496 | V47: 3.96937684e-05 | X47: =23.45*SIN(RADIANS(360/365*(X45-81))) -> -13.28915619 | Y47: 7 | Z47: 5.174959525 | AA47: 75 | AB47: 70.71858259 | AC47: 70.71858259 | AD47: 109.2814174 | AE47: -250.7185826 | AF47: 11.0868025 | AG47: 240.6605496 | AH47: =COS(RADIANS(Z47))*COS(RADIANS(AB47-Insolation!$L$6))*SIN(RADIANS(0))+(SIN(RADIANS(Z47))*COS(RADIANS(0))) -> 0.0901973315 | AI47: =COS(RADIANS(Z47))*COS(RADIANS(AB47-Insolation!$L$6))*SIN(RADIANS(Insolation!$L$7))+SIN(RADIANS(Z47))*COS(RADIANS(Insolation!$L$7)) -> 0.2518884908 | AJ47: 21.70693937 | AK47: 15.14851221 | AL47: 60.61962263 | AM47: =$X$55*AG47*((1+COS(RADIANS(Insolation!$L$7)))/2) -> 13.9778981 | AN47: 234.2162363 | AO47: 9.973103757 | AP47: 240.6605496 | AQ47: 8.257433795 | AS47: =23.45*SIN(RADIANS(360/365*(AS45-81))) -> -2.818878653 | AT47: 7 | AU47: 11.08639894 | AV47: 75 | AW47: 79.45246757 | AX47: 79.45246757 | AY47: 100.5475324 | AZ47: -259.4524676 | BA47: 5.200504987 | BB47: 518.065679 | BC47: =COS(RADIANS(AU47))*COS(RADIANS(AW47-Insolation!$L$6))*SIN(RADIANS(0))+(SIN(RADIANS(AU47))*COS(RADIANS(0))) -> 0.1922890186 | BD47: =COS(RADIANS(AU47))*COS(RADIANS(AW47-Insolation!$L$6))*SIN(RADIANS(Insolation!$L$7))+SIN(RADIANS(AU47))*COS(RADIANS(Insolation!$L$7)) -> 0.2585058708 | BE47: 99.61834097 | BF47: 40.24799226 | BG47: 133.9230195 | BH47: =$AS$55*BB47*((1+COS(RADIANS(Insolation!$L$7)))/2) -> 37.13779456 | BI47: 517.438813 | BJ47: 24.96014367 | BK47: 518.065679 | BL47: 23.99361959 | BN47: =23.45*SIN(RADIANS(360/365*(BN45-81))) -> 9.414893347 | BO47: 7 | BP47: 17.65188507 | BQ47: 75 | BR47: 90.11653778 | BS47: 89.88346222 | BT47: 90.11653778 | BU47: -269.8834622 | BV47: 3.297794725 | BW47: 638.1257045 | BX47: =COS(RADIANS(BP47))*COS(RADIANS(BR47-Insolation!$L$6))*SIN(RADIANS(0))+(SIN(RADIANS(BP47))*COS(RADIANS(0))) -> 0.3032329431 | BY47: =COS(RADIANS(BP47))*COS(RADIANS(BR47-Insolation!$L$6))*SIN(RADIANS(Insolation!$L$7))+SIN(RADIANS(BP47))*COS(RADIANS(Insolation!$L$7)) -> 0.2553326681 | BZ47: 193.5007354 | CA47: 62.81619584 | CB47: 162.9343387 | CC47: =$BN$55*BW47*((1+COS(RADIANS(Insolation!$L$7)))/2) -> 57.96202109 | CD47: =BW47*COS(RADIANS($BN$47)) -> 629.529943 | CE47: 35.90787111 | CF47: 638.1257045 | CG47: 40.93206789 | CI47: =23.45*SIN(RADIANS(360/365*(CI45-81))) -> 18.79191752 | CJ47: 7 | CK47: 22.28357886 | CL47: 75 | CM47: 98.7955737 | CN47: 81.2044263 | CO47: 98.7955737 | CP47: -261.2044263 | CQ47: 2.63719356 | CR47: 665.7016701 | CS47: =COS(RADIANS(CK47))*COS(RADIANS(CM47-Insolation!$L$6))*SIN(RADIANS(0))+(SIN(RADIANS(CK47))*COS(RADIANS(0))) -> 0.379190976 | CT47: =COS(RADIANS(CK47))*COS(RADIANS(CM47-Insolation!$L$6))*SIN(RADIANS(Insolation!$L$7))+SIN(RADIANS(CK47))*COS(RADIANS(Insolation!$L$7)) -> 0.2450226212 | CU47: 252.428066 | CV47: 78.33183089 | CW47: 163.1119682 | CX47: =$CI$55*CR47*((1+COS(RADIANS(Insolation!$L$7)))/2) -> 72.2786723 | CY47: 630.2162505 | CZ47: 41.55124789 | DA47: 665.7016701 | DB47: 54.01727715 | DD47: =23.45*SIN(RADIANS(360/365*(DD45-81))) -> 23.31440992 | DE47: 7 | DF47: 24.35054665 | DG47: 75 | DH47: 103.1763618 | DI47: 76.82363817 | DJ47: 103.1763618 | DK47: -256.8236382 | DL47: 2.42531107 | DM47: 660.8554466 | DN47: =COS(RADIANS(DF47))*COS(RADIANS(DH47-Insolation!$L$6))*SIN(RADIANS(0))+(SIN(RADIANS(DF47))*COS(RADIANS(0))) -> 0.4123182433 | DO47: =COS(RADIANS(DF47))*COS(RADIANS(DH47-Insolation!$L$6))*SIN(RADIANS(Insolation!$L$7))+SIN(RADIANS(DF47))*COS(RADIANS(Insolation!$L$7)) -> 0.2376856606 | DP47: 272.4827568 | DQ47: 86.75746816 | DR47: 157.0758634 | DS47: =$DD$55*DM47*((1+COS(RADIANS(Insolation!$L$7)))/2) -> 80.05321132 | DT47: 606.8945325 | DU47: 44.16315224 | DV47: 660.8554466 | DW47: 61.26457751
C48: Io | D48: 7.5 | E48: 6.186738196 | F48: 67.5 | G48: 59.99625641 | H48: 59.99625641 | I48: 120.0037436 | J48: -239.9962564 | K48: 9.279085185 | L48: 338.8172605 | M48: =COS(RADIANS(E48))*COS(RADIANS(G48-Insolation!$L$6))*SIN(RADIANS(0))+(SIN(RADIANS(E48))*COS(RADIANS(0))) -> 0.1077692445 | N48: =COS(RADIANS(E48))*COS(RADIANS(G48-Insolation!$L$6))*SIN(RADIANS(Insolation!$L$7))+SIN(RADIANS(E48))*COS(RADIANS(Insolation!$L$7)) -> 0.3566168082 | O48: 36.51408019 | P48: 18.71331225 | Q48: 120.82793 | R48: =$C$55*L48*((1+COS(RADIANS(Insolation!$L$7)))/2) -> 17.26722519 | S48: 315.738597 | T48: 13.67073505 | U48: 338.8172605 | V48: 10.36501589 | X48: Io | Y48: 7.5 | Z48: 11.07618596 | AA48: 67.5 | AB48: 66.37769466 | AC48: 66.37769466 | AD48: 113.6223053 | AE48: -246.3776947 | AF48: 5.205240229 | AG48: 567.8261722 | AH48: =COS(RADIANS(Z48))*COS(RADIANS(AB48-Insolation!$L$6))*SIN(RADIANS(0))+(SIN(RADIANS(Z48))*COS(RADIANS(0))) -> 0.192114092 | AI48: =COS(RADIANS(Z48))*COS(RADIANS(AB48-Insolation!$L$6))*SIN(RADIANS(Insolation!$L$7))+SIN(RADIANS(Z48))*COS(RADIANS(Insolation!$L$7)) -> 0.3724360864 | AJ48: 109.0874095 | AK48: 35.74213439 | AL48: 211.4789574 | AM48: =$X$55*AG48*((1+COS(RADIANS(Insolation!$L$7)))/2) -> 32.98013068 | AN48: 552.6211471 | AO48: 25.24383829 | AP48: 567.8261722 | AQ48: 21.30435104 | AS48: Io | AT48: 7.5 | AU48: 17.27049918 | AV48: 67.5 | AW48: 75.08968604 | AX48: 75.08968604 | AY48: 104.910314 | AZ48: -255.089686 | BA48: 3.368327547 | BB48: 693.0822253 | BC48: =COS(RADIANS(AU48))*COS(RADIANS(AW48-Insolation!$L$6))*SIN(RADIANS(0))+(SIN(RADIANS(AU48))*COS(RADIANS(0))) -> 0.2968832413 | BD48: =COS(RADIANS(AU48))*COS(RADIANS(AW48-Insolation!$L$6))*SIN(RADIANS(Insolation!$L$7))+SIN(RADIANS(AU48))*COS(RADIANS(Insolation!$L$7)) -> 0.3822203806 | BE48: 205.7644975 | BF48: 53.84484857 | BG48: 264.9101519 | BH48: =$AS$55*BB48*((1+COS(RADIANS(Insolation!$L$7)))/2) -> 49.68394229 | BI48: 692.2435871 | BJ48: 36.16988903 | BK48: 693.0822253 | BL48: 34.91524087 | BN48: Io | BO48: 7.5 | BP48: 23.9878716 | BQ48: 67.5 | BR48: 86.02579383 | BS48: 86.02579383 | BT48: 93.97420617 | BU48: -266.0257938 | BV48: 2.459762865 | BW48: 740.1658479 | BX48: =COS(RADIANS(BP48))*COS(RADIANS(BR48-Insolation!$L$6))*SIN(RADIANS(0))+(SIN(RADIANS(BP48))*COS(RADIANS(0))) -> 0.4065432543 | BY48: =COS(RADIANS(BP48))*COS(RADIANS(BR48-Insolation!$L$6))*SIN(RADIANS(Insolation!$L$7))+SIN(RADIANS(BP48))*COS(RADIANS(Insolation!$L$7)) -> 0.3775285616 | BZ48: 300.9094325 | CA48: 72.86088387 | CB48: 279.4337479 | CC48: =$BN$55*BW48*((1+COS(RADIANS(Insolation!$L$7)))/2) -> 67.23049735 | CD48: 730.1955723 | CE48: 45.59681257 | CF48: 740.1658479 | CG48: 51.24099235 | CI48: Io | CJ48: 7.5 | CK48: 28.57637093 | CL48: 67.5 | CM48: 95.15242129 | CN48: 84.84757871 | CO48: 95.15242129 | CP48: -264.8475787 | CQ48: 2.090608072 | CR48: 740.1025709 | CS48: =COS(RADIANS(CK48))*COS(RADIANS(CM48-Insolation!$L$6))*SIN(RADIANS(0))+(SIN(RADIANS(CK48))*COS(RADIANS(0))) -> 0.4783297327 | CT48: =COS(RADIANS(CK48))*COS(RADIANS(CM48-Insolation!$L$6))*SIN(RADIANS(Insolation!$L$7))+SIN(RADIANS(CK48))*COS(RADIANS(Insolation!$L$7)) -> 0.3622843816 | CU48: 354.0130649 | CV48: 87.0864413 | CW48: 268.1276022 | CX48: =$CI$55*CR48*((1+COS(RADIANS(Insolation!$L$7)))/2) -> 80.35676278 | CY48: 700.6511897 | CZ48: 50.94304758 | DA48: 740.1025709 | DB48: 64.37123774 | DD48: Io | DE48: 7.5 | DF48: 30.56319437 | DG48: 67.5 | DH48: 99.82427211 | DI48: 80.17572789 | DJ48: 99.82427211 | DK48: -260.1757279 | DL48: 1.966613248 | DM48: 726.2614922 | DN48: =COS(RADIANS(DF48))*COS(RADIANS(DH48-Insolation!$L$6))*SIN(RADIANS(0))+(SIN(RADIANS(DF48))*COS(RADIANS(0))) -> 0.5084883877 | DO48: =COS(RADIANS(DF48))*COS(RADIANS(DH48-Insolation!$L$6))*SIN(RADIANS(Insolation!$L$7))+SIN(RADIANS(DF48))*COS(RADIANS(Insolation!$L$7)) -> 0.3514361332 | DP48: 369.2955352 | DQ48: 95.34400996 | DR48: 255.2345305 | DS48: =$DD$55*DM48*((1+COS(RADIANS(Insolation!$L$7)))/2) -> 87.97622083 | DT48: 666.9599699 | DU48: 53.68715957 | DV48: 726.2614922 | DW48: 71.91266594
C49: =1370*(1+0.034*COS(RADIANS(360*C45)/365)) -> 1415.035771 | D49: 8 | E49: 11.5485558 | F49: 60 | G49: 55.45807114 | H49: 55.45807114 | I49: 124.5419289 | J49: -235.4580711 | K49: 4.995047201 | L49: 615.1149507 | M49: =COS(RADIANS(E49))*COS(RADIANS(G49-Insolation!$L$6))*SIN(RADIANS(0))+(SIN(RADIANS(E49))*COS(RADIANS(0))) -> 0.2001983084 | N49: =COS(RADIANS(E49))*COS(RADIANS(G49-Insolation!$L$6))*SIN(RADIANS(Insolation!$L$7))+SIN(RADIANS(E49))*COS(RADIANS(Insolation!$L$7)) -> 0.4659423143 | O49: 123.1449726 | P49: 33.97358837 | Q49: 286.6080837 | R49: =$C$55*L49*((1+COS(RADIANS(Insolation!$L$7)))/2) -> 31.34825055 | S49: 573.2161674 | T49: 26.19317274 | U49: 615.1149507 | V49: 20.38752164 | X49: =1370*(1+0.034*COS(RADIANS(360*X45)/365)) -> 1402.72373 | Y49: 8 | Z49: 16.77674657 | AA49: 60 | AB49: 61.67904911 | AC49: 61.67904911 | AD49: 118.3209509 | AE49: -241.6790491 | AF49: 3.46448432 | AG49: 732.0748578 | AH49: =COS(RADIANS(Z49))*COS(RADIANS(AB49-Insolation!$L$6))*SIN(RADIANS(0))+(SIN(RADIANS(Z49))*COS(RADIANS(0))) -> 0.288643246 | AI49: =COS(RADIANS(Z49))*COS(RADIANS(AB49-Insolation!$L$6))*SIN(RADIANS(Insolation!$L$7))+SIN(RADIANS(Z49))*COS(RADIANS(Insolation!$L$7)) -> 0.4866111973 | AJ49: 211.3084633 | AK49: 46.0808593 | AL49: 356.2358231 | AM49: =$X$55*AG49*((1+COS(RADIANS(Insolation!$L$7)))/2) -> 42.51992187 | AN49: 712.4716461 | AO49: 34.58358788 | AP49: 732.0748578 | AQ49: 29.69089406 | AS49: =1370*(1+0.034*COS(RADIANS(360*AS45)/365)) -> 1383.629324 | AT49: 8 | AU49: 23.32513145 | AV49: 60 | AW49: 70.38359564 | AX49: 70.38359564 | AY49: 109.6164044 | AZ49: -250.3835956 | BA49: 2.52558213 | BB49: 792.3642188 | BC49: =COS(RADIANS(AU49))*COS(RADIANS(AW49-Insolation!$L$6))*SIN(RADIANS(0))+(SIN(RADIANS(AU49))*COS(RADIANS(0))) -> 0.3959483194 | BD49: =COS(RADIANS(AU49))*COS(RADIANS(AW49-Insolation!$L$6))*SIN(RADIANS(Insolation!$L$7))+SIN(RADIANS(AU49))*COS(RADIANS(Insolation!$L$7)) -> 0.4993949937 | BE49: 313.7352808 | BF49: 61.55796502 | BG49: 395.7027241 | BH49: =$AS$55*BB49*((1+COS(RADIANS(Insolation!$L$7)))/2) -> 56.80102113 | BI49: 791.4054481 | BJ49: 44.34108968 | BK49: 792.3642188 | BL49: 42.96586891 | BN49: =1370*(1+0.034*COS(RADIANS(360*BN45)/365)) -> 1359.077391 | BO49: 8 | BP49: 30.29101966 | BQ49: 60 | BR49: 81.66759071 | BS49: 81.66759071 | BT49: 98.33240929 | BU49: -261.6675907 | BV49: 1.982583826 | BW49: 805.4000848 | BX49: =COS(RADIANS(BP49))*COS(RADIANS(BR49-Insolation!$L$6))*SIN(RADIANS(0))+(SIN(RADIANS(BP49))*COS(RADIANS(0))) -> 0.504392292 | BY49: =COS(RADIANS(BP49))*COS(RADIANS(BR49-Insolation!$L$6))*SIN(RADIANS(Insolation!$L$7))+SIN(RADIANS(BP49))*COS(RADIANS(Insolation!$L$7)) -> 0.4932648368 | BZ49: 406.2375948 | CA49: 79.28245031 | CB49: 397.2755414 | CC49: =$BN$55*BW49*((1+COS(RADIANS(Insolation!$L$7)))/2) -> 73.1558318 | CD49: 794.5510828 | CE49: 53.76732457 | CF49: 805.4000848 | CG49: 59.63595357 | CI49: =1370*(1+0.034*COS(RADIANS(360*CI45)/365)) -> 1338.143033 | CJ49: 8 | CK49: 34.90571911 | CL49: 60 | CM49: 91.36609079 | CN49: 88.63390921 | CO49: 91.36609079 | CP49: -268.6339092 | CQ49: 1.747555977 | CR49: 790.9890609 | CS49: =COS(RADIANS(CK49))*COS(RADIANS(CM49-Insolation!$L$6))*SIN(RADIANS(0))+(SIN(RADIANS(CK49))*COS(RADIANS(0))) -> 0.572227736 | CT49: =COS(RADIANS(CK49))*COS(RADIANS(CM49-Insolation!$L$6))*SIN(RADIANS(Insolation!$L$7))+SIN(RADIANS(CK49))*COS(RADIANS(Insolation!$L$7)) -> 0.4733473557 | CU49: 452.6258795 | CV49: 93.07415639 | CW49: 374.4125804 | CX49: =$CI$55*CR49*((1+COS(RADIANS(Insolation!$L$7)))/2) -> 85.88177212 | CY49: 748.8251608 | CZ49: 59.45326187 | DA49: 790.9890609 | DB49: 73.16688509 | DD49: =1370*(1+0.034*COS(RADIANS(360*DD45)/365)) -> 1325.286335 | DE49: 8 | DF49: 36.83944442 | DG49: 60 | DH49: 96.41246048 | DI49: 83.58753952 | DJ49: 96.41246048 | DK49: -263.5875395 | DL49: 1.667848871 | DM49: 772.3050028 | DN49: =COS(RADIANS(DF49))*COS(RADIANS(DH49-Insolation!$L$6))*SIN(RADIANS(0))+(SIN(RADIANS(DF49))*COS(RADIANS(0))) -> 0.599574708 | DO49: =COS(RADIANS(DF49))*COS(RADIANS(DH49-Insolation!$L$6))*SIN(RADIANS(Insolation!$L$7))+SIN(RADIANS(DF49))*COS(RADIANS(Insolation!$L$7)) -> 0.4591734362 | DP49: 463.0545465 | DQ49: 101.3886275 | DR49: 354.6219419 | DS49: =$DD$55*DM49*((1+COS(RADIANS(Insolation!$L$7)))/2) -> 93.5537354 | DT49: 709.2438838 | DU49: 62.5502032 | DV49: 772.3050028 | DW49: 81.08934209
C50: A | D50: 8.5 | E50: 16.6118832 | F50: 52.5 | G50: 50.49006167 | H50: 50.49006167 | I50: 129.5099383 | J50: -230.4900617 | K50: 3.49788408 | L50: 757.6471846 | M50: =COS(RADIANS(E50))*COS(RADIANS(G50-Insolation!$L$6))*SIN(RADIANS(0))+(SIN(RADIANS(E50))*COS(RADIANS(0))) -> 0.2858871184 | N50: =COS(RADIANS(E50))*COS(RADIANS(G50-Insolation!$L$6))*SIN(RADIANS(Insolation!$L$7))+SIN(RADIANS(E50))*COS(RADIANS(Insolation!$L$7)) -> 0.5672954182 | O50: 216.6015703 | P50: 41.84582662 | Q50: 429.8097765 | R50: =$C$55*L50*((1+COS(RADIANS(Insolation!$L$7)))/2) -> 38.61215492 | S50: 706.0397653 | T50: 33.77017662 | U50: 757.6471846 | V50: 26.9045047 | X50: A | Y50: 8.5 | Z50: 22.21809371 | AA50: 52.5 | AB50: 56.51552502 | AC50: 56.51552502 | AD50: 123.484475 | AE50: -236.515525 | AF50: 2.644571077 | AG50: 825.1383324 | AH50: =COS(RADIANS(Z50))*COS(RADIANS(AB50-Insolation!$L$6))*SIN(RADIANS(0))+(SIN(RADIANS(Z50))*COS(RADIANS(0))) -> 0.3781331531 | AI50: =COS(RADIANS(Z50))*COS(RADIANS(AB50-Insolation!$L$6))*SIN(RADIANS(Insolation!$L$7))+SIN(RADIANS(Z50))*COS(RADIANS(Insolation!$L$7)) -> 0.5924602557 | AJ50: 312.0121594 | AK50: 51.9387915 | AL50: 488.8616674 | AM50: =$X$55*AG50*((1+COS(RADIANS(Insolation!$L$7)))/2) -> 47.92517739 | AN50: 803.0431037 | AO50: 41.0525757 | AP50: 825.1383324 | AQ50: 35.78928525 | AS50: A | AT50: 8.5 | AU50: 29.19537684 | AV50: 52.5 | AW50: 65.19040017 | AX50: 65.19040017 | AY50: 114.8095998 | AZ50: -245.1904002 | BA50: 2.050065796 | BB50: 854.535704 | BC50: =COS(RADIANS(AU50))*COS(RADIANS(AW50-Insolation!$L$6))*SIN(RADIANS(0))+(SIN(RADIANS(AU50))*COS(RADIANS(0))) -> 0.487789222 | BD50: =COS(RADIANS(AU50))*COS(RADIANS(AW50-Insolation!$L$6))*SIN(RADIANS(Insolation!$L$7))+SIN(RADIANS(AU50))*COS(RADIANS(Insolation!$L$7)) -> 0.60802482 | BE50: 416.8333063 | BF50: 66.38800406 | BG50: 519.5789176 | BH50: =$AS$55*BB50*((1+COS(RADIANS(Insolation!$L$7)))/2) -> 61.25781481 | BI50: 853.501705 | BJ50: 50.79114651 | BK50: 854.535704 | BL50: 49.38567845 | BN50: A | BO50: 8.5 | BP50: 36.52017701 | BQ50: 52.5 | BR50: 76.87907191 | BS50: 76.87907191 | BT50: 103.1209281 | BU50: -256.8790719 | BV50: 1.680373382 | BW50: 849.6572663 | BX50: =COS(RADIANS(BP50))*COS(RADIANS(BR50-Insolation!$L$6))*SIN(RADIANS(0))+(SIN(RADIANS(BP50))*COS(RADIANS(0))) -> 0.5951058323 | BY50: =COS(RADIANS(BP50))*COS(RADIANS(BR50-Insolation!$L$6))*SIN(RADIANS(Insolation!$L$7))+SIN(RADIANS(BP50))*COS(RADIANS(Insolation!$L$7)) -> 0.6005612139 | BZ50: 505.6359946 | CA50: 83.63906493 | CB50: 510.2711992 | CC50: =$BN$55*BW50*((1+COS(RADIANS(Insolation!$L$7)))/2) -> 77.17578534 | CD50: 838.2121056 | CE50: 60.87364051 | CF50: 849.6572663 | CG50: 66.70658014 | CI50: A | CJ50: 8.5 | CK50: 41.24486002 | CL50: 52.5 | CM50: 87.29864032 | CN50: 87.29864032 | CO50: 92.70135968 | CP50: -267.2986403 | CQ50: 1.516809974 | CR50: 827.1703741 | CS50: =COS(RADIANS(CK50))*COS(RADIANS(CM50-Insolation!$L$6))*SIN(RADIANS(0))+(SIN(RADIANS(CK50))*COS(RADIANS(0))) -> 0.6592783652 | CT50: =COS(RADIANS(CK50))*COS(RADIANS(CM50-Insolation!$L$6))*SIN(RADIANS(Insolation!$L$7))+SIN(RADIANS(CK50))*COS(RADIANS(Insolation!$L$7)) -> 0.5763112254 | CU50: 545.335532 | CV50: 97.33154169 | CW50: 476.7075719 | CX50: =$CI$55*CR50*((1+COS(RADIANS(Insolation!$L$7)))/2) -> 89.81016436 | CY50: 783.0778186 | CZ50: 67.2524217 | DA50: 827.1703741 | DB50: 80.75006069 | DD50: A | DE50: 8.5 | DF50: 43.15848162 | DG50: 52.5 | DH50: 92.83204183 | DI50: 87.16795817 | DJ50: 92.83204183 | DK50: -267.1679582 | DL50: 1.461948353 | DM50: 805.7251304 | DN50: =COS(RADIANS(DF50))*COS(RADIANS(DH50-Insolation!$L$6))*SIN(RADIANS(0))+(SIN(RADIANS(DF50))*COS(RADIANS(0))) -> 0.684018692 | DO50: =COS(RADIANS(DF50))*COS(RADIANS(DH50-Insolation!$L$6))*SIN(RADIANS(Insolation!$L$7))+SIN(RADIANS(DF50))*COS(RADIANS(Insolation!$L$7)) -> 0.5590541544 | DP50: 551.1310498 | DQ50: 105.7760403 | DR50: 450.4439814 | DS50: =$DD$55*DM50*((1+COS(RADIANS(Insolation!$L$7)))/2) -> 97.60210717 | DT50: 739.9351535 | DU50: 70.84146902 | DV50: 805.7251304 | DW50: 89.0644145
C51: =1160+75*SIN(RADIANS((360/365)*(C45-275))) -> 1232.908865 | D51: 9 | E51: 21.30727428 | F51: 45 | G51: 45.0147327 | H51: 45.0147327 | I51: 134.9852673 | J51: -225.0147327 | K51: 2.752019524 | L51: 840.539492 | M51: =COS(RADIANS(E51))*COS(RADIANS(G51-Insolation!$L$6))*SIN(RADIANS(0))+(SIN(RADIANS(E51))*COS(RADIANS(0))) -> 0.3633695151 | N51: =COS(RADIANS(E51))*COS(RADIANS(G51-Insolation!$L$6))*SIN(RADIANS(Insolation!$L$7))+SIN(RADIANS(E51))*COS(RADIANS(Insolation!$L$7)) -> 0.6589419402 | O51: 305.4264276 | P51: 46.42407516 | Q51: 553.8667236 | R51: =$C$55*L51*((1+COS(RADIANS(Insolation!$L$7)))/2) -> 42.83661543 | S51: 783.2858323 | T51: 38.91677275 | U51: 840.539492 | V51: 31.64658442 | X51: =1160+75*SIN(RADIANS((360/365)*(X45-275))) -> 1213.825769 | Y51: 9 | Z51: 27.32599143 | AA51: 45 | AB51: 50.76984999 | AC51: 50.76984999 | AD51: 129.23015 | AE51: -230.76985 | AF51: 2.178399523 | AG51: 883.2337492 | AH51: =COS(RADIANS(Z51))*COS(RADIANS(AB51-Insolation!$L$6))*SIN(RADIANS(0))+(SIN(RADIANS(Z51))*COS(RADIANS(0))) -> 0.4590526161 | AI51: =COS(RADIANS(Z51))*COS(RADIANS(AB51-Insolation!$L$6))*SIN(RADIANS(Insolation!$L$7))+SIN(RADIANS(Z51))*COS(RADIANS(Insolation!$L$7)) -> 0.6881721548 | AJ51: 405.4507632 | AK51: 55.59563984 | AL51: 607.8168724 | AM51: =$X$55*AG51*((1+COS(RADIANS(Insolation!$L$7)))/2) -> 51.29943968 | AN51: 859.5828644 | AO51: 45.89350373 | AP51: 883.2337492 | AQ51: 40.55848188 | AS51: =1160+75*SIN(RADIANS((360/365)*(AS45-275))) -> 1183.483028 | AT51: 9 | AU51: 34.8084403 | AV51: 45 | AW51: 59.33507136 | AX51: 59.33507136 | AY51: 120.6649286 | AZ51: -239.3350714 | BA51: 1.751821158 | BB51: 895.9954164 | BC51: =COS(RADIANS(AU51))*COS(RADIANS(AW51-Insolation!$L$6))*SIN(RADIANS(0))+(SIN(RADIANS(AU51))*COS(RADIANS(0))) -> 0.5708345258 | BD51: =COS(RADIANS(AU51))*COS(RADIANS(AW51-Insolation!$L$6))*SIN(RADIANS(Insolation!$L$7))+SIN(RADIANS(AU51))*COS(RADIANS(Insolation!$L$7)) -> 0.7062511731 | BE51: 511.4651187 | BF51: 69.60896667 | BG51: 632.7978139 | BH51: =$AS$55*BB51*((1+COS(RADIANS(Insolation!$L$7)))/2) -> 64.2298748 | BI51: 894.9112506 | BJ51: 56.05341613 | BK51: 895.9954164 | BL51: 54.67208407 | BN51: =1160+75*SIN(RADIANS((360/365)*(BN45-275))) -> 1143.985931 | BO51: 9 | BP51: 42.61991173 | BQ51: 45 | BR51: 71.43793424 | BS51: 71.43793424 | BT51: 108.5620658 | BU51: -251.4379342 | BV51: 1.476817493 | BW51: 880.829634 | BX51: =COS(RADIANS(BP51))*COS(RADIANS(BR51-Insolation!$L$6))*SIN(RADIANS(0))+(SIN(RADIANS(BP51))*COS(RADIANS(0))) -> 0.6771317411 | BY51: =COS(RADIANS(BP51))*COS(RADIANS(BR51-Insolation!$L$6))*SIN(RADIANS(Insolation!$L$7))+SIN(RADIANS(BP51))*COS(RADIANS(Insolation!$L$7)) -> 0.6975818221 | BZ51: 596.4377037 | CA51: 86.70762892 | CB51: 614.450741 | CC51: =$BN$55*BW51*((1+COS(RADIANS(Insolation!$L$7)))/2) -> 80.00722345 | CD51: 868.9645714 | CE51: 67.09594616 | CF51: 880.829634 | CG51: 72.71005832 | CI51: =1160+75*SIN(RADIANS((360/365)*(CI45-275))) -> 1109.89521 | CJ51: 9 | CK51: 47.5606581 | CL51: 45 | CM51: 82.75006633 | CN51: 82.75006633 | CO51: 97.24993367 | CP51: -262.7500663 | CQ51: 1.355027945 | CR51: 853.5205651 | CS51: =COS(RADIANS(CK51))*COS(RADIANS(CM51-Insolation!$L$6))*SIN(RADIANS(0))+(SIN(RADIANS(CK51))*COS(RADIANS(0))) -> 0.7379921598 | CT51: =COS(RADIANS(CK51))*COS(RADIANS(CM51-Insolation!$L$6))*SIN(RADIANS(Insolation!$L$7))+SIN(RADIANS(CK51))*COS(RADIANS(Insolation!$L$7)) -> 0.6694142501 | CU51: 629.8914853 | CV51: 100.4321178 | CW51: 571.3588291 | CX51: =$CI$55*CR51*((1+COS(RADIANS(Insolation!$L$7)))/2) -> 92.67114084 | CY51: 808.0234051 | CZ51: 74.38381813 | DA51: 853.5205651 | DB51: 87.27511668 | DD51: =1160+75*SIN(RADIANS((360/365)*(DD45-275))) -> 1088.473925 | DE51: 9 | DF51: 49.49731053 | DG51: 45 | DH51: 88.92440431 | DI51: 88.92440431 | DJ51: 91.07559569 | DK51: -268.9244043 | DL51: 1.315139726 | DM51: 830.433511 | DN51: =COS(RADIANS(DF51))*COS(RADIANS(DH51-Insolation!$L$6))*SIN(RADIANS(0))+(SIN(RADIANS(DF51))*COS(RADIANS(0))) -> 0.7603754796 | DO51: =COS(RADIANS(DF51))*COS(RADIANS(DH51-Insolation!$L$6))*SIN(RADIANS(Insolation!$L$7))+SIN(RADIANS(DF51))*COS(RADIANS(Insolation!$L$7)) -> 0.649369301 | DP51: 631.4412793 | DQ51: 109.0197702 | DR51: 539.2580286 | DS51: =$DD$55*DM51*((1+COS(RADIANS(Insolation!$L$7)))/2) -> 100.5951751 | DT51: 762.6260176 | DU51: 78.56172074 | DV51: 830.433511 | DW51: 95.95786509
C52: k | D52: 9.5 | E52: 25.5513442 | F52: 37.5 | G52: 38.96104014 | H52: 38.96104014 | I52: 141.0389599 | J52: -218.9610401 | K52: 2.318465575 | L52: 892.8295388 | M52: =COS(RADIANS(E52))*COS(RADIANS(G52-Insolation!$L$6))*SIN(RADIANS(0))+(SIN(RADIANS(E52))*COS(RADIANS(0))) -> 0.4313197534 | N52: =COS(RADIANS(E52))*COS(RADIANS(G52-Insolation!$L$6))*SIN(RADIANS(Insolation!$L$7))+SIN(RADIANS(E52))*COS(RADIANS(Insolation!$L$7)) -> 0.7393137829 | O52: 385.0950165 | P52: 49.31212157 | Q52: 660.0811838 | R52: =$C$55*L52*((1+COS(RADIANS(Insolation!$L$7)))/2) -> 45.50148561 | S52: 832.0141232 | T52: 42.635687 | U52: 892.8295388 | V52: 35.29070684 | X52: k | Y52: 9.5 | Z52: 32.0066089 | AA52: 37.5 | AB52: 44.32013085 | AC52: 44.32013085 | AD52: 135.6798691 | AE52: -224.3201309 | AF52: 1.886731648 | AG52: 921.6444337 | AH52: =COS(RADIANS(Z52))*COS(RADIANS(AB52-Insolation!$L$6))*SIN(RADIANS(0))+(SIN(RADIANS(Z52))*COS(RADIANS(0))) -> 0.5300170805 | AI52: =COS(RADIANS(Z52))*COS(RADIANS(AB52-Insolation!$L$6))*SIN(RADIANS(Insolation!$L$7))+SIN(RADIANS(Z52))*COS(RADIANS(Insolation!$L$7)) -> 0.7721092376 | AJ52: 488.4872921 | AK52: 58.01342175 | AL52: 711.6101811 | AM52: =$X$55*AG52*((1+COS(RADIANS(Insolation!$L$7)))/2) -> 53.53038544 | AN52: 896.9650028 | AO52: 49.62315758 | AP52: 921.6444337 | AQ52: 44.38076309 | AS52: k | AT52: 9.5 | AU52: 40.06552832 | AV52: 37.5 | AW52: 52.60644995 | AX52: 52.60644995 | AY52: 127.39355 | AZ52: -232.60645 | BA52: 1.553607291 | BB52: 924.6563323 | BC52: =COS(RADIANS(AU52))*COS(RADIANS(AW52-Insolation!$L$6))*SIN(RADIANS(0))+(SIN(RADIANS(AU52))*COS(RADIANS(0))) -> 0.6436633026 | BD52: =COS(RADIANS(AU52))*COS(RADIANS(AW52-Insolation!$L$6))*SIN(RADIANS(Insolation!$L$7))+SIN(RADIANS(AU52))*COS(RADIANS(Insolation!$L$7)) -> 0.7923933727 | BE52: 595.1673486 | BF52: 71.83560388 | BG52: 732.6915498 | BH52: =$AS$55*BB52*((1+COS(RADIANS(Insolation!$L$7)))/2) -> 66.28444674 | BI52: 923.5374864 | BJ52: 60.36063776 | BK52: 924.6563323 | BL52: 59.03677296 | BN52: k | BO52: 9.5 | BP52: 48.50958263 | BQ52: 37.5 | BR52: 65.02805836 | BS52: 65.02805836 | BT52: 114.9719416 | BU52: -245.0280584 | BV52: 1.334994899 | BW52: 903.2217303 | BX52: =COS(RADIANS(BP52))*COS(RADIANS(BR52-Insolation!$L$6))*SIN(RADIANS(0))+(SIN(RADIANS(BP52))*COS(RADIANS(0))) -> 0.7490665325 | BY52: =COS(RADIANS(BP52))*COS(RADIANS(BR52-Insolation!$L$6))*SIN(RADIANS(Insolation!$L$7))+SIN(RADIANS(BP52))*COS(RADIANS(Insolation!$L$7)) -> 0.7826666119 | BZ52: 676.5731696 | CA52: 88.91187535 | CB52: 706.9214914 | CC52: =$BN$55*BW52*((1+COS(RADIANS(Insolation!$L$7)))/2) -> 82.04113487 | CD52: 891.0550388 | CE52: 72.49002416 | CF52: 903.2217303 | CG52: 77.75639275 | CI52: k | CJ52: 9.5 | CK52: 53.80601447 | CL52: 37.5 | CM52: 77.40530564 | CN52: 77.40530564 | CO52: 102.5946944 | CP52: -257.4053056 | CQ52: 1.239123124 | CR52: 872.9130896 | CS52: =COS(RADIANS(CK52))*COS(RADIANS(CM52-Insolation!$L$6))*SIN(RADIANS(0))+(SIN(RADIANS(CK52))*COS(RADIANS(0))) -> 0.8070223049 | CT52: =COS(RADIANS(CK52))*COS(RADIANS(CM52-Insolation!$L$6))*SIN(RADIANS(Insolation!$L$7))+SIN(RADIANS(CK52))*COS(RADIANS(Insolation!$L$7)) -> 0.7510634115 | CU52: 704.4603336 | CV52: 102.7139988 | CW52: 655.613083 | CX52: =$CI$55*CR52*((1+COS(RADIANS(Insolation!$L$7)))/2) -> 94.77668749 | CY52: 826.3822054 | CZ52: 80.8245138 | DA52: 872.9130896 | DB52: 92.80324339 | DD52: k | DE52: 9.5 | DF52: 55.82630915 | DG52: 37.5 | DH52: 84.43292102 | DI52: 84.43292102 | DJ52: 95.56707898 | DK52: -264.432921 | DL52: 1.208694986 | DM52: 848.8210539 | DN52: =COS(RADIANS(DF52))*COS(RADIANS(DH52-Insolation!$L$6))*SIN(RADIANS(0))+(SIN(RADIANS(DF52))*COS(RADIANS(0))) -> 0.8273385852 | DO52: =COS(RADIANS(DF52))*COS(RADIANS(DH52-Insolation!$L$6))*SIN(RADIANS(Insolation!$L$7))+SIN(RADIANS(DF52))*COS(RADIANS(Insolation!$L$7)) -> 0.7285735588 | DP52: 702.2624099 | DQ52: 111.4336969 | DR52: 618.428576 | DS52: =$DD$55*DM52*((1+COS(RADIANS(Insolation!$L$7)))/2) -> 102.8225636 | DT52: 779.5121601 | DU52: 85.66324784 | DV52: 848.8210539 | DW52: 101.8135471
C53: =0.174+0.035*SIN(RADIANS(360/365*(C45-100))) -> 0.1392023733 | D53: 10 | E53: 29.24697561 | F53: 30 | G53: 32.27733665 | H53: 32.27733665 | I53: 147.7226633 | J53: -212.2773367 | K53: 2.046767886 | L53: 927.2439019 | M53: =COS(RADIANS(E53))*COS(RADIANS(G53-Insolation!$L$6))*SIN(RADIANS(0))+(SIN(RADIANS(E53))*COS(RADIANS(0))) -> 0.4885751857 | N53: =COS(RADIANS(E53))*COS(RADIANS(G53-Insolation!$L$6))*SIN(RADIANS(Insolation!$L$7))+SIN(RADIANS(E53))*COS(RADIANS(Insolation!$L$7)) -> 0.8070357618 | O53: 453.0283615 | P53: 51.21287103 | Q53: 748.3189887 | R53: =$C$55*L53*((1+COS(RADIANS(Insolation!$L$7)))/2) -> 47.25535304 | S53: 864.0843391 | T53: 45.369666 | U53: 927.2439019 | V53: 38.1171045 | X53: =0.174+0.035*SIN(RADIANS(360/365*(X45-100))) -> 0.1459523619 | Y53: 10 | Z53: 36.14369133 | AA53: 30 | AB53: 37.05521483 | AC53: 37.05521483 | AD53: 142.9447852 | AE53: -217.0552148 | AF53: 1.695454567 | AG53: 947.7368167 | AH53: =COS(RADIANS(Z53))*COS(RADIANS(AB53-Insolation!$L$6))*SIN(RADIANS(0))+(SIN(RADIANS(Z53))*COS(RADIANS(0))) -> 0.5898123248 | AI53: =COS(RADIANS(Z53))*COS(RADIANS(AB53-Insolation!$L$6))*SIN(RADIANS(Insolation!$L$7))+SIN(RADIANS(Z53))*COS(RADIANS(Insolation!$L$7)) -> 0.8428353173 | AJ53: 558.9868551 | AK53: 59.65582132 | AL53: 798.7860606 | AM53: =$X$55*AG53*((1+COS(RADIANS(Insolation!$L$7)))/2) -> 55.04586719 | AN53: 922.3586942 | AO53: 52.48651206 | AP53: 947.7368167 | AQ53: 47.42077999 | AS53: =0.174+0.035*SIN(RADIANS(360/365*(AS45-100))) -> 0.1588528543 | AT53: 10 | AU53: 44.83192185 | AV53: 30 | AW53: 44.76401797 | AX53: 44.76401797 | AY53: 135.235982 | AZ53: -224.764018 | BA53: 1.418380503 | BB53: 944.7338968 | BC53: =COS(RADIANS(AU53))*COS(RADIANS(AW53-Insolation!$L$6))*SIN(RADIANS(0))+(SIN(RADIANS(AU53))*COS(RADIANS(0))) -> 0.7050294318 | BD53: =COS(RADIANS(AU53))*COS(RADIANS(AW53-Insolation!$L$6))*SIN(RADIANS(Insolation!$L$7))+SIN(RADIANS(AU53))*COS(RADIANS(Insolation!$L$7)) -> 0.8649775021 | BE53: 666.0652025 | BF53: 73.39540931 | BG53: 817.1735662 | BH53: =$AS$55*BB53*((1+COS(RADIANS(Insolation!$L$7)))/2) -> 67.72371689 | BI53: 943.5907568 | BJ53: 63.81925011 | BK53: 944.7338968 | BL53: 62.57066652 | BN53: =0.174+0.035*SIN(RADIANS(360/365*(BN45-100))) -> 0.177008768 | BO53: 10 | BP53: 54.06461801 | BQ53: 30 | BR53: 57.19269022 | BS53: 57.19269022 | BT53: 122.8073098 | BU53: -237.1926902 | BV53: 1.235056767 | BW53: 919.3418167 | BX53: =COS(RADIANS(BP53))*COS(RADIANS(BR53-Insolation!$L$6))*SIN(RADIANS(0))+(SIN(RADIANS(BP53))*COS(RADIANS(0))) -> 0.8096793822 | BY53: =COS(RADIANS(BP53))*COS(RADIANS(BR53-Insolation!$L$6))*SIN(RADIANS(Insolation!$L$7))+SIN(RADIANS(BP53))*COS(RADIANS(Insolation!$L$7)) -> 0.854359759 | BZ53: 744.3721142 | CA53: 90.49871396 | CB53: 785.448653 | CC53: =$BN$55*BW53*((1+COS(RADIANS(Insolation!$L$7)))/2) -> 83.50534918 | CD53: 906.9579825 | CE53: 77.04928047 | CF53: 919.3418167 | CG53: 81.88682839 | CI53: =0.174+0.035*SIN(RADIANS(360/365*(CI45-100))) -> 0.1938345615 | CJ53: 10 | CK53: 59.90414228 | CL53: 30 | CM53: 70.72770261 | CN53: 70.72770261 | CO53: 109.2722974 | CP53: -250.7277026 | CQ53: 1.155818591 | CR53: 887.1226918 | CS53: =COS(RADIANS(CK53))*COS(RADIANS(CM53-Insolation!$L$6))*SIN(RADIANS(0))+(SIN(RADIANS(CK53))*COS(RADIANS(0))) -> 0.8651876757 | CT53: =COS(RADIANS(CK53))*COS(RADIANS(CM53-Insolation!$L$6))*SIN(RADIANS(Insolation!$L$7))+SIN(RADIANS(CK53))*COS(RADIANS(Insolation!$L$7)) -> 0.8198616697 | CU53: 767.5276198 | CV53: 104.3860152 | CW53: 727.3178913 | CX53: =$CI$55*CR53*((1+COS(RADIANS(Insolation!$L$7)))/2) -> 96.31949747 | CY53: 839.8343607 | CZ53: 86.51178974 | DA53: 887.1226918 | DB53: 97.34975456 | DD53: =0.174+0.035*SIN(RADIANS(360/365*(DD45-100))) -> 0.2057454834 | DE53: 10 | DF53: 62.0995863 | DG53: 30 | DH53: 78.8943286 | DI53: 78.8943286 | DJ53: 101.1056714 | DK53: -258.8943286 | DL53: 1.131526039 | DM53: 862.4054793 | DN53: =COS(RADIANS(DF53))*COS(RADIANS(DH53-Insolation!$L$6))*SIN(RADIANS(0))+(SIN(RADIANS(DF53))*COS(RADIANS(0))) -> 0.8837622514 | DO53: =COS(RADIANS(DF53))*COS(RADIANS(DH53-Insolation!$L$6))*SIN(RADIANS(Insolation!$L$7))+SIN(RADIANS(DF53))*COS(RADIANS(Insolation!$L$7)) -> 0.795311721 | DP53: 762.161408 | DQ53: 113.2170678 | DR53: 685.8811859 | DS53: =$DD$55*DM53*((1+COS(RADIANS(Insolation!$L$7)))/2) -> 104.468123 | DT53: 791.9873746 | DU53: 92.06824178 | DV53: 862.4054793 | DW53: 106.6370193
C54: C | D54: 10.5 | E54: 32.28670206 | F54: 22.5 | G54: 24.95075291 | H54: 24.95075291 | I54: 155.0492471 | J54: -204.9507529 | K54: 1.872111721 | L54: 950.0638496 | M54: =COS(RADIANS(E54))*COS(RADIANS(G54-Insolation!$L$6))*SIN(RADIANS(0))+(SIN(RADIANS(E54))*COS(RADIANS(0))) -> 0.5341561558 | N54: =COS(RADIANS(E54))*COS(RADIANS(G54-Insolation!$L$6))*SIN(RADIANS(Insolation!$L$7))+SIN(RADIANS(E54))*COS(RADIANS(Insolation!$L$7)) -> 0.860949135 | O54: 507.4824537 | P54: 52.47324603 | Q54: 817.9566496 | R54: =$C$55*L54*((1+COS(RADIANS(Insolation!$L$7)))/2) -> 48.4183315 | S54: 885.3498977 | T54: 47.34240342 | U54: 950.0638496 | V54: 40.25107671 | X54: C | Y54: 10.5 | Z54: 39.59934904 | AA54: 22.5 | AB54: 28.90485092 | AC54: 28.90485092 | AD54: 151.0951491 | AE54: -208.9048509 | AF54: 1.568836049 | AG54: 965.4140879 | AH54: =COS(RADIANS(Z54))*COS(RADIANS(AB54-Insolation!$L$6))*SIN(RADIANS(0))+(SIN(RADIANS(Z54))*COS(RADIANS(0))) -> 0.6374152356 | AI54: =COS(RADIANS(Z54))*COS(RADIANS(AB54-Insolation!$L$6))*SIN(RADIANS(Insolation!$L$7))+SIN(RADIANS(Z54))*COS(RADIANS(Insolation!$L$7)) -> 0.899140251 | AJ54: 615.3696483 | AK54: 60.76852699 | AL54: 868.0426653 | AM54: =$X$55*AG54*((1+COS(RADIANS(Insolation!$L$7)))/2) -> 56.07258759 | AN54: 939.5626104 | AO54: 54.61458626 | AP54: 965.4140879 | AQ54: 49.75165597 | AS54: C | AT54: 10.5 | AU54: 48.92785746 | AV54: 22.5 | AW54: 35.57431469 | AX54: 35.57431469 | AY54: 144.4256853 | AZ54: -215.5743147 | BA54: 1.326465915 | BB54: 958.6290508 | BC54: =COS(RADIANS(AU54))*COS(RADIANS(AW54-Insolation!$L$6))*SIN(RADIANS(0))+(SIN(RADIANS(AU54))*COS(RADIANS(0))) -> 0.753882922 | BD54: =COS(RADIANS(AU54))*COS(RADIANS(AW54-Insolation!$L$6))*SIN(RADIANS(Insolation!$L$7))+SIN(RADIANS(AU54))*COS(RADIANS(Insolation!$L$7)) -> 0.9227616266 | BE54: 722.6940699 | BF54: 74.47490961 | BG54: 884.5861022 | BH54: =$AS$55*BB54*((1+COS(RADIANS(Insolation!$L$7)))/2) -> 68.71979788 | BI54: 957.4690975 | BJ54: 66.47934522 | BK54: 958.6290508 | BL54: 65.31013604 | BN54: C | BO54: 10.5 | BP54: 59.08530737 | BQ54: 22.5 | BR54: 47.2930778 | BS54: 47.2930778 | BT54: 132.7069222 | BU54: -227.2930778 | BV54: 1.16559193 | BW54: 930.715721 | BX54: =COS(RADIANS(BP54))*COS(RADIANS(BR54-Insolation!$L$6))*SIN(RADIANS(0))+(SIN(RADIANS(BP54))*COS(RADIANS(0))) -> 0.8579331877 | BY54: =COS(RADIANS(BP54))*COS(RADIANS(BR54-Insolation!$L$6))*SIN(RADIANS(Insolation!$L$7))+SIN(RADIANS(BP54))*COS(RADIANS(Insolation!$L$7)) -> 0.9114345737 | BZ54: 798.4919053 | CA54: 91.61834508 | CB54: 848.2864864 | CC54: =$BN$55*BW54*((1+COS(RADIANS(Insolation!$L$7)))/2) -> 84.53845986 | CD54: 918.1786765 | CE54: 80.73107343 | CF54: 930.715721 | CG54: 85.11038196 | CI54: C | CJ54: 10.5 | CK54: 65.71250183 | CL54: 22.5 | CM54: 61.73834276 | CN54: 61.73834276 | CO54: 118.2616572 | CP54: -241.7383428 | CQ54: 1.097101074 | CR54: 897.2771414 | CS54: =COS(RADIANS(CK54))*COS(RADIANS(CM54-Insolation!$L$6))*SIN(RADIANS(0))+(SIN(RADIANS(CK54))*COS(RADIANS(0))) -> 0.9114930466 | CT54: =COS(RADIANS(CK54))*COS(RADIANS(CM54-Insolation!$L$6))*SIN(RADIANS(Insolation!$L$7))+SIN(RADIANS(CK54))*COS(RADIANS(Insolation!$L$7)) -> 0.8746318674 | CU54: 817.8618753 | CV54: 105.5808697 | CW54: 784.7871818 | CX54: =$CI$55*CR54*((1+COS(RADIANS(Insolation!$L$7)))/2) -> 97.42201857 | CY54: 849.4475244 | CZ54: 91.34897523 | DA54: 897.2771414 | DB54: 100.9085492 | DD54: C | DE54: 10.5 | DF54: 68.23014001 | DG54: 22.5 | DH54: 71.36534753 | DI54: 71.36534753 | DJ54: 108.6346525 | DK54: -251.3653475 | DL54: 1.076795953 | DM54: 872.1714502 | DN54: =COS(RADIANS(DF54))*COS(RADIANS(DH54-Insolation!$L$6))*SIN(RADIANS(0))+(SIN(RADIANS(DF54))*COS(RADIANS(0))) -> 0.9286810536 | DO54: =COS(RADIANS(DF54))*COS(RADIANS(DH54-Insolation!$L$6))*SIN(RADIANS(Insolation!$L$7))+SIN(RADIANS(DF54))*COS(RADIANS(Insolation!$L$7)) -> 0.8484418792 | DP54: 809.9691013 | DQ54: 114.4991499 | DR54: 739.9867841 | DS54: =$DD$55*DM54*((1+COS(RADIANS(Insolation!$L$7)))/2) -> 105.6511311 | DT54: 800.9559235 | DU54: 97.67155405 | DV54: 872.1714502 | DW54: 110.4161705
C55: =0.095+0.04*SIN(RADIANS(360/365*(C45-100))) -> 0.05523128372 | D55: 11 | E55: 34.56096091 | F55: 15 | G55: 17.03016884 | H55: =DEGREES(ASIN(COS(RADIANS($C$47))*SIN(RADIANS(F55))/COS(RADIANS(E55)))) -> 17.03016884 | I55: 162.9698312 | J55: =180-H55-360 -> -197.0301688 | K55: 1.762789334 | L55: 964.6324308 | M55: =COS(RADIANS(E55))*COS(RADIANS(G55-Insolation!$L$6))*SIN(RADIANS(0))+(SIN(RADIANS(E55))*COS(RADIANS(0))) -> 0.5672827606 | N55: =COS(RADIANS(E55))*COS(RADIANS(G55-Insolation!$L$6))*SIN(RADIANS(Insolation!$L$7))+SIN(RADIANS(E55))*COS(RADIANS(Insolation!$L$7)) -> 0.9001314299 | O55: 547.2193483 | P55: 53.27788748 | Q55: 868.2959693 | R55: =$C$55*L55*((1+COS(RADIANS(Insolation!$L$7)))/2) -> 49.16079359 | S55: 898.9261346 | T55: 48.67944715 | U55: 964.6324308 | V55: 41.75075728 | X55: =0.095+0.04*SIN(RADIANS(360/365*(X45-100))) -> 0.06294555647 | Y55: 11 | Z55: 42.22248941 | AA55: 15 | AB55: 19.88547923 | AC55: 19.88547923 | AD55: 160.1145208 | AE55: =180-AC55-360 -> -199.8854792 | AF55: 1.488070185 | AG55: 976.8616985 | AH55: =COS(RADIANS(Z55))*COS(RADIANS(AB55-Insolation!$L$6))*SIN(RADIANS(0))+(SIN(RADIANS(Z55))*COS(RADIANS(0))) -> 0.672011314 | AI55: =COS(RADIANS(Z55))*COS(RADIANS(AB55-Insolation!$L$6))*SIN(RADIANS(Insolation!$L$7))+SIN(RADIANS(Z55))*COS(RADIANS(Insolation!$L$7)) -> 0.9400606457 | AJ55: 656.4621136 | AK55: 61.48910321 | AL55: 918.309239 | AM55: =$X$55*AG55*((1+COS(RADIANS(Insolation!$L$7)))/2) -> 56.73748067 | AN55: 950.7036814 | AO55: 56.08548066 | AP55: 976.8616985 | AQ55: 51.40523812 | AS55: =0.095+0.04*SIN(RADIANS(360/365*(AS45-100))) -> 0.0776889763 | AT55: 11 | AU55: 52.12834433 | AV55: 15 | AW55: 24.90351805 | AX55: 24.90351805 | AY55: 155.0964819 | AZ55: =180-AX55-360 -> -204.9035181 | BA55: 1.266804356 | BB55: 967.7575594 | BC55: =COS(RADIANS(AU55))*COS(RADIANS(AW55-Insolation!$L$6))*SIN(RADIANS(0))+(SIN(RADIANS(AU55))*COS(RADIANS(0))) -> 0.7893878764 | BD55: =COS(RADIANS(AU55))*COS(RADIANS(AW55-Insolation!$L$6))*SIN(RADIANS(Insolation!$L$7))+SIN(RADIANS(AU55))*COS(RADIANS(Insolation!$L$7)) -> 0.9647570439 | BE55: 763.9360846 | BF55: 75.18409409 | BG55: 933.6509222 | BH55: =$AS$55*BB55*((1+COS(RADIANS(Insolation!$L$7)))/2) -> 69.37417954 | BI55: 966.5865605 | BJ55: 68.36577479 | BK55: 967.7575594 | BL55: 67.26675323 | BN55: =0.095+0.04*SIN(RADIANS(360/365*(BN45-100))) -> 0.09843859195 | BO55: 11 | BP55: 63.25297498 | BQ55: 15 | BR55: 34.56496261 | BS55: 34.56496261 | BT55: 145.4350374 | BU55: =180-BS55-360 -> -214.5649626 | BV55: 1.119817928 | BW55: 938.2873846 | BX55: =COS(RADIANS(BP55))*COS(RADIANS(BR55-Insolation!$L$6))*SIN(RADIANS(0))+(SIN(RADIANS(BP55))*COS(RADIANS(0))) -> 0.8930023128 | BY55: =COS(RADIANS(BP55))*COS(RADIANS(BR55-Insolation!$L$6))*SIN(RADIANS(Insolation!$L$7))+SIN(RADIANS(BP55))*COS(RADIANS(Insolation!$L$7)) -> 0.9529144902 | BZ55: 837.8928045 | CA55: 92.36368898 | CB55: 894.1076447 | CC55: =$BN$55*BW55*((1+COS(RADIANS(Insolation!$L$7)))/2) -> 85.22620668 | CD55: 925.6483473 | CE55: 83.4668804 | CF55: 938.2873846 | CG55: 87.42233843 | CI55: =0.095+0.04*SIN(RADIANS(360/365*(CI45-100))) -> 0.1176680703 | CJ55: 11 | CK55: 70.93456111 | CL55: 15 | CM55: 48.60012188 | CN55: 48.60012188 | CO55: 131.3998781 | CP55: =180-CN55-360 -> -228.6001219 | CQ55: 1.05803746 | CR55: 904.0970018 | CS55: =COS(RADIANS(CK55))*COS(RADIANS(CM55-Insolation!$L$6))*SIN(RADIANS(0))+(SIN(RADIANS(CK55))*COS(RADIANS(0))) -> 0.9451461198 | CT55: =COS(RADIANS(CK55))*COS(RADIANS(CM55-Insolation!$L$6))*SIN(RADIANS(Insolation!$L$7))+SIN(RADIANS(CK55))*COS(RADIANS(Insolation!$L$7)) -> 0.9144368714 | CU55: 854.5037731 | CV55: 106.3833495 | CW55: 826.7396337 | CX55: =$CI$55*CR55*((1+COS(RADIANS(Insolation!$L$7)))/2) -> 98.16248607 | CY55: 855.9038502 | CZ55: 95.18868609 | DA55: 904.0970018 | DB55: 103.4655798 | DD55: =0.095+0.04*SIN(RADIANS(360/365*(DD45-100))) -> 0.1312805525 | DE55: 11 | DF55: 74.01345921 | DG55: 15 | DH55: 59.65737545 | DI55: 59.65737545 | DJ55: 120.3426245 | DK55: =180-DI55-360 -> -239.6573755 | DL55: 1.040229396 | DM55: 878.7578934 | DN55: =COS(RADIANS(DF55))*COS(RADIANS(DH55-Insolation!$L$6))*SIN(RADIANS(0))+(SIN(RADIANS(DF55))*COS(RADIANS(0))) -> 0.9613264187 | DO55: =COS(RADIANS(DF55))*COS(RADIANS(DH55-Insolation!$L$6))*SIN(RADIANS(Insolation!$L$7))+SIN(RADIANS(DF55))*COS(RADIANS(Insolation!$L$7)) -> 0.8870549616 | DP55: 844.7731786 | DQ55: 115.3638218 | DR55: 779.5065494 | DS55: =$DD$55*DM55*((1+COS(RADIANS(Insolation!$L$7)))/2) -> 106.4489847 | DT55: 807.004563 | DU55: 102.3178867 | DV55: 878.7578934 | DW55: 113.1330557
D56: 11.5 | E56: 35.97188481 | F56: 7.5 | G56: 8.644080509 | H56: 8.644080509 | I56: 171.3559195 | J56: -188.6440805 | K56: 1.702451648 | L56: 972.7686433 | M56: =COS(RADIANS(E56))*COS(RADIANS(G56-Insolation!$L$6))*SIN(RADIANS(0))+(SIN(RADIANS(E56))*COS(RADIANS(0))) -> 0.5873881947 | N56: =COS(RADIANS(E56))*COS(RADIANS(G56-Insolation!$L$6))*SIN(RADIANS(Insolation!$L$7))+SIN(RADIANS(E56))*COS(RADIANS(Insolation!$L$7)) -> 0.9239122264 | O56: 571.3928173 | P56: 53.72726094 | Q56: 898.7528431 | R56: =$C$55*L56*((1+COS(RADIANS(Insolation!$L$7)))/2) -> 49.57544134 | S56: 906.5081459 | T56: 49.45479969 | U56: 972.7686433 | V56: 42.64300987 | Y56: 11.5 | Z56: 43.86874094 | AA56: 7.5 | AB56: 10.14876223 | AC56: 10.14876223 | AD56: 169.8512378 | AE56: =180-AC56-360 -> -190.1487622 | AF56: 1.442983512 | AG56: 983.3111401 | AH56: =COS(RADIANS(Z56))*COS(RADIANS(AB56-Insolation!$L$6))*SIN(RADIANS(0))+(SIN(RADIANS(Z56))*COS(RADIANS(0))) -> 0.6930086114 | AI56: =COS(RADIANS(Z56))*COS(RADIANS(AB56-Insolation!$L$6))*SIN(RADIANS(Insolation!$L$7))+SIN(RADIANS(Z56))*COS(RADIANS(Insolation!$L$7)) -> 0.9648963421 | AJ56: 681.4430878 | AK56: 61.8950669 | AL56: 948.7933223 | AM56: =$X$55*AG56*((1+COS(RADIANS(Insolation!$L$7)))/2) -> 57.11207318 | AN56: 956.9804224 | AO56: 56.94867036 | AP56: 983.3111401 | AQ56: 52.39444063 | AT56: 11.5 | AU56: 54.18756008 | AV56: 7.5 | AW56: 12.87358937 | AX56: 12.87358937 | AY56: 167.1264106 | AZ56: =180-AX56-360 -> -192.8735894 | BA56: 1.233141727 | BB56: 972.9464118 | BC56: =COS(RADIANS(AU56))*COS(RADIANS(AW56-Insolation!$L$6))*SIN(RADIANS(0))+(SIN(RADIANS(AU56))*COS(RADIANS(0))) -> 0.8109367953 | BD56: =COS(RADIANS(AU56))*COS(RADIANS(AW56-Insolation!$L$6))*SIN(RADIANS(Insolation!$L$7))+SIN(RADIANS(AU56))*COS(RADIANS(Insolation!$L$7)) -> 0.9902452006 | BE56: 788.9980451 | BF56: 75.58721072 | BG56: 963.4555147 | BH56: =$AS$55*BB56*((1+COS(RADIANS(Insolation!$L$7)))/2) -> 69.74614499 | BI56: 971.7691343 | BJ56: 69.49230279 | BK56: 972.9464118 | BL56: 68.44183058 | BO56: 11.5 | BP56: 66.10463338 | BQ56: 7.5 | BR56: 18.535519 | BS56: 18.535519 | BT56: 161.464481 | BU56: =180-BS56-360 -> -198.535519 | BV56: 1.093748803 | BW56: 942.6270828 | BX56: =COS(RADIANS(BP56))*COS(RADIANS(BR56-Insolation!$L$6))*SIN(RADIANS(0))+(SIN(RADIANS(BP56))*COS(RADIANS(0))) -> 0.9142867151 | BY56: =COS(RADIANS(BP56))*COS(RADIANS(BR56-Insolation!$L$6))*SIN(RADIANS(Insolation!$L$7))+SIN(RADIANS(BP56))*COS(RADIANS(Insolation!$L$7)) -> 0.9780897755 | BZ56: 861.8314191 | CA56: 92.79088276 | CB56: 921.9739118 | CC56: =$BN$55*BW56*((1+COS(RADIANS(Insolation!$L$7)))/2) -> 85.6203887 | CD56: 929.9295884 | CE56: 85.16853089 | CF56: 942.6270828 | CG56: 88.81417708 | CJ56: 11.5 | CK56: 74.92166864 | CL56: 7.5 | CM56: 28.3599158 | CN56: 28.3599158 | CO56: 151.6400842 | CP56: =180-CN56-360 -> -208.3599158 | CQ56: 1.035656534 | CR56: 908.0276725 | CS56: =COS(RADIANS(CK56))*COS(RADIANS(CM56-Insolation!$L$6))*SIN(RADIANS(0))+(SIN(RADIANS(CK56))*COS(RADIANS(0))) -> 0.9655710818 | CT56: =COS(RADIANS(CK56))*COS(RADIANS(CM56-Insolation!$L$6))*SIN(RADIANS(Insolation!$L$7))+SIN(RADIANS(CK56))*COS(RADIANS(Insolation!$L$7)) -> 0.9385956069 | CU56: 876.7652621 | CV56: 106.845864 | CW56: 852.2707844 | CX56: =$CI$55*CR56*((1+COS(RADIANS(Insolation!$L$7)))/2) -> 98.58925932 | CY56: 859.6249954 | CZ56: 97.78008777 | DA56: 908.0276725 | DB56: 105.0065702 | DE56: 11.5 | DF56: 78.85459109 | DG56: 7.5 | DH56: 38.32465747 | DI56: 38.32465747 | DJ56: 141.6753425 | DK56: =180-DI56-360 -> -218.3246575 | DL56: 1.01922277 | DM56: 882.5641205 | DN56: =COS(RADIANS(DF56))*COS(RADIANS(DH56-Insolation!$L$6))*SIN(RADIANS(0))+(SIN(RADIANS(DF56))*COS(RADIANS(0))) -> 0.9811397754 | DO56: =COS(RADIANS(DF56))*COS(RADIANS(DH56-Insolation!$L$6))*SIN(RADIANS(Insolation!$L$7))+SIN(RADIANS(DF56))*COS(RADIANS(Insolation!$L$7)) -> 0.9104902876 | DP56: 865.918763 | DQ56: 115.8635054 | DR56: 803.56606 | DS56: =$DD$55*DM56*((1+COS(RADIANS(Insolation!$L$7)))/2) -> 106.9100549 | DT56: 810.4999998 | DU56: 105.697827 | DV56: 882.5641205 | DW56: 114.7708995
D57: 12 | E57: 36.45052609 | F57: 0 | G57: 0 | H57: 0 | I57: 180 | J57: -180 | K57: 1.683137716 | L57: 975.3874946 | M57: =COS(RADIANS(E57))*COS(RADIANS(G57-Insolation!$L$6))*SIN(RADIANS(0))+(SIN(RADIANS(E57))*COS(RADIANS(0))) -> 0.5941284487 | N57: =COS(RADIANS(E57))*COS(RADIANS(G57-Insolation!$L$6))*SIN(RADIANS(Insolation!$L$7))+SIN(RADIANS(E57))*COS(RADIANS(Insolation!$L$7)) -> 0.9318846286 | O57: 579.505459 | P57: 53.87190346 | Q57: 908.9486132 | R57: =$C$55*L57*((1+COS(RADIANS(Insolation!$L$7)))/2) -> 49.70890648 | S57: 908.9486132 | T57: 49.70890648 | U57: 975.3874946 | V57: 42.93936694 | Y57: 12 | Z57: 44.43084381 | AA57: 0 | AB57: 0 | AC57: 0 | AD57: 180 | AE57: -180 | AF57: 1.428473765 | AG57: 985.395736 | AH57: =COS(RADIANS(Z57))*COS(RADIANS(AB57-Insolation!$L$6))*SIN(RADIANS(0))+(SIN(RADIANS(Z57))*COS(RADIANS(0))) -> 0.7000478584 | AI57: =COS(RADIANS(Z57))*COS(RADIANS(AB57-Insolation!$L$6))*SIN(RADIANS(Insolation!$L$7))+SIN(RADIANS(Z57))*COS(RADIANS(Insolation!$L$7)) -> 0.9732223946 | AJ57: 689.8241747 | AK57: 62.02628295 | AL57: 959.0091978 | AM57: =$X$55*AG57*((1+COS(RADIANS(Insolation!$L$7)))/2) -> 57.23314939 | AN57: 959.0091978 | AO57: 57.23314939 | AP57: 985.395736 | AQ57: 52.72382474 | AT57: 12 | AU57: 54.90112135 | AV57: 0 | AW57: 0 | AX57: 0 | AY57: 180 | AZ57: -180 | BA57: 1.222253365 | BB57: 974.6307221 | BC57: =COS(RADIANS(AU57))*COS(RADIANS(AW57-Insolation!$L$6))*SIN(RADIANS(0))+(SIN(RADIANS(AU57))*COS(RADIANS(0))) -> 0.8181609708 | BD57: =COS(RADIANS(AU57))*COS(RADIANS(AW57-Insolation!$L$6))*SIN(RADIANS(Insolation!$L$7))+SIN(RADIANS(AU57))*COS(RADIANS(Insolation!$L$7)) -> 0.9987899874 | BE57: 797.4048178 | BF57: 75.71806307 | BG57: 973.4514066 | BH57: =$AS$55*BB57*((1+COS(RADIANS(Insolation!$L$7)))/2) -> 69.86688561 | BI57: 973.4514066 | BJ57: 69.86688561 | BK57: 974.6307221 | BL57: 68.83381353 | BO57: 12 | BP57: 67.13489335 | BQ57: 0 | BR57: 0 | BS57: 0 | BT57: 180 | BU57: -180 | BV57: 1.085278807 | BW57: 944.0413891 | BX57: =COS(RADIANS(BP57))*COS(RADIANS(BR57-Insolation!$L$6))*SIN(RADIANS(0))+(SIN(RADIANS(BP57))*COS(RADIANS(0))) -> 0.9214222127 | BY57: =COS(RADIANS(BP57))*COS(RADIANS(BR57-Insolation!$L$6))*SIN(RADIANS(Insolation!$L$7))+SIN(RADIANS(BP57))*COS(RADIANS(Insolation!$L$7)) -> 0.9865296737 | BZ57: 869.8607056 | CA57: 92.93010508 | CB57: 931.3248435 | CC57: =$BN$55*BW57*((1+COS(RADIANS(Insolation!$L$7)))/2) -> 85.74885249 | CD57: 931.3248435 | CE57: 85.74885249 | CF57: 944.0413891 | CG57: 89.27898406 | CJ57: 12 | CK57: 76.51191752 | CL57: 0 | CM57: 0 | CN57: 0 | CO57: 180 | CP57: -180 | CQ57: 1.028363863 | CR57: 909.3121424 | CS57: =COS(RADIANS(CK57))*COS(RADIANS(CM57-Insolation!$L$6))*SIN(RADIANS(0))+(SIN(RADIANS(CK57))*COS(RADIANS(0))) -> 0.972418456 | CT57: =COS(RADIANS(CK57))*COS(RADIANS(CM57-Insolation!$L$6))*SIN(RADIANS(Insolation!$L$7))+SIN(RADIANS(CK57))*COS(RADIANS(Insolation!$L$7)) -> 0.9466947114 | CU57: 884.2319095 | CV57: 106.997005 | CW57: 860.8409962 | CX57: =$CI$55*CR57*((1+COS(RADIANS(Insolation!$L$7)))/2) -> 98.72872085 | CY57: 860.8409962 | CZ57: 98.72872085 | DA57: 909.3121424 | DB57: 105.5214337 | DE57: 12 | DF57: 81.03440992 | DG57: 0 | DH57: 0 | DI57: 0 | DJ57: 180 | DK57: -180 | DL57: 1.012369011 | DM57: 883.8095285 | DN57: =COS(RADIANS(DF57))*COS(RADIANS(DH57-Insolation!$L$6))*SIN(RADIANS(0))+(SIN(RADIANS(DF57))*COS(RADIANS(0))) -> 0.9877821117 | DO57: =COS(RADIANS(DF57))*COS(RADIANS(DH57-Insolation!$L$6))*SIN(RADIANS(Insolation!$L$7))+SIN(RADIANS(DF57))*COS(RADIANS(Insolation!$L$7)) -> 0.9183468724 | DP57: 873.0112425 | DQ57: 116.0270032 | DR57: 811.6437163 | DS57: =$DD$55*DM57*((1+COS(RADIANS(Insolation!$L$7)))/2) -> 107.0609183 | DT57: 811.6437163 | DU57: 107.0609183 | DV57: 883.8095285 | DW57: 115.3182007
D58: 12.5 | E58: 35.97188481 | F58: -7.5 | G58: -8.644080509 | H58: -8.644080509 | I58: 188.6440805 | J58: -171.3559195 | K58: 1.702451648 | L58: 972.7686433 | M58: =COS(RADIANS(E58))*COS(RADIANS(G58-Insolation!$L$6))*SIN(RADIANS(0))+(SIN(RADIANS(E58))*COS(RADIANS(0))) -> 0.5873881947 | N58: =COS(RADIANS(E58))*COS(RADIANS(G58-Insolation!$L$6))*SIN(RADIANS(Insolation!$L$7))+SIN(RADIANS(E58))*COS(RADIANS(Insolation!$L$7)) -> 0.9239122264 | O58: 571.3928173 | P58: 53.72726094 | Q58: 898.7528431 | R58: =$C$55*L58*((1+COS(RADIANS(Insolation!$L$7)))/2) -> 49.57544134 | S58: 906.5081459 | T58: 49.45479969 | U58: 972.7686433 | V58: 42.64300987 | Y58: 12.5 | Z58: 43.86874094 | AA58: -7.5 | AB58: -10.14876223 | AC58: -10.14876223 | AD58: 190.1487622 | AE58: -169.8512378 | AF58: 1.442983512 | AG58: 983.3111401 | AH58: =COS(RADIANS(Z58))*COS(RADIANS(AB58-Insolation!$L$6))*SIN(RADIANS(0))+(SIN(RADIANS(Z58))*COS(RADIANS(0))) -> 0.6930086114 | AI58: =COS(RADIANS(Z58))*COS(RADIANS(AB58-Insolation!$L$6))*SIN(RADIANS(Insolation!$L$7))+SIN(RADIANS(Z58))*COS(RADIANS(Insolation!$L$7)) -> 0.9648963421 | AJ58: 681.4430878 | AK58: 61.8950669 | AL58: 948.7933223 | AM58: =$X$55*AG58*((1+COS(RADIANS(Insolation!$L$7)))/2) -> 57.11207318 | AN58: 956.9804224 | AO58: 56.94867036 | AP58: 983.3111401 | AQ58: 52.39444063 | AT58: 12.5 | AU58: 54.18756008 | AV58: -7.5 | AW58: -12.87358937 | AX58: -12.87358937 | AY58: 192.8735894 | AZ58: -167.1264106 | BA58: 1.233141727 | BB58: 972.9464118 | BC58: =COS(RADIANS(AU58))*COS(RADIANS(AW58-Insolation!$L$6))*SIN(RADIANS(0))+(SIN(RADIANS(AU58))*COS(RADIANS(0))) -> 0.8109367953 | BD58: =COS(RADIANS(AU58))*COS(RADIANS(AW58-Insolation!$L$6))*SIN(RADIANS(Insolation!$L$7))+SIN(RADIANS(AU58))*COS(RADIANS(Insolation!$L$7)) -> 0.9902452006 | BE58: 788.9980451 | BF58: 75.58721072 | BG58: 963.4555147 | BH58: =$AS$55*BB58*((1+COS(RADIANS(Insolation!$L$7)))/2) -> 69.74614499 | BI58: 971.7691343 | BJ58: 69.49230279 | BK58: 972.9464118 | BL58: 68.44183058 | BO58: 12.5 | BP58: 66.10463338 | BQ58: -7.5 | BR58: -18.535519 | BS58: -18.535519 | BT58: 198.535519 | BU58: -161.464481 | BV58: 1.093748803 | BW58: 942.6270828 | BX58: =COS(RADIANS(BP58))*COS(RADIANS(BR58-Insolation!$L$6))*SIN(RADIANS(0))+(SIN(RADIANS(BP58))*COS(RADIANS(0))) -> 0.9142867151 | BY58: =COS(RADIANS(BP58))*COS(RADIANS(BR58-Insolation!$L$6))*SIN(RADIANS(Insolation!$L$7))+SIN(RADIANS(BP58))*COS(RADIANS(Insolation!$L$7)) -> 0.9780897755 | BZ58: 861.8314191 | CA58: 92.79088276 | CB58: 921.9739118 | CC58: =$BN$55*BW58*((1+COS(RADIANS(Insolation!$L$7)))/2) -> 85.6203887 | CD58: 929.9295884 | CE58: 85.16853089 | CF58: 942.6270828 | CG58: 88.81417708 | CJ58: 12.5 | CK58: 74.92166864 | CL58: -7.5 | CM58: -28.3599158 | CN58: -28.3599158 | CO58: 208.3599158 | CP58: -151.6400842 | CQ58: 1.035656534 | CR58: 908.0276725 | CS58: =COS(RADIANS(CK58))*COS(RADIANS(CM58-Insolation!$L$6))*SIN(RADIANS(0))+(SIN(RADIANS(CK58))*COS(RADIANS(0))) -> 0.9655710818 | CT58: =COS(RADIANS(CK58))*COS(RADIANS(CM58-Insolation!$L$6))*SIN(RADIANS(Insolation!$L$7))+SIN(RADIANS(CK58))*COS(RADIANS(Insolation!$L$7)) -> 0.9385956069 | CU58: 876.7652621 | CV58: 106.845864 | CW58: 852.2707844 | CX58: =$CI$55*CR58*((1+COS(RADIANS(Insolation!$L$7)))/2) -> 98.58925932 | CY58: 859.6249954 | CZ58: 97.78008777 | DA58: 908.0276725 | DB58: 105.0065702 | DE58: 12.5 | DF58: 78.85459109 | DG58: -7.5 | DH58: -38.32465747 | DI58: -38.32465747 | DJ58: 218.3246575 | DK58: -141.6753425 | DL58: 1.01922277 | DM58: 882.5641205 | DN58: =COS(RADIANS(DF58))*COS(RADIANS(DH58-Insolation!$L$6))*SIN(RADIANS(0))+(SIN(RADIANS(DF58))*COS(RADIANS(0))) -> 0.9811397754 | DO58: =COS(RADIANS(DF58))*COS(RADIANS(DH58-Insolation!$L$6))*SIN(RADIANS(Insolation!$L$7))+SIN(RADIANS(DF58))*COS(RADIANS(Insolation!$L$7)) -> 0.9104902876 | DP58: 865.918763 | DQ58: 115.8635054 | DR58: 803.56606 | DS58: =$DD$55*DM58*((1+COS(RADIANS(Insolation!$L$7)))/2) -> 106.9100549 | DT58: 810.4999998 | DU58: 105.697827 | DV58: 882.5641205 | DW58: 114.7708995
D59: 13 | E59: 34.56096091 | F59: -15 | G59: -17.03016884 | H59: -17.03016884 | I59: 197.0301688 | J59: -162.9698312 | K59: 1.762789334 | L59: 964.6324308 | M59: =COS(RADIANS(E59))*COS(RADIANS(G59-Insolation!$L$6))*SIN(RADIANS(0))+(SIN(RADIANS(E59))*COS(RADIANS(0))) -> 0.5672827606 | N59: =COS(RADIANS(E59))*COS(RADIANS(G59-Insolation!$L$6))*SIN(RADIANS(Insolation!$L$7))+SIN(RADIANS(E59))*COS(RADIANS(Insolation!$L$7)) -> 0.9001314299 | O59: 547.2193483 | P59: 53.27788748 | Q59: 868.2959693 | R59: =$C$55*L59*((1+COS(RADIANS(Insolation!$L$7)))/2) -> 49.16079359 | S59: 898.9261346 | T59: 48.67944715 | U59: 964.6324308 | V59: 41.75075728 | Y59: 13 | Z59: 42.22248941 | AA59: -15 | AB59: -19.88547923 | AC59: -19.88547923 | AD59: 199.8854792 | AE59: -160.1145208 | AF59: 1.488070185 | AG59: 976.8616985 | AH59: =COS(RADIANS(Z59))*COS(RADIANS(AB59-Insolation!$L$6))*SIN(RADIANS(0))+(SIN(RADIANS(Z59))*COS(RADIANS(0))) -> 0.672011314 | AI59: =COS(RADIANS(Z59))*COS(RADIANS(AB59-Insolation!$L$6))*SIN(RADIANS(Insolation!$L$7))+SIN(RADIANS(Z59))*COS(RADIANS(Insolation!$L$7)) -> 0.9400606457 | AJ59: 656.4621136 | AK59: 61.48910321 | AL59: 918.309239 | AM59: =$X$55*AG59*((1+COS(RADIANS(Insolation!$L$7)))/2) -> 56.73748067 | AN59: 950.7036814 | AO59: 56.08548066 | AP59: 976.8616985 | AQ59: 51.40523812 | AT59: 13 | AU59: 52.12834433 | AV59: -15 | AW59: -24.90351805 | AX59: -24.90351805 | AY59: 204.9035181 | AZ59: -155.0964819 | BA59: 1.266804356 | BB59: 967.7575594 | BC59: =COS(RADIANS(AU59))*COS(RADIANS(AW59-Insolation!$L$6))*SIN(RADIANS(0))+(SIN(RADIANS(AU59))*COS(RADIANS(0))) -> 0.7893878764 | BD59: =COS(RADIANS(AU59))*COS(RADIANS(AW59-Insolation!$L$6))*SIN(RADIANS(Insolation!$L$7))+SIN(RADIANS(AU59))*COS(RADIANS(Insolation!$L$7)) -> 0.9647570439 | BE59: 763.9360846 | BF59: 75.18409409 | BG59: 933.6509222 | BH59: =$AS$55*BB59*((1+COS(RADIANS(Insolation!$L$7)))/2) -> 69.37417954 | BI59: 966.5865605 | BJ59: 68.36577479 | BK59: 967.7575594 | BL59: 67.26675323 | BO59: 13 | BP59: 63.25297498 | BQ59: -15 | BR59: -34.56496261 | BS59: -34.56496261 | BT59: 214.5649626 | BU59: -145.4350374 | BV59: 1.119817928 | BW59: 938.2873846 | BX59: =COS(RADIANS(BP59))*COS(RADIANS(BR59-Insolation!$L$6))*SIN(RADIANS(0))+(SIN(RADIANS(BP59))*COS(RADIANS(0))) -> 0.8930023128 | BY59: =COS(RADIANS(BP59))*COS(RADIANS(BR59-Insolation!$L$6))*SIN(RADIANS(Insolation!$L$7))+SIN(RADIANS(BP59))*COS(RADIANS(Insolation!$L$7)) -> 0.9529144902 | BZ59: 837.8928045 | CA59: 92.36368898 | CB59: 894.1076447 | CC59: =$BN$55*BW59*((1+COS(RADIANS(Insolation!$L$7)))/2) -> 85.22620668 | CD59: 925.6483473 | CE59: 83.4668804 | CF59: 938.2873846 | CG59: 87.42233843 | CJ59: 13 | CK59: 70.93456111 | CL59: -15 | CM59: -48.60012188 | CN59: -48.60012188 | CO59: 228.6001219 | CP59: -131.3998781 | CQ59: 1.05803746 | CR59: 904.0970018 | CS59: =COS(RADIANS(CK59))*COS(RADIANS(CM59-Insolation!$L$6))*SIN(RADIANS(0))+(SIN(RADIANS(CK59))*COS(RADIANS(0))) -> 0.9451461198 | CT59: =COS(RADIANS(CK59))*COS(RADIANS(CM59-Insolation!$L$6))*SIN(RADIANS(Insolation!$L$7))+SIN(RADIANS(CK59))*COS(RADIANS(Insolation!$L$7)) -> 0.9144368714 | CU59: 854.5037731 | CV59: 106.3833495 | CW59: 826.7396337 | CX59: =$CI$55*CR59*((1+COS(RADIANS(Insolation!$L$7)))/2) -> 98.16248607 | CY59: 855.9038502 | CZ59: 95.18868609 | DA59: 904.0970018 | DB59: 103.4655798 | DE59: 13 | DF59: 74.01345921 | DG59: -15 | DH59: -59.65737545 | DI59: -59.65737545 | DJ59: 239.6573755 | DK59: -120.3426245 | DL59: 1.040229396 | DM59: 878.7578934 | DN59: =COS(RADIANS(DF59))*COS(RADIANS(DH59-Insolation!$L$6))*SIN(RADIANS(0))+(SIN(RADIANS(DF59))*COS(RADIANS(0))) -> 0.9613264187 | DO59: =COS(RADIANS(DF59))*COS(RADIANS(DH59-Insolation!$L$6))*SIN(RADIANS(Insolation!$L$7))+SIN(RADIANS(DF59))*COS(RADIANS(Insolation!$L$7)) -> 0.8870549616 | DP59: 844.7731786 | DQ59: 115.3638218 | DR59: 779.5065494 | DS59: =$DD$55*DM59*((1+COS(RADIANS(Insolation!$L$7)))/2) -> 106.4489847 | DT59: 807.004563 | DU59: 102.3178867 | DV59: 878.7578934 | DW59: 113.1330557
D60: 13.5 | E60: 32.28670206 | F60: -22.5 | G60: -24.95075291 | H60: -24.95075291 | I60: 204.9507529 | J60: -155.0492471 | K60: 1.872111721 | L60: 950.0638496 | M60: =COS(RADIANS(E60))*COS(RADIANS(G60-Insolation!$L$6))*SIN(RADIANS(0))+(SIN(RADIANS(E60))*COS(RADIANS(0))) -> 0.5341561558 | N60: =COS(RADIANS(E60))*COS(RADIANS(G60-Insolation!$L$6))*SIN(RADIANS(Insolation!$L$7))+SIN(RADIANS(E60))*COS(RADIANS(Insolation!$L$7)) -> 0.860949135 | O60: 507.4824537 | P60: 52.47324603 | Q60: 817.9566496 | R60: =$C$55*L60*((1+COS(RADIANS(Insolation!$L$7)))/2) -> 48.4183315 | S60: 885.3498977 | T60: 47.34240342 | U60: 950.0638496 | V60: 40.25107671 | Y60: 13.5 | Z60: 39.59934904 | AA60: -22.5 | AB60: -28.90485092 | AC60: -28.90485092 | AD60: 208.9048509 | AE60: -151.0951491 | AF60: 1.568836049 | AG60: 965.4140879 | AH60: =COS(RADIANS(Z60))*COS(RADIANS(AB60-Insolation!$L$6))*SIN(RADIANS(0))+(SIN(RADIANS(Z60))*COS(RADIANS(0))) -> 0.6374152356 | AI60: =COS(RADIANS(Z60))*COS(RADIANS(AB60-Insolation!$L$6))*SIN(RADIANS(Insolation!$L$7))+SIN(RADIANS(Z60))*COS(RADIANS(Insolation!$L$7)) -> 0.899140251 | AJ60: 615.3696483 | AK60: 60.76852699 | AL60: 868.0426653 | AM60: =$X$55*AG60*((1+COS(RADIANS(Insolation!$L$7)))/2) -> 56.07258759 | AN60: 939.5626104 | AO60: 54.61458626 | AP60: 965.4140879 | AQ60: 49.75165597 | AT60: 13.5 | AU60: 48.92785746 | AV60: -22.5 | AW60: -35.57431469 | AX60: -35.57431469 | AY60: 215.5743147 | AZ60: -144.4256853 | BA60: 1.326465915 | BB60: 958.6290508 | BC60: =COS(RADIANS(AU60))*COS(RADIANS(AW60-Insolation!$L$6))*SIN(RADIANS(0))+(SIN(RADIANS(AU60))*COS(RADIANS(0))) -> 0.753882922 | BD60: =COS(RADIANS(AU60))*COS(RADIANS(AW60-Insolation!$L$6))*SIN(RADIANS(Insolation!$L$7))+SIN(RADIANS(AU60))*COS(RADIANS(Insolation!$L$7)) -> 0.9227616266 | BE60: 722.6940699 | BF60: 74.47490961 | BG60: 884.5861022 | BH60: =$AS$55*BB60*((1+COS(RADIANS(Insolation!$L$7)))/2) -> 68.71979788 | BI60: 957.4690975 | BJ60: 66.47934522 | BK60: 958.6290508 | BL60: 65.31013604 | BO60: 13.5 | BP60: 59.08530737 | BQ60: -22.5 | BR60: -47.2930778 | BS60: -47.2930778 | BT60: 227.2930778 | BU60: -132.7069222 | BV60: 1.16559193 | BW60: 930.715721 | BX60: =COS(RADIANS(BP60))*COS(RADIANS(BR60-Insolation!$L$6))*SIN(RADIANS(0))+(SIN(RADIANS(BP60))*COS(RADIANS(0))) -> 0.8579331877 | BY60: =COS(RADIANS(BP60))*COS(RADIANS(BR60-Insolation!$L$6))*SIN(RADIANS(Insolation!$L$7))+SIN(RADIANS(BP60))*COS(RADIANS(Insolation!$L$7)) -> 0.9114345737 | BZ60: 798.4919053 | CA60: 91.61834508 | CB60: 848.2864864 | CC60: =$BN$55*BW60*((1+COS(RADIANS(Insolation!$L$7)))/2) -> 84.53845986 | CD60: 918.1786765 | CE60: 80.73107343 | CF60: 930.715721 | CG60: 85.11038196 | CJ60: 13.5 | CK60: 65.71250183 | CL60: -22.5 | CM60: -61.73834276 | CN60: -61.73834276 | CO60: 241.7383428 | CP60: -118.2616572 | CQ60: 1.097101074 | CR60: 897.2771414 | CS60: =COS(RADIANS(CK60))*COS(RADIANS(CM60-Insolation!$L$6))*SIN(RADIANS(0))+(SIN(RADIANS(CK60))*COS(RADIANS(0))) -> 0.9114930466 | CT60: =COS(RADIANS(CK60))*COS(RADIANS(CM60-Insolation!$L$6))*SIN(RADIANS(Insolation!$L$7))+SIN(RADIANS(CK60))*COS(RADIANS(Insolation!$L$7)) -> 0.8746318674 | CU60: 817.8618753 | CV60: 105.5808697 | CW60: 784.7871818 | CX60: =$CI$55*CR60*((1+COS(RADIANS(Insolation!$L$7)))/2) -> 97.42201857 | CY60: 849.4475244 | CZ60: =$CI$55*CR60*((1+COS(RADIANS(90-CK60+$CI$47)))/2) -> 91.34897523 | DA60: 897.2771414 | DB60: 100.9085492 | DE60: 13.5 | DF60: 68.23014001 | DG60: -22.5 | DH60: -71.36534753 | DI60: -71.36534753 | DJ60: 251.3653475 | DK60: -108.6346525 | DL60: 1.076795953 | DM60: 872.1714502 | DN60: =COS(RADIANS(DF60))*COS(RADIANS(DH60-Insolation!$L$6))*SIN(RADIANS(0))+(SIN(RADIANS(DF60))*COS(RADIANS(0))) -> 0.9286810536 | DO60: =COS(RADIANS(DF60))*COS(RADIANS(DH60-Insolation!$L$6))*SIN(RADIANS(Insolation!$L$7))+SIN(RADIANS(DF60))*COS(RADIANS(Insolation!$L$7)) -> 0.8484418792 | DP60: 809.9691013 | DQ60: 114.4991499 | DR60: 739.9867841 | DS60: =$DD$55*DM60*((1+COS(RADIANS(Insolation!$L$7)))/2) -> 105.6511311 | DT60: 800.9559235 | DU60: 97.67155405 | DV60: 872.1714502 | DW60: 110.4161705
D61: 14 | E61: 29.24697561 | F61: -30 | G61: -32.27733665 | H61: -32.27733665 | I61: 212.2773367 | J61: -147.7226633 | K61: 2.046767886 | L61: 927.2439019 | M61: =COS(RADIANS(E61))*COS(RADIANS(G61-Insolation!$L$6))*SIN(RADIANS(0))+(SIN(RADIANS(E61))*COS(RADIANS(0))) -> 0.4885751857 | N61: =COS(RADIANS(E61))*COS(RADIANS(G61-Insolation!$L$6))*SIN(RADIANS(Insolation!$L$7))+SIN(RADIANS(E61))*COS(RADIANS(Insolation!$L$7)) -> 0.8070357618 | O61: 453.0283615 | P61: 51.21287103 | Q61: 748.3189887 | R61: =$C$55*L61*((1+COS(RADIANS(Insolation!$L$7)))/2) -> 47.25535304 | S61: 864.0843391 | T61: 45.369666 | U61: 927.2439019 | V61: 38.1171045 | Y61: 14 | Z61: 36.14369133 | AA61: -30 | AB61: -37.05521483 | AC61: -37.05521483 | AD61: 217.0552148 | AE61: -142.9447852 | AF61: 1.695454567 | AG61: 947.7368167 | AH61: =COS(RADIANS(Z61))*COS(RADIANS(AB61-Insolation!$L$6))*SIN(RADIANS(0))+(SIN(RADIANS(Z61))*COS(RADIANS(0))) -> 0.5898123248 | AI61: =COS(RADIANS(Z61))*COS(RADIANS(AB61-Insolation!$L$6))*SIN(RADIANS(Insolation!$L$7))+SIN(RADIANS(Z61))*COS(RADIANS(Insolation!$L$7)) -> 0.8428353173 | AJ61: 558.9868551 | AK61: 59.65582132 | AL61: 798.7860606 | AM61: =$X$55*AG61*((1+COS(RADIANS(Insolation!$L$7)))/2) -> 55.04586719 | AN61: 922.3586942 | AO61: 52.48651206 | AP61: 947.7368167 | AQ61: 47.42077999 | AT61: 14 | AU61: 44.83192185 | AV61: -30 | AW61: -44.76401797 | AX61: -44.76401797 | AY61: 224.764018 | AZ61: -135.235982 | BA61: 1.418380503 | BB61: 944.7338968 | BC61: =COS(RADIANS(AU61))*COS(RADIANS(AW61-Insolation!$L$6))*SIN(RADIANS(0))+(SIN(RADIANS(AU61))*COS(RADIANS(0))) -> 0.7050294318 | BD61: =COS(RADIANS(AU61))*COS(RADIANS(AW61-Insolation!$L$6))*SIN(RADIANS(Insolation!$L$7))+SIN(RADIANS(AU61))*COS(RADIANS(Insolation!$L$7)) -> 0.8649775021 | BE61: 666.0652025 | BF61: 73.39540931 | BG61: 817.1735662 | BH61: =$AS$55*BB61*((1+COS(RADIANS(Insolation!$L$7)))/2) -> 67.72371689 | BI61: 943.5907568 | BJ61: 63.81925011 | BK61: 944.7338968 | BL61: 62.57066652 | BO61: 14 | BP61: 54.06461801 | BQ61: -30 | BR61: -57.19269022 | BS61: -57.19269022 | BT61: 237.1926902 | BU61: -122.8073098 | BV61: 1.235056767 | BW61: 919.3418167 | BX61: =COS(RADIANS(BP61))*COS(RADIANS(BR61-Insolation!$L$6))*SIN(RADIANS(0))+(SIN(RADIANS(BP61))*COS(RADIANS(0))) -> 0.8096793822 | BY61: =COS(RADIANS(BP61))*COS(RADIANS(BR61-Insolation!$L$6))*SIN(RADIANS(Insolation!$L$7))+SIN(RADIANS(BP61))*COS(RADIANS(Insolation!$L$7)) -> 0.854359759 | BZ61: 744.3721142 | CA61: 90.49871396 | CB61: 785.448653 | CC61: =$BN$55*BW61*((1+COS(RADIANS(Insolation!$L$7)))/2) -> 83.50534918 | CD61: 906.9579825 | CE61: 77.04928047 | CF61: 919.3418167 | CG61: 81.88682839 | CJ61: 14 | CK61: 59.90414228 | CL61: -30 | CM61: -70.72770261 | CN61: -70.72770261 | CO61: 250.7277026 | CP61: -109.2722974 | CQ61: 1.155818591 | CR61: 887.1226918 | CS61: =COS(RADIANS(CK61))*COS(RADIANS(CM61-Insolation!$L$6))*SIN(RADIANS(0))+(SIN(RADIANS(CK61))*COS(RADIANS(0))) -> 0.8651876757 | CT61: =COS(RADIANS(CK61))*COS(RADIANS(CM61-Insolation!$L$6))*SIN(RADIANS(Insolation!$L$7))+SIN(RADIANS(CK61))*COS(RADIANS(Insolation!$L$7)) -> 0.8198616697 | CU61: 767.5276198 | CV61: 104.3860152 | CW61: 727.3178913 | CX61: =$CI$55*CR61*((1+COS(RADIANS(Insolation!$L$7)))/2) -> 96.31949747 | CY61: 839.8343607 | CZ61: 86.51178974 | DA61: 887.1226918 | DB61: 97.34975456 | DE61: 14 | DF61: 62.0995863 | DG61: -30 | DH61: -78.8943286 | DI61: -78.8943286 | DJ61: 258.8943286 | DK61: -101.1056714 | DL61: 1.131526039 | DM61: 862.4054793 | DN61: =COS(RADIANS(DF61))*COS(RADIANS(DH61-Insolation!$L$6))*SIN(RADIANS(0))+(SIN(RADIANS(DF61))*COS(RADIANS(0))) -> 0.8837622514 | DO61: =COS(RADIANS(DF61))*COS(RADIANS(DH61-Insolation!$L$6))*SIN(RADIANS(Insolation!$L$7))+SIN(RADIANS(DF61))*COS(RADIANS(Insolation!$L$7)) -> 0.795311721 | DP61: 762.161408 | DQ61: 113.2170678 | DR61: 685.8811859 | DS61: =$DD$55*DM61*((1+COS(RADIANS(Insolation!$L$7)))/2) -> 104.468123 | DT61: 791.9873746 | DU61: 92.06824178 | DV61: 862.4054793 | DW61: 106.6370193
D62: 14.5 | E62: 25.5513442 | F62: -37.5 | G62: -38.96104014 | H62: -38.96104014 | I62: 218.9610401 | J62: -141.0389599 | K62: 2.318465575 | L62: 892.8295388 | M62: =COS(RADIANS(E62))*COS(RADIANS(G62-Insolation!$L$6))*SIN(RADIANS(0))+(SIN(RADIANS(E62))*COS(RADIANS(0))) -> 0.4313197534 | N62: =COS(RADIANS(E62))*COS(RADIANS(G62-Insolation!$L$6))*SIN(RADIANS(Insolation!$L$7))+SIN(RADIANS(E62))*COS(RADIANS(Insolation!$L$7)) -> 0.7393137829 | O62: 385.0950165 | P62: 49.31212157 | Q62: 660.0811838 | R62: =$C$55*L62*((1+COS(RADIANS(Insolation!$L$7)))/2) -> 45.50148561 | S62: 832.0141232 | T62: 42.635687 | U62: 892.8295388 | V62: 35.29070684 | Y62: 14.5 | Z62: 32.0066089 | AA62: -37.5 | AB62: -44.32013085 | AC62: -44.32013085 | AD62: 224.3201309 | AE62: -135.6798691 | AF62: 1.886731648 | AG62: 921.6444337 | AH62: =COS(RADIANS(Z62))*COS(RADIANS(AB62-Insolation!$L$6))*SIN(RADIANS(0))+(SIN(RADIANS(Z62))*COS(RADIANS(0))) -> 0.5300170805 | AI62: =COS(RADIANS(Z62))*COS(RADIANS(AB62-Insolation!$L$6))*SIN(RADIANS(Insolation!$L$7))+SIN(RADIANS(Z62))*COS(RADIANS(Insolation!$L$7)) -> 0.7721092376 | AJ62: 488.4872921 | AK62: 58.01342175 | AL62: 711.6101811 | AM62: =$X$55*AG62*((1+COS(RADIANS(Insolation!$L$7)))/2) -> 53.53038544 | AN62: 896.9650028 | AO62: 49.62315758 | AP62: 921.6444337 | AQ62: 44.38076309 | AT62: 14.5 | AU62: 40.06552832 | AV62: -37.5 | AW62: -52.60644995 | AX62: -52.60644995 | AY62: 232.60645 | AZ62: -127.39355 | BA62: 1.553607291 | BB62: 924.6563323 | BC62: =COS(RADIANS(AU62))*COS(RADIANS(AW62-Insolation!$L$6))*SIN(RADIANS(0))+(SIN(RADIANS(AU62))*COS(RADIANS(0))) -> 0.6436633026 | BD62: =COS(RADIANS(AU62))*COS(RADIANS(AW62-Insolation!$L$6))*SIN(RADIANS(Insolation!$L$7))+SIN(RADIANS(AU62))*COS(RADIANS(Insolation!$L$7)) -> 0.7923933727 | BE62: 595.1673486 | BF62: 71.83560388 | BG62: 732.6915498 | BH62: =$AS$55*BB62*((1+COS(RADIANS(Insolation!$L$7)))/2) -> 66.28444674 | BI62: 923.5374864 | BJ62: 60.36063776 | BK62: 924.6563323 | BL62: 59.03677296 | BO62: 14.5 | BP62: 48.50958263 | BQ62: -37.5 | BR62: -65.02805836 | BS62: -65.02805836 | BT62: 245.0280584 | BU62: -114.9719416 | BV62: 1.334994899 | BW62: 903.2217303 | BX62: =COS(RADIANS(BP62))*COS(RADIANS(BR62-Insolation!$L$6))*SIN(RADIANS(0))+(SIN(RADIANS(BP62))*COS(RADIANS(0))) -> 0.7490665325 | BY62: =COS(RADIANS(BP62))*COS(RADIANS(BR62-Insolation!$L$6))*SIN(RADIANS(Insolation!$L$7))+SIN(RADIANS(BP62))*COS(RADIANS(Insolation!$L$7)) -> 0.7826666119 | BZ62: 676.5731696 | CA62: 88.91187535 | CB62: 706.9214914 | CC62: =$BN$55*BW62*((1+COS(RADIANS(Insolation!$L$7)))/2) -> 82.04113487 | CD62: 891.0550388 | CE62: 72.49002416 | CF62: 903.2217303 | CG62: 77.75639275 | CJ62: 14.5 | CK62: 53.80601447 | CL62: -37.5 | CM62: -77.40530564 | CN62: -77.40530564 | CO62: 257.4053056 | CP62: -102.5946944 | CQ62: 1.239123124 | CR62: 872.9130896 | CS62: =COS(RADIANS(CK62))*COS(RADIANS(CM62-Insolation!$L$6))*SIN(RADIANS(0))+(SIN(RADIANS(CK62))*COS(RADIANS(0))) -> 0.8070223049 | CT62: =COS(RADIANS(CK62))*COS(RADIANS(CM62-Insolation!$L$6))*SIN(RADIANS(Insolation!$L$7))+SIN(RADIANS(CK62))*COS(RADIANS(Insolation!$L$7)) -> 0.7510634115 | CU62: 704.4603336 | CV62: 102.7139988 | CW62: 655.613083 | CX62: =$CI$55*CR62*((1+COS(RADIANS(Insolation!$L$7)))/2) -> 94.77668749 | CY62: 826.3822054 | CZ62: 80.8245138 | DA62: 872.9130896 | DB62: 92.80324339 | DE62: 14.5 | DF62: 55.82630915 | DG62: -37.5 | DH62: -84.43292102 | DI62: -84.43292102 | DJ62: 264.432921 | DK62: -95.56707898 | DL62: 1.208694986 | DM62: 848.8210539 | DN62: =COS(RADIANS(DF62))*COS(RADIANS(DH62-Insolation!$L$6))*SIN(RADIANS(0))+(SIN(RADIANS(DF62))*COS(RADIANS(0))) -> 0.8273385852 | DO62: =COS(RADIANS(DF62))*COS(RADIANS(DH62-Insolation!$L$6))*SIN(RADIANS(Insolation!$L$7))+SIN(RADIANS(DF62))*COS(RADIANS(Insolation!$L$7)) -> 0.7285735588 | DP62: 702.2624099 | DQ62: 111.4336969 | DR62: 618.428576 | DS62: =$DD$55*DM62*((1+COS(RADIANS(Insolation!$L$7)))/2) -> 102.8225636 | DT62: 779.5121601 | DU62: 85.66324784 | DV62: 848.8210539 | DW62: 101.8135471
D63: 15 | E63: 21.30727428 | F63: -45 | G63: -45.0147327 | H63: -45.0147327 | I63: 225.0147327 | J63: -134.9852673 | K63: 2.752019524 | L63: 840.539492 | M63: =COS(RADIANS(E63))*COS(RADIANS(G63-Insolation!$L$6))*SIN(RADIANS(0))+(SIN(RADIANS(E63))*COS(RADIANS(0))) -> 0.3633695151 | N63: =COS(RADIANS(E63))*COS(RADIANS(G63-Insolation!$L$6))*SIN(RADIANS(Insolation!$L$7))+SIN(RADIANS(E63))*COS(RADIANS(Insolation!$L$7)) -> 0.6589419402 | O63: 305.4264276 | P63: 46.42407516 | Q63: 553.8667236 | R63: =$C$55*L63*((1+COS(RADIANS(Insolation!$L$7)))/2) -> 42.83661543 | S63: 783.2858323 | T63: 38.91677275 | U63: 840.539492 | V63: 31.64658442 | Y63: 15 | Z63: 27.32599143 | AA63: -45 | AB63: -50.76984999 | AC63: -50.76984999 | AD63: 230.76985 | AE63: -129.23015 | AF63: 2.178399523 | AG63: 883.2337492 | AH63: =COS(RADIANS(Z63))*COS(RADIANS(AB63-Insolation!$L$6))*SIN(RADIANS(0))+(SIN(RADIANS(Z63))*COS(RADIANS(0))) -> 0.4590526161 | AI63: =COS(RADIANS(Z63))*COS(RADIANS(AB63-Insolation!$L$6))*SIN(RADIANS(Insolation!$L$7))+SIN(RADIANS(Z63))*COS(RADIANS(Insolation!$L$7)) -> 0.6881721548 | AJ63: 405.4507632 | AK63: 55.59563984 | AL63: 607.8168724 | AM63: =$X$55*AG63*((1+COS(RADIANS(Insolation!$L$7)))/2) -> 51.29943968 | AN63: 859.5828644 | AO63: 45.89350373 | AP63: 883.2337492 | AQ63: 40.55848188 | AT63: 15 | AU63: 34.8084403 | AV63: -45 | AW63: -59.33507136 | AX63: -59.33507136 | AY63: 239.3350714 | AZ63: -120.6649286 | BA63: 1.751821158 | BB63: 895.9954164 | BC63: =COS(RADIANS(AU63))*COS(RADIANS(AW63-Insolation!$L$6))*SIN(RADIANS(0))+(SIN(RADIANS(AU63))*COS(RADIANS(0))) -> 0.5708345258 | BD63: =COS(RADIANS(AU63))*COS(RADIANS(AW63-Insolation!$L$6))*SIN(RADIANS(Insolation!$L$7))+SIN(RADIANS(AU63))*COS(RADIANS(Insolation!$L$7)) -> 0.7062511731 | BE63: 511.4651187 | BF63: 69.60896667 | BG63: 632.7978139 | BH63: =$AS$55*BB63*((1+COS(RADIANS(Insolation!$L$7)))/2) -> 64.2298748 | BI63: 894.9112506 | BJ63: 56.05341613 | BK63: 895.9954164 | BL63: 54.67208407 | BO63: 15 | BP63: 42.61991173 | BQ63: -45 | BR63: -71.43793424 | BS63: -71.43793424 | BT63: 251.4379342 | BU63: -108.5620658 | BV63: 1.476817493 | BW63: 880.829634 | BX63: =COS(RADIANS(BP63))*COS(RADIANS(BR63-Insolation!$L$6))*SIN(RADIANS(0))+(SIN(RADIANS(BP63))*COS(RADIANS(0))) -> 0.6771317411 | BY63: =COS(RADIANS(BP63))*COS(RADIANS(BR63-Insolation!$L$6))*SIN(RADIANS(Insolation!$L$7))+SIN(RADIANS(BP63))*COS(RADIANS(Insolation!$L$7)) -> 0.6975818221 | BZ63: 596.4377037 | CA63: 86.70762892 | CB63: 614.450741 | CC63: =$BN$55*BW63*((1+COS(RADIANS(Insolation!$L$7)))/2) -> 80.00722345 | CD63: 868.9645714 | CE63: 67.09594616 | CF63: 880.829634 | CG63: 72.71005832 | CJ63: 15 | CK63: 47.5606581 | CL63: -45 | CM63: -82.75006633 | CN63: -82.75006633 | CO63: 262.7500663 | CP63: -97.24993367 | CQ63: 1.355027945 | CR63: 853.5205651 | CS63: =COS(RADIANS(CK63))*COS(RADIANS(CM63-Insolation!$L$6))*SIN(RADIANS(0))+(SIN(RADIANS(CK63))*COS(RADIANS(0))) -> 0.7379921598 | CT63: =COS(RADIANS(CK63))*COS(RADIANS(CM63-Insolation!$L$6))*SIN(RADIANS(Insolation!$L$7))+SIN(RADIANS(CK63))*COS(RADIANS(Insolation!$L$7)) -> 0.6694142501 | CU63: 629.8914853 | CV63: 100.4321178 | CW63: 571.3588291 | CX63: =$CI$55*CR63*((1+COS(RADIANS(Insolation!$L$7)))/2) -> 92.67114084 | CY63: 808.0234051 | CZ63: 74.38381813 | DA63: 853.5205651 | DB63: 87.27511668 | DE63: 15 | DF63: 49.49731053 | DG63: -45 | DH63: -88.92440431 | DI63: -88.92440431 | DJ63: 268.9244043 | DK63: -91.07559569 | DL63: 1.315139726 | DM63: 830.433511 | DN63: =COS(RADIANS(DF63))*COS(RADIANS(DH63-Insolation!$L$6))*SIN(RADIANS(0))+(SIN(RADIANS(DF63))*COS(RADIANS(0))) -> 0.7603754796 | DO63: =COS(RADIANS(DF63))*COS(RADIANS(DH63-Insolation!$L$6))*SIN(RADIANS(Insolation!$L$7))+SIN(RADIANS(DF63))*COS(RADIANS(Insolation!$L$7)) -> 0.649369301 | DP63: 631.4412793 | DQ63: 109.0197702 | DR63: 539.2580286 | DS63: =$DD$55*DM63*((1+COS(RADIANS(Insolation!$L$7)))/2) -> 100.5951751 | DT63: 762.6260176 | DU63: 78.56172074 | DV63: 830.433511 | DW63: 95.95786509
D64: 15.5 | E64: 16.6118832 | F64: -52.5 | G64: -50.49006167 | H64: -50.49006167 | I64: 230.4900617 | J64: -129.5099383 | K64: 3.49788408 | L64: 757.6471846 | M64: =COS(RADIANS(E64))*COS(RADIANS(G64-Insolation!$L$6))*SIN(RADIANS(0))+(SIN(RADIANS(E64))*COS(RADIANS(0))) -> 0.2858871184 | N64: =COS(RADIANS(E64))*COS(RADIANS(G64-Insolation!$L$6))*SIN(RADIANS(Insolation!$L$7))+SIN(RADIANS(E64))*COS(RADIANS(Insolation!$L$7)) -> 0.5672954182 | O64: 216.6015703 | P64: 41.84582662 | Q64: 429.8097765 | R64: =$C$55*L64*((1+COS(RADIANS(Insolation!$L$7)))/2) -> 38.61215492 | S64: 706.0397653 | T64: 33.77017662 | U64: 757.6471846 | V64: 26.9045047 | Y64: 15.5 | Z64: 22.21809371 | AA64: -52.5 | AB64: -56.51552502 | AC64: -56.51552502 | AD64: 236.515525 | AE64: -123.484475 | AF64: 2.644571077 | AG64: 825.1383324 | AH64: =COS(RADIANS(Z64))*COS(RADIANS(AB64-Insolation!$L$6))*SIN(RADIANS(0))+(SIN(RADIANS(Z64))*COS(RADIANS(0))) -> 0.3781331531 | AI64: =COS(RADIANS(Z64))*COS(RADIANS(AB64-Insolation!$L$6))*SIN(RADIANS(Insolation!$L$7))+SIN(RADIANS(Z64))*COS(RADIANS(Insolation!$L$7)) -> 0.5924602557 | AJ64: 312.0121594 | AK64: 51.9387915 | AL64: 488.8616674 | AM64: =$X$55*AG64*((1+COS(RADIANS(Insolation!$L$7)))/2) -> 47.92517739 | AN64: 803.0431037 | AO64: 41.0525757 | AP64: 825.1383324 | AQ64: 35.78928525 | AT64: 15.5 | AU64: 29.19537684 | AV64: -52.5 | AW64: -65.19040017 | AX64: -65.19040017 | AY64: 245.1904002 | AZ64: -114.8095998 | BA64: 2.050065796 | BB64: 854.535704 | BC64: =COS(RADIANS(AU64))*COS(RADIANS(AW64-Insolation!$L$6))*SIN(RADIANS(0))+(SIN(RADIANS(AU64))*COS(RADIANS(0))) -> 0.487789222 | BD64: =COS(RADIANS(AU64))*COS(RADIANS(AW64-Insolation!$L$6))*SIN(RADIANS(Insolation!$L$7))+SIN(RADIANS(AU64))*COS(RADIANS(Insolation!$L$7)) -> 0.60802482 | BE64: 416.8333063 | BF64: 66.38800406 | BG64: 519.5789176 | BH64: =$AS$55*BB64*((1+COS(RADIANS(Insolation!$L$7)))/2) -> 61.25781481 | BI64: 853.501705 | BJ64: 50.79114651 | BK64: 854.535704 | BL64: 49.38567845 | BO64: 15.5 | BP64: 36.52017701 | BQ64: -52.5 | BR64: -76.87907191 | BS64: -76.87907191 | BT64: 256.8790719 | BU64: -103.1209281 | BV64: 1.680373382 | BW64: 849.6572663 | BX64: =COS(RADIANS(BP64))*COS(RADIANS(BR64-Insolation!$L$6))*SIN(RADIANS(0))+(SIN(RADIANS(BP64))*COS(RADIANS(0))) -> 0.5951058323 | BY64: =COS(RADIANS(BP64))*COS(RADIANS(BR64-Insolation!$L$6))*SIN(RADIANS(Insolation!$L$7))+SIN(RADIANS(BP64))*COS(RADIANS(Insolation!$L$7)) -> 0.6005612139 | BZ64: 505.6359946 | CA64: 83.63906493 | CB64: 510.2711992 | CC64: =$BN$55*BW64*((1+COS(RADIANS(Insolation!$L$7)))/2) -> 77.17578534 | CD64: 838.2121056 | CE64: 60.87364051 | CF64: 849.6572663 | CG64: 66.70658014 | CJ64: 15.5 | CK64: 41.24486002 | CL64: -52.5 | CM64: -87.29864032 | CN64: -87.29864032 | CO64: 267.2986403 | CP64: -92.70135968 | CQ64: 1.516809974 | CR64: 827.1703741 | CS64: =COS(RADIANS(CK64))*COS(RADIANS(CM64-Insolation!$L$6))*SIN(RADIANS(0))+(SIN(RADIANS(CK64))*COS(RADIANS(0))) -> 0.6592783652 | CT64: =COS(RADIANS(CK64))*COS(RADIANS(CM64-Insolation!$L$6))*SIN(RADIANS(Insolation!$L$7))+SIN(RADIANS(CK64))*COS(RADIANS(Insolation!$L$7)) -> 0.5763112254 | CU64: 545.335532 | CV64: 97.33154169 | CW64: 476.7075719 | CX64: =$CI$55*CR64*((1+COS(RADIANS(Insolation!$L$7)))/2) -> 89.81016436 | CY64: 783.0778186 | CZ64: 67.2524217 | DA64: 827.1703741 | DB64: 80.75006069 | DE64: 15.5 | DF64: 43.15848162 | DG64: -52.5 | DH64: -92.83204183 | DI64: -87.16795817 | DJ64: 267.1679582 | DK64: -92.83204183 | DL64: 1.461948353 | DM64: 805.7251304 | DN64: =COS(RADIANS(DF64))*COS(RADIANS(DH64-Insolation!$L$6))*SIN(RADIANS(0))+(SIN(RADIANS(DF64))*COS(RADIANS(0))) -> 0.684018692 | DO64: =COS(RADIANS(DF64))*COS(RADIANS(DH64-Insolation!$L$6))*SIN(RADIANS(Insolation!$L$7))+SIN(RADIANS(DF64))*COS(RADIANS(Insolation!$L$7)) -> 0.5590541544 | DP64: 551.1310498 | DQ64: 105.7760403 | DR64: 450.4439814 | DS64: =$DD$55*DM64*((1+COS(RADIANS(Insolation!$L$7)))/2) -> 97.60210717 | DT64: 739.9351535 | DU64: 70.84146902 | DV64: 805.7251304 | DW64: 89.0644145
D65: 16 | E65: 11.5485558 | F65: -60 | G65: -55.45807114 | H65: -55.45807114 | I65: 235.4580711 | J65: -124.5419289 | K65: 4.995047201 | L65: 615.1149507 | M65: =COS(RADIANS(E65))*COS(RADIANS(G65-Insolation!$L$6))*SIN(RADIANS(0))+(SIN(RADIANS(E65))*COS(RADIANS(0))) -> 0.2001983084 | N65: =COS(RADIANS(E65))*COS(RADIANS(G65-Insolation!$L$6))*SIN(RADIANS(Insolation!$L$7))+SIN(RADIANS(E65))*COS(RADIANS(Insolation!$L$7)) -> 0.4659423143 | O65: 123.1449726 | P65: 33.97358837 | Q65: 286.6080837 | R65: =$C$55*L65*((1+COS(RADIANS(Insolation!$L$7)))/2) -> 31.34825055 | S65: 573.2161674 | T65: 26.19317274 | U65: 615.1149507 | V65: 20.38752164 | Y65: 16 | Z65: 16.77674657 | AA65: -60 | AB65: -61.67904911 | AC65: -61.67904911 | AD65: 241.6790491 | AE65: -118.3209509 | AF65: 3.46448432 | AG65: 732.0748578 | AH65: =COS(RADIANS(Z65))*COS(RADIANS(AB65-Insolation!$L$6))*SIN(RADIANS(0))+(SIN(RADIANS(Z65))*COS(RADIANS(0))) -> 0.288643246 | AI65: =COS(RADIANS(Z65))*COS(RADIANS(AB65-Insolation!$L$6))*SIN(RADIANS(Insolation!$L$7))+SIN(RADIANS(Z65))*COS(RADIANS(Insolation!$L$7)) -> 0.4866111973 | AJ65: 211.3084633 | AK65: 46.0808593 | AL65: 356.2358231 | AM65: =$X$55*AG65*((1+COS(RADIANS(Insolation!$L$7)))/2) -> 42.51992187 | AN65: 712.4716461 | AO65: 34.58358788 | AP65: 732.0748578 | AQ65: 29.69089406 | AT65: 16 | AU65: 23.32513145 | AV65: -60 | AW65: -70.38359564 | AX65: -70.38359564 | AY65: 250.3835956 | AZ65: -109.6164044 | BA65: 2.52558213 | BB65: 792.3642188 | BC65: =COS(RADIANS(AU65))*COS(RADIANS(AW65-Insolation!$L$6))*SIN(RADIANS(0))+(SIN(RADIANS(AU65))*COS(RADIANS(0))) -> 0.3959483194 | BD65: =COS(RADIANS(AU65))*COS(RADIANS(AW65-Insolation!$L$6))*SIN(RADIANS(Insolation!$L$7))+SIN(RADIANS(AU65))*COS(RADIANS(Insolation!$L$7)) -> 0.4993949937 | BE65: 313.7352808 | BF65: 61.55796502 | BG65: 395.7027241 | BH65: =$AS$55*BB65*((1+COS(RADIANS(Insolation!$L$7)))/2) -> 56.80102113 | BI65: 791.4054481 | BJ65: 44.34108968 | BK65: 792.3642188 | BL65: 42.96586891 | BO65: 16 | BP65: 30.29101966 | BQ65: -60 | BR65: -81.66759071 | BS65: -81.66759071 | BT65: 261.6675907 | BU65: -98.33240929 | BV65: 1.982583826 | BW65: 805.4000848 | BX65: =COS(RADIANS(BP65))*COS(RADIANS(BR65-Insolation!$L$6))*SIN(RADIANS(0))+(SIN(RADIANS(BP65))*COS(RADIANS(0))) -> 0.504392292 | BY65: =COS(RADIANS(BP65))*COS(RADIANS(BR65-Insolation!$L$6))*SIN(RADIANS(Insolation!$L$7))+SIN(RADIANS(BP65))*COS(RADIANS(Insolation!$L$7)) -> 0.4932648368 | BZ65: 406.2375948 | CA65: 79.28245031 | CB65: 397.2755414 | CC65: =$BN$55*BW65*((1+COS(RADIANS(Insolation!$L$7)))/2) -> 73.1558318 | CD65: 794.5510828 | CE65: 53.76732457 | CF65: 805.4000848 | CG65: 59.63595357 | CJ65: 16 | CK65: 34.90571911 | CL65: -60 | CM65: -91.36609079 | CN65: -88.63390921 | CO65: 268.6339092 | CP65: -91.36609079 | CQ65: 1.747555977 | CR65: 790.9890609 | CS65: =COS(RADIANS(CK65))*COS(RADIANS(CM65-Insolation!$L$6))*SIN(RADIANS(0))+(SIN(RADIANS(CK65))*COS(RADIANS(0))) -> 0.572227736 | CT65: =COS(RADIANS(CK65))*COS(RADIANS(CM65-Insolation!$L$6))*SIN(RADIANS(Insolation!$L$7))+SIN(RADIANS(CK65))*COS(RADIANS(Insolation!$L$7)) -> 0.4733473557 | CU65: 452.6258795 | CV65: 93.07415639 | CW65: 374.4125804 | CX65: =$CI$55*CR65*((1+COS(RADIANS(Insolation!$L$7)))/2) -> 85.88177212 | CY65: 748.8251608 | CZ65: 59.45326187 | DA65: 790.9890609 | DB65: 73.16688509 | DE65: 16 | DF65: 36.83944442 | DG65: -60 | DH65: -96.41246048 | DI65: -83.58753952 | DJ65: 263.5875395 | DK65: -96.41246048 | DL65: 1.667848871 | DM65: 772.3050028 | DN65: =COS(RADIANS(DF65))*COS(RADIANS(DH65-Insolation!$L$6))*SIN(RADIANS(0))+(SIN(RADIANS(DF65))*COS(RADIANS(0))) -> 0.599574708 | DO65: =COS(RADIANS(DF65))*COS(RADIANS(DH65-Insolation!$L$6))*SIN(RADIANS(Insolation!$L$7))+SIN(RADIANS(DF65))*COS(RADIANS(Insolation!$L$7)) -> 0.4591734362 | DP65: 463.0545465 | DQ65: 101.3886275 | DR65: 354.6219419 | DS65: =$DD$55*DM65*((1+COS(RADIANS(Insolation!$L$7)))/2) -> 93.5537354 | DT65: 709.2438838 | DU65: 62.5502032 | DV65: 772.3050028 | DW65: 81.08934209
D66: 16.5 | E66: 6.186738196 | F66: -67.5 | G66: -59.99625641 | H66: -59.99625641 | I66: 239.9962564 | J66: -120.0037436 | K66: 9.279085185 | L66: 338.8172605 | M66: =COS(RADIANS(E66))*COS(RADIANS(G66-Insolation!$L$6))*SIN(RADIANS(0))+(SIN(RADIANS(E66))*COS(RADIANS(0))) -> 0.1077692445 | N66: =COS(RADIANS(E66))*COS(RADIANS(G66-Insolation!$L$6))*SIN(RADIANS(Insolation!$L$7))+SIN(RADIANS(E66))*COS(RADIANS(Insolation!$L$7)) -> 0.3566168082 | O66: 36.51408019 | P66: 18.71331225 | Q66: 120.82793 | R66: =$C$55*L66*((1+COS(RADIANS(Insolation!$L$7)))/2) -> 17.26722519 | S66: 315.738597 | T66: 13.67073505 | U66: 338.8172605 | V66: 10.36501589 | Y66: 16.5 | Z66: 11.07618596 | AA66: -67.5 | AB66: -66.37769466 | AC66: -66.37769466 | AD66: 246.3776947 | AE66: -113.6223053 | AF66: 5.205240229 | AG66: 567.8261722 | AH66: =COS(RADIANS(Z66))*COS(RADIANS(AB66-Insolation!$L$6))*SIN(RADIANS(0))+(SIN(RADIANS(Z66))*COS(RADIANS(0))) -> 0.192114092 | AI66: =COS(RADIANS(Z66))*COS(RADIANS(AB66-Insolation!$L$6))*SIN(RADIANS(Insolation!$L$7))+SIN(RADIANS(Z66))*COS(RADIANS(Insolation!$L$7)) -> 0.3724360864 | AJ66: 109.0874095 | AK66: 35.74213439 | AL66: 211.4789574 | AM66: =$X$55*AG66*((1+COS(RADIANS(Insolation!$L$7)))/2) -> 32.98013068 | AN66: 552.6211471 | AO66: 25.24383829 | AP66: 567.8261722 | AQ66: 21.30435104 | AT66: 16.5 | AU66: 17.27049918 | AV66: -67.5 | AW66: -75.08968604 | AX66: -75.08968604 | AY66: 255.089686 | AZ66: -104.910314 | BA66: 3.368327547 | BB66: 693.0822253 | BC66: =COS(RADIANS(AU66))*COS(RADIANS(AW66-Insolation!$L$6))*SIN(RADIANS(0))+(SIN(RADIANS(AU66))*COS(RADIANS(0))) -> 0.2968832413 | BD66: =COS(RADIANS(AU66))*COS(RADIANS(AW66-Insolation!$L$6))*SIN(RADIANS(Insolation!$L$7))+SIN(RADIANS(AU66))*COS(RADIANS(Insolation!$L$7)) -> 0.3822203806 | BE66: 205.7644975 | BF66: 53.84484857 | BG66: 264.9101519 | BH66: =$AS$55*BB66*((1+COS(RADIANS(Insolation!$L$7)))/2) -> 49.68394229 | BI66: 692.2435871 | BJ66: 36.16988903 | BK66: 693.0822253 | BL66: 34.91524087 | BO66: 16.5 | BP66: 23.9878716 | BQ66: -67.5 | BR66: -86.02579383 | BS66: -86.02579383 | BT66: 266.0257938 | BU66: -93.97420617 | BV66: 2.459762865 | BW66: 740.1658479 | BX66: =COS(RADIANS(BP66))*COS(RADIANS(BR66-Insolation!$L$6))*SIN(RADIANS(0))+(SIN(RADIANS(BP66))*COS(RADIANS(0))) -> 0.4065432543 | BY66: =COS(RADIANS(BP66))*COS(RADIANS(BR66-Insolation!$L$6))*SIN(RADIANS(Insolation!$L$7))+SIN(RADIANS(BP66))*COS(RADIANS(Insolation!$L$7)) -> 0.3775285616 | BZ66: 300.9094325 | CA66: 72.86088387 | CB66: 279.4337479 | CC66: =$BN$55*BW66*((1+COS(RADIANS(Insolation!$L$7)))/2) -> 67.23049735 | CD66: 730.1955723 | CE66: 45.59681257 | CF66: 740.1658479 | CG66: 51.24099235 | CJ66: 16.5 | CK66: 28.57637093 | CL66: -67.5 | CM66: -95.15242129 | CN66: -84.84757871 | CO66: 264.8475787 | CP66: -95.15242129 | CQ66: 2.090608072 | CR66: 740.1025709 | CS66: =COS(RADIANS(CK66))*COS(RADIANS(CM66-Insolation!$L$6))*SIN(RADIANS(0))+(SIN(RADIANS(CK66))*COS(RADIANS(0))) -> 0.4783297327 | CT66: =COS(RADIANS(CK66))*COS(RADIANS(CM66-Insolation!$L$6))*SIN(RADIANS(Insolation!$L$7))+SIN(RADIANS(CK66))*COS(RADIANS(Insolation!$L$7)) -> 0.3622843816 | CU66: 354.0130649 | CV66: 87.0864413 | CW66: 268.1276022 | CX66: =$CI$55*CR66*((1+COS(RADIANS(Insolation!$L$7)))/2) -> 80.35676278 | CY66: 700.6511897 | CZ66: 50.94304758 | DA66: 740.1025709 | DB66: 64.37123774 | DE66: 16.5 | DF66: 30.56319437 | DG66: -67.5 | DH66: -99.82427211 | DI66: -80.17572789 | DJ66: 260.1757279 | DK66: -99.82427211 | DL66: 1.966613248 | DM66: 726.2614922 | DN66: =COS(RADIANS(DF66))*COS(RADIANS(DH66-Insolation!$L$6))*SIN(RADIANS(0))+(SIN(RADIANS(DF66))*COS(RADIANS(0))) -> 0.5084883877 | DO66: =COS(RADIANS(DF66))*COS(RADIANS(DH66-Insolation!$L$6))*SIN(RADIANS(Insolation!$L$7))+SIN(RADIANS(DF66))*COS(RADIANS(Insolation!$L$7)) -> 0.3514361332 | DP66: 369.2955352 | DQ66: 95.34400996 | DR66: 255.2345305 | DS66: =$DD$55*DM66*((1+COS(RADIANS(Insolation!$L$7)))/2) -> 87.97622083 | DT66: 666.9599699 | DU66: 53.68715957 | DV66: 726.2614922 | DW66: 71.91266594
D67: 17 | E67: 0.5833621076 | F67: -75 | G67: -64.18148597 | H67: -64.18148597 | I67: 244.181486 | J67: -115.818514 | K67: 98.2181885 | L67: 0.001422878496 | M67: =COS(RADIANS(E67))*COS(RADIANS(G67-Insolation!$L$6))*SIN(RADIANS(0))+(SIN(RADIANS(E67))*COS(RADIANS(0))) -> 0.0101814136 | N67: =COS(RADIANS(E67))*COS(RADIANS(G67-Insolation!$L$6))*SIN(RADIANS(Insolation!$L$7))+SIN(RADIANS(E67))*COS(RADIANS(Insolation!$L$7)) -> 0.2411894897 | O67: 1.448691447e-05 | P67: 7.858740592e-05 | Q67: 0.0003431833384 | R67: =$C$55*L67*((1+COS(RADIANS(Insolation!$L$7)))/2) -> 7.251449756e-05 | S67: 0.001325958599 | T67: 5.391975802e-05 | U67: 0.001422878496 | V67: 3.96937684e-05 | Y67: 17 | Z67: 5.174959525 | AA67: -75 | AB67: -70.71858259 | AC67: -70.71858259 | AD67: 250.7185826 | AE67: -109.2814174 | AF67: 11.0868025 | AG67: 240.6605496 | AH67: =COS(RADIANS(Z67))*COS(RADIANS(AB67-Insolation!$L$6))*SIN(RADIANS(0))+(SIN(RADIANS(Z67))*COS(RADIANS(0))) -> 0.0901973315 | AI67: =COS(RADIANS(Z67))*COS(RADIANS(AB67-Insolation!$L$6))*SIN(RADIANS(Insolation!$L$7))+SIN(RADIANS(Z67))*COS(RADIANS(Insolation!$L$7)) -> 0.2518884908 | AJ67: 21.70693937 | AK67: 15.14851221 | AL67: 60.61962263 | AM67: =$X$55*AG67*((1+COS(RADIANS(Insolation!$L$7)))/2) -> 13.9778981 | AN67: 234.2162363 | AO67: 9.973103757 | AP67: 240.6605496 | AQ67: 8.257433795 | AT67: 17 | AU67: 11.08639894 | AV67: -75 | AW67: -79.45246757 | AX67: -79.45246757 | AY67: 259.4524676 | AZ67: -100.5475324 | BA67: 5.200504987 | BB67: 518.065679 | BC67: =COS(RADIANS(AU67))*COS(RADIANS(AW67-Insolation!$L$6))*SIN(RADIANS(0))+(SIN(RADIANS(AU67))*COS(RADIANS(0))) -> 0.1922890186 | BD67: =COS(RADIANS(AU67))*COS(RADIANS(AW67-Insolation!$L$6))*SIN(RADIANS(Insolation!$L$7))+SIN(RADIANS(AU67))*COS(RADIANS(Insolation!$L$7)) -> 0.2585058708 | BE67: 99.61834097 | BF67: 40.24799226 | BG67: 133.9230195 | BH67: =$AS$55*BB67*((1+COS(RADIANS(Insolation!$L$7)))/2) -> 37.13779456 | BI67: 517.438813 | BJ67: 24.96014367 | BK67: 518.065679 | BL67: 23.99361959 | BO67: 17 | BP67: 17.65188507 | BQ67: -75 | BR67: -90.11653778 | BS67: -89.88346222 | BT67: 269.8834622 | BU67: -90.11653778 | BV67: 3.297794725 | BW67: 638.1257045 | BX67: =COS(RADIANS(BP67))*COS(RADIANS(BR67-Insolation!$L$6))*SIN(RADIANS(0))+(SIN(RADIANS(BP67))*COS(RADIANS(0))) -> 0.3032329431 | BY67: =COS(RADIANS(BP67))*COS(RADIANS(BR67-Insolation!$L$6))*SIN(RADIANS(Insolation!$L$7))+SIN(RADIANS(BP67))*COS(RADIANS(Insolation!$L$7)) -> 0.2553326681 | BZ67: 193.5007354 | CA67: 62.81619584 | CB67: 162.9343387 | CC67: =$BN$55*BW67*((1+COS(RADIANS(Insolation!$L$7)))/2) -> 57.96202109 | CD67: 629.529943 | CE67: 35.90787111 | CF67: 638.1257045 | CG67: 40.93206789 | CJ67: 17 | CK67: 22.28357886 | CL67: -75 | CM67: -98.7955737 | CN67: -81.2044263 | CO67: 261.2044263 | CP67: -98.7955737 | CQ67: 2.63719356 | CR67: 665.7016701 | CS67: =COS(RADIANS(CK67))*COS(RADIANS(CM67-Insolation!$L$6))*SIN(RADIANS(0))+(SIN(RADIANS(CK67))*COS(RADIANS(0))) -> 0.379190976 | CT67: =COS(RADIANS(CK67))*COS(RADIANS(CM67-Insolation!$L$6))*SIN(RADIANS(Insolation!$L$7))+SIN(RADIANS(CK67))*COS(RADIANS(Insolation!$L$7)) -> 0.2450226212 | CU67: 252.428066 | CV67: 78.33183089 | CW67: 163.1119682 | CX67: =$CI$55*CR67*((1+COS(RADIANS(Insolation!$L$7)))/2) -> 72.2786723 | CY67: 630.2162505 | CZ67: 41.55124789 | DA67: 665.7016701 | DB67: 54.01727715 | DE67: 17 | DF67: 24.35054665 | DG67: -75 | DH67: -103.1763618 | DI67: -76.82363817 | DJ67: 256.8236382 | DK67: -103.1763618 | DL67: 2.42531107 | DM67: 660.8554466 | DN67: =COS(RADIANS(DF67))*COS(RADIANS(DH67-Insolation!$L$6))*SIN(RADIANS(0))+(SIN(RADIANS(DF67))*COS(RADIANS(0))) -> 0.4123182433 | DO67: =COS(RADIANS(DF67))*COS(RADIANS(DH67-Insolation!$L$6))*SIN(RADIANS(Insolation!$L$7))+SIN(RADIANS(DF67))*COS(RADIANS(Insolation!$L$7)) -> 0.2376856606 | DP67: 272.4827568 | DQ67: 86.75746816 | DR67: 157.0758634 | DS67: =$DD$55*DM67*((1+COS(RADIANS(Insolation!$L$7)))/2) -> 80.05321132 | DT67: 606.8945325 | DU67: 44.16315224 | DV67: 660.8554466 | DW67: 61.26457751
D68: 17.5 | E68: -5.215122573 | F68: -82.5 | G68: -68.08717047 | H68: -68.08717047 | I68: 248.0871705 | J68: -111.9128295 | K68: 11.00165328 | L68: 0 | M68: =COS(RADIANS(E68))*COS(RADIANS(G68-Insolation!$L$6))*SIN(RADIANS(0))+(SIN(RADIANS(E68))*COS(RADIANS(0))) -> -0.09089542946 | N68: =COS(RADIANS(E68))*COS(RADIANS(G68-Insolation!$L$6))*SIN(RADIANS(Insolation!$L$7))+SIN(RADIANS(E68))*COS(RADIANS(Insolation!$L$7)) -> 0.1216353522 | O68: 0 | P68: 0 | Q68: 0 | R68: =$C$55*L68*((1+COS(RADIANS(Insolation!$L$7)))/2) -> 0 | S68: 0 | T68: 0 | U68: 0 | V68: 0 | Y68: 17.5 | Z68: -0.8802817993 | AA68: -82.5 | AB68: -74.7986319 | AC68: -74.7986319 | AD68: 254.7986319 | AE68: -105.2013681 | AF68: =ABS(1/SIN(RADIANS(Z68))) -> 65.09055816 | AG68: 0 | AH68: =COS(RADIANS(Z68))*COS(RADIANS(AB68-Insolation!$L$6))*SIN(RADIANS(0))+(SIN(RADIANS(Z68))*COS(RADIANS(0))) -> -0.01536321132 | AI68: =COS(RADIANS(Z68))*COS(RADIANS(AB68-Insolation!$L$6))*SIN(RADIANS(Insolation!$L$7))+SIN(RADIANS(Z68))*COS(RADIANS(Insolation!$L$7)) -> 0.1270310134 | AJ68: 0 | AK68: 0 | AL68: 0 | AM68: =$X$55*AG68*((1+COS(RADIANS(Insolation!$L$7)))/2) -> 0 | AN68: 0 | AO68: 0 | AP68: 0 | AQ68: 0 | AT68: 17.5 | AU68: 4.81595251 | AV68: -82.5 | AW68: -83.59265699 | AX68: -83.59265699 | AY68: 263.592657 | AZ68: -96.40734301 | BA68: =ABS(1/SIN(RADIANS(AU68))) -> 11.91110209 | BB68: 178.413613 | BC68: =COS(RADIANS(AU68))*COS(RADIANS(AW68-Insolation!$L$6))*SIN(RADIANS(0))+(SIN(RADIANS(AU68))*COS(RADIANS(0))) -> 0.08395528743 | BD68: =COS(RADIANS(AU68))*COS(RADIANS(AW68-Insolation!$L$6))*SIN(RADIANS(Insolation!$L$7))+SIN(RADIANS(AU68))*COS(RADIANS(Insolation!$L$7)) -> 0.1303682539 | BE68: 14.97876616 | BF68: 13.86077095 | BG68: 23.25947119 | BH68: =$AS$55*BB68*((1+COS(RADIANS(Insolation!$L$7)))/2) -> 12.78966813 | BI68: 178.1977303 | BJ68: 7.851149171 | BK68: 178.413613 | BL68: 7.51222798 | BO68: 17.5 | BP68: 11.31652885 | BQ68: -82.5 | BR68: -94.06623441 | BS68: -85.93376559 | BT68: 265.9337656 | BU68: -94.06623441 | BV68: =ABS(1/SIN(RADIANS(BP68))) -> 5.096086025 | BW68: 464.1565861 | BX68: =COS(RADIANS(BP68))*COS(RADIANS(BR68-Insolation!$L$6))*SIN(RADIANS(0))+(SIN(RADIANS(BP68))*COS(RADIANS(0))) -> 0.1962290266 | BY68: =COS(RADIANS(BP68))*COS(RADIANS(BR68-Insolation!$L$6))*SIN(RADIANS(Insolation!$L$7))+SIN(RADIANS(BP68))*COS(RADIANS(Insolation!$L$7)) -> 0.1287679618 | BZ68: 91.08099506 | CA68: 45.69092078 | CB68: 59.76849756 | CC68: =$BN$55*BW68*((1+COS(RADIANS(Insolation!$L$7)))/2) -> 42.16011617 | CD68: 457.9042454 | CE68: 23.60355747 | CF68: 464.1565861 | CG68: 27.32840284 | CJ68: 17.5 | CK68: 16.05188685 | CL68: -82.5 | CM68: -102.3994074 | CN68: -77.60059262 | CO68: 257.6005926 | CP68: -102.3994074 | CQ68: =ABS(1/SIN(RADIANS(CK68))) -> 3.616535059 | CR68: 550.6015442 | CS68: =COS(RADIANS(CK68))*COS(RADIANS(CM68-Insolation!$L$6))*SIN(RADIANS(0))+(SIN(RADIANS(CK68))*COS(RADIANS(0))) -> 0.2765077577 | CT68: =COS(RADIANS(CK68))*COS(RADIANS(CM68-Insolation!$L$6))*SIN(RADIANS(Insolation!$L$7))+SIN(RADIANS(CK68))*COS(RADIANS(Insolation!$L$7)) -> 0.1235684559 | CU68: 152.2455984 | CV68: 64.78822119 | CW68: 68.03698262 | CX68: =$CI$55*CR68*((1+COS(RADIANS(Insolation!$L$7)))/2) -> 59.78165651 | CY68: 521.25157 | CZ68: 30.84553182 | DA68: 550.6015442 | DB68: 41.35133348 | DE68: 17.5 | DF68: 18.22261009 | DG68: -82.5 | DH68: -106.5516193 | DI68: -73.44838073 | DJ68: 253.4483807 | DK68: -106.5516193 | DL68: =ABS(1/SIN(RADIANS(DF68))) -> 3.197853369 | DM68: 563.737117 | DN68: =COS(RADIANS(DF68))*COS(RADIANS(DH68-Insolation!$L$6))*SIN(RADIANS(0))+(SIN(RADIANS(DF68))*COS(RADIANS(0))) -> 0.3127097727 | DO68: =COS(RADIANS(DF68))*COS(RADIANS(DH68-Insolation!$L$6))*SIN(RADIANS(Insolation!$L$7))+SIN(RADIANS(DF68))*COS(RADIANS(Insolation!$L$7)) -> 0.1198683204 | DP68: 176.2861057 | DQ68: 74.00772019 | DR68: 67.57422136 | DS68: =$DD$55*DM68*((1+COS(RADIANS(Insolation!$L$7)))/2) -> 68.28871093 | DT68: 517.7062183 | DU68: 33.71970303 | DV68: 563.737117 | DW68: 48.57532877
D69: 18 | E69: -11.17065026 | F69: -90 | G69: -71.7832256 | H69: -71.7832256 | I69: 251.7832256 | J69: -108.2167744 | K69: 5.161774347 | L69: 0 | M69: =COS(RADIANS(E69))*COS(RADIANS(G69-Insolation!$L$6))*SIN(RADIANS(0))+(SIN(RADIANS(E69))*COS(RADIANS(0))) -> -0.1937318319 | N69: =COS(RADIANS(E69))*COS(RADIANS(G69-Insolation!$L$6))*SIN(RADIANS(Insolation!$L$7))+SIN(RADIANS(E69))*COS(RADIANS(Insolation!$L$7)) -> 0 | O69: 0 | P69: 0 | Q69: 0 | R69: =$C$55*L69*((1+COS(RADIANS(Insolation!$L$7)))/2) -> 0 | S69: 0 | T69: 0 | U69: 0 | V69: 0 | Y69: 18 | Z69: -7.051495819 | AA69: -90 | AB69: -78.70733624 | AC69: -78.70733624 | AD69: 258.7073362 | AE69: -101.2926638 | AF69: 8.145885222 | AG69: 0 | AH69: =COS(RADIANS(Z69))*COS(RADIANS(AB69-Insolation!$L$6))*SIN(RADIANS(0))+(SIN(RADIANS(Z69))*COS(RADIANS(0))) -> -0.1227613664 | AI69: =COS(RADIANS(Z69))*COS(RADIANS(AB69-Insolation!$L$6))*SIN(RADIANS(Insolation!$L$7))+SIN(RADIANS(Z69))*COS(RADIANS(Insolation!$L$7)) -> -2.636779683e-16 | AJ69: 0 | AK69: 0 | AL69: 0 | AM69: =$X$55*AG69*((1+COS(RADIANS(Insolation!$L$7)))/2) -> 0 | AN69: 0 | AO69: 0 | AP69: 0 | AQ69: 0 | AT69: 18 | AU69: -1.505008436 | AV69: -90 | AW69: -87.61623542 | AX69: -87.61623542 | AY69: 267.6162354 | AZ69: -92.38376458 | BA69: =ABS(1/SIN(RADIANS(AU69))) -> 38.07445024 | BB69: 0 | BC69: =COS(RADIANS(AU69))*COS(RADIANS(AW69-Insolation!$L$6))*SIN(RADIANS(0))+(SIN(RADIANS(AU69))*COS(RADIANS(0))) -> -0.02626433195 | BD69: =COS(RADIANS(AU69))*COS(RADIANS(AW69-Insolation!$L$6))*SIN(RADIANS(Insolation!$L$7))+SIN(RADIANS(AU69))*COS(RADIANS(Insolation!$L$7)) -> -1.595945598e-16 | BE69: 0 | BF69: 0 | BG69: 0 | BH69: =$AS$55*BB69*((1+COS(RADIANS(Insolation!$L$7)))/2) -> 0 | BI69: 0 | BJ69: 0 | BK69: 0 | BL69: 0 | BO69: 18 | BP69: 5.01188428 | BQ69: -90 | BR69: -97.98022277 | BS69: -82.01977723 | BT69: 262.0197772 | BU69: -97.98022277 | BV69: =ABS(1/SIN(RADIANS(BP69))) -> 11.44657573 | BW69: 150.8264151 | BX69: =COS(RADIANS(BP69))*COS(RADIANS(BR69-Insolation!$L$6))*SIN(RADIANS(0))+(SIN(RADIANS(BP69))*COS(RADIANS(0))) -> 0.08736237139 | BY69: =COS(RADIANS(BP69))*COS(RADIANS(BR69-Insolation!$L$6))*SIN(RADIANS(Insolation!$L$7))+SIN(RADIANS(BP69))*COS(RADIANS(Insolation!$L$7)) -> -7.632783294e-16 | BZ69: 13.17655329 | CA69: 14.84713993 | CB69: 0 | CC69: =$BN$55*BW69*((1+COS(RADIANS(Insolation!$L$7)))/2) -> 13.69981462 | CD69: 148.7947341 | CE69: 6.853652172 | CF69: 150.8264151 | CG69: 8.072110643 | CJ69: 18 | CK69: 9.90627664 | CL69: -90 | CM69: -106.0495217 | CN69: -73.95047831 | CO69: 253.9504783 | CP69: -106.0495217 | CQ69: =ABS(1/SIN(RADIANS(CK69))) -> 5.812702539 | CR69: 359.7172251 | CS69: =COS(RADIANS(CK69))*COS(RADIANS(CM69-Insolation!$L$6))*SIN(RADIANS(0))+(SIN(RADIANS(CK69))*COS(RADIANS(0))) -> 0.172037016 | CT69: =COS(RADIANS(CK69))*COS(RADIANS(CM69-Insolation!$L$6))*SIN(RADIANS(Insolation!$L$7))+SIN(RADIANS(CK69))*COS(RADIANS(Insolation!$L$7)) -> 0 | CU69: 61.88467802 | CV69: 42.32723171 | CW69: 0 | CX69: =$CI$55*CR69*((1+COS(RADIANS(Insolation!$L$7)))/2) -> 39.05635903 | CY69: 340.5423946 | CZ69: 17.89462481 | DA69: 359.7172251 | DB69: 24.80454118 | DE69: 18 | DF69: 12.2024918 | DG69: -90 | DH69: -110.0196999 | DI69: -69.98030007 | DJ69: 249.9803001 | DK69: -110.0196999 | DL69: =ABS(1/SIN(RADIANS(DF69))) -> 4.731100695 | DM69: 411.2204009 | DN69: =COS(RADIANS(DF69))*COS(RADIANS(DH69-Insolation!$L$6))*SIN(RADIANS(0))+(SIN(RADIANS(DF69))*COS(RADIANS(0))) -> 0.2113673043 | DO69: =COS(RADIANS(DF69))*COS(RADIANS(DH69-Insolation!$L$6))*SIN(RADIANS(Insolation!$L$7))+SIN(RADIANS(DF69))*COS(RADIANS(Insolation!$L$7)) -> 0 | DP69: 86.91854759 | DQ69: 53.98524143 | DR69: 0 | DS69: =$DD$55*DM69*((1+COS(RADIANS(Insolation!$L$7)))/2) -> 49.81348617 | DT69: 377.642969 | DU69: 21.7904387 | DV69: 411.2204009 | DW69: 32.69797819
D70: 18.5 | E70: -17.25159942 | F70: -97.5 | G70: -75.33793228 | H70: -75.33793228 | I70: 255.3379323 | J70: -104.6620677 | K70: 3.371905296 | L70: 0 | M70: =COS(RADIANS(E70))*COS(RADIANS(G70-Insolation!$L$6))*SIN(RADIANS(0))+(SIN(RADIANS(E70))*COS(RADIANS(0))) -> -0.2965682343 | N70: =COS(RADIANS(E70))*COS(RADIANS(G70-Insolation!$L$6))*SIN(RADIANS(Insolation!$L$7))+SIN(RADIANS(E70))*COS(RADIANS(Insolation!$L$7)) -> -0.1216353522 | O70: 0 | P70: 0 | Q70: 0 | R70: =$C$55*L70*((1+COS(RADIANS(Insolation!$L$7)))/2) -> 0 | S70: 0 | T70: 0 | U70: 0 | V70: 0 | Y70: 18.5 | Z70: -13.30646362 | AA70: -97.5 | AB70: -82.5311366 | AC70: -82.5311366 | AD70: 262.5311366 | AE70: -97.4688634 | AF70: 4.34481265 | AG70: 0 | AH70: =COS(RADIANS(Z70))*COS(RADIANS(AB70-Insolation!$L$6))*SIN(RADIANS(0))+(SIN(RADIANS(Z70))*COS(RADIANS(0))) -> -0.2301595214 | AI70: =COS(RADIANS(Z70))*COS(RADIANS(AB70-Insolation!$L$6))*SIN(RADIANS(Insolation!$L$7))+SIN(RADIANS(Z70))*COS(RADIANS(Insolation!$L$7)) -> -0.1270310134 | AJ70: 0 | AK70: 0 | AL70: 0 | AM70: =$X$55*AG70*((1+COS(RADIANS(Insolation!$L$7)))/2) -> 0 | AN70: 0 | AO70: 0 | AP70: 0 | AQ70: 0 | AT70: 18.5 | AU70: -7.844438362 | AV70: -97.5 | AW70: -91.62230881 | AX70: -88.37769119 | AY70: 268.3776912 | AZ70: -91.62230881 | BA70: 7.326868765 | BB70: 0 | BC70: =COS(RADIANS(AU70))*COS(RADIANS(AW70-Insolation!$L$6))*SIN(RADIANS(0))+(SIN(RADIANS(AU70))*COS(RADIANS(0))) -> -0.1364839513 | BD70: =COS(RADIANS(AU70))*COS(RADIANS(AW70-Insolation!$L$6))*SIN(RADIANS(Insolation!$L$7))+SIN(RADIANS(AU70))*COS(RADIANS(Insolation!$L$7)) -> -0.1303682539 | BE70: 0 | BF70: 0 | BG70: 0 | BH70: =$AS$55*BB70*((1+COS(RADIANS(Insolation!$L$7)))/2) -> 0 | BI70: 0 | BJ70: 0 | BK70: 0 | BL70: 0 | BO70: 18.5 | BP70: -1.232199683 | BQ70: -97.5 | BR70: -101.9535028 | BS70: -78.04649722 | BT70: 258.0464972 | BU70: -101.9535028 | BV70: 46.50236251 | BW70: 0 | BX70: =COS(RADIANS(BP70))*COS(RADIANS(BR70-Insolation!$L$6))*SIN(RADIANS(0))+(SIN(RADIANS(BP70))*COS(RADIANS(0))) -> -0.02150428378 | BY70: =COS(RADIANS(BP70))*COS(RADIANS(BR70-Insolation!$L$6))*SIN(RADIANS(Insolation!$L$7))+SIN(RADIANS(BP70))*COS(RADIANS(Insolation!$L$7)) -> -0.1287679618 | BZ70: 0 | CA70: 0 | CB70: 0 | CC70: =$BN$55*BW70*((1+COS(RADIANS(Insolation!$L$7)))/2) -> 0 | CD70: 0 | CE70: 0 | CF70: 0 | CG70: 0 | CJ70: 18.5 | CK70: 3.874213941 | CL70: -97.5 | CM70: -109.8228827 | CN70: -70.17711732 | CO70: 250.1771173 | CP70: -109.8228827 | CQ70: 14.80028327 | CR70: 63.00502388 | CS70: =COS(RADIANS(CK70))*COS(RADIANS(CM70-Insolation!$L$6))*SIN(RADIANS(0))+(SIN(RADIANS(CK70))*COS(RADIANS(0))) -> 0.06756627436 | CT70: =COS(RADIANS(CK70))*COS(RADIANS(CM70-Insolation!$L$6))*SIN(RADIANS(Insolation!$L$7))+SIN(RADIANS(CK70))*COS(RADIANS(Insolation!$L$7)) -> -0.1235684559 | CU70: 4.257014729 | CV70: 7.413679576 | CW70: 0 | CX70: =$CI$55*CR70*((1+COS(RADIANS(Insolation!$L$7)))/2) -> 6.840781207 | CY70: 59.6465229 | CZ70: 2.752582916 | DA70: 63.00502388 | DB70: 3.957297142 | DE70: 18.5 | DF70: 6.316747249 | DG70: -97.5 | DH70: -113.644461 | DI70: -66.35553895 | DJ70: 246.355539 | DK70: -113.644461 | DL70: 9.088857004 | DM70: 167.7610503 | DN70: =COS(RADIANS(DF70))*COS(RADIANS(DH70-Insolation!$L$6))*SIN(RADIANS(0))+(SIN(RADIANS(DF70))*COS(RADIANS(0))) -> 0.1100248359 | DO70: =COS(RADIANS(DF70))*COS(RADIANS(DH70-Insolation!$L$6))*SIN(RADIANS(Insolation!$L$7))+SIN(RADIANS(DF70))*COS(RADIANS(Insolation!$L$7)) -> -0.1198683204 | DP70: 18.45788202 | DQ70: 22.02376337 | DR70: 0 | DS70: =$DD$55*DM70*((1+COS(RADIANS(Insolation!$L$7)))/2) -> 20.3218584 | DT70: 154.0628358 | DU70: 7.79274866 | DV70: 167.7610503 | DW70: 12.22346216
D71: 19 | E71: -23.4310432 | F71: -105 | G71: -78.82140263 | H71: -78.82140263 | I71: 258.8214026 | J71: -101.1785974 | K71: 2.514805431 | L71: 0 | M71: =COS(RADIANS(E71))*COS(RADIANS(G71-Insolation!$L$6))*SIN(RADIANS(0))+(SIN(RADIANS(E71))*COS(RADIANS(0))) -> -0.3976450774 | N71: =COS(RADIANS(E71))*COS(RADIANS(G71-Insolation!$L$6))*SIN(RADIANS(Insolation!$L$7))+SIN(RADIANS(E71))*COS(RADIANS(Insolation!$L$7)) -> -0.2411894897 | O71: 0 | P71: 0 | Q71: 0 | R71: =$C$55*L71*((1+COS(RADIANS(Insolation!$L$7)))/2) -> 0 | S71: 0 | T71: 0 | U71: 0 | V71: 0 | Y71: 19 | Z71: -19.61633062 | AA71: -105 | AB71: -86.35914743 | AC71: -86.35914743 | AD71: 266.3591474 | AE71: -93.64085257 | AF71: 2.978672134 | AG71: 0 | AH71: =COS(RADIANS(Z71))*COS(RADIANS(AB71-Insolation!$L$6))*SIN(RADIANS(0))+(SIN(RADIANS(Z71))*COS(RADIANS(0))) -> -0.3357200642 | AI71: =COS(RADIANS(Z71))*COS(RADIANS(AB71-Insolation!$L$6))*SIN(RADIANS(Insolation!$L$7))+SIN(RADIANS(Z71))*COS(RADIANS(Insolation!$L$7)) -> -0.2518884908 | AJ71: 0 | AK71: 0 | AL71: 0 | AM71: =$X$55*AG71*((1+COS(RADIANS(Insolation!$L$7)))/2) -> 0 | AN71: 0 | AO71: 0 | AP71: 0 | AQ71: 0 | AT71: 19 | AU71: -14.17105959 | AV71: -105 | AW71: -95.71077206 | AX71: -84.28922794 | AY71: 264.2892279 | AZ71: -95.71077206 | BA71: 4.084672275 | BB71: 0 | BC71: =COS(RADIANS(AU71))*COS(RADIANS(AW71-Insolation!$L$6))*SIN(RADIANS(0))+(SIN(RADIANS(AU71))*COS(RADIANS(0))) -> -0.2448176825 | BD71: =COS(RADIANS(AU71))*COS(RADIANS(AW71-Insolation!$L$6))*SIN(RADIANS(Insolation!$L$7))+SIN(RADIANS(AU71))*COS(RADIANS(Insolation!$L$7)) -> -0.2585058708 | BE71: 0 | BF71: 0 | BG71: 0 | BH71: =$AS$55*BB71*((1+COS(RADIANS(Insolation!$L$7)))/2) -> 0 | BI71: 0 | BJ71: 0 | BK71: 0 | BL71: 0 | BO71: 19 | BP71: -7.383395419 | BQ71: -105 | BR71: -106.0788011 | BS71: -73.92119893 | BT71: 253.9211989 | BU71: -106.0788011 | BV71: 7.78160458 | BW71: 0 | BX71: =COS(RADIANS(BP71))*COS(RADIANS(BR71-Insolation!$L$6))*SIN(RADIANS(0))+(SIN(RADIANS(BP71))*COS(RADIANS(0))) -> -0.1285082003 | BY71: =COS(RADIANS(BP71))*COS(RADIANS(BR71-Insolation!$L$6))*SIN(RADIANS(Insolation!$L$7))+SIN(RADIANS(BP71))*COS(RADIANS(Insolation!$L$7)) -> -0.2553326681 | BZ71: 0 | CA71: 0 | CB71: 0 | CC71: =$BN$55*BW71*((1+COS(RADIANS(Insolation!$L$7)))/2) -> 0 | CD71: 0 | CE71: 0 | CF71: 0 | CG71: 0 | CJ71: 19 | CK71: -2.012466452 | CL71: -105 | CM71: -113.7940976 | CN71: -66.20590244 | CO71: 246.2059024 | CP71: -113.7940976 | CQ71: 28.47628202 | CR71: 0 | CS71: =COS(RADIANS(CK71))*COS(RADIANS(CM71-Insolation!$L$6))*SIN(RADIANS(0))+(SIN(RADIANS(CK71))*COS(RADIANS(0))) -> -0.03511694397 | CT71: =COS(RADIANS(CK71))*COS(RADIANS(CM71-Insolation!$L$6))*SIN(RADIANS(Insolation!$L$7))+SIN(RADIANS(CK71))*COS(RADIANS(Insolation!$L$7)) -> -0.2450226212 | CU71: 0 | CV71: 0 | CW71: 0 | CX71: =$CI$55*CR71*((1+COS(RADIANS(Insolation!$L$7)))/2) -> 0 | CY71: 0 | CZ71: 0 | DA71: 0 | DB71: 0 | DE71: 19 | DF71: 0.5968245556 | DG71: -105 | DH71: -117.4885504 | DI71: -62.51144964 | DJ71: 242.5114496 | DK71: -117.4885504 | DL71: 96.00277859 | DM71: 2.874573715e-06 | DN71: =COS(RADIANS(DF71))*COS(RADIANS(DH71-Insolation!$L$6))*SIN(RADIANS(0))+(SIN(RADIANS(DF71))*COS(RADIANS(0))) -> 0.01041636518 | DO71: =COS(RADIANS(DF71))*COS(RADIANS(DH71-Insolation!$L$6))*SIN(RADIANS(Insolation!$L$7))+SIN(RADIANS(DF71))*COS(RADIANS(Insolation!$L$7)) -> -0.2376856606 | DP71: 2.994260955e-08 | DQ71: 3.773756256e-07 | DR71: 0 | DS71: =$DD$55*DM71*((1+COS(RADIANS(Insolation!$L$7)))/2) -> 3.482136044e-07 | DT71: 2.639855781e-06 | DU71: 1.158186226e-07 | DV71: 2.874573715e-06 | DW71: 1.906532539e-07
D72: 19.5 | E72: -29.68510974 | F72: -112.5 | G72: -82.31099709 | H72: -82.31099709 | I72: 262.3109971 | J72: -97.68900291 | K72: 2.019251918 | L72: 0 | M72: =COS(RADIANS(E72))*COS(RADIANS(G72-Insolation!$L$6))*SIN(RADIANS(0))+(SIN(RADIANS(E72))*COS(RADIANS(0))) -> -0.4952329083 | N72: =COS(RADIANS(E72))*COS(RADIANS(G72-Insolation!$L$6))*SIN(RADIANS(Insolation!$L$7))+SIN(RADIANS(E72))*COS(RADIANS(Insolation!$L$7)) -> -0.3566168082 | O72: 0 | P72: 0 | Q72: 0 | R72: =$C$55*L72*((1+COS(RADIANS(Insolation!$L$7)))/2) -> 0 | S72: 0 | T72: 0 | U72: 0 | V72: 0 | Y72: 19.5 | Z72: -25.9531982 | AA72: -112.5 | AB72: -90.29074949 | AC72: -89.70925051 | AD72: 269.7092505 | AE72: -90.29074949 | AF72: 2.28499967 | AG72: 0 | AH72: =COS(RADIANS(Z72))*COS(RADIANS(AB72-Insolation!$L$6))*SIN(RADIANS(0))+(SIN(RADIANS(Z72))*COS(RADIANS(0))) -> -0.4376368247 | AI72: =COS(RADIANS(Z72))*COS(RADIANS(AB72-Insolation!$L$6))*SIN(RADIANS(Insolation!$L$7))+SIN(RADIANS(Z72))*COS(RADIANS(Insolation!$L$7)) -> -0.3724360864 | AJ72: 0 | AK72: 0 | AL72: 0 | AM72: =$X$55*AG72*((1+COS(RADIANS(Insolation!$L$7)))/2) -> 0 | AN72: 0 | AO72: 0 | AP72: 0 | AQ72: 0 | AT72: 19.5 | AU72: -20.45134883 | AV72: -112.5 | AW72: -99.99046149 | AX72: -80.00953851 | AY72: 260.0095385 | AZ72: -99.99046149 | BA72: 2.861951711 | BB72: 0 | BC72: =COS(RADIANS(AU72))*COS(RADIANS(AW72-Insolation!$L$6))*SIN(RADIANS(0))+(SIN(RADIANS(AU72))*COS(RADIANS(0))) -> -0.3494119052 | BD72: =COS(RADIANS(AU72))*COS(RADIANS(AW72-Insolation!$L$6))*SIN(RADIANS(Insolation!$L$7))+SIN(RADIANS(AU72))*COS(RADIANS(Insolation!$L$7)) -> -0.3822203806 | BE72: 0 | BF72: 0 | BG72: 0 | BH72: =$AS$55*BB72*((1+COS(RADIANS(Insolation!$L$7)))/2) -> 0 | BI72: 0 | BJ72: 0 | BK72: 0 | BL72: 0 | BO72: 19.5 | BP72: -13.40415879 | BQ72: -112.5 | BR72: -110.4531557 | BS72: -69.54684429 | BT72: 249.5468443 | BU72: -110.4531557 | BV72: 4.313719356 | BW72: 0 | BX72: =COS(RADIANS(BP72))*COS(RADIANS(BR72-Insolation!$L$6))*SIN(RADIANS(0))+(SIN(RADIANS(BP72))*COS(RADIANS(0))) -> -0.2318185115 | BY72: =COS(RADIANS(BP72))*COS(RADIANS(BR72-Insolation!$L$6))*SIN(RADIANS(Insolation!$L$7))+SIN(RADIANS(BP72))*COS(RADIANS(Insolation!$L$7)) -> -0.3775285616 | BZ72: 0 | CA72: 0 | CB72: 0 | CC72: =$BN$55*BW72*((1+COS(RADIANS(Insolation!$L$7)))/2) -> 0 | CD72: 0 | CE72: 0 | CF72: 0 | CG72: 0 | CJ72: 19.5 | CK72: -7.715582874 | CL72: -112.5 | CM72: -118.0396503 | CN72: -61.96034969 | CO72: 241.9603497 | CP72: -118.0396503 | CQ72: 7.44847329 | CR72: 0 | CS72: =COS(RADIANS(CK72))*COS(RADIANS(CM72-Insolation!$L$6))*SIN(RADIANS(0))+(SIN(RADIANS(CK72))*COS(RADIANS(0))) -> -0.1342557006 | CT72: =COS(RADIANS(CK72))*COS(RADIANS(CM72-Insolation!$L$6))*SIN(RADIANS(Insolation!$L$7))+SIN(RADIANS(CK72))*COS(RADIANS(Insolation!$L$7)) -> -0.3622843816 | CU72: 0 | CV72: 0 | CW72: 0 | CX72: =$CI$55*CR72*((1+COS(RADIANS(Insolation!$L$7)))/2) -> 0 | CY72: 0 | CZ72: 0 | DA72: 0 | DB72: 0 | DE72: 19.5 | DF72: -4.919371509 | DG72: -112.5 | DH72: -121.6161954 | DI72: -58.38380461 | DJ72: 238.3838046 | DK72: -121.6161954 | DL72: 11.66129364 | DM72: 0 | DN72: =COS(RADIANS(DF72))*COS(RADIANS(DH72-Insolation!$L$6))*SIN(RADIANS(0))+(SIN(RADIANS(DF72))*COS(RADIANS(0))) -> -0.08575377921 | DO72: =COS(RADIANS(DF72))*COS(RADIANS(DH72-Insolation!$L$6))*SIN(RADIANS(Insolation!$L$7))+SIN(RADIANS(DF72))*COS(RADIANS(Insolation!$L$7)) -> -0.3514361332 | DP72: 0 | DQ72: 0 | DR72: 0 | DS72: =$DD$55*DM72*((1+COS(RADIANS(Insolation!$L$7)))/2) -> 0 | DT72: 0 | DU72: 0 | DV72: 0 | DW72: 0
D73: 20 | E73: -35.9912696 | F73: -120 | G73: -85.8998938 | H73: -85.8998938 | I73: 265.8998938 | J73: -94.1001062 | K73: 1.701658517 | L73: 0 | M73: =COS(RADIANS(E73))*COS(RADIANS(G73-Insolation!$L$6))*SIN(RADIANS(0))+(SIN(RADIANS(E73))*COS(RADIANS(0))) -> -0.5876619722 | N73: =COS(RADIANS(E73))*COS(RADIANS(G73-Insolation!$L$6))*SIN(RADIANS(Insolation!$L$7))+SIN(RADIANS(E73))*COS(RADIANS(Insolation!$L$7)) -> -0.4659423143 | O73: 0 | P73: 0 | Q73: 0 | R73: =$C$55*L73*((1+COS(RADIANS(Insolation!$L$7)))/2) -> 0 | S73: 0 | T73: 0 | U73: 0 | V73: 0 | Y73: 20 | Z73: -32.28736781 | AA73: -120 | AB73: -94.44636778 | AC73: -85.55363222 | AD73: 265.5536322 | AE73: -94.44636778 | AF73: 1.872077294 | AG73: 0 | AH73: =COS(RADIANS(Z73))*COS(RADIANS(AB73-Insolation!$L$6))*SIN(RADIANS(0))+(SIN(RADIANS(Z73))*COS(RADIANS(0))) -> -0.5341659787 | AI73: =COS(RADIANS(Z73))*COS(RADIANS(AB73-Insolation!$L$6))*SIN(RADIANS(Insolation!$L$7))+SIN(RADIANS(Z73))*COS(RADIANS(Insolation!$L$7)) -> -0.4866111973 | AJ73: 0 | AK73: 0 | AL73: 0 | AM73: =$X$55*AG73*((1+COS(RADIANS(Insolation!$L$7)))/2) -> 0 | AN73: 0 | AO73: 0 | AP73: 0 | AQ73: 0 | AT73: 20 | AU73: -26.6460107 | AV73: -120 | AW73: -104.5886832 | AX73: -75.41131684 | AY73: 255.4113168 | AZ73: -104.5886832 | BA73: 2.229768834 | BB73: 0 | BC73: =COS(RADIANS(AU73))*COS(RADIANS(AW73-Insolation!$L$6))*SIN(RADIANS(0))+(SIN(RADIANS(AU73))*COS(RADIANS(0))) -> -0.4484769833 | BD73: =COS(RADIANS(AU73))*COS(RADIANS(AW73-Insolation!$L$6))*SIN(RADIANS(Insolation!$L$7))+SIN(RADIANS(AU73))*COS(RADIANS(Insolation!$L$7)) -> -0.4993949937 | BE73: 0 | BF73: 0 | BG73: 0 | BH73: =$AS$55*BB73*((1+COS(RADIANS(Insolation!$L$7)))/2) -> 0 | BI73: 0 | BJ73: 0 | BK73: 0 | BL73: 0 | BO73: 20 | BP73: -19.24859833 | BQ73: -120 | BR73: -115.1835784 | BS73: -64.81642158 | BT73: 244.8164216 | BU73: -115.1835784 | BV73: 3.033358916 | BW73: 0 | BX73: =COS(RADIANS(BP73))*COS(RADIANS(BR73-Insolation!$L$6))*SIN(RADIANS(0))+(SIN(RADIANS(BP73))*COS(RADIANS(0))) -> -0.3296675493 | BY73: =COS(RADIANS(BP73))*COS(RADIANS(BR73-Insolation!$L$6))*SIN(RADIANS(Insolation!$L$7))+SIN(RADIANS(BP73))*COS(RADIANS(Insolation!$L$7)) -> -0.4932648368 | BZ73: 0 | CA73: 0 | CB73: 0 | CC73: =$BN$55*BW73*((1+COS(RADIANS(Insolation!$L$7)))/2) -> 0 | CD73: 0 | CE73: 0 | CF73: 0 | CG73: 0 | CJ73: 20 | CK73: -13.18839691 | CL73: -120 | CM73: -122.6405171 | CN73: -57.35948287 | CO73: 237.3594829 | CP73: -122.6405171 | CQ73: 4.38301015 | CR73: 0 | CS73: =COS(RADIANS(CK73))*COS(RADIANS(CM73-Insolation!$L$6))*SIN(RADIANS(0))+(SIN(RADIANS(CK73))*COS(RADIANS(0))) -> -0.2281537039 | CT73: =COS(RADIANS(CK73))*COS(RADIANS(CM73-Insolation!$L$6))*SIN(RADIANS(Insolation!$L$7))+SIN(RADIANS(CK73))*COS(RADIANS(Insolation!$L$7)) -> -0.4733473557 | CU73: 0 | CV73: 0 | CW73: 0 | CX73: =$CI$55*CR73*((1+COS(RADIANS(Insolation!$L$7)))/2) -> 0 | CY73: 0 | CZ73: 0 | DA73: 0 | DB73: 0 | DE73: 20 | DF73: -10.18575835 | DG73: -120 | DH73: -126.0944583 | DI73: -53.90554166 | DJ73: 233.9055417 | DK73: -126.0944583 | DL73: 5.654826043 | DM73: 0 | DN73: =COS(RADIANS(DF73))*COS(RADIANS(DH73-Insolation!$L$6))*SIN(RADIANS(0))+(SIN(RADIANS(DF73))*COS(RADIANS(0))) -> -0.1768400995 | DO73: =COS(RADIANS(DF73))*COS(RADIANS(DH73-Insolation!$L$6))*SIN(RADIANS(Insolation!$L$7))+SIN(RADIANS(DF73))*COS(RADIANS(Insolation!$L$7)) -> -0.4591734362 | DP73: 0 | DQ73: 0 | DR73: 0 | DS73: =$DD$55*DM73*((1+COS(RADIANS(Insolation!$L$7)))/2) -> 0 | DT73: 0 | DU73: 0 | DV73: 0 | DW73: 0
D74: 20.5 | E74: -42.32620955 | F74: -127.5 | G74: -89.71153835 | H74: -89.71153835 | I74: 269.7115383 | J74: -90.28846165 | K74: 1.48511003 | L74: 0 | M74: =COS(RADIANS(E74))*COS(RADIANS(G74-Insolation!$L$6))*SIN(RADIANS(0))+(SIN(RADIANS(E74))*COS(RADIANS(0))) -> -0.6733507821 | N74: =COS(RADIANS(E74))*COS(RADIANS(G74-Insolation!$L$6))*SIN(RADIANS(Insolation!$L$7))+SIN(RADIANS(E74))*COS(RADIANS(Insolation!$L$7)) -> -0.5672954182 | O74: 0 | P74: 0 | Q74: 0 | R74: =$C$55*L74*((1+COS(RADIANS(Insolation!$L$7)))/2) -> 0 | S74: 0 | T74: 0 | U74: 0 | V74: 0 | Y74: 20.5 | Z74: =DEGREES(ASIN(COS(RADIANS($A$43))*COS(RADIANS($X$47))*COS(RADIANS(AA74))+SIN(RADIANS($A$43))*SIN(RADIANS($X$47)))) -> -38.58360091 | AA74: -127.5 | AB74: -98.9839412 | AC74: -81.0160588 | AD74: 261.0160588 | AE74: -98.9839412 | AF74: 1.603448348 | AG74: =IF(Z74>0,$X$51*EXP(-$X$53*AF74),0) -> 0 | AH74: =COS(RADIANS(Z74))*COS(RADIANS(AB74-Insolation!$L$6))*SIN(RADIANS(0))+(SIN(RADIANS(Z74))*COS(RADIANS(0))) -> -0.6236558858 | AI74: =COS(RADIANS(Z74))*COS(RADIANS(AB74-Insolation!$L$6))*SIN(RADIANS(Insolation!$L$7))+SIN(RADIANS(Z74))*COS(RADIANS(Insolation!$L$7)) -> -0.5924602557 | AJ74: 0 | AK74: 0 | AL74: 0 | AM74: =$X$55*AG74*((1+COS(RADIANS(Insolation!$L$7)))/2) -> 0 | AN74: 0 | AO74: 0 | AP74: 0 | AQ74: 0 | AT74: 20.5 | AU74: -32.70528134 | AV74: -127.5 | AW74: =IF(COS(RADIANS(AV74))>=((TAN(RADIANS($AS$47)))/(TAN(RADIANS($A$43)))),AX74,IF(AT74<12,AY74,AZ74)) -> -109.6630738 | AX74: -70.33692617 | AY74: 250.3369262 | AZ74: -109.6630738 | BA74: 1.850762349 | BB74: 0 | BC74: =COS(RADIANS(AU74))*COS(RADIANS(AW74-Insolation!$L$6))*SIN(RADIANS(0))+(SIN(RADIANS(AU74))*COS(RADIANS(0))) -> -0.540317886 | BD74: =COS(RADIANS(AU74))*COS(RADIANS(AW74-Insolation!$L$6))*SIN(RADIANS(Insolation!$L$7))+SIN(RADIANS(AU74))*COS(RADIANS(Insolation!$L$7)) -> -0.60802482 | BE74: 0 | BF74: 0 | BG74: 0 | BH74: =$AS$55*BB74*((1+COS(RADIANS(Insolation!$L$7)))/2) -> 0 | BI74: 0 | BJ74: 0 | BK74: 0 | BL74: 0 | BO74: 20.5 | BP74: -24.8586496 | BQ74: -127.5 | BR74: -120.3916545 | BS74: -59.60834552 | BT74: 239.6083455 | BU74: -120.3916545 | BV74: 2.378793968 | BW74: 0 | BX74: =COS(RADIANS(BP74))*COS(RADIANS(BR74-Insolation!$L$6))*SIN(RADIANS(0))+(SIN(RADIANS(BP74))*COS(RADIANS(0))) -> -0.4203810895 | BY74: =COS(RADIANS(BP74))*COS(RADIANS(BR74-Insolation!$L$6))*SIN(RADIANS(Insolation!$L$7))+SIN(RADIANS(BP74))*COS(RADIANS(Insolation!$L$7)) -> -0.6005612139 | BZ74: 0 | CA74: 0 | CB74: 0 | CC74: =$BN$55*BW74*((1+COS(RADIANS(Insolation!$L$7)))/2) -> 0 | CD74: 0 | CE74: 0 | CF74: 0 | CG74: 0 | CJ74: 20.5 | CK74: -18.37314963 | CL74: -127.5 | CM74: =IF(COS(RADIANS(CL74))>=((TAN(RADIANS($CI$47)))/(TAN(RADIANS($A$43)))),CN74,IF(CJ74<12,CO74,CP74)) -> -127.6828752 | CN74: -52.31712475 | CO74: 232.3171248 | CP74: -127.6828752 | CQ74: 3.172545219 | CR74: 0 | CS74: =COS(RADIANS(CK74))*COS(RADIANS(CM74-Insolation!$L$6))*SIN(RADIANS(0))+(SIN(RADIANS(CK74))*COS(RADIANS(0))) -> -0.3152043331 | CT74: =COS(RADIANS(CK74))*COS(RADIANS(CM74-Insolation!$L$6))*SIN(RADIANS(Insolation!$L$7))+SIN(RADIANS(CK74))*COS(RADIANS(Insolation!$L$7)) -> -0.5763112254 | CU74: 0 | CV74: 0 | CW74: 0 | CX74: =$CI$55*CR74*((1+COS(RADIANS(Insolation!$L$7)))/2) -> 0 | CY74: 0 | CZ74: 0 | DA74: 0 | DB74: 0 | DE74: 20.5 | DF74: -15.14626876 | DG74: -127.5 | DH74: -130.9926601 | DI74: -49.00733992 | DJ74: 229.0073399 | DK74: -130.9926601 | DL74: 3.827251881 | DM74: 0 | DN74: =COS(RADIANS(DF74))*COS(RADIANS(DH74-Insolation!$L$6))*SIN(RADIANS(0))+(SIN(RADIANS(DF74))*COS(RADIANS(0))) -> -0.2612840835 | DO74: =COS(RADIANS(DF74))*COS(RADIANS(DH74-Insolation!$L$6))*SIN(RADIANS(Insolation!$L$7))+SIN(RADIANS(DF74))*COS(RADIANS(Insolation!$L$7)) -> -0.5590541544 | DP74: 0 | DQ74: 0 | DR74: 0 | DS74: =$DD$55*DM74*((1+COS(RADIANS(Insolation!$L$7)))/2) -> 0 | DT74: 0 | DU74: 0 | DV74: 0 | DW74: 0
O75: =SUM(O45,O47,O49,O51,O53,O55,O57,O59,O61,O63,O65,O67,O69,O71,O73)/1000 -> 3.437143708 | P75: =SUM(P45,P47,P49,P51,P53,P55,P57,P59,P61,P63,P65,P67,P69,P71,P73)/1000 -> 0.4236489047 | Q75: 5.82312883 | R75: 0.3909110767 | S75: 7.147976212 | T75: 0.3680271316 | U75: 7.670451891 | V75: 0.306743382 | AJ75: =SUM(AJ45,AJ47,AJ49,AJ51,AJ53,AJ55,AJ57,AJ59,AJ61,AJ63,AJ65,AJ67,AJ69,AJ71,AJ73)/1000 -> 4.397654444 | AK75: =SUM(AK45,AK47,AK49,AK51,AK53,AK55,AK57,AK59,AK61,AK63,AK65,AK67,AK69,AK71,AK73)/1000 -> 0.5379661547 | AL75: 6.442544433 | AM75: 0.4963943644 | AN75: 8.317675443 | AO75: 0.4552775256 | AP75: 8.546531079 | AQ75: 0.4073894804 | BE75: =SUM(BE45,BE47,BE49,BE51,BE53,BE55,BE57,BE59,BE61,BE63,BE65,BE67,BE69,BE71,BE73)/1000 -> 5.507044873 | BF75: =SUM(BF45,BF47,BF49,BF51,BF53,BF55,BF57,BF59,BF61,BF63,BF65,BF67,BF69,BF71,BF73)/1000 -> 0.7157069178 | BG75: 6.799947498 | BH75: 0.6604000594 | BI75: 9.201317065 | BJ75: 0.5849462344 | BK75: 9.212464263 | BL75: 0.5717717982 | BZ75: =SUM(BZ45,BZ47,BZ49,BZ51,BZ53,BZ55,BZ57,BZ59,BZ61,BZ63,BZ65,BZ67,BZ69,BZ71,BZ73)/1000 -> 6.453095717 | CA75: =SUM(CA45,CA47,CA49,CA51,CA53,CA55,CA57,CA59,CA61,CA63,CA65,CA67,CA69,CA71,CA73)/1000 -> 0.9459617409 | CB75: 6.639758681 | CC75: 0.8728617461 | CD75: 9.480218166 | CE75: 0.7340307623 | CF75: 9.609663469 | CG75: 0.7905976985 | CU75: =SUM(CU45,CU47,CU49,CU51,CU53,CU55,CU57,CU59,CU61,CU63,CU65,CU67,CU69,CU71,CU73)/1000 -> 6.921954913 | CV75: =SUM(CV45,CV47,CV49,CV51,CV53,CV55,CV57,CV59,CV61,CV63,CV65,CV67,CV69,CV71,CV73)/1000 -> 1.156866408 | CW75: 6.186722802 | CX75: 1.067468577 | CY75: 9.30753184 | CZ75: 0.8486955779 | DA75: 9.831608572 | DB75: 0.9856797426 | DP75: =SUM(DP45,DP47,DP49,DP51,DP53,DP55,DP57,DP59,DP61,DP63,DP65,DP67,DP69,DP71,DP73)/1000 -> 6.994674676 | DQ75: =SUM(DQ45,DQ47,DQ49,DQ51,DQ53,DQ55,DQ57,DQ59,DQ61,DQ63,DQ65,DQ67,DQ69,DQ71,DQ73)/1000 -> 1.275490997 | DR75: 5.844330855 | DS75: 1.17692635 | DT75: 8.9224424 | DU75: 0.9099642051 | DV75: 9.715764999 | DW75: 1.096877877
P76: =O75+P75 -> 3.860792613 | R76: =Q75+R75 -> 6.214039907 | T76: 7.516003343 | V76: 7.977195273 | AK76: =AJ75+AK75 -> 4.935620598 | AM76: =AL75+AM75 -> 6.938938798 | AO76: =AN75+AO75 -> 8.772952968 | AQ76: =AP75+AQ75 -> 8.95392056 | BF76: =BE75+BF75 -> 6.222751791 | BH76: =BG75+BH75 -> 7.460347558 | BJ76: =BI75+BJ75 -> 9.786263299 | BL76: =BK75+BL75 -> 9.784236061 | CA76: =BZ75+CA75 -> 7.399057458 | CC76: =CB75+CC75 -> 7.512620427 | CE76: =CD75+CE75 -> 10.21424893 | CG76: =CF75+CG75 -> 10.40026117 | CV76: =CU75+CV75 -> 8.078821321 | CX76: =CW75+CX75 -> 7.254191378 | CZ76: =CY75+CZ75 -> 10.15622742 | DB76: =DA75+DB75 -> 10.81728831 | DQ76: =DP75+DQ75 -> 8.270165673 | DS76: =DR75+DS75 -> 7.021257205 | DU76: =DT75+DU75 -> 9.832406605 | DW76: =DV75+DW75 -> 10.81264288
O78: Flat | Q78: Tilted | S78: 1-Axis Tracker | U78: 2-Axis Tracker | AJ78: Flat | AL78: Tilted | AN78: 1-Axis Tracker | AP78: 2-Axis Tracker | BE78: Flat | BG78: Tilted | BI78: 1-Axis Tracker | BK78: 2-Axis Tracker | BZ78: Flat | CB78: Tilted | CD78: 1-Axis Tracker | CF78: 2-Axis Tracker | CU78: Flat | CW78: Tilted | CY78: 1-Axis Tracker | DA78: 2-Axis Tracker | DP78: Flat | DR78: Tilted | DT78: 1-Axis Tracker | DV78: 2-Axis Tracker
C79: JULY | D79: Time | E79: Altitude | F79: H angle | G79: Azimuth | H79: 1 | I79: 2 | J79: 3 | K79: m | L79: IB | M79: cosθ flat | N79: cosθ tilt | O79: Direct | P79: Diffuse | Q79: Direct | R79: Diffuse | S79: Direct | T79: Diffuse | U79: Direct | V79: Diffuse | X79: AUGUST | Y79: Time | Z79: Altitude | AA79: H angle | AB79: Azimuth | AC79: 1 | AD79: 2 | AE79: 3 | AF79: m | AG79: IB | AH79: cosθ flat | AI79: cosθ tilt | AJ79: Direct | AK79: Diffuse | AL79: Direct | AM79: Diffuse | AN79: Direct | AO79: Diffuse | AP79: Direct | AQ79: Diffuse | AS79: SEPTEMBER | AT79: Time | AU79: Altitude | AV79: H angle | AW79: Azimuth | AX79: 1 | AY79: 2 | AZ79: 3 | BA79: m | BB79: IB | BC79: cosθ flat | BD79: cosθ tilt | BE79: Direct | BF79: Diffuse | BG79: Direct | BH79: Diffuse | BI79: Direct | BJ79: Diffuse | BK79: Direct | BL79: Diffuse | BN79: OCTOBER | BO79: Time | BP79: Altitude | BQ79: H angle | BR79: Azimuth | BS79: 1 | BT79: 2 | BU79: 3 | BV79: m | BW79: IB | BX79: cosθ flat | BY79: cosθ tilt | BZ79: Direct | CA79: Diffuse | CB79: Direct | CC79: Diffuse | CD79: Direct | CE79: Diffuse | CF79: Direct | CG79: Diffuse | CI79: NOVEMBER | CJ79: Time | CK79: Altitude | CL79: H angle | CM79: Azimuth | CN79: 1 | CO79: 2 | CP79: 3 | CQ79: m | CR79: IB | CS79: cosθ flat | CT79: cosθ tilt | CU79: Direct | CV79: Diffuse | CW79: Direct | CX79: Diffuse | CY79: Direct | CZ79: Diffuse | DA79: Direct | DB79: Diffuse | DD79: DECEMBER | DE79: Time | DF79: Altitude | DG79: H angle | DH79: Azimuth | DI79: 1 | DJ79: 2 | DK79: 3 | DL79: m | DM79: IB | DN79: cosθ flat | DO79: cosθ tilt | DP79: Direct | DQ79: Diffuse | DR79: Direct | DS79: Diffuse | DT79: Direct | DU79: Diffuse | DV79: Direct | DW79: Diffuse
C80: Day | D80: 5.5 | E80: =DEGREES(ASIN(COS(RADIANS($A$43))*COS(RADIANS($C$83))*COS(RADIANS(F80))+SIN(RADIANS($A$43))*SIN(RADIANS($C$83)))) -> 5.34891977 | F80: =15*(12-D80) -> 97.5 | G80: =IF(COS(RADIANS(F80))>=((TAN(RADIANS($C$83)))/(TAN(RADIANS($A$43)))),H80,IF(D80<12,I80,J80)) -> 112.1223672 | H80: =DEGREES(ASIN(COS(RADIANS($C$83))*SIN(RADIANS(F80))/COS(RADIANS(E80)))) -> 67.87763276 | I80: =180-H80 -> 112.1223672 | J80: =180-H80-360 -> -247.8776328 | K80: =ABS(1/SIN(RADIANS(E80))) -> 10.72722952 | L80: =IF(E80>0,$C$87*EXP(-$C$89*K80),0) -> 115.5991693 | M80: =COS(RADIANS(E80))*COS(RADIANS(G80-Insolation!$L$6))*SIN(RADIANS(0))+(SIN(RADIANS(E80))*COS(RADIANS(0))) -> 0.09322071442 | N80: =COS(RADIANS(E80))*COS(RADIANS(G80-Insolation!$L$6))*SIN(RADIANS(Insolation!$L$7))+SIN(RADIANS(E80))*COS(RADIANS(Insolation!$L$7)) -> -0.1214293824 | O80: =L80*M80 -> 10.77623715 | P80: =$C$91*L80 -> 15.59043873 | Q80: =IF(N80<0,0,L80*N80) -> 0 | R80: =$C$91*L80*((1+COS(RADIANS(Insolation!$L$7)))/2) -> 14.38567437 | S80: =L80*COS(RADIANS($C$83)) -> 107.542674 | T80: =$C$91*L80*((1+COS(RADIANS(90-E80+$C$83)))/2) -> 5.624549242 | U80: =L80 -> 115.5991693 | V80: =$C$91*L80*((1+COS(RADIANS(90-E80)))/2) -> 8.521895284 | X80: Day | Y80: 5.5 | Z80: =DEGREES(ASIN(COS(RADIANS($A$43))*COS(RADIANS($X$83))*COS(RADIANS(AA80))+SIN(RADIANS($A$43))*SIN(RADIANS($X$83)))) -> 1.149801326 | AA80: =15*(12-Y80) -> 97.5 | AB80: =IF(COS(RADIANS(AA80))>=((TAN(RADIANS($X$83)))/(TAN(RADIANS($A$43)))),AC80,IF(Y80<12,AD80,AE80)) -> 105.6159193 | AC80: =DEGREES(ASIN(COS(RADIANS($X$83))*SIN(RADIANS(AA80))/COS(RADIANS(Z80)))) -> 74.38408067 | AD80: =180-AC80 -> 105.6159193 | AE80: =180-AC80-360 -> -254.3840807 | AF80: =ABS(1/SIN(RADIANS(Z80))) -> 49.83437057 | AG80: =IF(Z80>0,$X$87*EXP(-$X$89*AF80),0) -> 0.04559626849 | AH80: =COS(RADIANS(Z80))*COS(RADIANS(AB80-Insolation!$L$6))*SIN(RADIANS(0))+(SIN(RADIANS(Z80))*COS(RADIANS(0))) -> 0.02006647197 | AI80: =COS(RADIANS(Z80))*COS(RADIANS(AB80-Insolation!$L$6))*SIN(RADIANS(Insolation!$L$7))+SIN(RADIANS(Z80))*COS(RADIANS(Insolation!$L$7)) -> -0.1267673858 | AJ80: =AG80*AH80 -> 0.0009149562434 | AK80: =$X$91*AG80 -> 0.005820889036 | AL80: =IF(AI80<0,0,AG80*AI80) -> 0 | AM80: =$X$91*AG80*((1+COS(RADIANS(Insolation!$L$7)))/2) -> 0.005371074905 | AN80: =AG80*COS(RADIANS($X$83)) -> 0.0442832175 | AO80: =$X$91*AG80*((1+COS(RADIANS(90-Z80+$X$83)))/2) -> 0.002273877086 | AP80: =AG80 -> 0.04559626849 | AQ80: =$X$91*AG80*((1+COS(RADIANS(90-Z80)))/2) -> 0.002968846871 | AS80: Day | AT80: 5.5 | AU80: =DEGREES(ASIN(COS(RADIANS($A$43))*COS(RADIANS($AS$83))*COS(RADIANS(AV80))+SIN(RADIANS($A$43))*SIN(RADIANS($AS$83)))) -> -5.141285052 | AV80: =15*(12-AT80) -> 97.5 | AW80: =IF(COS(RADIANS(AV80))>=((TAN(RADIANS($AS$83)))/(TAN(RADIANS($A$43)))),AX80,IF(AT80<12,AY80,AZ80)) -> 95.89891351 | AX80: =DEGREES(ASIN(COS(RADIANS($AS$83))*SIN(RADIANS(AV80))/COS(RADIANS(AU80)))) -> 84.10108649 | AY80: =180-AX80 -> 95.89891351 | AZ80: =180-AX80-360 -> -264.1010865 | BA80: =ABS(1/SIN(RADIANS(AU80))) -> 11.15922209 | BB80: =IF(AU80>0,$AS$87*EXP(-$AS$89*BA80),0) -> 0 | BC80: =COS(RADIANS(AU80))*COS(RADIANS(AW80-Insolation!$L$6))*SIN(RADIANS(0))+(SIN(RADIANS(AU80))*COS(RADIANS(0))) -> -0.08961198117 | BD80: =COS(RADIANS(AU80))*COS(RADIANS(AW80-Insolation!$L$6))*SIN(RADIANS(Insolation!$L$7))+SIN(RADIANS(AU80))*COS(RADIANS(Insolation!$L$7)) -> -0.1304285011 | BE80: =BB80*BC80 -> 0 | BF80: =$AS$91*BB80 -> 0 | BG80: =IF(BD80<0,0,BB80*BD80) -> 0 | BH80: =$AS$91*BB80*((1+COS(RADIANS(Insolation!$L$7)))/2) -> 0 | BI80: =BB80*COS(RADIANS($AS$83)) -> 0 | BJ80: =$AS$91*BB80*((1+COS(RADIANS(90-AU80+$AS$83)))/2) -> 0 | BK80: =BB80 -> 0 | BL80: =$AS$91*BB80*((1+COS(RADIANS(90-AU80)))/2) -> 0 | BN80: Day | BO80: 5.5 | BP80: =DEGREES(ASIN(COS(RADIANS($A$43))*COS(RADIANS($BN$83))*COS(RADIANS(BQ80))+SIN(RADIANS($A$43))*SIN(RADIANS($BN$83)))) -> -11.41222432 | BQ80: =15*(12-BO80) -> 97.5 | BR80: =IF(COS(RADIANS(BQ80))>=((TAN(RADIANS($BN$83)))/(TAN(RADIANS($A$43)))),BS80,IF(BO80<12,BT80,BU80)) -> 85.77286409 | BS80: =DEGREES(ASIN(COS(RADIANS($BN$83))*SIN(RADIANS(BQ80))/COS(RADIANS(BP80)))) -> 85.77286409 | BT80: =180-BS80 -> 94.22713591 | BU80: =180-BS80-360 -> -265.7728641 | BV80: =ABS(1/SIN(RADIANS(BP80))) -> 5.053913091 | BW80: =IF(BP80>0,$BN$87*EXP(-$BN$89*BV80),0) -> 0 | BX80: =COS(RADIANS(BP80))*COS(RADIANS(BR80-Insolation!$L$6))*SIN(RADIANS(0))+(SIN(RADIANS(BP80))*COS(RADIANS(0))) -> -0.1978664813 | BY80: =COS(RADIANS(BP80))*COS(RADIANS(BR80-Insolation!$L$6))*SIN(RADIANS(Insolation!$L$7))+SIN(RADIANS(BP80))*COS(RADIANS(Insolation!$L$7)) -> -0.1286985373 | BZ80: =BW80*BX80 -> 0 | CA80: =$BN$91*BW80 -> 0 | CB80: =IF(BY80<0,0,BW80*BY80) -> 0 | CC80: =$BN$91*BW80*((1+COS(RADIANS(Insolation!$L$7)))/2) -> 0 | CD80: =BW80*COS(RADIANS($BN$83)) -> 0 | CE80: =$BN$91*BW80*((1+COS(RADIANS(90-BP80+$BN$83)))/2) -> 0 | CF80: =BW80 -> 0 | CG80: =$BN$91*BW80*((1+COS(RADIANS(90-BP80)))/2) -> 0 | CI80: Day | CJ80: 5.5 | CK80: =DEGREES(ASIN(COS(RADIANS($A$43))*COS(RADIANS($CI$83))*COS(RADIANS(CL80))+SIN(RADIANS($A$43))*SIN(RADIANS($CI$83)))) -> -16.22571815 | CL80: =15*(12-CJ80) -> 97.5 | CM80: =IF(COS(RADIANS(CL80))>=((TAN(RADIANS($CI$83)))/(TAN(RADIANS($A$43)))),CN80,IF(CJ80<12,CO80,CP80)) -> 77.2772918 | CN80: =DEGREES(ASIN(COS(RADIANS($CI$83))*SIN(RADIANS(CL80))/COS(RADIANS(CK80)))) -> 77.2772918 | CO80: =180-CN80 -> 102.7227082 | CP80: =180-CN80-360 -> -257.2772918 | CQ80: =ABS(1/SIN(RADIANS(CK80))) -> 3.578814716 | CR80: =IF(CK80>0,$CI$87*EXP(-$CI$89*CQ80),0) -> 0 | CS80: =COS(RADIANS(CK80))*COS(RADIANS(CM80-Insolation!$L$6))*SIN(RADIANS(0))+(SIN(RADIANS(CK80))*COS(RADIANS(0))) -> -0.2794221214 | CT80: =COS(RADIANS(CK80))*COS(RADIANS(CM80-Insolation!$L$6))*SIN(RADIANS(Insolation!$L$7))+SIN(RADIANS(CK80))*COS(RADIANS(Insolation!$L$7)) -> -0.1233048955 | CU80: =CR80*CS80 -> 0 | CV80: =$CI$91*CR80 -> 0 | CW80: =IF(CT80<0,0,CR80*CT80) -> 0 | CX80: =$CI$91*CR80*((1+COS(RADIANS(Insolation!$L$7)))/2) -> 0 | CY80: =CR80*COS(RADIANS($CI$83)) -> 0 | CZ80: =$CI$91*CR80*((1+COS(RADIANS(90-CK80+$CI$83)))/2) -> 0 | DA80: =CR80 -> 0 | DB80: =$CI$91*CR80*((1+COS(RADIANS(90-CK80)))/2) -> 0 | DD80: Day | DE80: 5.5 | DF80: =DEGREES(ASIN(COS(RADIANS($A$43))*COS(RADIANS($DD$83))*COS(RADIANS(DG80))+SIN(RADIANS($A$43))*SIN(RADIANS($DD$83)))) -> -18.23239722 | DG80: =15*(12-DE80) -> 97.5 | DH80: =IF(COS(RADIANS(DG80))>=((TAN(RADIANS($DD$83)))/(TAN(RADIANS($A$43)))),DI80,IF(DE80<12,DJ80,DK80)) -> 73.42904612 | DI80: =DEGREES(ASIN(COS(RADIANS($DD$83))*SIN(RADIANS(DG80))/COS(RADIANS(DF80)))) -> 73.42904612 | DJ80: =180-DI80 -> 106.5709539 | DK80: =180-DI80-360 -> -253.4290461 | DL80: =ABS(1/SIN(RADIANS(DF80))) -> 3.196195055 | DM80: =IF(DF80>0,$DD$87*EXP(-$DD$89*DL80),0) -> 0 | DN80: =COS(RADIANS(DF80))*COS(RADIANS(DH80-Insolation!$L$6))*SIN(RADIANS(0))+(SIN(RADIANS(DF80))*COS(RADIANS(0))) -> -0.312872019 | DO80: =COS(RADIANS(DF80))*COS(RADIANS(DH80-Insolation!$L$6))*SIN(RADIANS(Insolation!$L$7))+SIN(RADIANS(DF80))*COS(RADIANS(Insolation!$L$7)) -> -0.11984955 | DP80: =DM80*DN80 -> 0 | DQ80: =$DD$91*DM80 -> 0 | DR80: =IF(DO80<0,0,DM80*DO80) -> 0 | DS80: =$DD$91*DM80*((1+COS(RADIANS(Insolation!$L$7)))/2) -> 0 | DT80: =DM80*COS(RADIANS($DD$83)) -> 0 | DU80: =$DD$91*DM80*((1+COS(RADIANS(90-DF80+$DD$83)))/2) -> 0 | DV80: =DM80 -> 0 | DW80: =$DD$91*DM80*((1+COS(RADIANS(90-DF80)))/2) -> 0
C81: =H41 -> 196 | D81: 6 | E81: =DEGREES(ASIN(COS(RADIANS($A$43))*COS(RADIANS($C$83))*COS(RADIANS(F81))+SIN(RADIANS($A$43))*SIN(RADIANS($C$83)))) -> 11.29630944 | F81: 90 | G81: =IF(COS(RADIANS(F81))>=((TAN(RADIANS($C$83)))/(TAN(RADIANS($A$43)))),H81,IF(D81<12,I81,J81)) -> 108.4345954 | H81: =DEGREES(ASIN(COS(RADIANS($C$83))*SIN(RADIANS(F81))/COS(RADIANS(E81)))) -> 71.56540457 | I81: =180-H81 -> 108.4345954 | J81: =180-H81-360 -> -251.5654046 | K81: =ABS(1/SIN(RADIANS(E81))) -> 5.105088762 | L81: =IF(E81>0,$C$87*EXP(-$C$89*K81),0) -> 374.0908736 | M81: =COS(RADIANS(E81))*COS(RADIANS(G81-Insolation!$L$6))*SIN(RADIANS(0))+(SIN(RADIANS(E81))*COS(RADIANS(0))) -> 0.19588298 | N81: =COS(RADIANS(E81))*COS(RADIANS(G81-Insolation!$L$6))*SIN(RADIANS(Insolation!$L$7))+SIN(RADIANS(E81))*COS(RADIANS(Insolation!$L$7)) -> 0 | O81: =L81*M81 -> 73.27803512 | P81: =$C$91*L81 -> 50.45227296 | Q81: =IF(N81<0,0,L81*N81) -> 0 | R81: =$C$91*L81*((1+COS(RADIANS(Insolation!$L$7)))/2) -> 46.55353083 | S81: =L81*COS(RADIANS($C$83)) -> 348.019221 | T81: =$C$91*L81*((1+COS(RADIANS(90-E81+$C$83)))/2) -> 20.74986169 | U81: =L81 -> 374.0908736 | V81: =$C$91*L81*((1+COS(RADIANS(90-E81)))/2) -> 30.16750727 | X81: =I41 -> 227 | Y81: 6 | Z81: =DEGREES(ASIN(COS(RADIANS($A$43))*COS(RADIANS($X$83))*COS(RADIANS(AA81))+SIN(RADIANS($A$43))*SIN(RADIANS($X$83)))) -> 7.310232137 | AA81: 90 | AB81: =IF(COS(RADIANS(AA81))>=((TAN(RADIANS($X$83)))/(TAN(RADIANS($A$43)))),AC81,IF(Y81<12,AD81,AE81)) -> 101.717296 | AC81: =DEGREES(ASIN(COS(RADIANS($X$83))*SIN(RADIANS(AA81))/COS(RADIANS(Z81)))) -> 78.28270397 | AD81: =180-AC81 -> 101.717296 | AE81: =180-AC81-360 -> -258.282704 | AF81: =ABS(1/SIN(RADIANS(Z81))) -> 7.859056095 | AG81: =IF(Z81>0,$X$87*EXP(-$X$89*AF81),0) -> 224.838142 | AH81: =COS(RADIANS(Z81))*COS(RADIANS(AB81-Insolation!$L$6))*SIN(RADIANS(0))+(SIN(RADIANS(Z81))*COS(RADIANS(0))) -> 0.1272417435 | AI81: =COS(RADIANS(Z81))*COS(RADIANS(AB81-Insolation!$L$6))*SIN(RADIANS(Insolation!$L$7))+SIN(RADIANS(Z81))*COS(RADIANS(Insolation!$L$7)) -> 0 | AJ81: =AG81*AH81 -> 28.6087972 | AK81: =$X$91*AG81 -> 28.70317942 | AL81: =IF(AI81<0,0,AG81*AI81) -> 0 | AM81: =$X$91*AG81*((1+COS(RADIANS(Insolation!$L$7)))/2) -> 26.48511692 | AN81: =AG81*COS(RADIANS($X$83)) -> 218.3634028 | AO81: =$X$91*AG81*((1+COS(RADIANS(90-Z81+$X$83)))/2) -> 12.73358073 | AP81: =AG81 -> 224.838142 | AQ81: =$X$91*AG81*((1+COS(RADIANS(90-Z81)))/2) -> 16.17771101 | AS81: =J41 -> 258 | AT81: 6 | AU81: =DEGREES(ASIN(COS(RADIANS($A$43))*COS(RADIANS($AS$83))*COS(RADIANS(AV81))+SIN(RADIANS($A$43))*SIN(RADIANS($AS$83)))) -> 1.183733315 | AV81: 90 | AW81: =IF(COS(RADIANS(AV81))>=((TAN(RADIANS($AS$83)))/(TAN(RADIANS($A$43)))),AX81,IF(AT81<12,AY81,AZ81)) -> 91.87452993 | AX81: =DEGREES(ASIN(COS(RADIANS($AS$83))*SIN(RADIANS(AV81))/COS(RADIANS(AU81)))) -> 88.12547007 | AY81: =180-AX81 -> 91.87452993 | AZ81: =180-AX81-360 -> -268.1254701 | BA81: =ABS(1/SIN(RADIANS(AU81))) -> 48.40605143 | BB81: =IF(AU81>0,$AS$87*EXP(-$AS$89*BA81),0) -> 0.1250750424 | BC81: =COS(RADIANS(AU81))*COS(RADIANS(AW81-Insolation!$L$6))*SIN(RADIANS(0))+(SIN(RADIANS(AU81))*COS(RADIANS(0))) -> 0.02065857409 | BD81: =COS(RADIANS(AU81))*COS(RADIANS(AW81-Insolation!$L$6))*SIN(RADIANS(Insolation!$L$7))+SIN(RADIANS(AU81))*COS(RADIANS(Insolation!$L$7)) -> -2.393918397e-16 | BE81: =BB81*BC81 -> 0.002583872031 | BF81: =$AS$91*BB81 -> 0.01393013759 | BG81: =IF(BD81<0,0,BB81*BD81) -> 0 | BH81: =$AS$91*BB81*((1+COS(RADIANS(Insolation!$L$7)))/2) -> 0.0128536744 | BI81: =BB81*COS(RADIANS($AS$83)) -> 0.1249814311 | BJ81: =$AS$91*BB81*((1+COS(RADIANS(90-AU81+$AS$83)))/2) -> 0.006839481968 | BK81: =BB81 -> 0.1250750424 | BL81: =$AS$91*BB81*((1+COS(RADIANS(90-AU81)))/2) -> 0.007108957182 | BN81: =K41 -> 288 | BO81: 6 | BP81: =DEGREES(ASIN(COS(RADIANS($A$43))*COS(RADIANS($BN$83))*COS(RADIANS(BQ81))+SIN(RADIANS($A$43))*SIN(RADIANS($BN$83)))) -> -5.109446818 | BQ81: 90 | BR81: =IF(COS(RADIANS(BQ81))>=((TAN(RADIANS($BN$83)))/(TAN(RADIANS($A$43)))),BS81,IF(BO81<12,BT81,BU81)) -> 81.86256541 | BS81: =DEGREES(ASIN(COS(RADIANS($BN$83))*SIN(RADIANS(BQ81))/COS(RADIANS(BP81)))) -> 81.86256541 | BT81: =180-BS81 -> 98.13743459 | BU81: =180-BS81-360 -> -261.8625654 | BV81: =ABS(1/SIN(RADIANS(BP81))) -> 11.22857183 | BW81: =IF(BP81>0,$BN$87*EXP(-$BN$89*BV81),0) -> 0 | BX81: =COS(RADIANS(BP81))*COS(RADIANS(BR81-Insolation!$L$6))*SIN(RADIANS(0))+(SIN(RADIANS(BP81))*COS(RADIANS(0))) -> -0.08905852099 | BY81: =COS(RADIANS(BP81))*COS(RADIANS(BR81-Insolation!$L$6))*SIN(RADIANS(Insolation!$L$7))+SIN(RADIANS(BP81))*COS(RADIANS(Insolation!$L$7)) -> 1.665334537e-16 | BZ81: =BW81*BX81 -> 0 | CA81: =$BN$91*BW81 -> 0 | CB81: =IF(BY81<0,0,BW81*BY81) -> 0 | CC81: =$BN$91*BW81*((1+COS(RADIANS(Insolation!$L$7)))/2) -> 0 | CD81: =BW81*COS(RADIANS($BN$83)) -> 0 | CE81: =$BN$91*BW81*((1+COS(RADIANS(90-BP81+$BN$83)))/2) -> 0 | CF81: =BW81 -> 0 | CG81: =$BN$91*BW81*((1+COS(RADIANS(90-BP81)))/2) -> 0 | CI81: =L41 -> 319 | CJ81: 6 | CK81: =DEGREES(ASIN(COS(RADIANS($A$43))*COS(RADIANS($CI$83))*COS(RADIANS(CL81))+SIN(RADIANS($A$43))*SIN(RADIANS($CI$83)))) -> -10.088796 | CL81: 90 | CM81: =IF(COS(RADIANS(CL81))>=((TAN(RADIANS($CI$83)))/(TAN(RADIANS($A$43)))),CN81,IF(CJ81<12,CO81,CP81)) -> 73.64023263 | CN81: =DEGREES(ASIN(COS(RADIANS($CI$83))*SIN(RADIANS(CL81))/COS(RADIANS(CK81)))) -> 73.64023263 | CO81: =180-CN81 -> 106.3597674 | CP81: =180-CN81-360 -> -253.6402326 | CQ81: =ABS(1/SIN(RADIANS(CK81))) -> 5.708603 | CR81: =IF(CK81>0,$CI$87*EXP(-$CI$89*CQ81),0) -> 0 | CS81: =COS(RADIANS(CK81))*COS(RADIANS(CM81-Insolation!$L$6))*SIN(RADIANS(0))+(SIN(RADIANS(CK81))*COS(RADIANS(0))) -> -0.1751742064 | CT81: =COS(RADIANS(CK81))*COS(RADIANS(CM81-Insolation!$L$6))*SIN(RADIANS(Insolation!$L$7))+SIN(RADIANS(CK81))*COS(RADIANS(Insolation!$L$7)) -> 0 | CU81: =CR81*CS81 -> 0 | CV81: =$CI$91*CR81 -> 0 | CW81: =IF(CT81<0,0,CR81*CT81) -> 0 | CX81: =$CI$91*CR81*((1+COS(RADIANS(Insolation!$L$7)))/2) -> 0 | CY81: =CR81*COS(RADIANS($CI$83)) -> 0 | CZ81: =$CI$91*CR81*((1+COS(RADIANS(90-CK81+$CI$83)))/2) -> 0 | DA81: =CR81 -> 0 | DB81: =$CI$91*CR81*((1+COS(RADIANS(90-CK81)))/2) -> 0 | DD81: =M41 -> 349 | DE81: 6 | DF81: =DEGREES(ASIN(COS(RADIANS($A$43))*COS(RADIANS($DD$83))*COS(RADIANS(DG81))+SIN(RADIANS($A$43))*SIN(RADIANS($DD$83)))) -> -12.21293319 | DG81: 90 | DH81: =IF(COS(RADIANS(DG81))>=((TAN(RADIANS($DD$83)))/(TAN(RADIANS($A$43)))),DI81,IF(DE81<12,DJ81,DK81)) -> 69.96188311 | DI81: =DEGREES(ASIN(COS(RADIANS($DD$83))*SIN(RADIANS(DG81))/COS(RADIANS(DF81)))) -> 69.96188311 | DJ81: =180-DI81 -> 110.0381169 | DK81: =180-DI81-360 -> -249.9618831 | DL81: =ABS(1/SIN(RADIANS(DF81))) -> 4.727117231 | DM81: =IF(DF81>0,$DD$87*EXP(-$DD$89*DL81),0) -> 0 | DN81: =COS(RADIANS(DF81))*COS(RADIANS(DH81-Insolation!$L$6))*SIN(RADIANS(0))+(SIN(RADIANS(DF81))*COS(RADIANS(0))) -> -0.21154542 | DO81: =COS(RADIANS(DF81))*COS(RADIANS(DH81-Insolation!$L$6))*SIN(RADIANS(Insolation!$L$7))+SIN(RADIANS(DF81))*COS(RADIANS(Insolation!$L$7)) -> 0 | DP81: =DM81*DN81 -> 0 | DQ81: =$DD$91*DM81 -> 0 | DR81: =IF(DO81<0,0,DM81*DO81) -> 0 | DS81: =$DD$91*DM81*((1+COS(RADIANS(Insolation!$L$7)))/2) -> 0 | DT81: =DM81*COS(RADIANS($DD$83)) -> 0 | DU81: =$DD$91*DM81*((1+COS(RADIANS(90-DF81+$DD$83)))/2) -> 0 | DV81: =DM81 -> 0 | DW81: =$DD$91*DM81*((1+COS(RADIANS(90-DF81)))/2) -> 0
C82: Declination | D82: 6.5 | E82: 17.37024814 | F82: 82.5 | G82: 104.8900119 | H82: 75.10998809 | I82: 104.8900119 | J82: -255.1099881 | K82: 3.349576034 | L82: 539.7983363 | M82: =COS(RADIANS(E82))*COS(RADIANS(G82-Insolation!$L$6))*SIN(RADIANS(0))+(SIN(RADIANS(E82))*COS(RADIANS(0))) -> 0.2985452457 | N82: =COS(RADIANS(E82))*COS(RADIANS(G82-Insolation!$L$6))*SIN(RADIANS(Insolation!$L$7))+SIN(RADIANS(E82))*COS(RADIANS(Insolation!$L$7)) -> 0.1214293824 | O82: 161.1542269 | P82: 72.80063463 | Q82: 65.54737859 | R82: =$C$91*L82*((1+COS(RADIANS(Insolation!$L$7)))/2) -> 67.17490392 | S82: 502.1779726 | T82: 33.76794991 | U82: 539.7983363 | V82: 47.26745899 | X82: Declination | Y82: 6.5 | Z82: 13.55726031 | AA82: 82.5 | AB82: 97.90692155 | AC82: 82.09307845 | AD82: 97.90692155 | AE82: -262.0930785 | AF82: 4.265901942 | AG82: 465.5771157 | AH82: =COS(RADIANS(Z82))*COS(RADIANS(AB82-Insolation!$L$6))*SIN(RADIANS(0))+(SIN(RADIANS(Z82))*COS(RADIANS(0))) -> 0.2344170151 | AI82: =COS(RADIANS(Z82))*COS(RADIANS(AB82-Insolation!$L$6))*SIN(RADIANS(Insolation!$L$7))+SIN(RADIANS(Z82))*COS(RADIANS(Insolation!$L$7)) -> 0.1267673858 | AJ82: 109.1391978 | AK82: 59.43628322 | AL82: 59.01999384 | AM82: =$X$91*AG82*((1+COS(RADIANS(Insolation!$L$7)))/2) -> 54.84329409 | AN82: 452.1697358 | AO82: 29.60076276 | AP82: 465.5771157 | AQ82: 36.68457966 | AS82: Declination | AT82: 6.5 | AU82: 7.523286434 | AV82: 82.5 | AW82: 87.86390559 | AX82: 87.86390559 | AY82: 92.13609441 | AZ82: -267.8639056 | BA82: 7.637719772 | BB82: 270.1439348 | BC82: =COS(RADIANS(AU82))*COS(RADIANS(AW82-Insolation!$L$6))*SIN(RADIANS(0))+(SIN(RADIANS(AU82))*COS(RADIANS(0))) -> 0.1309291294 | BD82: =COS(RADIANS(AU82))*COS(RADIANS(AW82-Insolation!$L$6))*SIN(RADIANS(Insolation!$L$7))+SIN(RADIANS(AU82))*COS(RADIANS(Insolation!$L$7)) -> 0.1304285011 | BE82: 35.36971018 | BF82: 30.08707498 | BG82: 35.23446849 | BH82: =$AS$91*BB82*((1+COS(RADIANS(Insolation!$L$7)))/2) -> 27.76207078 | BI82: 269.941748 | BJ82: 16.43479098 | BK82: 270.1439348 | BL82: 17.01317476 | BN82: Declination | BO82: 6.5 | BP82: 1.131633092 | BQ82: 82.5 | BR82: 77.89177735 | BS82: 77.89177735 | BT82: 102.1082226 | BU82: -257.8917774 | BV82: 50.63434888 | BW82: 0.2075429914 | BX82: =COS(RADIANS(BP82))*COS(RADIANS(BR82-Insolation!$L$6))*SIN(RADIANS(0))+(SIN(RADIANS(BP82))*COS(RADIANS(0))) -> 0.01974943931 | BY82: =COS(RADIANS(BP82))*COS(RADIANS(BR82-Insolation!$L$6))*SIN(RADIANS(Insolation!$L$7))+SIN(RADIANS(BP82))*COS(RADIANS(Insolation!$L$7)) -> 0.1286985373 | BZ82: 0.004098857712 | CA82: 0.01893176659 | CB82: 0.02671047941 | CC82: =$BN$91*BW82*((1+COS(RADIANS(Insolation!$L$7)))/2) -> 0.01746879829 | CD82: 0.2046369311 | CE82: 0.01122841896 | CF82: 0.2075429914 | CG82: 0.00965282918 | CI82: Declination | CJ82: 6.5 | CK82: -4.067192053 | CL82: 82.5 | CM82: 69.877359 | CN82: 69.877359 | CO82: 110.122641 | CP82: -249.877359 | CQ82: 14.09914407 | CR82: 0 | CS82: =COS(RADIANS(CK82))*COS(RADIANS(CM82-Insolation!$L$6))*SIN(RADIANS(0))+(SIN(RADIANS(CK82))*COS(RADIANS(0))) -> -0.07092629136 | CT82: =COS(RADIANS(CK82))*COS(RADIANS(CM82-Insolation!$L$6))*SIN(RADIANS(Insolation!$L$7))+SIN(RADIANS(CK82))*COS(RADIANS(Insolation!$L$7)) -> 0.1233048955 | CU82: 0 | CV82: 0 | CW82: 0 | CX82: =$CI$91*CR82*((1+COS(RADIANS(Insolation!$L$7)))/2) -> 0 | CY82: 0 | CZ82: 0 | DA82: 0 | DB82: 0 | DD82: Declination | DE82: 6.5 | DF82: -6.327929787 | DG82: 82.5 | DH82: 66.33788188 | DI82: 66.33788188 | DJ82: 113.6621181 | DK82: -246.3378819 | DL82: 9.072860619 | DM82: 0 | DN82: =COS(RADIANS(DF82))*COS(RADIANS(DH82-Insolation!$L$6))*SIN(RADIANS(0))+(SIN(RADIANS(DF82))*COS(RADIANS(0))) -> -0.1102188209 | DO82: =COS(RADIANS(DF82))*COS(RADIANS(DH82-Insolation!$L$6))*SIN(RADIANS(Insolation!$L$7))+SIN(RADIANS(DF82))*COS(RADIANS(Insolation!$L$7)) -> 0.11984955 | DP82: 0 | DQ82: 0 | DR82: 0 | DS82: =$DD$91*DM82*((1+COS(RADIANS(Insolation!$L$7)))/2) -> 0 | DT82: 0 | DU82: 0 | DV82: 0 | DW82: 0
C83: =23.45*SIN(RADIANS(360/365*(C81-81))) -> 21.51733603 | D83: 7 | E83: 23.54385804 | F83: 75 | G83: 101.4192348 | H83: 78.58076521 | I83: 101.4192348 | J83: -258.5807652 | K83: 2.503436396 | L83: 644.1553069 | M83: =COS(RADIANS(E83))*COS(RADIANS(G83-Insolation!$L$6))*SIN(RADIANS(0))+(SIN(RADIANS(E83))*COS(RADIANS(0))) -> 0.3994509314 | N83: =COS(RADIANS(E83))*COS(RADIANS(G83-Insolation!$L$6))*SIN(RADIANS(Insolation!$L$7))+SIN(RADIANS(E83))*COS(RADIANS(Insolation!$L$7)) -> 0.2407810744 | O83: 257.3084373 | P83: 86.87487898 | Q83: 155.1004068 | R83: =$C$91*L83*((1+COS(RADIANS(Insolation!$L$7)))/2) -> 80.16154912 | S83: 599.2619545 | T83: 44.97347889 | U83: 644.1553069 | V83: 60.78856515 | X83: =23.45*SIN(RADIANS(360/365*(X81-81))) -> 13.78356417 | Y83: 7 | Z83: 19.86216055 | AA83: 75 | AB83: 94.09659297 | AC83: 85.90340703 | AD83: 94.09659297 | AE83: -265.903407 | AF83: 2.943267159 | AG83: 608.6330581 | AH83: =COS(RADIANS(Z83))*COS(RADIANS(AB83-Insolation!$L$6))*SIN(RADIANS(0))+(SIN(RADIANS(Z83))*COS(RADIANS(0))) -> 0.3397584881 | AI83: =COS(RADIANS(Z83))*COS(RADIANS(AB83-Insolation!$L$6))*SIN(RADIANS(Insolation!$L$7))+SIN(RADIANS(Z83))*COS(RADIANS(Insolation!$L$7)) -> 0.2513657465 | AJ83: 206.7882476 | AK83: 77.69902257 | AL83: 152.989503 | AM83: =$X$91*AG83*((1+COS(RADIANS(Insolation!$L$7)))/2) -> 71.69476479 | AN83: 591.1060483 | AO83: 42.96338764 | AP83: 608.6330581 | AQ83: 52.0489625 | AS83: =23.45*SIN(RADIANS(360/365*(AS81-81))) -> 2.216886783 | AT83: 7 | AU83: 13.84599219 | AV83: 75 | AW83: 83.76701552 | AX83: 83.76701552 | AY83: 96.23298448 | AZ83: -263.7670155 | BA83: 4.178629302 | BB83: 518.2183228 | BC83: =COS(RADIANS(AU83))*COS(RADIANS(AW83-Insolation!$L$6))*SIN(RADIANS(0))+(SIN(RADIANS(AU83))*COS(RADIANS(0))) -> 0.2393129248 | BD83: =COS(RADIANS(AU83))*COS(RADIANS(AW83-Insolation!$L$6))*SIN(RADIANS(Insolation!$L$7))+SIN(RADIANS(AU83))*COS(RADIANS(Insolation!$L$7)) -> 0.2586253343 | BE83: 124.0163425 | BF83: 57.716171 | BG83: 134.024387 | BH83: =$AS$91*BB83*((1+COS(RADIANS(Insolation!$L$7)))/2) -> 53.256105 | BI83: 517.8304669 | BJ83: 34.67516866 | BK83: 518.2183228 | BL83: 35.76419835 | BN83: =23.45*SIN(RADIANS(360/365*(BN81-81))) -> -9.599397234 | BO83: 7 | BP83: 7.278688867 | BQ83: 75 | BR83: 73.76803165 | BS83: 73.76803165 | BT83: 106.2319683 | BU83: -253.7680317 | BV83: 7.892929866 | BW83: 305.8723675 | BX83: =COS(RADIANS(BP83))*COS(RADIANS(BR83-Insolation!$L$6))*SIN(RADIANS(0))+(SIN(RADIANS(BP83))*COS(RADIANS(0))) -> 0.1266956652 | BY83: =COS(RADIANS(BP83))*COS(RADIANS(BR83-Insolation!$L$6))*SIN(RADIANS(Insolation!$L$7))+SIN(RADIANS(BP83))*COS(RADIANS(Insolation!$L$7)) -> 0.2551950069 | BZ83: 38.75270307 | CA83: 27.90122773 | CB83: 78.05710091 | CC83: =$BN$91*BW83*((1+COS(RADIANS(Insolation!$L$7)))/2) -> 25.74513672 | CD83: 301.5894788 | CE83: 18.00098236 | CF83: 305.8723675 | CG83: 15.71809617 | CI83: =23.45*SIN(RADIANS(360/365*(CI81-81))) -> -19.14781731 | CJ83: 7 | CK83: 1.80728899 | CL83: 75 | CM83: 65.91493682 | CN83: 65.91493682 | CO83: 114.0850632 | CP83: -245.9149368 | CQ83: 31.70786863 | CR83: 9.344415712 | CS83: =COS(RADIANS(CK83))*COS(RADIANS(CM83-Insolation!$L$6))*SIN(RADIANS(0))+(SIN(RADIANS(CK83))*COS(RADIANS(0))) -> 0.03153791293 | CT83: =COS(RADIANS(CK83))*COS(RADIANS(CM83-Insolation!$L$6))*SIN(RADIANS(Insolation!$L$7))+SIN(RADIANS(CK83))*COS(RADIANS(Insolation!$L$7)) -> 0.2445000101 | CU83: 0.2947033691 | CV83: 0.6680191027 | CW83: 2.284709736 | CX83: =$CI$91*CR83*((1+COS(RADIANS(Insolation!$L$7)))/2) -> 0.6163973607 | CY83: 8.827440557 | CZ83: 0.4534635046 | DA83: 9.344415712 | DB83: 0.3445435155 | DD83: =23.45*SIN(RADIANS(360/365*(DD81-81))) -> -23.33521955 | DE83: 7 | DF83: -0.6088334369 | DG83: 75 | DH83: 62.49445378 | DI83: 62.49445378 | DJ83: 117.5055462 | DK83: -242.4944538 | DL83: 94.10924944 | DM83: 0 | DN83: =COS(RADIANS(DF83))*COS(RADIANS(DH83-Insolation!$L$6))*SIN(RADIANS(0))+(SIN(RADIANS(DF83))*COS(RADIANS(0))) -> -0.0106259481 | DO83: =COS(RADIANS(DF83))*COS(RADIANS(DH83-Insolation!$L$6))*SIN(RADIANS(Insolation!$L$7))+SIN(RADIANS(DF83))*COS(RADIANS(Insolation!$L$7)) -> 0.2376484411 | DP83: 0 | DQ83: 0 | DR83: 0 | DS83: =$DD$91*DM83*((1+COS(RADIANS(Insolation!$L$7)))/2) -> 0 | DT83: 0 | DU83: 0 | DV83: 0 | DW83: 0
C84: Io | D84: 7.5 | E84: 29.79336797 | F84: 67.5 | G84: 97.94579496 | H84: 82.05420504 | I84: 97.94579496 | J84: -262.054205 | K84: 2.012584639 | L84: 713.7055444 | M84: =COS(RADIANS(E84))*COS(RADIANS(G84-Insolation!$L$6))*SIN(RADIANS(0))+(SIN(RADIANS(E84))*COS(RADIANS(0))) -> 0.4968735131 | N84: =COS(RADIANS(E84))*COS(RADIANS(G84-Insolation!$L$6))*SIN(RADIANS(Insolation!$L$7))+SIN(RADIANS(E84))*COS(RADIANS(Insolation!$L$7)) -> 0.3560129354 | O84: 354.6213812 | P84: 96.25486608 | Q84: 254.0884059 | R84: =$C$91*L84*((1+COS(RADIANS(Insolation!$L$7)))/2) -> 88.81668977 | S84: 663.9650018 | T84: 55.05500396 | U84: 713.7055444 | V84: 72.04067977 | X84: Io | Y84: 7.5 | Z84: 26.19731089 | AA84: 67.5 | AB84: 90.18791031 | AC84: 89.81208969 | AD84: 90.18791031 | AE84: -269.8120897 | AF84: 2.265191698 | AG84: 698.2514554 | AH84: =COS(RADIANS(Z84))*COS(RADIANS(AB84-Insolation!$L$6))*SIN(RADIANS(0))+(SIN(RADIANS(Z84))*COS(RADIANS(0))) -> 0.4414637406 | AI84: =COS(RADIANS(Z84))*COS(RADIANS(AB84-Insolation!$L$6))*SIN(RADIANS(Insolation!$L$7))+SIN(RADIANS(Z84))*COS(RADIANS(Insolation!$L$7)) -> 0.3716631696 | AJ84: 308.2526994 | AK84: 89.13984357 | AL84: 259.5143491 | AM84: =$X$91*AG84*((1+COS(RADIANS(Insolation!$L$7)))/2) -> 82.25148665 | AN84: 678.1436747 | AO84: 54.15110226 | AP84: 698.2514554 | AQ84: 64.24592618 | AS84: Io | AT84: 7.5 | AU84: 20.11804765 | AV84: 67.5 | AW84: 79.47508872 | AX84: 79.47508872 | AY84: 100.5249113 | AZ84: -259.4750887 | BA84: 2.907352978 | BB84: 658.4001421 | BC84: =COS(RADIANS(AU84))*COS(RADIANS(AW84-Insolation!$L$6))*SIN(RADIANS(0))+(SIN(RADIANS(AU84))*COS(RADIANS(0))) -> 0.3439554838 | BD84: =COS(RADIANS(AU84))*COS(RADIANS(AW84-Insolation!$L$6))*SIN(RADIANS(Insolation!$L$7))+SIN(RADIANS(AU84))*COS(RADIANS(Insolation!$L$7)) -> 0.3823970164 | BE84: 226.4603394 | BF84: 73.32881436 | BG84: 251.7702499 | BH84: =$AS$91*BB84*((1+COS(RADIANS(Insolation!$L$7)))/2) -> 67.66226811 | BI84: 657.9073684 | BJ84: 47.93416226 | BK84: 658.4001421 | BL84: 49.27533109 | BN84: Io | BO84: 7.5 | BP84: 13.29414438 | BQ84: 67.5 | BR84: 69.39461464 | BS84: 69.39461464 | BT84: 110.6053854 | BU84: -249.3946146 | BV84: 4.348766229 | BW84: 560.1056956 | BX84: =COS(RADIANS(BP84))*COS(RADIANS(BR84-Insolation!$L$6))*SIN(RADIANS(0))+(SIN(RADIANS(BP84))*COS(RADIANS(0))) -> 0.2299502772 | BY84: =COS(RADIANS(BP84))*COS(RADIANS(BR84-Insolation!$L$6))*SIN(RADIANS(Insolation!$L$7))+SIN(RADIANS(BP84))*COS(RADIANS(Insolation!$L$7)) -> 0.3773250191 | BZ84: 128.79646 | CA84: 51.0920182 | CB84: 211.3418923 | CC84: =$BN$91*BW84*((1+COS(RADIANS(Insolation!$L$7)))/2) -> 47.14383921 | CD84: 552.2629788 | CE84: 35.48392041 | CF84: 560.1056956 | CG84: 31.42032097 | CI84: Io | CJ84: 7.5 | CK84: 7.496476161 | CL84: 67.5 | CM84: 61.67740163 | CN84: 61.67740163 | CO84: 118.3225984 | CP84: -241.6774016 | CQ84: 7.664878304 | CR84: 373.7679694 | CS84: =COS(RADIANS(CK84))*COS(RADIANS(CM84-Insolation!$L$6))*SIN(RADIANS(0))+(SIN(RADIANS(CK84))*COS(RADIANS(0))) -> 0.1304652155 | CT84: =COS(RADIANS(CK84))*COS(RADIANS(CM84-Insolation!$L$6))*SIN(RADIANS(Insolation!$L$7))+SIN(RADIANS(CK84))*COS(RADIANS(Insolation!$L$7)) -> 0.3615116617 | CU84: 48.7637187 | CV84: 26.72014509 | CW84: 135.1214797 | CX84: =$CI$91*CR84*((1+COS(RADIANS(Insolation!$L$7)))/2) -> 24.65532324 | CY84: 353.0894423 | CZ84: 19.35139968 | DA84: 373.7679694 | DB84: 15.10309729 | DD84: Io | DE84: 7.5 | DF84: 4.906452989 | DG84: 67.5 | DH84: 58.36743027 | DI84: 58.36743027 | DJ84: 121.6325697 | DK84: -238.3674303 | DL84: 11.69192203 | DM84: 233.7858709 | DN84: =COS(RADIANS(DF84))*COS(RADIANS(DH84-Insolation!$L$6))*SIN(RADIANS(0))+(SIN(RADIANS(DF84))*COS(RADIANS(0))) -> 0.08552913688 | DO84: =COS(RADIANS(DF84))*COS(RADIANS(DH84-Insolation!$L$6))*SIN(RADIANS(Insolation!$L$7))+SIN(RADIANS(DF84))*COS(RADIANS(Insolation!$L$7)) -> 0.3513811014 | DP84: 19.99550375 | DQ84: 13.69419788 | DR84: 82.1479368 | DS84: =$DD$91*DM84*((1+COS(RADIANS(Insolation!$L$7)))/2) -> 12.63596713 | DT84: 214.6629037 | DU84: 10.08708886 | DV84: 233.7858709 | DW84: 7.4327254
C85: =1370*(1+0.034*COS(RADIANS(360*C81)/365)) -> 1324.672148 | D85: 8 | E85: 36.09643366 | F85: 60 | G85: 94.37769174 | H85: 85.62230826 | I85: 94.37769174 | J85: -265.6223083 | K85: 1.697371946 | L85: 762.2793327 | M85: =COS(RADIANS(E85))*COS(RADIANS(G85-Insolation!$L$6))*SIN(RADIANS(0))+(SIN(RADIANS(E85))*COS(RADIANS(0))) -> 0.5891460634 | N85: =COS(RADIANS(E85))*COS(RADIANS(G85-Insolation!$L$6))*SIN(RADIANS(Insolation!$L$7))+SIN(RADIANS(E85))*COS(RADIANS(Insolation!$L$7)) -> 0.4651533164 | O85: 449.093868 | P85: 102.8058359 | Q85: 354.5767596 | R85: =$C$91*L85*((1+COS(RADIANS(Insolation!$L$7)))/2) -> 94.86142785 | S85: 709.1535192 | T85: 64.3418706 | U85: 762.2793327 | V85: 81.68674471 | X85: =1370*(1+0.034*COS(RADIANS(360*X81)/365)) -> 1336.431324 | Y85: 8 | Z85: 32.53349542 | AA85: 60 | AB85: 86.0615394 | AC85: 86.0615394 | AD85: 93.9384606 | AE85: -266.0615394 | AF85: 1.859452994 | AG85: 758.068205 | AH85: =COS(RADIANS(Z85))*COS(RADIANS(AB85-Insolation!$L$6))*SIN(RADIANS(0))+(SIN(RADIANS(Z85))*COS(RADIANS(0))) -> 0.5377925676 | AI85: =COS(RADIANS(Z85))*COS(RADIANS(AB85-Insolation!$L$6))*SIN(RADIANS(Insolation!$L$7))+SIN(RADIANS(Z85))*COS(RADIANS(Insolation!$L$7)) -> 0.4856013328 | AJ85: 407.6834464 | AK85: 96.77614087 | AL85: 368.1189307 | AM85: =$X$91*AG85*((1+COS(RADIANS(Insolation!$L$7)))/2) -> 89.29768261 | AN85: 736.2378613 | AO85: 63.94185094 | AP85: 758.068205 | AQ85: 74.41081508 | AS85: =1370*(1+0.034*COS(RADIANS(360*AS81)/365)) -> 1357.52521 | AT85: 8 | AU85: 26.29969016 | AV85: 60 | AW85: 74.86123856 | AX85: 74.86123856 | AY85: 105.1387614 | AZ85: -254.8612386 | BA85: 2.256998339 | BB85: 744.1871147 | BC85: =COS(RADIANS(AU85))*COS(RADIANS(AW85-Insolation!$L$6))*SIN(RADIANS(0))+(SIN(RADIANS(AU85))*COS(RADIANS(0))) -> 0.4430663429 | BD85: =COS(RADIANS(AU85))*COS(RADIANS(AW85-Insolation!$L$6))*SIN(RADIANS(Insolation!$L$7))+SIN(RADIANS(AU85))*COS(RADIANS(Insolation!$L$7)) -> 0.4996257795 | BE85: 329.7242634 | BF85: 82.8832731 | BG85: 371.8150673 | BH85: =$AS$91*BB85*((1+COS(RADIANS(Insolation!$L$7)))/2) -> 76.47839796 | BI85: 743.6301346 | BJ85: 58.35216431 | BK85: 744.1871147 | BL85: 59.8030309 | BN85: =1370*(1+0.034*COS(RADIANS(360*BN81)/365)) -> 1381.31194 | BO85: 8 | BP85: 19.13205781 | BQ85: 60 | BR85: 64.66496708 | BS85: 64.66496708 | BT85: 115.3350329 | BU85: -244.6649671 | BV85: 3.051138048 | BW85: 698.9779784 | BX85: =COS(RADIANS(BP85))*COS(RADIANS(BR85-Insolation!$L$6))*SIN(RADIANS(0))+(SIN(RADIANS(BP85))*COS(RADIANS(0))) -> 0.3277465602 | BY85: =COS(RADIANS(BP85))*COS(RADIANS(BR85-Insolation!$L$6))*SIN(RADIANS(Insolation!$L$7))+SIN(RADIANS(BP85))*COS(RADIANS(Insolation!$L$7)) -> 0.4929988957 | BZ85: 229.0876281 | CA85: 63.7597437 | CB85: 344.5953715 | CC85: =$BN$91*BW85*((1+COS(RADIANS(Insolation!$L$7)))/2) -> 58.83265549 | CD85: 689.190743 | CE85: 47.20468479 | CF85: 698.9779784 | CG85: 42.32839019 | CI85: =1370*(1+0.034*COS(RADIANS(360*CI81)/365)) -> 1402.72373 | CJ85: 8 | CK85: 12.95366109 | CL85: 60 | CM85: 57.08485308 | CN85: 57.08485308 | CO85: 122.9151469 | CP85: -237.0848531 | CQ85: 4.461040648 | CR85: 611.058107 | CS85: =COS(RADIANS(CK85))*COS(RADIANS(CM85-Insolation!$L$6))*SIN(RADIANS(0))+(SIN(RADIANS(CK85))*COS(RADIANS(0))) -> 0.2241629429 | CT85: =COS(RADIANS(CK85))*COS(RADIANS(CM85-Insolation!$L$6))*SIN(RADIANS(Insolation!$L$7))+SIN(RADIANS(CK85))*COS(RADIANS(Insolation!$L$7)) -> 0.4723377485 | CU85: 136.9765836 | CV85: 43.68368242 | CW85: 288.6258105 | CX85: =$CI$91*CR85*((1+COS(RADIANS(Insolation!$L$7)))/2) -> 40.30798886 | CY85: 577.2516209 | CZ85: 33.44904202 | DA85: 611.058107 | DB85: 26.73797261 | DD85: =1370*(1+0.034*COS(RADIANS(360*DD81)/365)) -> 1414.824357 | DE85: 8 | DF85: 10.17185117 | DG85: 60 | DH85: 53.8898141 | DI85: 53.8898141 | DJ85: 126.1101859 | DK85: -233.8898141 | DL85: 5.662475878 | DM85: 550.7956066 | DN85: =COS(RADIANS(DF85))*COS(RADIANS(DH85-Insolation!$L$6))*SIN(RADIANS(0))+(SIN(RADIANS(DF85))*COS(RADIANS(0))) -> 0.1766011938 | DO85: =COS(RADIANS(DF85))*COS(RADIANS(DH85-Insolation!$L$6))*SIN(RADIANS(Insolation!$L$7))+SIN(RADIANS(DF85))*COS(RADIANS(Insolation!$L$7)) -> 0.4591015336 | DP85: 97.27116167 | DQ85: 32.26330144 | DR85: 252.8711077 | DS85: =$DD$91*DM85*((1+COS(RADIANS(Insolation!$L$7)))/2) -> 29.77012749 | DT85: 505.7422153 | DU85: 25.03696539 | DV85: 550.7956066 | DW85: 18.9805195
C86: A | D86: 8.5 | E86: 42.43006395 | F86: 52.5 | G86: 90.5931208 | H86: 89.4068792 | I86: 90.5931208 | J86: -269.4068792 | K86: 1.482162676 | L86: 797.3283991 | M86: =COS(RADIANS(E86))*COS(RADIANS(G86-Insolation!$L$6))*SIN(RADIANS(0))+(SIN(RADIANS(E86))*COS(RADIANS(0))) -> 0.6746897732 | N86: =COS(RADIANS(E86))*COS(RADIANS(G86-Insolation!$L$6))*SIN(RADIANS(Insolation!$L$7))+SIN(RADIANS(E86))*COS(RADIANS(Insolation!$L$7)) -> 0.5663347952 | O86: 537.9493167 | P86: 107.5327758 | Q86: 451.5548156 | R86: =$C$91*L86*((1+COS(RADIANS(Insolation!$L$7)))/2) -> 99.22308944 | S86: 741.7598982 | T86: 72.95805908 | U86: 797.3283991 | V86: 90.04201993 | X86: A | Y86: 8.5 | Z86: 38.83624981 | AA86: 52.5 | AB86: 81.56068183 | AC86: 81.56068183 | AD86: 98.43931817 | AE86: -261.5606818 | AF86: 1.594650251 | AG86: 799.8440667 | AH86: =COS(RADIANS(Z86))*COS(RADIANS(AB86-Insolation!$L$6))*SIN(RADIANS(0))+(SIN(RADIANS(Z86))*COS(RADIANS(0))) -> 0.6270967563 | AI86: =COS(RADIANS(Z86))*COS(RADIANS(AB86-Insolation!$L$6))*SIN(RADIANS(Insolation!$L$7))+SIN(RADIANS(Z86))*COS(RADIANS(Insolation!$L$7)) -> 0.5912307225 | AJ86: 501.5796197 | AK86: 102.109311 | AL86: 472.8923854 | AM86: =$X$91*AG86*((1+COS(RADIANS(Insolation!$L$7)))/2) -> 94.21872746 | AN86: 776.8106895 | AO86: 72.67382426 | AP86: 799.8440667 | AQ86: 83.07086432 | AS86: A | AT86: 8.5 | AU86: 32.34049945 | AV86: 52.5 | AW86: 69.76897312 | AX86: 69.76897312 | AY86: 110.2310269 | AZ86: -249.7689731 | BA86: 1.869334673 | BB86: 800.5509792 | BC86: =COS(RADIANS(AU86))*COS(RADIANS(AW86-Insolation!$L$6))*SIN(RADIANS(0))+(SIN(RADIANS(AU86))*COS(RADIANS(0))) -> 0.5349496881 | BD86: =COS(RADIANS(AU86))*COS(RADIANS(AW86-Insolation!$L$6))*SIN(RADIANS(Insolation!$L$7))+SIN(RADIANS(AU86))*COS(RADIANS(Insolation!$L$7)) -> 0.608305807 | BE86: 428.2544966 | BF86: 89.16075557 | BG86: 486.9798094 | BH86: =$AS$91*BB86*((1+COS(RADIANS(Insolation!$L$7)))/2) -> 82.27078266 | BI86: 799.951814 | BJ86: 66.95380892 | BK86: 800.5509792 | BL86: 68.42863697 | BN86: A | BO86: 8.5 | BP86: 24.73432001 | BQ86: 52.5 | BR86: 59.45817794 | BS86: 59.45817794 | BT86: 120.5418221 | BU86: -239.4581779 | BV86: 2.389993426 | BW86: 782.4819189 | BX86: =COS(RADIANS(BP86))*COS(RADIANS(BR86-Insolation!$L$6))*SIN(RADIANS(0))+(SIN(RADIANS(BP86))*COS(RADIANS(0))) -> 0.4184111927 | BY86: =COS(RADIANS(BP86))*COS(RADIANS(BR86-Insolation!$L$6))*SIN(RADIANS(Insolation!$L$7))+SIN(RADIANS(BP86))*COS(RADIANS(Insolation!$L$7)) -> 0.6002374245 | BZ86: 327.399193 | CA86: 71.3768504 | CB86: 469.6749317 | CC86: =$BN$91*BW86*((1+COS(RADIANS(Insolation!$L$7)))/2) -> 65.86114382 | CD86: 771.5254439 | CE86: 55.81712853 | CF86: 782.4819189 | CG86: 50.62086175 | CI86: A | CJ86: 8.5 | CK86: 18.12118749 | CL86: 52.5 | CM86: 52.05245989 | CN86: 52.05245989 | CO86: 127.9475401 | CP86: -232.0524599 | CQ86: 3.215145641 | CR86: 739.7754042 | CS86: =COS(RADIANS(CK86))*COS(RADIANS(CM86-Insolation!$L$6))*SIN(RADIANS(0))+(SIN(RADIANS(CK86))*COS(RADIANS(0))) -> 0.3110279009 | CT86: =COS(RADIANS(CK86))*COS(RADIANS(CM86-Insolation!$L$6))*SIN(RADIANS(Insolation!$L$7))+SIN(RADIANS(CK86))*COS(RADIANS(Insolation!$L$7)) -> 0.5750820055 | CU86: 230.0907911 | CV86: 52.8855005 | CW86: 425.4315231 | CX86: =$CI$91*CR86*((1+COS(RADIANS(Insolation!$L$7)))/2) -> 48.79872865 | CY86: 698.8476977 | CZ86: 42.45536882 | DA86: 739.7754042 | DB86: 34.66718335 | DD86: A | DE86: 8.5 | DF86: 15.13130348 | DG86: 52.5 | DH86: 48.99236043 | DI86: 48.99236043 | DJ86: 131.0076396 | DK86: -228.9923604 | DL86: 3.830948596 | DM86: 714.5669069 | DN86: =COS(RADIANS(DF86))*COS(RADIANS(DH86-Insolation!$L$6))*SIN(RADIANS(0))+(SIN(RADIANS(DF86))*COS(RADIANS(0))) -> 0.2610319546 | DO86: =COS(RADIANS(DF86))*COS(RADIANS(DH86-Insolation!$L$6))*SIN(RADIANS(Insolation!$L$7))+SIN(RADIANS(DF86))*COS(RADIANS(Insolation!$L$7)) -> 0.5589666113 | DP86: 186.5247964 | DQ86: 41.8563388 | DR86: 399.4190425 | DS86: =$DD$91*DM86*((1+COS(RADIANS(Insolation!$L$7)))/2) -> 38.62185476 | DT86: 656.1175256 | DU86: 33.94668923 | DV86: 714.5669069 | DW86: 26.39109036
C87: =1160+75*SIN(RADIANS((360/365)*(C81-275))) -> 1086.661374 | D87: 9 | E87: 48.7674833 | F87: 45 | G87: 86.41439504 | H87: 86.41439504 | I87: 93.58560496 | J87: -266.414395 | K87: 1.329714796 | L87: 823.1269305 | M87: =COS(RADIANS(E87))*COS(RADIANS(G87-Insolation!$L$6))*SIN(RADIANS(0))+(SIN(RADIANS(E87))*COS(RADIANS(0))) -> 0.7520409661 | N87: =COS(RADIANS(E87))*COS(RADIANS(G87-Insolation!$L$6))*SIN(RADIANS(Insolation!$L$7))+SIN(RADIANS(E87))*COS(RADIANS(Insolation!$L$7)) -> 0.6578261286 | O87: 619.025172 | P87: 111.0121297 | Q87: 541.4744021 | R87: =$C$91*L87*((1+COS(RADIANS(Insolation!$L$7)))/2) -> 102.4335733 | S87: 765.7604431 | T87: 80.92097091 | U87: 823.1269305 | V87: 97.24889948 | X87: =1160+75*SIN(RADIANS((360/365)*(X81-275))) -> 1104.843723 | Y87: 9 | Z87: 45.06011463 | AA87: 45 | AB87: 76.46405017 | AC87: 76.46405017 | AD87: 103.5359498 | AE87: -256.4640502 | AF87: 1.412732104 | AG87: 829.8704114 | AH87: =COS(RADIANS(Z87))*COS(RADIANS(AB87-Insolation!$L$6))*SIN(RADIANS(0))+(SIN(RADIANS(Z87))*COS(RADIANS(0))) -> 0.707848287 | AI87: =COS(RADIANS(Z87))*COS(RADIANS(AB87-Insolation!$L$6))*SIN(RADIANS(Insolation!$L$7))+SIN(RADIANS(Z87))*COS(RADIANS(Insolation!$L$7)) -> 0.6867439907 | AJ87: 587.4223492 | AK87: 105.9425198 | AL87: 569.9085181 | AM87: =$X$91*AG87*((1+COS(RADIANS(Insolation!$L$7)))/2) -> 97.75572187 | AN87: 805.9723556 | AO87: 80.47231516 | AP87: 829.8704114 | AQ87: 90.46687551 | AS87: =1160+75*SIN(RADIANS((360/365)*(AS81-275))) -> 1138.363818 | AT87: 9 | AU87: 38.17266251 | AV87: 45 | AW87: 63.99816098 | AX87: 63.99816098 | AY87: 116.001839 | AZ87: -243.998161 | BA87: 1.61803561 | BB87: 839.3491151 | BC87: =COS(RADIANS(AU87))*COS(RADIANS(AW87-Insolation!$L$6))*SIN(RADIANS(0))+(SIN(RADIANS(AU87))*COS(RADIANS(0))) -> 0.6180333696 | BD87: =COS(RADIANS(AU87))*COS(RADIANS(AW87-Insolation!$L$6))*SIN(RADIANS(Insolation!$L$7))+SIN(RADIANS(AU87))*COS(RADIANS(Insolation!$L$7)) -> 0.7065775535 | BE87: 518.7457619 | BF87: 93.4818684 | BG87: 593.0652442 | BH87: =$AS$91*BB87*((1+COS(RADIANS(Insolation!$L$7)))/2) -> 86.25797784 | BI87: 838.7209117 | BJ87: 74.18537057 | BK87: 839.3491151 | BL87: 75.62839126 | BN87: =1160+75*SIN(RADIANS((360/365)*(BN81-275))) -> 1176.644113 | BO87: 9 | BP87: 30.02599599 | BQ87: 45 | BR87: 53.63680767 | BS87: 53.63680767 | BT87: 126.3631923 | BU87: -233.6368077 | BV87: 1.998429723 | BW87: 836.567574 | BX87: =COS(RADIANS(BP87))*COS(RADIANS(BR87-Insolation!$L$6))*SIN(RADIANS(0))+(SIN(RADIANS(BP87))*COS(RADIANS(0))) -> 0.5003928777 | BY87: =COS(RADIANS(BP87))*COS(RADIANS(BR87-Insolation!$L$6))*SIN(RADIANS(Insolation!$L$7))+SIN(RADIANS(BP87))*COS(RADIANS(Insolation!$L$7)) -> 0.6972057246 | BZ87: 418.6124558 | CA87: 76.31046435 | CB87: 583.2597016 | CC87: =$BN$91*BW87*((1+COS(RADIANS(Insolation!$L$7)))/2) -> 70.41350858 | CD87: 824.8537804 | CE87: 62.48931966 | CF87: 836.567574 | CG87: 57.24783861 | CI87: =1160+75*SIN(RADIANS((360/365)*(CI81-275))) -> 1211.528958 | CJ87: 9 | CK87: 22.92798298 | CL87: 45 | CM87: 46.49277945 | CN87: 46.49277945 | CO87: 133.5072205 | CP87: -226.4927795 | CQ87: 2.566907693 | CR87: 817.134878 | CS87: =COS(RADIANS(CK87))*COS(RADIANS(CM87-Insolation!$L$6))*SIN(RADIANS(0))+(SIN(RADIANS(CK87))*COS(RADIANS(0))) -> 0.3895738061 | CT87: =COS(RADIANS(CK87))*COS(RADIANS(CM87-Insolation!$L$6))*SIN(RADIANS(Insolation!$L$7))+SIN(RADIANS(CK87))*COS(RADIANS(Insolation!$L$7)) -> 0.66798645 | CU87: 318.3343445 | CV87: 58.41582019 | CW87: 545.8350263 | CX87: =$CI$91*CR87*((1+COS(RADIANS(Insolation!$L$7)))/2) -> 53.90168821 | CY87: 771.927297 | CZ87: 48.78051546 | DA87: 817.134878 | DB87: 40.5865468 | DD87: =1160+75*SIN(RADIANS((360/365)*(DD81-275))) -> 1231.717612 | DE87: 9 | DF87: 19.71713402 | DG87: 45 | DH87: 43.60678085 | DI87: 43.60678085 | DJ87: 136.3932191 | DK87: -223.6067809 | DL87: 2.964045077 | DM87: 808.2639083 | DN87: =COS(RADIANS(DF87))*COS(RADIANS(DH87-Insolation!$L$6))*SIN(RADIANS(0))+(SIN(RADIANS(DF87))*COS(RADIANS(0))) -> 0.3373767854 | DO87: =COS(RADIANS(DF87))*COS(RADIANS(DH87-Insolation!$L$6))*SIN(RADIANS(Insolation!$L$7))+SIN(RADIANS(DF87))*COS(RADIANS(Insolation!$L$7)) -> 0.6492676153 | DP87: 272.6894792 | DQ87: 47.344717 | DR87: 524.7795803 | DS87: =$DD$91*DM87*((1+COS(RADIANS(Insolation!$L$7)))/2) -> 43.68611389 | DT87: 742.1503997 | DU87: 39.83268093 | DV87: 808.2639083 | DW87: 31.65886271
C88: k | D88: 9.5 | E88: 55.07239697 | F88: 37.5 | G88: 81.55620034 | H88: 81.55620034 | I88: 98.44379966 | J88: -261.5562003 | K88: 1.219696426 | L88: 842.2622207 | M88: =COS(RADIANS(E88))*COS(RADIANS(G88-Insolation!$L$6))*SIN(RADIANS(0))+(SIN(RADIANS(E88))*COS(RADIANS(0))) -> 0.8198761416 | N88: =COS(RADIANS(E88))*COS(RADIANS(G88-Insolation!$L$6))*SIN(RADIANS(Insolation!$L$7))+SIN(RADIANS(E88))*COS(RADIANS(Insolation!$L$7)) -> 0.7380618746 | O88: 690.5506997 | P88: 113.5928366 | Q88: 621.6416335 | R88: =$C$91*L88*((1+COS(RADIANS(Insolation!$L$7)))/2) -> 104.8148539 | S88: 783.5621305 | T88: 88.18996205 | U88: 842.2622207 | V88: 103.3624466 | X88: k | Y88: 9.5 | Z88: 51.13854979 | AA88: 37.5 | AB88: 70.44001653 | AC88: 70.44001653 | AD88: 109.5599835 | AE88: -250.4400165 | AF88: 1.284248534 | AG88: 851.7538778 | AH88: =COS(RADIANS(Z88))*COS(RADIANS(AB88-Insolation!$L$6))*SIN(RADIANS(0))+(SIN(RADIANS(Z88))*COS(RADIANS(0))) -> 0.7786654789 | AI88: =COS(RADIANS(Z88))*COS(RADIANS(AB88-Insolation!$L$6))*SIN(RADIANS(Insolation!$L$7))+SIN(RADIANS(Z88))*COS(RADIANS(Insolation!$L$7)) -> 0.7705068788 | AJ88: 663.2313411 | AK88: 108.7361965 | AL88: 656.2822218 | AM88: =$X$91*AG88*((1+COS(RADIANS(Insolation!$L$7)))/2) -> 100.3335148 | AN88: 827.2256364 | AO88: 87.35602453 | AP88: 851.7538778 | AQ88: 96.70265947 | AS88: k | AT88: 9.5 | AU88: 43.70106132 | AV88: 37.5 | AW88: 57.29001533 | AX88: 57.29001533 | AY88: 122.7099847 | AZ88: -237.2900153 | BA88: 1.447396258 | BB88: 866.7605911 | BC88: =COS(RADIANS(AU88))*COS(RADIANS(AW88-Insolation!$L$6))*SIN(RADIANS(0))+(SIN(RADIANS(AU88))*COS(RADIANS(0))) -> 0.6908958028 | BD88: =COS(RADIANS(AU88))*COS(RADIANS(AW88-Insolation!$L$6))*SIN(RADIANS(Insolation!$L$7))+SIN(RADIANS(AU88))*COS(RADIANS(Insolation!$L$7)) -> 0.7927595621 | BE88: 598.8412544 | BF88: 96.53480066 | BG88: 687.1327466 | BH88: =$AS$91*BB88*((1+COS(RADIANS(Insolation!$L$7)))/2) -> 89.07499217 | BI88: 866.1118719 | BJ88: 80.24036134 | BK88: 866.7605911 | BL88: 81.61514464 | BN88: k | BO88: 9.5 | BP88: 34.90999145 | BQ88: 37.5 | BR88: 47.05014994 | BS88: 47.05014994 | BT88: 132.9498501 | BU88: -227.0501499 | BV88: 1.747369248 | BW88: 873.1969365 | BX88: =COS(RADIANS(BP88))*COS(RADIANS(BR88-Insolation!$L$6))*SIN(RADIANS(0))+(SIN(RADIANS(BP88))*COS(RADIANS(0))) -> 0.5722888859 | BY88: =COS(RADIANS(BP88))*COS(RADIANS(BR88-Insolation!$L$6))*SIN(RADIANS(Insolation!$L$7))+SIN(RADIANS(BP88))*COS(RADIANS(Insolation!$L$7)) -> 0.7822446414 | BZ88: 499.7209019 | CA88: 79.65174095 | CB88: 683.0536244 | CC88: =$BN$91*BW88*((1+COS(RADIANS(Insolation!$L$7)))/2) -> 73.4965852 | CD88: 860.9702509 | CE88: 67.74484635 | CF88: 873.1969365 | CG88: 62.61777352 | CI88: k | CJ88: 9.5 | CK88: 27.28756697 | CL88: 37.5 | CM88: 40.32275176 | CN88: 40.32275176 | CO88: 139.6772482 | CP88: -220.3227518 | CQ88: 2.181230997 | CR88: 866.9467777 | CS88: =COS(RADIANS(CK88))*COS(RADIANS(CM88-Insolation!$L$6))*SIN(RADIANS(0))+(SIN(RADIANS(CK88))*COS(RADIANS(0))) -> 0.4584567162 | CT88: =COS(RADIANS(CK88))*COS(RADIANS(CM88-Insolation!$L$6))*SIN(RADIANS(Insolation!$L$7))+SIN(RADIANS(CK88))*COS(RADIANS(Insolation!$L$7)) -> 0.7494614611 | CU88: 397.4575728 | CV88: 61.97680267 | CW88: 649.7431987 | CX88: =$CI$91*CR88*((1+COS(RADIANS(Insolation!$L$7)))/2) -> 57.18749274 | CY88: 818.9833782 | CZ88: 53.44252297 | DA88: 866.9467777 | DB88: 45.19524205 | DD88: k | DE88: 9.5 | DF88: 23.84911105 | DG88: 37.5 | DH88: 37.67275039 | DI88: 37.67275039 | DJ88: 142.3272496 | DK88: -217.6727504 | DL88: 2.473230953 | DM88: 866.6606262 | DN88: =COS(RADIANS(DF88))*COS(RADIANS(DH88-Insolation!$L$6))*SIN(RADIANS(0))+(SIN(RADIANS(DF88))*COS(RADIANS(0))) -> 0.4043294052 | DO88: =COS(RADIANS(DF88))*COS(RADIANS(DH88-Insolation!$L$6))*SIN(RADIANS(Insolation!$L$7))+SIN(RADIANS(DF88))*COS(RADIANS(Insolation!$L$7)) -> 0.7284594704 | DP88: 350.4163755 | DQ88: 50.76535233 | DR88: 631.3271408 | DS88: =$DD$91*DM88*((1+COS(RADIANS(Insolation!$L$7)))/2) -> 46.84241673 | DT88: 795.7704452 | DU88: 44.00198652 | DV88: 866.6606262 | DW88: 35.64563852
C89: =0.174+0.035*SIN(RADIANS(360/365*(C81-100))) -> 0.2088830616 | D89: 10 | E89: 61.2866946 | F89: 30 | G89: 75.51376128 | H89: 75.51376128 | I89: 104.4862387 | J89: -255.5137613 | K89: 1.140205844 | L89: 856.3640931 | M89: =COS(RADIANS(E89))*COS(RADIANS(G89-Insolation!$L$6))*SIN(RADIANS(0))+(SIN(RADIANS(E89))*COS(RADIANS(0))) -> 0.8770346211 | N89: =COS(RADIANS(E89))*COS(RADIANS(G89-Insolation!$L$6))*SIN(RADIANS(Insolation!$L$7))+SIN(RADIANS(E89))*COS(RADIANS(Insolation!$L$7)) -> 0.8056691773 | O89: 751.0609579 | P89: 115.4947047 | Q89: 689.9461544 | R89: =$C$91*L89*((1+COS(RADIANS(Insolation!$L$7)))/2) -> 106.5697536 | S89: 796.6811959 | T89: 94.68826058 | U89: 856.3640931 | V89: 108.3937796 | X89: =0.174+0.035*SIN(RADIANS(360/365*(X81-100))) -> 0.2025788318 | Y89: 10 | Z89: 56.96488644 | AA89: 30 | AB89: 62.96911841 | AC89: 62.96911841 | AD89: 117.0308816 | AE89: -242.9691184 | AF89: 1.192838252 | AG89: 867.6734182 | AH89: =COS(RADIANS(Z89))*COS(RADIANS(AB89-Insolation!$L$6))*SIN(RADIANS(0))+(SIN(RADIANS(Z89))*COS(RADIANS(0))) -> 0.83833663 | AI89: =COS(RADIANS(Z89))*COS(RADIANS(AB89-Insolation!$L$6))*SIN(RADIANS(Insolation!$L$7))+SIN(RADIANS(Z89))*COS(RADIANS(Insolation!$L$7)) -> 0.8410861806 | AJ89: 727.4024093 | AK89: 110.7685092 | AL89: 729.7881213 | AM89: =$X$91*AG89*((1+COS(RADIANS(Insolation!$L$7)))/2) -> 102.2087788 | AN89: 842.6867365 | AO89: 93.28422257 | AP89: 867.6734182 | AQ89: 101.814904 | AS89: =0.174+0.035*SIN(RADIANS(360/365*(AS81-100))) -> 0.1883274586 | AT89: 10 | AU89: 48.78916136 | AV89: 30 | AW89: 49.31904568 | AX89: 49.31904568 | AY89: 130.6809543 | AZ89: -229.3190457 | BA89: 1.3292741 | BB89: 886.2583058 | BC89: =COS(RADIANS(AU89))*COS(RADIANS(AW89-Insolation!$L$6))*SIN(RADIANS(0))+(SIN(RADIANS(AU89))*COS(RADIANS(0))) -> 0.7522902912 | BD89: =COS(RADIANS(AU89))*COS(RADIANS(AW89-Insolation!$L$6))*SIN(RADIANS(Insolation!$L$7))+SIN(RADIANS(AU89))*COS(RADIANS(Insolation!$L$7)) -> 0.8653772348 | BE89: 666.723519 | BF89: 98.70634379 | BG89: 766.947762 | BH89: =$AS$91*BB89*((1+COS(RADIANS(Insolation!$L$7)))/2) -> 91.07872746 | BI89: 885.5949937 | BJ89: 85.19552331 | BK89: 886.2583058 | BL89: 86.48108395 | BN89: =0.174+0.035*SIN(RADIANS(360/365*(BN81-100))) -> 0.1706912138 | BO89: 10 | BP89: 39.26211495 | BQ89: 30 | BR89: 39.54889956 | BS89: 39.54889956 | BT89: 140.4511004 | BU89: -219.5488996 | BV89: 1.580105694 | BW89: 898.486369 | BX89: =COS(RADIANS(BP89))*COS(RADIANS(BR89-Insolation!$L$6))*SIN(RADIANS(0))+(SIN(RADIANS(BP89))*COS(RADIANS(0))) -> 0.6328690565 | BY89: =COS(RADIANS(BP89))*COS(RADIANS(BR89-Insolation!$L$6))*SIN(RADIANS(Insolation!$L$7))+SIN(RADIANS(BP89))*COS(RADIANS(Insolation!$L$7)) -> 0.8538991355 | BZ89: 568.6242206 | CA89: 81.95860581 | CB89: 767.2167337 | CC89: =$BN$91*BW89*((1+COS(RADIANS(Insolation!$L$7)))/2) -> 75.62518512 | CD89: 885.9055754 | CE89: 71.84170262 | CF89: 898.486369 | CG89: 66.91383567 | CI89: =0.174+0.035*SIN(RADIANS(360/365*(CI81-100))) -> 0.1534275162 | CJ89: 10 | CK89: 31.09763776 | CL89: 30 | CM89: 33.47757729 | CN89: 33.47757729 | CO89: 146.5224227 | CP89: -213.4775773 | CQ89: 1.936115823 | CR89: 900.1712296 | CS89: =COS(RADIANS(CK89))*COS(RADIANS(CM89-Insolation!$L$6))*SIN(RADIANS(0))+(SIN(RADIANS(CK89))*COS(RADIANS(0))) -> 0.5164980255 | CT89: =COS(RADIANS(CK89))*COS(RADIANS(CM89-Insolation!$L$6))*SIN(RADIANS(Insolation!$L$7))+SIN(RADIANS(CK89))*COS(RADIANS(Insolation!$L$7)) -> 0.8181129788 | CU89: 464.9366628 | CV89: 64.35197188 | CW89: 736.4417661 | CX89: =$CI$91*CR89*((1+COS(RADIANS(Insolation!$L$7)))/2) -> 59.37911875 | CY89: 850.3697038 | CZ89: 56.91259779 | DA89: 900.1712296 | DB89: 48.79481915 | DD89: =0.174+0.035*SIN(RADIANS(360/365*(DD81-100))) -> 0.1421288379 | DE89: 10 | DF89: 27.43514212 | DG89: 30 | DH89: 31.14986127 | DI89: 31.14986127 | DJ89: 148.8501387 | DK89: -211.1498613 | DL89: 2.170401542 | DM89: 904.7767768 | DN89: =COS(RADIANS(DF89))*COS(RADIANS(DH89-Insolation!$L$6))*SIN(RADIANS(0))+(SIN(RADIANS(DF89))*COS(RADIANS(0))) -> 0.4607442359 | DO89: =COS(RADIANS(DF89))*COS(RADIANS(DH89-Insolation!$L$6))*SIN(RADIANS(Insolation!$L$7))+SIN(RADIANS(DF89))*COS(RADIANS(Insolation!$L$7)) -> 0.795187182 | DP89: 416.8706847 | DQ89: 52.99803691 | DR89: 719.4668955 | DS89: =$DD$91*DM89*((1+COS(RADIANS(Insolation!$L$7)))/2) -> 48.90256871 | DT89: 830.7688115 | DU89: 47.02562042 | DV89: 904.7767768 | DW89: 38.70828846
C90: C | D90: 10.5 | E90: 67.30004718 | F90: 22.5 | G90: 67.30023591 | H90: 67.30023591 | I90: 112.6997641 | J90: -247.3002359 | K90: 1.08396571 | L90: 866.4836494 | M90: =COS(RADIANS(E90))*COS(RADIANS(G90-Insolation!$L$6))*SIN(RADIANS(0))+(SIN(RADIANS(E90))*COS(RADIANS(0))) -> 0.9225384072 | N90: =COS(RADIANS(E90))*COS(RADIANS(G90-Insolation!$L$6))*SIN(RADIANS(Insolation!$L$7))+SIN(RADIANS(E90))*COS(RADIANS(Insolation!$L$7)) -> 0.859491257 | O90: 799.3644458 | P90: 116.8594924 | Q90: 744.735121 | R90: =$C$91*L90*((1+COS(RADIANS(Insolation!$L$7)))/2) -> 107.8290761 | S90: 806.0954863 | T90: 100.3063574 | U90: 866.4836494 | V90: 112.3334312 | X90: C | Y90: 10.5 | Z90: 62.35516255 | AA90: 22.5 | AB90: 53.2272815 | AC90: 53.2272815 | AD90: 126.7727185 | AE90: -233.2272815 | AF90: 1.128871075 | AG90: 878.9902395 | AH90: =COS(RADIANS(Z90))*COS(RADIANS(AB90-Insolation!$L$6))*SIN(RADIANS(0))+(SIN(RADIANS(Z90))*COS(RADIANS(0))) -> 0.8858407504 | AI90: =COS(RADIANS(Z90))*COS(RADIANS(AB90-Insolation!$L$6))*SIN(RADIANS(Insolation!$L$7))+SIN(RADIANS(Z90))*COS(RADIANS(Insolation!$L$7)) -> 0.8972742646 | AJ90: 778.6453734 | AK90: 112.2132318 | AL90: 788.6953207 | AM90: =$X$91*AG90*((1+COS(RADIANS(Insolation!$L$7)))/2) -> 103.5418593 | AN90: 853.6776635 | AO90: 98.17441193 | AP90: 878.9902395 | AQ90: 105.8081427 | AS90: C | AT90: 10.5 | AU90: 53.24162614 | AV90: 22.5 | AW90: 39.71639259 | AX90: 39.71639259 | AY90: 140.2836074 | AZ90: -219.7163926 | BA90: 1.248180219 | BB90: 899.8973077 | BC90: =COS(RADIANS(AU90))*COS(RADIANS(AW90-Insolation!$L$6))*SIN(RADIANS(0))+(SIN(RADIANS(AU90))*COS(RADIANS(0))) -> 0.8011663581 | BD90: =COS(RADIANS(AU90))*COS(RADIANS(AW90-Insolation!$L$6))*SIN(RADIANS(Insolation!$L$7))+SIN(RADIANS(AU90))*COS(RADIANS(Insolation!$L$7)) -> 0.9231880632 | BE90: 720.9674487 | BF90: 100.2253772 | BG90: 830.7744525 | BH90: =$AS$91*BB90*((1+COS(RADIANS(Insolation!$L$7)))/2) -> 92.48037632 | BI90: 899.2237876 | BJ90: 89.07117569 | BK90: 899.8973077 | BL90: 90.26128886 | BN90: C | BO90: 10.5 | BP90: 42.92941404 | BQ90: 22.5 | BR90: 31.01986451 | BS90: 31.01986451 | BT90: 148.9801355 | BU90: -211.0198645 | BV90: 1.468219983 | BW90: 915.8104794 | BX90: =COS(RADIANS(BP90))*COS(RADIANS(BR90-Insolation!$L$6))*SIN(RADIANS(0))+(SIN(RADIANS(BP90))*COS(RADIANS(0))) -> 0.6810968461 | BY90: =COS(RADIANS(BP90))*COS(RADIANS(BR90-Insolation!$L$6))*SIN(RADIANS(Insolation!$L$7))+SIN(RADIANS(BP90))*COS(RADIANS(Insolation!$L$7)) -> 0.9109431786 | BZ90: 623.7556292 | CA90: 83.5388857 | CB90: 834.2513091 | CC90: =$BN$91*BW90*((1+COS(RADIANS(Insolation!$L$7)))/2) -> 77.08334754 | CD90: 902.9871101 | CE90: 74.92015199 | CF90: 915.8104794 | CG90: 70.21847864 | CI90: C | CJ90: 10.5 | CK90: 34.24304815 | CL90: 22.5 | CM90: 25.9328241 | CN90: 25.9328241 | CO90: 154.0671759 | CP90: -205.9328241 | CQ90: 1.777131277 | CR90: 922.3987414 | CS90: =COS(RADIANS(CK90))*COS(RADIANS(CM90-Insolation!$L$6))*SIN(RADIANS(0))+(SIN(RADIANS(CK90))*COS(RADIANS(0))) -> 0.5627046312 | CT90: =COS(RADIANS(CK90))*COS(RADIANS(CM90-Insolation!$L$6))*SIN(RADIANS(Insolation!$L$7))+SIN(RADIANS(CK90))*COS(RADIANS(Insolation!$L$7)) -> 0.8727663566 | CU90: 519.0380436 | CV90: 65.94098535 | CW90: 805.0385888 | CX90: =$CI$91*CR90*((1+COS(RADIANS(Insolation!$L$7)))/2) -> 60.84533985 | CY90: 871.3674895 | CZ90: 59.43664602 | DA90: 922.3987414 | DB90: 51.5231416 | DD90: C | DE90: 10.5 | DF90: 30.37490907 | DG90: 22.5 | DH90: 24.03454191 | DI90: 24.03454191 | DJ90: 155.9654581 | DK90: -204.0345419 | DL90: 1.977629044 | DM90: 929.909053 | DN90: =COS(RADIANS(DF90))*COS(RADIANS(DH90-Insolation!$L$6))*SIN(RADIANS(0))+(SIN(RADIANS(DF90))*COS(RADIANS(0))) -> 0.5056560042 | DO90: =COS(RADIANS(DF90))*COS(RADIANS(DH90-Insolation!$L$6))*SIN(RADIANS(Insolation!$L$7))+SIN(RADIANS(DF90))*COS(RADIANS(Insolation!$L$7)) -> 0.8483090205 | DP90: 470.2140961 | DQ90: 54.47018047 | DR90: 788.8502379 | DS90: =$DD$91*DM90*((1+COS(RADIANS(Insolation!$L$7)))/2) -> 50.26095113 | DT90: 853.8453447 | DU90: 49.18746966 | DV90: 929.909053 | DW90: 41.00667714
C91: =0.095+0.04*SIN(RADIANS(360/365*(C81-100))) -> 0.1348663561 | D91: 11 | E91: 72.8641638 | F91: 15 | G91: 54.80643462 | H91: 54.80643462 | I91: 125.1935654 | J91: =180-H91-360 -> -234.8064346 | K91: 1.04645319 | L91: 873.2998515 | M91: =COS(RADIANS(E91))*COS(RADIANS(G91-Insolation!$L$6))*SIN(RADIANS(0))+(SIN(RADIANS(E91))*COS(RADIANS(0))) -> 0.9556089175 | N91: =COS(RADIANS(E91))*COS(RADIANS(G91-Insolation!$L$6))*SIN(RADIANS(Insolation!$L$7))+SIN(RADIANS(E91))*COS(RADIANS(Insolation!$L$7)) -> 0.898607203 | O91: 834.5331257 | P91: 117.7787687 | Q91: 784.753537 | R91: =$C$91*L91*((1+COS(RADIANS(Insolation!$L$7)))/2) -> 108.6773146 | S91: 812.4366443 | T91: 104.8785283 | U91: 873.2998515 | V91: 115.1646052 | X91: =0.095+0.04*SIN(RADIANS(360/365*(X81-100))) -> 0.1276615221 | Y91: 11 | Z91: 66.97950552 | AA91: 15 | AB91: 39.99942423 | AC91: 39.99942423 | AD91: 140.0005758 | AE91: =180-AC91-360 -> -219.9994242 | AF91: 1.086525417 | AG91: 886.5629453 | AH91: =COS(RADIANS(Z91))*COS(RADIANS(AB91-Insolation!$L$6))*SIN(RADIANS(0))+(SIN(RADIANS(Z91))*COS(RADIANS(0))) -> 0.9203650316 | AI91: =COS(RADIANS(Z91))*COS(RADIANS(AB91-Insolation!$L$6))*SIN(RADIANS(Insolation!$L$7))+SIN(RADIANS(Z91))*COS(RADIANS(Insolation!$L$7)) -> 0.9381097372 | AJ91: 815.9615331 | AK91: 113.179975 | AL91: 831.6933316 | AM91: =$X$91*AG91*((1+COS(RADIANS(Insolation!$L$7)))/2) -> 104.4338966 | AN91: 861.0322956 | AO91: 101.9009644 | AP91: 886.5629453 | AQ91: 108.6734331 | AS91: =0.095+0.04*SIN(RADIANS(360/365*(AS81-100))) -> 0.1113742384 | AT91: 11 | AU91: 56.79198633 | AV91: 15 | AW91: 28.17847049 | AX91: 28.17847049 | AY91: 151.8215295 | AZ91: =180-AX91-360 -> -208.1784705 | BA91: 1.195189048 | BB91: 908.9229679 | BC91: =COS(RADIANS(AU91))*COS(RADIANS(AW91-Insolation!$L$6))*SIN(RADIANS(0))+(SIN(RADIANS(AU91))*COS(RADIANS(0))) -> 0.8366877204 | BD91: =COS(RADIANS(AU91))*COS(RADIANS(AW91-Insolation!$L$6))*SIN(RADIANS(Insolation!$L$7))+SIN(RADIANS(AU91))*COS(RADIANS(Insolation!$L$7)) -> 0.9652028878 | BE91: 760.484686 | BF91: 101.2306033 | BG91: 877.2950733 | BH91: =$AS$91*BB91*((1+COS(RADIANS(Insolation!$L$7)))/2) -> 93.40792265 | BI91: 908.2426926 | BJ91: 91.86049445 | BK91: 908.9229679 | BL91: 92.96450297 | BN91: =0.095+0.04*SIN(RADIANS(360/365*(BN81-100))) -> 0.09121853001 | BO91: 11 | BP91: 45.73728425 | BQ91: 15 | BR91: 21.44669101 | BS91: 21.44669101 | BT91: 158.553309 | BU91: =180-BS91-360 -> -201.446691 | BV91: 1.396361237 | BW91: 927.112669 | BX91: =COS(RADIANS(BP91))*COS(RADIANS(BR91-Insolation!$L$6))*SIN(RADIANS(0))+(SIN(RADIANS(BP91))*COS(RADIANS(0))) -> 0.7161470639 | BY91: =COS(RADIANS(BP91))*COS(RADIANS(BR91-Insolation!$L$6))*SIN(RADIANS(Insolation!$L$7))+SIN(RADIANS(BP91))*COS(RADIANS(Insolation!$L$7)) -> 0.9524007314 | BZ91: 663.9490158 | CA91: 84.56985482 | CB91: 882.9827841 | CC91: =$BN$91*BW91*((1+COS(RADIANS(Insolation!$L$7)))/2) -> 78.03464765 | CD91: 914.131044 | CE91: 77.06463254 | CF91: 927.112669 | CG91: 72.56715402 | CI91: =0.095+0.04*SIN(RADIANS(360/365*(CI81-100))) -> 0.07148858991 | CJ91: 11 | CK91: 36.60435719 | CL91: 15 | CM91: 17.73227362 | CN91: 17.73227362 | CO91: 162.2677264 | CP91: =180-CN91-360 -> -197.7322736 | CQ91: 1.677047801 | CR91: 936.6719962 | CS91: =COS(RADIANS(CK91))*COS(RADIANS(CM91-Insolation!$L$6))*SIN(RADIANS(0))+(SIN(RADIANS(CK91))*COS(RADIANS(0))) -> 0.5962859254 | CT91: =COS(RADIANS(CK91))*COS(RADIANS(CM91-Insolation!$L$6))*SIN(RADIANS(Insolation!$L$7))+SIN(RADIANS(CK91))*COS(RADIANS(Insolation!$L$7)) -> 0.9124864601 | CU91: 558.5243281 | CV91: 66.96136022 | CW91: 854.7005141 | CX91: =$CI$91*CR91*((1+COS(RADIANS(Insolation!$L$7)))/2) -> 61.78686439 | CY91: 884.8510836 | CZ91: 61.1561822 | DA91: 936.6719962 | DB91: 53.44473843 | DD91: =0.095+0.04*SIN(RADIANS(360/365*(DD81-100))) -> 0.0585758148 | DE91: 11 | DF91: 32.56773285 | DG91: 15 | DH91: 16.37899354 | DI91: 16.37899354 | DJ91: 163.6210065 | DK91: =180-DI91-360 -> -196.3789935 | DL91: 1.857713083 | DM91: 945.8938042 | DN91: =COS(RADIANS(DF91))*COS(RADIANS(DH91-Insolation!$L$6))*SIN(RADIANS(0))+(SIN(RADIANS(DF91))*COS(RADIANS(0))) -> 0.5382962573 | DO91: =COS(RADIANS(DF91))*COS(RADIANS(DH91-Insolation!$L$6))*SIN(RADIANS(Insolation!$L$7))+SIN(RADIANS(DF91))*COS(RADIANS(Insolation!$L$7)) -> 0.8869160564 | DP91: 509.1710946 | DQ91: 55.40650029 | DR91: 838.9284025 | DS91: =$DD$91*DM91*((1+COS(RADIANS(Insolation!$L$7)))/2) -> 51.12491605 | DT91: 868.5225922 | DU91: 50.64401302 | DV91: 945.8938042 | DW91: 42.61580601
D92: 11.5 | E92: 77.33804428 | F92: 7.5 | G92: 33.63981373 | H92: 33.63981373 | I92: 146.3601863 | J92: =180-H92-360 -> -213.6398137 | K92: 1.024925884 | L92: 877.2356523 | M92: =COS(RADIANS(E92))*COS(RADIANS(G92-Insolation!$L$6))*SIN(RADIANS(0))+(SIN(RADIANS(E92))*COS(RADIANS(0))) -> 0.9756803063 | N92: =COS(RADIANS(E92))*COS(RADIANS(G92-Insolation!$L$6))*SIN(RADIANS(Insolation!$L$7))+SIN(RADIANS(E92))*COS(RADIANS(Insolation!$L$7)) -> 0.9223477306 | O92: 855.90155 | P92: 118.3095758 | Q92: 809.1163131 | R92: =$C$91*L92*((1+COS(RADIANS(Insolation!$L$7)))/2) -> 109.1671032 | S92: 816.0981459 | T92: 108.0925781 | U92: 877.2356523 | V92: 116.8709495 | Y92: 11.5 | Z92: 70.27421634 | AA92: 7.5 | AB92: 22.06053841 | AC92: 22.06053841 | AD92: 157.9394616 | AE92: =180-AC92-360 -> -202.0605384 | AF92: 1.0623394 | AG92: 890.9173857 | AH92: =COS(RADIANS(Z92))*COS(RADIANS(AB92-Insolation!$L$6))*SIN(RADIANS(0))+(SIN(RADIANS(Z92))*COS(RADIANS(0))) -> 0.9413187533 | AI92: =COS(RADIANS(Z92))*COS(RADIANS(AB92-Insolation!$L$6))*SIN(RADIANS(Insolation!$L$7))+SIN(RADIANS(Z92))*COS(RADIANS(Insolation!$L$7)) -> 0.9628938921 | AJ92: 838.6372429 | AK92: 113.7358695 | AL92: 857.8589091 | AM92: =$X$91*AG92*((1+COS(RADIANS(Insolation!$L$7)))/2) -> 104.9468338 | AN92: 865.2613398 | AO92: 104.2841777 | AP92: 890.9173857 | AQ92: 110.3987882 | AT92: 11.5 | AU92: 59.12027737 | AV92: 7.5 | AW92: 14.72197549 | AX92: 14.72197549 | AY92: 165.2780245 | AZ92: =180-AX92-360 -> -194.7219755 | BA92: 1.165166285 | BB92: 914.076675 | BC92: =COS(RADIANS(AU92))*COS(RADIANS(AW92-Insolation!$L$6))*SIN(RADIANS(0))+(SIN(RADIANS(AU92))*COS(RADIANS(0))) -> 0.8582465977 | BD92: =COS(RADIANS(AU92))*COS(RADIANS(AW92-Insolation!$L$6))*SIN(RADIANS(Insolation!$L$7))+SIN(RADIANS(AU92))*COS(RADIANS(Insolation!$L$7)) -> 0.9907028234 | BE92: 784.5031963 | BF92: 101.8045935 | BG92: 905.5783426 | BH92: =$AS$91*BB92*((1+COS(RADIANS(Insolation!$L$7)))/2) -> 93.93755727 | BI92: 913.3925425 | BJ92: 93.54574834 | BK92: 914.076675 | BL92: 94.58901972 | BO92: 11.5 | BP92: 47.51209967 | BQ92: 7.5 | BR92: 10.98440754 | BS92: 10.98440754 | BT92: 169.0155925 | BU92: =180-BS92-360 -> -190.9844075 | BV92: 1.35607932 | BW92: 933.5092473 | BX92: =COS(RADIANS(BP92))*COS(RADIANS(BR92-Insolation!$L$6))*SIN(RADIANS(0))+(SIN(RADIANS(BP92))*COS(RADIANS(0))) -> 0.7374199909 | BY92: =COS(RADIANS(BP92))*COS(RADIANS(BR92-Insolation!$L$6))*SIN(RADIANS(Insolation!$L$7))+SIN(RADIANS(BP92))*COS(RADIANS(Insolation!$L$7)) -> 0.9775624437 | BZ92: 688.3883806 | CA92: 85.15334128 | CB92: 912.5635809 | CC92: =$BN$91*BW92*((1+COS(RADIANS(Insolation!$L$7)))/2) -> 78.57304471 | CD92: 920.4380561 | CE92: 78.32952891 | CF92: 933.5092473 | CG92: 73.97355872 | CJ92: 11.5 | CK92: 38.07317108 | CL92: 7.5 | CM92: 9.011492132 | CN92: 9.011492132 | CO92: 170.9885079 | CP92: =180-CN92-360 -> -189.0114921 | CQ92: 1.621619896 | CR92: 944.6715769 | CS92: =COS(RADIANS(CK92))*COS(RADIANS(CM92-Insolation!$L$6))*SIN(RADIANS(0))+(SIN(RADIANS(CK92))*COS(RADIANS(0))) -> 0.6166673229 | CT92: =COS(RADIANS(CK92))*COS(RADIANS(CM92-Insolation!$L$6))*SIN(RADIANS(Insolation!$L$7))+SIN(RADIANS(CK92))*COS(RADIANS(Insolation!$L$7)) -> 0.9365936672 | CU92: 582.5480923 | CV92: 67.53323896 | CW92: 884.7734165 | CX92: =$CI$91*CR92*((1+COS(RADIANS(Insolation!$L$7)))/2) -> 62.31455071 | CY92: 892.4080914 | CZ92: 62.15641075 | DA92: 944.6715769 | DB92: 54.58939031 | DE92: 11.5 | DF92: 33.92495128 | DG92: 7.5 | DH92: 8.304689567 | DI92: 8.304689567 | DJ92: 171.6953104 | DK92: =180-DI92-360 -> -188.3046896 | DL92: 1.79177268 | DM92: 954.8004233 | DN92: =COS(RADIANS(DF92))*COS(RADIANS(DH92-Insolation!$L$6))*SIN(RADIANS(0))+(SIN(RADIANS(DF92))*COS(RADIANS(0))) -> 0.5581065114 | DO92: =COS(RADIANS(DF92))*COS(RADIANS(DH92-Insolation!$L$6))*SIN(RADIANS(Insolation!$L$7))+SIN(RADIANS(DF92))*COS(RADIANS(Insolation!$L$7)) -> 0.9103477127 | DP92: 532.8803334 | DQ92: 55.92821276 | DR92: 869.2003814 | DS92: =$DD$91*DM92*((1+COS(RADIANS(Insolation!$L$7)))/2) -> 51.60631275 | DT92: 876.7006773 | DU92: 51.48569586 | DV92: 954.8004233 | DW92: 43.57105624
D93: 12 | E93: 79.23733603 | F93: 0 | G93: 0 | H93: 0 | I93: 180 | J93: -180 | K93: 1.017905832 | L93: 878.5229478 | M93: =COS(RADIANS(E93))*COS(RADIANS(G93-Insolation!$L$6))*SIN(RADIANS(0))+(SIN(RADIANS(E93))*COS(RADIANS(0))) -> 0.9824091467 | N93: =COS(RADIANS(E93))*COS(RADIANS(G93-Insolation!$L$6))*SIN(RADIANS(Insolation!$L$7))+SIN(RADIANS(E93))*COS(RADIANS(Insolation!$L$7)) -> 0.9303066328 | O93: 863.0689795 | P93: 118.4831887 | Q93: 817.2957254 | R93: =$C$91*L93*((1+COS(RADIANS(Insolation!$L$7)))/2) -> 109.3272999 | S93: 817.2957254 | T93: 109.3272999 | U93: 878.5229478 | V93: 117.4410785 | Y93: 12 | Z93: 71.50356417 | AA93: 0 | AB93: 0 | AC93: 0 | AD93: 180 | AE93: -180 | AF93: 1.054470362 | AG93: 892.3387302 | AH93: =COS(RADIANS(Z93))*COS(RADIANS(AB93-Insolation!$L$6))*SIN(RADIANS(0))+(SIN(RADIANS(Z93))*COS(RADIANS(0))) -> 0.9483433918 | AI93: =COS(RADIANS(Z93))*COS(RADIANS(AB93-Insolation!$L$6))*SIN(RADIANS(Insolation!$L$7))+SIN(RADIANS(Z93))*COS(RADIANS(Insolation!$L$7)) -> 0.9712026655 | AJ93: 846.243538 | AK93: 113.9173205 | AL93: 866.6417533 | AM93: =$X$91*AG93*((1+COS(RADIANS(Insolation!$L$7)))/2) -> 105.1142631 | AN93: 866.6417533 | AO93: 105.1142631 | AP93: 892.3387302 | AQ93: 110.9750293 | AT93: 12 | AU93: 59.93688678 | AV93: 0 | AW93: 0 | AX93: 0 | AY93: 180 | AZ93: -180 | BA93: 1.155436063 | BB93: 915.7532269 | BC93: =COS(RADIANS(AU93))*COS(RADIANS(AW93-Insolation!$L$6))*SIN(RADIANS(0))+(SIN(RADIANS(AU93))*COS(RADIANS(0))) -> 0.8654741118 | BD93: =COS(RADIANS(AU93))*COS(RADIANS(AW93-Insolation!$L$6))*SIN(RADIANS(Insolation!$L$7))+SIN(RADIANS(AU93))*COS(RADIANS(Insolation!$L$7)) -> 0.999251559 | BE93: 792.5607107 | BF93: 101.9913182 | BG93: 915.0678396 | BH93: =$AS$91*BB93*((1+COS(RADIANS(Insolation!$L$7)))/2) -> 94.10985266 | BI93: 915.0678396 | BJ93: 94.10985266 | BK93: 915.7532269 | BL93: 95.13108183 | BO93: 12 | BP93: 48.12060277 | BQ93: 0 | BR93: 0 | BS93: 0 | BT93: 180 | BU93: -180 | BV93: 1.343090183 | BW93: 935.5812563 | BX93: =COS(RADIANS(BP93))*COS(RADIANS(BR93-Insolation!$L$6))*SIN(RADIANS(0))+(SIN(RADIANS(BP93))*COS(RADIANS(0))) -> 0.7445516414 | BY93: =COS(RADIANS(BP93))*COS(RADIANS(BR93-Insolation!$L$6))*SIN(RADIANS(Insolation!$L$7))+SIN(RADIANS(BP93))*COS(RADIANS(Insolation!$L$7)) -> 0.9859977915 | BZ93: 696.58856 | CA93: 85.3423469 | CB93: 922.4810524 | CC93: =$BN$91*BW93*((1+COS(RADIANS(Insolation!$L$7)))/2) -> 78.74744475 | CD93: 922.4810524 | CE93: 78.74744475 | CF93: 935.5812563 | CG93: 74.44206568 | CJ93: 12 | CK93: 38.57218269 | CL93: 0 | CM93: 0 | CN93: 0 | CO93: 180 | CP93: -180 | CQ93: 1.603849001 | CR93: 947.2507803 | CS93: =COS(RADIANS(CK93))*COS(RADIANS(CM93-Insolation!$L$6))*SIN(RADIANS(0))+(SIN(RADIANS(CK93))*COS(RADIANS(0))) -> 0.6235000922 | CT93: =COS(RADIANS(CK93))*COS(RADIANS(CM93-Insolation!$L$6))*SIN(RADIANS(Insolation!$L$7))+SIN(RADIANS(CK93))*COS(RADIANS(Insolation!$L$7)) -> 0.9446754971 | CU93: 590.6109489 | CV93: 67.71762257 | CW93: 894.8446017 | CX93: =$CI$91*CR93*((1+COS(RADIANS(Insolation!$L$7)))/2) -> 62.48468593 | CY93: 894.8446017 | CZ93: 62.48468593 | DA93: 947.2507803 | DB93: 54.96978325 | DE93: 12 | DF93: 34.38478045 | DG93: 0 | DH93: 0 | DI93: 0 | DJ93: 180 | DK93: -180 | DL93: 1.770701872 | DM93: 957.6641165 | DN93: =COS(RADIANS(DF93))*COS(RADIANS(DH93-Insolation!$L$6))*SIN(RADIANS(0))+(SIN(RADIANS(DF93))*COS(RADIANS(0))) -> 0.5647478076 | DO93: =COS(RADIANS(DF93))*COS(RADIANS(DH93-Insolation!$L$6))*SIN(RADIANS(Insolation!$L$7))+SIN(RADIANS(DF93))*COS(RADIANS(Insolation!$L$7)) -> 0.9182030672 | DP93: 540.8387102 | DQ93: 56.09595592 | DR93: 879.3301291 | DS93: =$DD$91*DM93*((1+COS(RADIANS(Insolation!$L$7)))/2) -> 51.76109341 | DT93: 879.3301291 | DU93: 51.76109341 | DV93: 957.6641165 | DW93: 43.88801202
D94: 12.5 | E94: 77.33804428 | F94: -7.5 | G94: -33.63981373 | H94: -33.63981373 | I94: 213.6398137 | J94: -146.3601863 | K94: 1.024925884 | L94: 877.2356523 | M94: =COS(RADIANS(E94))*COS(RADIANS(G94-Insolation!$L$6))*SIN(RADIANS(0))+(SIN(RADIANS(E94))*COS(RADIANS(0))) -> 0.9756803063 | N94: =COS(RADIANS(E94))*COS(RADIANS(G94-Insolation!$L$6))*SIN(RADIANS(Insolation!$L$7))+SIN(RADIANS(E94))*COS(RADIANS(Insolation!$L$7)) -> 0.9223477306 | O94: 855.90155 | P94: 118.3095758 | Q94: 809.1163131 | R94: =$C$91*L94*((1+COS(RADIANS(Insolation!$L$7)))/2) -> 109.1671032 | S94: 816.0981459 | T94: 108.0925781 | U94: 877.2356523 | V94: 116.8709495 | Y94: 12.5 | Z94: 70.27421634 | AA94: -7.5 | AB94: -22.06053841 | AC94: -22.06053841 | AD94: 202.0605384 | AE94: -157.9394616 | AF94: 1.0623394 | AG94: 890.9173857 | AH94: =COS(RADIANS(Z94))*COS(RADIANS(AB94-Insolation!$L$6))*SIN(RADIANS(0))+(SIN(RADIANS(Z94))*COS(RADIANS(0))) -> 0.9413187533 | AI94: =COS(RADIANS(Z94))*COS(RADIANS(AB94-Insolation!$L$6))*SIN(RADIANS(Insolation!$L$7))+SIN(RADIANS(Z94))*COS(RADIANS(Insolation!$L$7)) -> 0.9628938921 | AJ94: 838.6372429 | AK94: 113.7358695 | AL94: 857.8589091 | AM94: =$X$91*AG94*((1+COS(RADIANS(Insolation!$L$7)))/2) -> 104.9468338 | AN94: 865.2613398 | AO94: 104.2841777 | AP94: 890.9173857 | AQ94: 110.3987882 | AT94: 12.5 | AU94: 59.12027737 | AV94: -7.5 | AW94: -14.72197549 | AX94: -14.72197549 | AY94: 194.7219755 | AZ94: -165.2780245 | BA94: 1.165166285 | BB94: 914.076675 | BC94: =COS(RADIANS(AU94))*COS(RADIANS(AW94-Insolation!$L$6))*SIN(RADIANS(0))+(SIN(RADIANS(AU94))*COS(RADIANS(0))) -> 0.8582465977 | BD94: =COS(RADIANS(AU94))*COS(RADIANS(AW94-Insolation!$L$6))*SIN(RADIANS(Insolation!$L$7))+SIN(RADIANS(AU94))*COS(RADIANS(Insolation!$L$7)) -> 0.9907028234 | BE94: 784.5031963 | BF94: 101.8045935 | BG94: 905.5783426 | BH94: =$AS$91*BB94*((1+COS(RADIANS(Insolation!$L$7)))/2) -> 93.93755727 | BI94: 913.3925425 | BJ94: 93.54574834 | BK94: 914.076675 | BL94: 94.58901972 | BO94: 12.5 | BP94: 47.51209967 | BQ94: -7.5 | BR94: -10.98440754 | BS94: -10.98440754 | BT94: 190.9844075 | BU94: -169.0155925 | BV94: 1.35607932 | BW94: 933.5092473 | BX94: =COS(RADIANS(BP94))*COS(RADIANS(BR94-Insolation!$L$6))*SIN(RADIANS(0))+(SIN(RADIANS(BP94))*COS(RADIANS(0))) -> 0.7374199909 | BY94: =COS(RADIANS(BP94))*COS(RADIANS(BR94-Insolation!$L$6))*SIN(RADIANS(Insolation!$L$7))+SIN(RADIANS(BP94))*COS(RADIANS(Insolation!$L$7)) -> 0.9775624437 | BZ94: 688.3883806 | CA94: 85.15334128 | CB94: 912.5635809 | CC94: =$BN$91*BW94*((1+COS(RADIANS(Insolation!$L$7)))/2) -> 78.57304471 | CD94: 920.4380561 | CE94: 78.32952891 | CF94: 933.5092473 | CG94: 73.97355872 | CJ94: 12.5 | CK94: 38.07317108 | CL94: -7.5 | CM94: -9.011492132 | CN94: -9.011492132 | CO94: 189.0114921 | CP94: -170.9885079 | CQ94: 1.621619896 | CR94: 944.6715769 | CS94: =COS(RADIANS(CK94))*COS(RADIANS(CM94-Insolation!$L$6))*SIN(RADIANS(0))+(SIN(RADIANS(CK94))*COS(RADIANS(0))) -> 0.6166673229 | CT94: =COS(RADIANS(CK94))*COS(RADIANS(CM94-Insolation!$L$6))*SIN(RADIANS(Insolation!$L$7))+SIN(RADIANS(CK94))*COS(RADIANS(Insolation!$L$7)) -> 0.9365936672 | CU94: 582.5480923 | CV94: 67.53323896 | CW94: 884.7734165 | CX94: =$CI$91*CR94*((1+COS(RADIANS(Insolation!$L$7)))/2) -> 62.31455071 | CY94: 892.4080914 | CZ94: 62.15641075 | DA94: 944.6715769 | DB94: 54.58939031 | DE94: 12.5 | DF94: 33.92495128 | DG94: -7.5 | DH94: -8.304689567 | DI94: -8.304689567 | DJ94: 188.3046896 | DK94: -171.6953104 | DL94: 1.79177268 | DM94: 954.8004233 | DN94: =COS(RADIANS(DF94))*COS(RADIANS(DH94-Insolation!$L$6))*SIN(RADIANS(0))+(SIN(RADIANS(DF94))*COS(RADIANS(0))) -> 0.5581065114 | DO94: =COS(RADIANS(DF94))*COS(RADIANS(DH94-Insolation!$L$6))*SIN(RADIANS(Insolation!$L$7))+SIN(RADIANS(DF94))*COS(RADIANS(Insolation!$L$7)) -> 0.9103477127 | DP94: 532.8803334 | DQ94: 55.92821276 | DR94: 869.2003814 | DS94: =$DD$91*DM94*((1+COS(RADIANS(Insolation!$L$7)))/2) -> 51.60631275 | DT94: 876.7006773 | DU94: 51.48569586 | DV94: 954.8004233 | DW94: 43.57105624
D95: 13 | E95: 72.8641638 | F95: -15 | G95: -54.80643462 | H95: -54.80643462 | I95: 234.8064346 | J95: -125.1935654 | K95: 1.04645319 | L95: 873.2998515 | M95: =COS(RADIANS(E95))*COS(RADIANS(G95-Insolation!$L$6))*SIN(RADIANS(0))+(SIN(RADIANS(E95))*COS(RADIANS(0))) -> 0.9556089175 | N95: =COS(RADIANS(E95))*COS(RADIANS(G95-Insolation!$L$6))*SIN(RADIANS(Insolation!$L$7))+SIN(RADIANS(E95))*COS(RADIANS(Insolation!$L$7)) -> 0.898607203 | O95: 834.5331257 | P95: 117.7787687 | Q95: 784.753537 | R95: =$C$91*L95*((1+COS(RADIANS(Insolation!$L$7)))/2) -> 108.6773146 | S95: 812.4366443 | T95: 104.8785283 | U95: 873.2998515 | V95: 115.1646052 | Y95: 13 | Z95: 66.97950552 | AA95: -15 | AB95: -39.99942423 | AC95: -39.99942423 | AD95: 219.9994242 | AE95: -140.0005758 | AF95: 1.086525417 | AG95: 886.5629453 | AH95: =COS(RADIANS(Z95))*COS(RADIANS(AB95-Insolation!$L$6))*SIN(RADIANS(0))+(SIN(RADIANS(Z95))*COS(RADIANS(0))) -> 0.9203650316 | AI95: =COS(RADIANS(Z95))*COS(RADIANS(AB95-Insolation!$L$6))*SIN(RADIANS(Insolation!$L$7))+SIN(RADIANS(Z95))*COS(RADIANS(Insolation!$L$7)) -> 0.9381097372 | AJ95: 815.9615331 | AK95: 113.179975 | AL95: 831.6933316 | AM95: =$X$91*AG95*((1+COS(RADIANS(Insolation!$L$7)))/2) -> 104.4338966 | AN95: 861.0322956 | AO95: 101.9009644 | AP95: 886.5629453 | AQ95: 108.6734331 | AT95: 13 | AU95: 56.79198633 | AV95: -15 | AW95: -28.17847049 | AX95: -28.17847049 | AY95: 208.1784705 | AZ95: -151.8215295 | BA95: 1.195189048 | BB95: 908.9229679 | BC95: =COS(RADIANS(AU95))*COS(RADIANS(AW95-Insolation!$L$6))*SIN(RADIANS(0))+(SIN(RADIANS(AU95))*COS(RADIANS(0))) -> 0.8366877204 | BD95: =COS(RADIANS(AU95))*COS(RADIANS(AW95-Insolation!$L$6))*SIN(RADIANS(Insolation!$L$7))+SIN(RADIANS(AU95))*COS(RADIANS(Insolation!$L$7)) -> 0.9652028878 | BE95: 760.484686 | BF95: 101.2306033 | BG95: 877.2950733 | BH95: =$AS$91*BB95*((1+COS(RADIANS(Insolation!$L$7)))/2) -> 93.40792265 | BI95: 908.2426926 | BJ95: 91.86049445 | BK95: 908.9229679 | BL95: 92.96450297 | BO95: 13 | BP95: 45.73728425 | BQ95: -15 | BR95: -21.44669101 | BS95: -21.44669101 | BT95: 201.446691 | BU95: -158.553309 | BV95: 1.396361237 | BW95: 927.112669 | BX95: =COS(RADIANS(BP95))*COS(RADIANS(BR95-Insolation!$L$6))*SIN(RADIANS(0))+(SIN(RADIANS(BP95))*COS(RADIANS(0))) -> 0.7161470639 | BY95: =COS(RADIANS(BP95))*COS(RADIANS(BR95-Insolation!$L$6))*SIN(RADIANS(Insolation!$L$7))+SIN(RADIANS(BP95))*COS(RADIANS(Insolation!$L$7)) -> 0.9524007314 | BZ95: 663.9490158 | CA95: 84.56985482 | CB95: 882.9827841 | CC95: =$BN$91*BW95*((1+COS(RADIANS(Insolation!$L$7)))/2) -> 78.03464765 | CD95: 914.131044 | CE95: 77.06463254 | CF95: 927.112669 | CG95: 72.56715402 | CJ95: 13 | CK95: 36.60435719 | CL95: -15 | CM95: -17.73227362 | CN95: -17.73227362 | CO95: 197.7322736 | CP95: -162.2677264 | CQ95: 1.677047801 | CR95: 936.6719962 | CS95: =COS(RADIANS(CK95))*COS(RADIANS(CM95-Insolation!$L$6))*SIN(RADIANS(0))+(SIN(RADIANS(CK95))*COS(RADIANS(0))) -> 0.5962859254 | CT95: =COS(RADIANS(CK95))*COS(RADIANS(CM95-Insolation!$L$6))*SIN(RADIANS(Insolation!$L$7))+SIN(RADIANS(CK95))*COS(RADIANS(Insolation!$L$7)) -> 0.9124864601 | CU95: 558.5243281 | CV95: 66.96136022 | CW95: 854.7005141 | CX95: =$CI$91*CR95*((1+COS(RADIANS(Insolation!$L$7)))/2) -> 61.78686439 | CY95: 884.8510836 | CZ95: 61.1561822 | DA95: 936.6719962 | DB95: 53.44473843 | DE95: 13 | DF95: 32.56773285 | DG95: -15 | DH95: -16.37899354 | DI95: -16.37899354 | DJ95: 196.3789935 | DK95: -163.6210065 | DL95: 1.857713083 | DM95: 945.8938042 | DN95: =COS(RADIANS(DF95))*COS(RADIANS(DH95-Insolation!$L$6))*SIN(RADIANS(0))+(SIN(RADIANS(DF95))*COS(RADIANS(0))) -> 0.5382962573 | DO95: =COS(RADIANS(DF95))*COS(RADIANS(DH95-Insolation!$L$6))*SIN(RADIANS(Insolation!$L$7))+SIN(RADIANS(DF95))*COS(RADIANS(Insolation!$L$7)) -> 0.8869160564 | DP95: 509.1710946 | DQ95: 55.40650029 | DR95: 838.9284025 | DS95: =$DD$91*DM95*((1+COS(RADIANS(Insolation!$L$7)))/2) -> 51.12491605 | DT95: 868.5225922 | DU95: 50.64401302 | DV95: 945.8938042 | DW95: 42.61580601
